Workbook

Sheet Hoja1 (hidden)

Sheet REPORTE
A2: 2017-09-25 | B2: Graduación Egresados 2017
B4: Resumen de convocatoria | AA4: Provincia | AH4: Llamados | AI4: Tasa% | AJ4: Asistentes Confirmados
AA5: Graduados Asisten | AB5: =Datos!R29 -> 677 | AC5: Respondieron Link | AD5: =Datos!AD29 -> 763 | AH5: =AB5+AB8 -> 757 | AI5: =IFERROR(AH5/AB17,0) -> 0.9921363041 | AJ5: =AB6+AB5 -> 3227
AA6: Acompañantes | AB6: =Datos!S29 -> 2550 | AC6: Tasa de respuesta | AD6: =AD5/AB15 -> 0.3253731343 | AH6: =AB17-AH5 -> 6 | AJ6: =IFERROR(AB5/AH5,0) -> 0.894319683
K7: =+CONCATENATE("Actualizado al ",TEXT(A2,"dd/mm/yyyy")) -> Actualizado al 25/09/2017 | AA7: No asisten | AB7: =Datos!T$29 -> 6 | AC7: Restan | AD7: =Datos!AE29 -> 1582
W8: 1 | X8: Acumulado | Z8: 1 | AA8: NO Contactados | AB8: =Datos!U29 -> 80 | AH8: Acompañantes
W9: 2 | X9: Miercoles 15 de noviembre 10.30h | AA9: GRADO REAL | AB9: =Datos!V29 -> 2040 | AH9: % | AI9: =AB6/AB5 -> 3.76661743
W10: 3 | X10: Miércoles 15 de noviembre 19.00h | AA10: PREGRADO REAL | AB10: =Datos!W29 -> 305
W11: 4 | X11: Jueves 16 de noviembre 10.30h | AA11: GRADO | AB11: =Datos!X29 -> 646 | AH11: Grafico1 | AI11: GRafico2 | AJ11: Grafico 3
W12: 5 | X12: Jueves 16 de noviembre 19.00h | AA12: PREGRADO | AB12: =Datos!Y29 -> 117 | AH12: =AB5 -> 677 | AI12: =AH5 -> 757 | AJ12: =AD5 -> 763
AA13: Tasa Asisten | AB13: =Datos!Z29 -> 0.8872870249 | AH13: =AB16 -> 86 | AI13: =AH6 -> 6 | AJ13: =AD7 -> 1582
AA14: Tasa Contactados | AB14: =Datos!AA29 -> 0.8872870249
AA15: Total | AB15: =Datos!AB29 -> 2345
AA16: Restan | AB16: =Datos!AC29 -> 86
AA17: Total Respondieron | AB17: =Datos!AD29 -> 763
Y21: Buenos Aires | Z21: Catamarca | AA21: Chaco | AB21: Chubut | AC21: Córdoba | AD21: Corrientes | AE21: Entre Ríos | AF21: Formosa | AG21: Jujuy | AH21: La Pampa | AI21: La Rioja | AJ21: Mendoza | AK21: Misiones | AL21: Neuquén | AM21: Río Negro | AN21: Salta | AO21: San Juan | AP21: San Luis | AQ21: Santa Cruz | AR21: Santa Fe | AS21: Santiago Del Estero | AT21: Tierra Del Fuego | AU21: Tucumán
X22: Asisten | Y22: =VLOOKUP(Y$21,Asiste_,2,FALSE) -> 33 | Z22: 3 | AA22: 3 | AB22: 2 | AC22: 514 | AD22: 0 | AE22: 1 | AF22: 0 | AG22: 8 | AH22: 6 | AI22: 4 | AJ22: 10 | AK22: 2 | AL22: 12 | AM22: 4 | AN22: 11 | AO22: 13 | AP22: 3 | AQ22: 4 | AR22: 19 | AS22: 15 | AT22: 4 | AU22: 6
X23: Invitados | Y23: =VLOOKUP(Y$21,Asiste_,3,FALSE) -> 106 | Z23: 12 | AA23: 12 | AB23: 8 | AC23: 1979 | AD23: 0 | AE23: 4 | AF23: 0 | AG23: 31 | AH23: 21 | AI23: 14 | AJ23: 33 | AK23: 6 | AL23: 41 | AM23: 16 | AN23: 33 | AO23: 49 | AP23: 11 | AQ23: 16 | AR23: 64 | AS23: 58 | AT23: 13 | AU23: 23

Sheet GR
B3: APELLIDO | C3: NOMBRE | D3: DNI | E3: PROVINCIA NAC. | F3: Carrera | G3: DNI | H3: Fecha de Colacion | I3: Prov Real
B4: PARRA | C4: EMILCE MARISOL | D4: 22464529 | E4: Mendoza | F4: Abogacía | G4: =D4*1 -> 22464529 | H4: =VLOOKUP(F4,colación,3,FALSE) -> Miércoles 15 de noviembre 19.00h | I4: =VLOOKUP(E4,provincia,2,FALSE) -> Mendoza
B5: FUMAGALLI | C5: RODOLFO GABRIEL | D5: 37165922 | E5: Cordoba | F5: Abogacía | G5: =D5*1 -> 37165922 | H5: Miércoles 15 de noviembre 19.00h | I5: Córdoba
B6: BARROS IMPINI | C6: WALTER RAUL | D6: 30166761 | E6: Entre Rios | F6: Contador Público | G6: 30166761 | H6: Jueves 16 de noviembre 10.30h | I6: Entre Ríos
B7: SOSA | C7: TAMARA | D7: 37296708 | E7: San Luis | F7: Licenciatura En Gestión Turística | G7: 37296708 | H7: Jueves 16 de noviembre 19.00h | I7: San Luis
B8: PERRAMON | C8: LUCIA CLARA | D8: 34667269 | E8: Rio Negro | F8: Abogacía | G8: 34667269 | H8: Miércoles 15 de noviembre 19.00h | I8: Río Negro
B9: TOURN | C9: VALERIA LORENA | D9: 30760886 | E9: Santa Fe | F9: Abogacía | G9: 30760886 | H9: Miércoles 15 de noviembre 19.00h | I9: Santa Fe
B10: DUARTE | C10: SANDRA ELIZABETH | D10: 26563597 | E10: Cordoba | F10: Abogacía | G10: 26563597 | H10: Miércoles 15 de noviembre 19.00h | I10: Córdoba
B11: ELIZALDE | C11: GUILLERMO PABLO | D11: 20111729 | E11: Mendoza | F11: Abogacía | G11: 20111729 | H11: Miércoles 15 de noviembre 19.00h | I11: Mendoza
B12: TOLEDO | C12: ALBERTO HUGO | D12: 11839141 | E12: Buenos Aires | F12: Contador Público | G12: 11839141 | H12: Jueves 16 de noviembre 10.30h | I12: Buenos Aires
B13: ALVAREZ | C13: FEDERICO IVAN | D13: 28083612 | E13: Cordoba | F13: Abogacía | G13: 28083612 | H13: Miércoles 15 de noviembre 19.00h | I13: Córdoba
B14: CASELLA | C14: MARIANA | D14: 28159555 | E14: Santa Fe | F14: Abogacía | G14: 28159555 | H14: Miércoles 15 de noviembre 19.00h | I14: Santa Fe
B15: WANGLER | C15: LIA ROSA | D15: 24778686 | E15: Sin Datos | F15: Abogacía | G15: 24778686 | H15: Miércoles 15 de noviembre 19.00h | I15: Córdoba
B16: LOPEZ | C16: MARIEL GUILLERMINA | D16: 30287899 | E16: Salta | F16: Abogacía | G16: 30287899 | H16: Miércoles 15 de noviembre 19.00h | I16: Salta
B17: OXANDABURU | C17: LUIS ROBERTO | D17: 27249500 | E17: Cordoba | F17: Abogacía | G17: 27249500 | H17: Miércoles 15 de noviembre 19.00h | I17: Córdoba
B18: MALISSIA | C18: VICTORIA NADIR | D18: 35881808 | E18: Cordoba | F18: Licenciatura En Educación - Ciclo | G18: 35881808 | H18: Jueves 16 de noviembre 19.00h | I18: Córdoba
B19: ANDRUET | C19: LAUTARO | D19: 37133568 | E19: Cordoba | F19: Abogacía | G19: 37133568 | H19: Miércoles 15 de noviembre 19.00h | I19: Córdoba
B20: MONDINO | C20: CAMILA VANESA | D20: 38021766 | E20: Cordoba | F20: Abogacía | G20: 38021766 | H20: Miércoles 15 de noviembre 19.00h | I20: Córdoba
B21: RODRIGUEZ | C21: PABLO CESAR | D21: 27213057 | E21: Cordoba | F21: Contador Público | G21: 27213057 | H21: Jueves 16 de noviembre 10.30h | I21: Córdoba
B22: BRUN | C22: FEDERICO | D22: 31403960 | E22: Cordoba | F22: Contador Público | G22: 31403960 | H22: Jueves 16 de noviembre 10.30h | I22: Córdoba
B23: FUNES | C23: GREGORIO | D23: 27247884 | E23: Cordoba | F23: Licenciatura En Diseño Gráfico | G23: 27247884 | H23: Jueves 16 de noviembre 19.00h | I23: Córdoba
B24: RABANAL | C24: SOFIA | D24: 35545018 | E24: Cordoba | F24: Licenciatura En Psicología | G24: 35545018 | H24: Jueves 16 de noviembre 19.00h | I24: Córdoba
B25: VILLARRUBIA | C25: MARIANO DANIEL | D25: 31591997 | E25: Cordoba | F25: Licenciatura En Psicología | G25: 31591997 | H25: Jueves 16 de noviembre 19.00h | I25: Córdoba
B26: MORA | C26: TANIA ANDREA | D26: 21629341 | E26: Cordoba | F26: Abogacía | G26: 21629341 | H26: Miércoles 15 de noviembre 19.00h | I26: Córdoba
B27: PEREZ BLANCHARD | C27: GERARDO DAVID | D27: 26945340 | E27: Mendoza | F27: Abogacía | G27: 26945340 | H27: Miércoles 15 de noviembre 19.00h | I27: Mendoza
B28: ONGARO | C28: LETICIA VANINA | D28: 27298596 | E28: Mendoza | F28: Abogacía | G28: 27298596 | H28: Miércoles 15 de noviembre 19.00h | I28: Mendoza
B29: PERROTTA | C29: MICAELA | D29: 32000462 | E29: Cordoba | F29: Abogacía | G29: 32000462 | H29: Miércoles 15 de noviembre 19.00h | I29: Córdoba
B30: DEHAES | C30: MARIA CECILIA | D30: 26411211 | E30: San Luis | F30: Abogacía | G30: 26411211 | H30: Miércoles 15 de noviembre 19.00h | I30: San Luis
B31: GOMEZ | C31: MARIO CESAR | D31: 23364666 | E31: Rio Negro | F31: Abogacía | G31: 23364666 | H31: Miércoles 15 de noviembre 19.00h | I31: Río Negro
B32: MANSILLA | C32: ADA FERNANDA | D32: 28427715 | E32: Cordoba | F32: Abogacía | G32: 28427715 | H32: Miércoles 15 de noviembre 19.00h | I32: Córdoba
B33: NIETO | C33: MARIANO CARLOS | D33: 24172040 | E33: Cordoba | F33: Licenciatura En Gestión De Recursos Humanos | G33: 24172040 | H33: Jueves 16 de noviembre 19.00h | I33: Córdoba
B34: LUCERO | C34: MORENA | D34: 32919741 | E34: Sin Datos | F34: Licenciatura En Relaciones Públicas E Institucionales | G34: 32919741 | H34: Jueves 16 de noviembre 19.00h | I34: Córdoba
B35: SANTOS | C35: NORA EVELYN | D35: 92515389 | E35: Mendoza | F35: Licenciatura En Educación - Ciclo | G35: 92515389 | H35: Jueves 16 de noviembre 19.00h | I35: Mendoza
B36: DIALE | C36: ANALIA ANDREA | D36: 23892742 | E36: Misiones | F36: Licenciatura En Educación - Ciclo | G36: 23892742 | H36: Jueves 16 de noviembre 19.00h | I36: Misiones
B37: LALLANA | C37: LILIAN SOLEDAD | D37: 35144518 | E37: Cordoba | F37: Abogacía | G37: 35144518 | H37: Miércoles 15 de noviembre 19.00h | I37: Córdoba
B38: AGUIRRE | C38: SANDRA LUCRECIA | D38: 29379142 | E38: Sin Datos | F38: Abogacía | G38: 29379142 | H38: Miércoles 15 de noviembre 19.00h | I38: Córdoba
B39: BIELLI BONDINO | C39: MARINA SOLEDAD | D39: 34642020 | E39: Mendoza | F39: Abogacía | G39: 34642020 | H39: Miércoles 15 de noviembre 19.00h | I39: Mendoza
B40: SUAREZ | C40: YNA SUSANA | D40: 22062791 | E40: San Luis | F40: Abogacía | G40: 22062791 | H40: Miércoles 15 de noviembre 19.00h | I40: San Luis
B41: VELZI | C41: FABIA LORENA | D41: 35752457 | E41: Cordoba | F41: Licenciatura En Gestión De Recursos Humanos | G41: 35752457 | H41: Jueves 16 de noviembre 19.00h | I41: Córdoba
B42: FILIPPI | C42: RENZO NICOLAS | D42: 34542693 | E42: Cordoba | F42: Abogacía | G42: 34542693 | H42: Miércoles 15 de noviembre 19.00h | I42: Córdoba
B43: CUELLAR | C43: PABLO RODRIGO | D43: 34061002 | E43: Jujuy | F43: Abogacía | G43: 34061002 | H43: Miércoles 15 de noviembre 19.00h | I43: Jujuy
B44: COLLANTES | C44: MATIAS EXEQUIEL | D44: 35359385 | E44: Ciudad Autonoma De Buenos Aires | F44: Abogacía | G44: 35359385 | H44: Miércoles 15 de noviembre 19.00h | I44: Buenos Aires
B45: LUCIENTES | C45: PAULA | D45: 22513047 | E45: Cordoba | F45: Abogacía | G45: 22513047 | H45: Miércoles 15 de noviembre 19.00h | I45: Córdoba
B46: CADAILLON | C46: GUILLERMINA ANDREA | D46: 30330138 | E46: Cordoba | F46: Escribanía | G46: 30330138 | H46: Jueves 16 de noviembre 10.30h | I46: Córdoba
B47: MOROSO | C47: JESUS MARIA | D47: 23711218 | E47: Santa Cruz | F47: Abogacía | G47: 23711218 | H47: Miércoles 15 de noviembre 19.00h | I47: Santa Cruz
B48: CERQUETTI | C48: CAROLINA | D48: 32899413 | E48: Cordoba | F48: Abogacía | G48: 32899413 | H48: Miércoles 15 de noviembre 19.00h | I48: Córdoba
B49: GAITAN | C49: LETICIA XIMENA | D49: 36922131 | E49: Sin Datos | F49: Abogacía | G49: 36922131 | H49: Miércoles 15 de noviembre 19.00h | I49: Córdoba
B50: LANGER | C50: HERNAN | D50: 29710617 | E50: Cordoba | F50: Contador Público | G50: 29710617 | H50: Jueves 16 de noviembre 10.30h | I50: Córdoba
B51: GARCIA | C51: EMMANUELA ALDANA | D51: 30640824 | E51: Cordoba | F51: Contador Público | G51: 30640824 | H51: Jueves 16 de noviembre 10.30h | I51: Córdoba
B52: CARABELOS | C52: MARIA EUGENIA | D52: 36650134 | E52: Cordoba | F52: Licenciatura En Administración | G52: 36650134 | H52: Jueves 16 de noviembre 19.00h | I52: Córdoba
B53: MANCILLA | C53: MICAELA CAROLINA | D53: 36233388 | E53: Cordoba | F53: Licenciatura En Psicología | G53: 36233388 | H53: Jueves 16 de noviembre 19.00h | I53: Córdoba
B54: BIOLCHI | C54: MARIA VIRGINIA | D54: 32798584 | E54: Chaco | F54: Abogacía | G54: 32798584 | H54: Miércoles 15 de noviembre 19.00h | I54: Chaco
B55: MUZZIO | C55: FRANCISCO ALEJANDRO | D55: 32467178 | E55: Cordoba | F55: Abogacía | G55: 32467178 | H55: Miércoles 15 de noviembre 19.00h | I55: Córdoba
B56: LORENZATI | C56: MARIA BELEN | D56: 28678613 | E56: Cordoba | F56: Licenciatura En Administración | G56: 28678613 | H56: Jueves 16 de noviembre 19.00h | I56: Córdoba
B57: AGUERO | C57: JOSE ALBERTO | D57: 17494590 | E57: Tucuman | F57: Abogacía | G57: 17494590 | H57: Miércoles 15 de noviembre 19.00h | I57: Tucumán
B58: GIMERA | C58: YANINA ELIZABETH | D58: 30947965 | E58: Cordoba | F58: Abogacía | G58: 30947965 | H58: Miércoles 15 de noviembre 19.00h | I58: Córdoba
B59: VON MEYEREN | C59: MARIA FLORENCIA | D59: 33359992 | E59: Cordoba | F59: Abogacía | G59: 33359992 | H59: Miércoles 15 de noviembre 19.00h | I59: Córdoba
B60: SANCHEZ | C60: MATIAS | D60: 31300388 | E60: Cordoba | F60: Abogacía | G60: 31300388 | H60: Miércoles 15 de noviembre 19.00h | I60: Córdoba
B61: VERCELLONE | C61: MARIA JULIANA | D61: 16756420 | E61: Tucuman | F61: Abogacía | G61: 16756420 | H61: Miércoles 15 de noviembre 19.00h | I61: Tucumán
B62: CRISCI | C62: MARIA CELESTE | D62: 34263080 | E62: Buenos Aires | F62: Abogacía | G62: 34263080 | H62: Miércoles 15 de noviembre 19.00h | I62: Buenos Aires
B63: GALITIELLO | C63: MIGUEL ANGEL | D63: 17672782 | E63: Buenos Aires | F63: Abogacía | G63: 17672782 | H63: Miércoles 15 de noviembre 19.00h | I63: Buenos Aires
B64: GIRALDI | C64: CAMILA | D64: 35672249 | E64: Cordoba | F64: Licenciatura En Gestión De Recursos Humanos | G64: 35672249 | H64: Jueves 16 de noviembre 19.00h | I64: Córdoba
B65: VIRGILIO | C65: IVAN ALBERTO | D65: 33712164 | E65: Santa Fe | F65: Escribanía | G65: 33712164 | H65: Jueves 16 de noviembre 10.30h | I65: Santa Fe
B66: NOSTRALA | C66: NAYLA SELENE | D66: 35915028 | E66: Cordoba | F66: Licenciatura En Psicología | G66: 35915028 | H66: Jueves 16 de noviembre 19.00h | I66: Córdoba
B67: UDRIZAR | C67: MELINA YANET | D67: 37128215 | E67: Cordoba | F67: Licenciatura En Relaciones Públicas E Institucionales | G67: 37128215 | H67: Jueves 16 de noviembre 19.00h | I67: Córdoba
B68: GAIA LEDESMA | C68: YANINA LIS | D68: 29115989 | E68: Cordoba | F68: Licenciatura En Educación - Ciclo | G68: 29115989 | H68: =VLOOKUP(F68,colación,3,FALSE) -> Jueves 16 de noviembre 19.00h | I68: =VLOOKUP(E68,provincia,2,FALSE) -> Córdoba
B69: GIOMMETTI | C69: GISELA | D69: 31062347 | E69: Cordoba | F69: Abogacía | G69: =D69*1 -> 31062347 | H69: Miércoles 15 de noviembre 19.00h | I69: Córdoba
B70: SILVA | C70: IGNACIO | D70: 33526319 | E70: La Pampa | F70: Licenciatura En Diseño Gráfico | G70: 33526319 | H70: Jueves 16 de noviembre 19.00h | I70: La Pampa
B71: MANTOVANI | C71: MARIA CECILIA | D71: 34455768 | E71: Cordoba | F71: Licenciatura En Diseño Gráfico | G71: 34455768 | H71: Jueves 16 de noviembre 19.00h | I71: Córdoba
B72: FERNANDEZ GALLI | C72: CRISTIAN DANIEL | D72: 34244283 | E72: Salta | F72: Abogacía | G72: 34244283 | H72: Miércoles 15 de noviembre 19.00h | I72: Salta
B73: RODRIGUEZ | C73: MARIA ELENA | D73: 27402461 | E73: Mendoza | F73: Abogacía | G73: 27402461 | H73: Miércoles 15 de noviembre 19.00h | I73: Mendoza
B74: CONTRERAS | C74: NAHUEL ARNALDO | D74: 35390521 | E74: Cordoba | F74: Abogacía | G74: 35390521 | H74: Miércoles 15 de noviembre 19.00h | I74: Córdoba
B75: ARCANGELO | C75: JULIETA | D75: 33592050 | E75: Cordoba | F75: Contador Público | G75: 33592050 | H75: Jueves 16 de noviembre 10.30h | I75: Córdoba
B76: MOLINA | C76: RODRIGO MANUEL | D76: 33700833 | E76: Cordoba | F76: Licenciatura En Relaciones Públicas E Institucionales | G76: 33700833 | H76: Jueves 16 de noviembre 19.00h | I76: Córdoba
B77: NINFEA | C77: JUAN AGUSTIN | D77: 30310243 | E77: Cordoba | F77: Abogacía | G77: 30310243 | H77: Miércoles 15 de noviembre 19.00h | I77: Córdoba
B78: LADO | C78: MIGUEL ANGEL | D78: 10391973 | E78: Sin Datos | F78: Abogacía | G78: 10391973 | H78: Miércoles 15 de noviembre 19.00h | I78: Córdoba
B79: FARINACCIO | C79: MARIA ALEJANDRA | D79: 28777267 | E79: Buenos Aires | F79: Abogacía | G79: 28777267 | H79: Miércoles 15 de noviembre 19.00h | I79: Buenos Aires
B80: REYNO BUCH | C80: MARIANO | D80: 37345716 | E80: Cordoba | F80: Abogacía | G80: 37345716 | H80: Miércoles 15 de noviembre 19.00h | I80: Córdoba
B81: JUAREZ | C81: IGNACIO ROQUE | D81: 36364803 | E81: Cordoba | F81: Abogacía | G81: 36364803 | H81: Miércoles 15 de noviembre 19.00h | I81: Córdoba
B82: BUDASSI | C82: NATALIA | D82: 28345057 | E82: Cordoba | F82: Abogacía | G82: 28345057 | H82: Miércoles 15 de noviembre 19.00h | I82: Córdoba
B83: DIAZ | C83: WALTER ABRAHAM | D83: 28338328 | E83: Buenos Aires | F83: Abogacía | G83: 28338328 | H83: Miércoles 15 de noviembre 19.00h | I83: Buenos Aires
B84: MONSELLO | C84: HORACIO | D84: 33323880 | E84: Cordoba | F84: Contador Público | G84: 33323880 | H84: Jueves 16 de noviembre 10.30h | I84: Córdoba
B85: MONCUNILL | C85: GUADALUPE MARIA | D85: 34285749 | E85: Cordoba | F85: Licenciatura En Psicología | G85: 34285749 | H85: Jueves 16 de noviembre 19.00h | I85: Córdoba
B86: MOLINA | C86: KEREN CESIA | D86: 37684571 | E86: Formosa | F86: Licenciatura En Relaciones Internacionales | G86: 37684571 | H86: Jueves 16 de noviembre 19.00h | I86: Formosa
B87: PELISARI | C87: MARCELO SEBASTIAN | D87: 26433492 | E87: Cordoba | F87: Abogacía | G87: 26433492 | H87: Miércoles 15 de noviembre 19.00h | I87: Córdoba
B88: VALERIO | C88: ANALIA VERONICA | D88: 26771033 | E88: La Rioja | F88: Abogacía | G88: 26771033 | H88: Miércoles 15 de noviembre 19.00h | I88: La Rioja
B89: IBAÑEZ | C89: VICTOR WALTER | D89: 31557363 | E89: Cordoba | F89: Abogacía | G89: 31557363 | H89: Miércoles 15 de noviembre 19.00h | I89: Córdoba
B90: MANDOLESI | C90: JUAN FRANCISCO | D90: 29050647 | E90: Buenos Aires | F90: Abogacía | G90: 29050647 | H90: Miércoles 15 de noviembre 19.00h | I90: Buenos Aires
B91: GONZALEZ | C91: MARIA LAURA | D91: 35171905 | E91: Chubut | F91: Abogacía | G91: 35171905 | H91: Miércoles 15 de noviembre 19.00h | I91: Chubut
B92: SOBRA | C92: CARLA | D92: 29203967 | E92: Cordoba | F92: Licenciatura En Educación - Ciclo | G92: 29203967 | H92: Jueves 16 de noviembre 19.00h | I92: Córdoba
B93: ARIAS | C93: GIOVANNA LORENA | D93: 37976753 | E93: Entre Rios | F93: Abogacía | G93: 37976753 | H93: Miércoles 15 de noviembre 19.00h | I93: Entre Ríos
B94: SORIA | C94: JULIO | D94: 20485517 | E94: Cordoba | F94: Abogacía | G94: 20485517 | H94: Miércoles 15 de noviembre 19.00h | I94: Córdoba
B95: FREITES ARAUJO | C95: MARIA BELEN | D95: 28977754 | E95: Mendoza | F95: Abogacía | G95: 28977754 | H95: Miércoles 15 de noviembre 19.00h | I95: Mendoza
B96: MILANESIO | C96: AGOSTINA | D96: 34189001 | E96: Cordoba | F96: Abogacía | G96: 34189001 | H96: Miércoles 15 de noviembre 19.00h | I96: Córdoba
B97: RACCA | C97: DAMIAN | D97: 37403966 | E97: Santa Fe | F97: Abogacía | G97: 37403966 | H97: Miércoles 15 de noviembre 19.00h | I97: Santa Fe
B98: SEGURA | C98: ANDREA GISELA | D98: 25139819 | E98: Neuquen | F98: Abogacía | G98: 25139819 | H98: Miércoles 15 de noviembre 19.00h | I98: Neuquén
B99: CAMPS | C99: NURIA AMALIA | D99: 37522524 | E99: Cordoba | F99: Abogacía | G99: 37522524 | H99: Miércoles 15 de noviembre 19.00h | I99: Córdoba
B100: ALVARENGA | C100: MARIA JIMENA | D100: 33533650 | E100: Formosa | F100: Abogacía | G100: 33533650 | H100: Miércoles 15 de noviembre 19.00h | I100: Formosa
B101: BROUSSER | C101: CHRISTIAN RUBEN | D101: 36892140 | E101: Chaco | F101: Abogacía | G101: 36892140 | H101: Miércoles 15 de noviembre 19.00h | I101: Chaco
B102: PARDO | C102: VALENTIN | D102: 35638210 | E102: Cordoba | F102: Abogacía | G102: 35638210 | H102: Miércoles 15 de noviembre 19.00h | I102: Córdoba
B103: FUMALE | C103: ROMINA FLORENCIA | D103: 29388177 | E103: Santa Fe | F103: Abogacía | G103: 29388177 | H103: Miércoles 15 de noviembre 19.00h | I103: Santa Fe
B104: BERDUN | C104: MONICA | D104: 16589817 | E104: Buenos Aires | F104: Abogacía | G104: 16589817 | H104: Miércoles 15 de noviembre 19.00h | I104: Buenos Aires
B105: ZAVALIA | C105: GUSTAVO | D105: 32476428 | E105: Sin Datos | F105: Abogacía | G105: 32476428 | H105: Miércoles 15 de noviembre 19.00h | I105: Córdoba
B106: CARBONE | C106: CESAR ALEJANDRO | D106: 22963718 | E106: Ciudad Autonoma De Buenos Aires | F106: Abogacía | G106: 22963718 | H106: Miércoles 15 de noviembre 19.00h | I106: Buenos Aires
B107: SECO | C107: VICTORIA MARCELINA | D107: 34547077 | E107: Buenos Aires | F107: Abogacía | G107: 34547077 | H107: Miércoles 15 de noviembre 19.00h | I107: Buenos Aires
B108: SANCHEZ BORGHI | C108: MARIA FLORENCIA | D108: 37095098 | E108: Cordoba | F108: Licenciatura En Gestión De Recursos Humanos | G108: 37095098 | H108: Jueves 16 de noviembre 19.00h | I108: Córdoba
B109: FRETES | C109: MARCELA INÉS | D109: 31667680 | E109: Cordoba | F109: Licenciatura En Comercialización | G109: 31667680 | H109: Jueves 16 de noviembre 19.00h | I109: Córdoba
B110: CORONEL | C110: MAGALI | D110: 32934227 | E110: Cordoba | F110: Licenciatura En Psicología | G110: 32934227 | H110: Jueves 16 de noviembre 19.00h | I110: Córdoba
B111: BOIERO ROVERA | C111: SEBASTIAN | D111: 34274015 | E111: Cordoba | F111: Escribanía | G111: 34274015 | H111: Jueves 16 de noviembre 10.30h | I111: Córdoba
B112: NIETO | C112: LUCAS EMMANUEL | D112: 34848426 | E112: Cordoba | F112: Abogacía | G112: 34848426 | H112: Miércoles 15 de noviembre 19.00h | I112: Córdoba
B113: VALLARO ARZELAN | C113: NICOLAS | D113: 31312742 | E113: Salta | F113: Abogacía | G113: 31312742 | H113: Miércoles 15 de noviembre 19.00h | I113: Salta
B114: SANCHEZ | C114: IVANA YESIKA | D114: 28724269 | E114: Santiago Del Estero | F114: Abogacía | G114: 28724269 | H114: Miércoles 15 de noviembre 19.00h | I114: Santiago Del Estero
B115: JULIAN | C115: GRACIELA INES | D115: 28343252 | E115: Cordoba | F115: Abogacía | G115: 28343252 | H115: Miércoles 15 de noviembre 19.00h | I115: Córdoba
B116: FARO | C116: MARIANA | D116: 33814959 | E116: Cordoba | F116: Licenciatura En Psicología | G116: 33814959 | H116: Jueves 16 de noviembre 19.00h | I116: Córdoba
B117: CASTRO | C117: GLADYS BEATRIZ | D117: 14239197 | E117: San Juan | F117: Licenciatura En Educación - Ciclo | G117: 14239197 | H117: Jueves 16 de noviembre 19.00h | I117: San Juan
B118: PUMAR | C118: KARINA | D118: 21730627 | E118: Sin Datos | F118: Licenciatura En Educación - Ciclo | G118: 21730627 | H118: Jueves 16 de noviembre 19.00h | I118: Córdoba
B119: MAINENTE | C119: MARCELA EMILIA | D119: 31359601 | E119: Mendoza | F119: Abogacía | G119: 31359601 | H119: Miércoles 15 de noviembre 19.00h | I119: Mendoza
B120: TOLEDO | C120: GRACIELA BEATRIZ | D120: 14663559 | E120: Corrientes | F120: Abogacía | G120: 14663559 | H120: Miércoles 15 de noviembre 19.00h | I120: Corrientes
B121: MICHELOTTI | C121: KARINA SANDRA | D121: 24609067 | E121: Cordoba | F121: Licenciatura En Educación - Ciclo | G121: 24609067 | H121: Jueves 16 de noviembre 19.00h | I121: Córdoba
B122: ORTIZ | C122: ELIANA | D122: 31775392 | E122: Buenos Aires | F122: Escribanía | G122: 31775392 | H122: Jueves 16 de noviembre 10.30h | I122: Buenos Aires
B123: PEREIRA | C123: NATALIA CAROLINA | D123: 30076047 | E123: Mendoza | F123: Abogacía | G123: 30076047 | H123: Miércoles 15 de noviembre 19.00h | I123: Mendoza
B124: ROSATELLI | C124: DANIEL ALEJANDRO | D124: 30429426 | E124: Entre Rios | F124: Abogacía | G124: 30429426 | H124: Miércoles 15 de noviembre 19.00h | I124: Entre Ríos
B125: CHIALVA | C125: BETIANA | D125: 24766242 | E125: Cordoba | F125: Abogacía | G125: 24766242 | H125: Miércoles 15 de noviembre 19.00h | I125: Córdoba
B126: BALAGUER | C126: MARIA LAURA | D126: 28527331 | E126: Mendoza | F126: Abogacía | G126: 28527331 | H126: Miércoles 15 de noviembre 19.00h | I126: Mendoza
B127: BLANCO | C127: GERMAN | D127: 37128008 | E127: Cordoba | F127: Abogacía | G127: 37128008 | H127: Miércoles 15 de noviembre 19.00h | I127: Córdoba
B128: REARTES | C128: FLORENCIA ROSALIA | D128: 34801613 | E128: Cordoba | F128: Abogacía | G128: 34801613 | H128: Miércoles 15 de noviembre 19.00h | I128: Córdoba
B129: GAMBARTE | C129: RAQUEL DOLORES | D129: 21715607 | E129: Cordoba | F129: Abogacía | G129: 21715607 | H129: Miércoles 15 de noviembre 19.00h | I129: Córdoba
B130: CABRERO | C130: ANABEL | D130: 35279310 | E130: Cordoba | F130: Contador Público | G130: 35279310 | H130: Jueves 16 de noviembre 10.30h | I130: Córdoba
B131: TURCO | C131: DANAE MACARENA | D131: 35939437 | E131: Cordoba | F131: Licenciatura En Psicología | G131: 35939437 | H131: Jueves 16 de noviembre 19.00h | I131: Córdoba
B132: SORAIDE | C132: MAXIMILIANO | D132: 35480104 | E132: Jujuy | F132: Licenciatura En Relaciones Internacionales | G132: 35480104 | H132: =VLOOKUP(F132,colación,3,FALSE) -> Jueves 16 de noviembre 19.00h | I132: =VLOOKUP(E132,provincia,2,FALSE) -> Jujuy
B133: RIBERO | C133: GABRIELA NATALIA | D133: 32332969 | E133: Cordoba | F133: Licenciatura En Educación - Ciclo | G133: =D133*1 -> 32332969 | H133: Jueves 16 de noviembre 19.00h | I133: Córdoba
B134: RAMIREZ | C134: MALENA | D134: 27962971 | E134: Tucuman | F134: Licenciatura En Educación - Ciclo | G134: 27962971 | H134: Jueves 16 de noviembre 19.00h | I134: Tucumán
B135: BRANCHER | C135: CAROLINA BELEN | D135: 38109508 | E135: Cordoba | F135: Contador Público | G135: 38109508 | H135: Jueves 16 de noviembre 10.30h | I135: Córdoba
B136: VICENCIO | C136: CARINA | D136: 21376128 | E136: Sin Datos | F136: Abogacía | G136: 21376128 | H136: Miércoles 15 de noviembre 19.00h | I136: Córdoba
B137: GONZALEZ | C137: LORENA RUTH | D137: 23764413 | E137: Cordoba | F137: Abogacía | G137: 23764413 | H137: Miércoles 15 de noviembre 19.00h | I137: Córdoba
B138: IRIGOYEN | C138: MARIA VICTORIA | D138: 31320191 | E138: Mendoza | F138: Abogacía | G138: 31320191 | H138: Miércoles 15 de noviembre 19.00h | I138: Mendoza
B139: ZALAZAR | C139: ANALUZ | D139: 33967204 | E139: La Rioja | F139: Abogacía | G139: 33967204 | H139: Miércoles 15 de noviembre 19.00h | I139: La Rioja
B140: ULLA | C140: DANIEL | D140: 11577176 | E140: Buenos Aires | F140: Abogacía | G140: 11577176 | H140: Miércoles 15 de noviembre 19.00h | I140: Buenos Aires
B141: MERCADO | C141: MARIA EUGENIA | D141: 25742349 | E141: Buenos Aires | F141: Abogacía | G141: 25742349 | H141: Miércoles 15 de noviembre 19.00h | I141: Buenos Aires
B142: BRUNO | C142: NICOLAS FRANCISCO | D142: 29577900 | E142: Buenos Aires | F142: Abogacía | G142: 29577900 | H142: Miércoles 15 de noviembre 19.00h | I142: Buenos Aires
B143: DIEZ | C143: MATIAS JOEL | D143: 27952734 | E143: Buenos Aires | F143: Contador Público | G143: 27952734 | H143: Jueves 16 de noviembre 10.30h | I143: Buenos Aires
B144: CENTENO | C144: SAMIRA LISETTE | D144: 35597005 | E144: Rio Negro | F144: Contador Público | G144: 35597005 | H144: Jueves 16 de noviembre 10.30h | I144: Río Negro
B145: FANIN | C145: JUAN CRUZ | D145: 35964258 | E145: Cordoba | F145: Escribanía | G145: 35964258 | H145: Jueves 16 de noviembre 10.30h | I145: Córdoba
B146: DURE | C146: MARTIN FERNANDO | D146: 30860136 | E146: Buenos Aires | F146: Escribanía | G146: 30860136 | H146: Jueves 16 de noviembre 10.30h | I146: Buenos Aires
B147: DUARTE | C147: JUAN PABLO | D147: 28438315 | E147: Cordoba | F147: Abogacía | G147: 28438315 | H147: Miércoles 15 de noviembre 19.00h | I147: Córdoba
B148: PREZ | C148: DIEGO ALEJANDRO | D148: 23277686 | E148: Sin Datos | F148: Abogacía | G148: 23277686 | H148: Miércoles 15 de noviembre 19.00h | I148: Córdoba
B149: SMITH | C149: MARIA EUGENIA | D149: 31865794 | E149: Formosa | F149: Abogacía | G149: 31865794 | H149: Miércoles 15 de noviembre 19.00h | I149: Formosa
B150: BENTIVOGLIO | C150: CECILIA FLORENCIA | D150: 26744800 | E150: Cordoba | F150: Abogacía | G150: 26744800 | H150: Miércoles 15 de noviembre 19.00h | I150: Córdoba
B151: NEME | C151: MARIANO | D151: 29964125 | E151: Cordoba | F151: Abogacía | G151: 29964125 | H151: Miércoles 15 de noviembre 19.00h | I151: Córdoba
B152: PEREZ | C152: FABIAN OMAR | D152: 29804232 | E152: Santa Fe | F152: Abogacía | G152: 29804232 | H152: Miércoles 15 de noviembre 19.00h | I152: Santa Fe
B153: WENDICHANSKY | C153: FEDERICO GABRIEL | D153: 33044976 | E153: Cordoba | F153: Escribanía | G153: 33044976 | H153: Jueves 16 de noviembre 10.30h | I153: Córdoba
B154: CHOVANEC | C154: KARINA CECILIA | D154: 33934805 | E154: Buenos Aires | F154: Abogacía | G154: 33934805 | H154: Miércoles 15 de noviembre 19.00h | I154: Buenos Aires
B155: BLASCO | C155: FEDERICO ROBERTO | D155: 28652336 | E155: Cordoba | F155: Abogacía | G155: 28652336 | H155: Miércoles 15 de noviembre 19.00h | I155: Córdoba
B156: FERRER DEHEZA MAQUEDA | C156: VERONICA | D156: 26286774 | E156: Cordoba | F156: Abogacía | G156: 26286774 | H156: Miércoles 15 de noviembre 19.00h | I156: Córdoba
B157: LIVINGSTON | C157: GERMAN EDUARDO | D157: 29446657 | E157: Cordoba | F157: Abogacía | G157: 29446657 | H157: Miércoles 15 de noviembre 19.00h | I157: Córdoba
B158: ZAVALETA | C158: LUCAS MARIA | D158: 32365326 | E158: Cordoba | F158: Abogacía | G158: 32365326 | H158: Miércoles 15 de noviembre 19.00h | I158: Córdoba
B159: MENSATO | C159: FLAVIA BRENDA | D159: 24615089 | E159: Cordoba | F159: Contador Público | G159: 24615089 | H159: Jueves 16 de noviembre 10.30h | I159: Córdoba
B160: ELENA | C160: DIEGO | D160: 27551768 | E160: Cordoba | F160: Contador Público | G160: 27551768 | H160: Jueves 16 de noviembre 10.30h | I160: Córdoba
B161: EPSTEIN | C161: GABRIEL BERNARDO | D161: 27447208 | E161: Entre Rios | F161: Abogacía | G161: 27447208 | H161: Miércoles 15 de noviembre 19.00h | I161: Entre Ríos
B162: CHIEBELBEIN | C162: MARIA CELESTE | D162: 27802645 | E162: Buenos Aires | F162: Abogacía | G162: 27802645 | H162: Miércoles 15 de noviembre 19.00h | I162: Buenos Aires
B163: REBORA | C163: ADRIAN DANIEL | D163: 24629099 | E163: Cordoba | F163: Abogacía | G163: 24629099 | H163: Miércoles 15 de noviembre 19.00h | I163: Córdoba
B164: QUIPILDOR CORVALAN | C164: MARIA JULIA | D164: 33090923 | E164: Salta | F164: Abogacía | G164: 33090923 | H164: Miércoles 15 de noviembre 19.00h | I164: Salta
B165: DEGUER ARIAS | C165: NATACHA | D165: 35774522 | E165: Buenos Aires | F165: Abogacía | G165: 35774522 | H165: Miércoles 15 de noviembre 19.00h | I165: Buenos Aires
B166: VILA | C166: MATIAS NICOLAS | D166: 27971457 | E166: Sin Datos | F166: Abogacía | G166: 27971457 | H166: Miércoles 15 de noviembre 19.00h | I166: Córdoba
B167: SOSA MARTIN | C167: SABRINA BELÉN | D167: 33761466 | E167: Mendoza | F167: Abogacía | G167: 33761466 | H167: Miércoles 15 de noviembre 19.00h | I167: Mendoza
B168: CAMPOS SIERRA | C168: MARIA CONSTANZA | D168: 33270600 | E168: Cordoba | F168: Licenciatura En Psicología | G168: 33270600 | H168: Jueves 16 de noviembre 19.00h | I168: Córdoba
B169: LLANOS | C169: MARINA GABRIELA | D169: 35822840 | E169: Cordoba | F169: Licenciatura En Psicología | G169: 35822840 | H169: Jueves 16 de noviembre 19.00h | I169: Córdoba
B170: SOSA | C170: VERONICA ANDREA | D170: 30771175 | E170: Cordoba | F170: Abogacía | G170: 30771175 | H170: Miércoles 15 de noviembre 19.00h | I170: Córdoba
B171: CASANOVA | C171: FERNANDO LUIS | D171: 10608561 | E171: Buenos Aires | F171: Abogacía | G171: 10608561 | H171: Miércoles 15 de noviembre 19.00h | I171: Buenos Aires
B172: ORAZI | C172: DINO | D172: 32021117 | E172: Neuquen | F172: Ingeniería En Sistemas | G172: 32021117 | H172: Jueves 16 de noviembre 19.30h | I172: Neuquén
B173: RIBOTTA | C173: PATRICIO | D173: 25698204 | E173: Cordoba | F173: Licenciatura En Psicología | G173: 25698204 | H173: Jueves 16 de noviembre 19.00h | I173: Córdoba
B174: PRESOTTI TABORDA | C174: VALENTINA | D174: 36356543 | E174: Cordoba | F174: Licenciatura En Publicidad | G174: 36356543 | H174: Jueves 16 de noviembre 19.00h | I174: Córdoba
B175: COSENTINO | C175: TOMAS MARIANO | D175: 21953762 | E175: Ciudad Autonoma De Buenos Aires | F175: Abogacía | G175: 21953762 | H175: Miércoles 15 de noviembre 19.00h | I175: Buenos Aires
B176: GUGGER | C176: MARIA VIRGINIA | D176: 36880150 | E176: Cordoba | F176: Contador Público | G176: 36880150 | H176: Jueves 16 de noviembre 10.30h | I176: Córdoba
B177: JURI | C177: SABRINA | D177: 31044748 | E177: Cordoba | F177: Contador Público | G177: 31044748 | H177: Jueves 16 de noviembre 10.30h | I177: Córdoba
B178: BORELLO | C178: FRANCO | D178: 29093744 | E178: Cordoba | F178: Abogacía | G178: 29093744 | H178: Miércoles 15 de noviembre 19.00h | I178: Córdoba
B179: MOENNE LOCCOZ | C179: CINTHYA MARIA LUZ | D179: 36752856 | E179: Neuquen | F179: Abogacía | G179: 36752856 | H179: Miércoles 15 de noviembre 19.00h | I179: Neuquén
B180: LUQUE | C180: GONZALO MARIA | D180: 31838137 | E180: Cordoba | F180: Contador Público | G180: 31838137 | H180: Jueves 16 de noviembre 10.30h | I180: Córdoba
B181: PRIETO | C181: AGUSTINA | D181: 34189049 | E181: Cordoba | F181: Licenciatura En Diseño Gráfico | G181: 34189049 | H181: Jueves 16 de noviembre 19.00h | I181: Córdoba
B182: JURADO RETAMOZO | C182: JOSE AQUILES | D182: 18900224 | E182: Cordoba | F182: Abogacía | G182: 18900224 | H182: Miércoles 15 de noviembre 19.00h | I182: Córdoba
B183: GONZALEZ | C183: CLAUDIA SUSANA | D183: 14334709 | E183: Cordoba | F183: Abogacía | G183: 14334709 | H183: Miércoles 15 de noviembre 19.00h | I183: Córdoba
B184: DELGADO | C184: MATEO | D184: 37618407 | E184: Cordoba | F184: Licenciatura En Comercialización | G184: 37618407 | H184: Jueves 16 de noviembre 19.00h | I184: Córdoba
B185: GUSMAN | C185: MARCELO | D185: 24629232 | E185: Cordoba | F185: Licenciatura En Administración | G185: 24629232 | H185: Jueves 16 de noviembre 19.00h | I185: Córdoba
B186: BALZANO CRESPO | C186: RAMIRO CARLOS | D186: 38267758 | E186: Buenos Aires | F186: Licenciatura En Relaciones Públicas E Institucionales | G186: 38267758 | H186: Jueves 16 de noviembre 19.00h | I186: Buenos Aires
B187: URQUIZA | C187: ANABEL DIANA | D187: 33622927 | E187: San Luis | F187: Licenciatura En Relaciones Públicas E Institucionales | G187: 33622927 | H187: Jueves 16 de noviembre 19.00h | I187: San Luis
B188: PICON | C188: DIEGO ALEJANDRO | D188: 37726403 | E188: Tucuman | F188: Abogacía | G188: 37726403 | H188: Miércoles 15 de noviembre 19.00h | I188: Tucumán
B189: CARDENAS | C189: CECILIA | D189: 23016013 | E189: La Rioja | F189: Abogacía | G189: 23016013 | H189: Miércoles 15 de noviembre 19.00h | I189: La Rioja
B190: KOSKE | C190: VALERIA SOLEDAD | D190: 28118364 | E190: Cordoba | F190: Abogacía | G190: 28118364 | H190: Miércoles 15 de noviembre 19.00h | I190: Córdoba
B191: JACQUET | C191: JOSE LUIS | D191: 25613259 | E191: Jujuy | F191: Licenciatura En Publicidad | G191: 25613259 | H191: Jueves 16 de noviembre 19.00h | I191: Jujuy
B192: DEL VALLE | C192: SILVANA ANAHI | D192: 31161004 | E192: Buenos Aires | F192: Licenciatura En Educación - Ciclo | G192: 31161004 | H192: Jueves 16 de noviembre 19.00h | I192: Buenos Aires
B193: OVANDO CAMPOS | C193: EMANUEL VICENTE | D193: 31041179 | E193: Cordoba | F193: Abogacía | G193: 31041179 | H193: Miércoles 15 de noviembre 19.00h | I193: Córdoba
B194: CUADRADO | C194: PAULA FERNANDA | D194: 21449812 | E194: Buenos Aires | F194: Abogacía | G194: 21449812 | H194: Miércoles 15 de noviembre 19.00h | I194: Buenos Aires
B195: LABAQUE | C195: FEDERICO | D195: 27548054 | E195: Cordoba | F195: Licenciatura En Publicidad | G195: 27548054 | H195: Jueves 16 de noviembre 19.00h | I195: Córdoba
B196: BONINO | C196: TATIANA MABEL | D196: 34010469 | E196: Cordoba | F196: Abogacía | G196: 34010469 | H196: =VLOOKUP(F196,colación,3,FALSE) -> Miércoles 15 de noviembre 19.00h | I196: =VLOOKUP(E196,provincia,2,FALSE) -> Córdoba
B197: ANSALDI | C197: MARIA LUZ | D197: 35526926 | E197: Cordoba | F197: Contador Público | G197: =D197*1 -> 35526926 | H197: Jueves 16 de noviembre 10.30h | I197: Córdoba
B198: ORTUÑO | C198: ANALIA ELIANA | D198: 26135133 | E198: San Juan | F198: Abogacía | G198: 26135133 | H198: Miércoles 15 de noviembre 19.00h | I198: San Juan
B199: SANCHEZ | C199: NORA ILEANA | D199: 16514613 | E199: Buenos Aires | F199: Abogacía | G199: 16514613 | H199: Miércoles 15 de noviembre 19.00h | I199: Buenos Aires
B200: AGUSTI | C200: RICARDO JAIME | D200: 13434772 | E200: Cordoba | F200: Abogacía | G200: 13434772 | H200: Miércoles 15 de noviembre 19.00h | I200: Córdoba
B201: CARREÑO | C201: LUCIA MARICEL | D201: 32978131 | E201: Buenos Aires | F201: Abogacía | G201: 32978131 | H201: Miércoles 15 de noviembre 19.00h | I201: Buenos Aires
B202: VIANELLO | C202: RAQUEL ELDA MARIA | D202: 28581369 | E202: Cordoba | F202: Abogacía | G202: 28581369 | H202: Miércoles 15 de noviembre 19.00h | I202: Córdoba
... 1841 more rows

Sheet PRE
B3: APELLIDO | C3: NOMBRE | D3: DNI | E3: PROVINCIA NAC. | F3: Carrera | G3: dni | H3: Fecha de graduacion | I3: Provincia
B4: CARBALLO | C4: CHRISTIAN | D4: 22878598 | E4: Capital Federal | F4: Martillero, Corredor Público Y Corredor Inmobiliario | G4: =D4*1 -> 22878598 | H4: =VLOOKUP(F4,colación,3,FALSE) -> Miercoles 15 de noviembre 10.30h | I4: =VLOOKUP(E4,provincia,2,FALSE) -> Buenos Aires
B5: MONTOYA | C5: JOEL | D5: 37850300 | E5: Córdoba | F5: Martillero, Corredor Público Y Corredor Inmobiliario | G5: =D5*1 -> 37850300 | H5: Miercoles 15 de noviembre 10.30h | I5: Córdoba
B6: SAICHA | C6: SERGIO ADRIAN | D6: 27656358 | E6: Córdoba | F6: Tecnicatura En Higiene Y Seguridad Laboral | G6: 27656358 | H6: Miercoles 15 de noviembre 10.30h | I6: Córdoba
B7: VEGA | C7: GASTON NICOLAS | D7: 33092883 | E7: Santiago Del Estero | F7: Martillero, Corredor Público Y Corredor Inmobiliario | G7: 33092883 | H7: Miercoles 15 de noviembre 10.30h | I7: Santiago Del Estero
B8: MELAMED | C8: ROMINA | D8: 35172228 | E8: Buenos Aires | F8: Tecnicatura En Gestión Contable E Impositiva | G8: 35172228 | H8: Miercoles 15 de noviembre 10.30h | I8: Buenos Aires
B9: GARCIA | C9: ALEXIS JAVIER | D9: 35109052 | E9: Córdoba | F9: Martillero, Corredor Público Y Corredor Inmobiliario | G9: 35109052 | H9: Miercoles 15 de noviembre 10.30h | I9: Córdoba
B10: LAYUN | C10: BERNARDO JUAN | D10: 27013036 | E10: Carlos Paz | F10: Martillero Y Corredor Público | G10: =D10*1 -> 27013036 | H10: =VLOOKUP(F10,colación,3,FALSE) -> Miercoles 15 de noviembre 10.30h | I10: =VLOOKUP(E10,provincia,2,FALSE) -> Córdoba
B11: GUIMARAES | C11: DEBORA CRISTINA DEL VALLE | D11: 33360570 | E11: Catamarca | F11: Martillero Y Corredor Público | G11: 33360570 | H11: Miercoles 15 de noviembre 10.30h | I11: Catamarca
B12: LUCERO | C12: LAURA BEATRIZ | D12: 29402178 | E12: Río Cuarto | F12: Tecnicatura En Higiene Y Seguridad Laboral | G12: 29402178 | H12: Miercoles 15 de noviembre 10.30h | I12: Córdoba
B13: SACCHETTA | C13: VERONICA TAMARA | D13: 30989928 | E13: Río Cuarto | F13: Martillero Y Corredor Público | G13: 30989928 | H13: Miercoles 15 de noviembre 10.30h | I13: Córdoba
B14: DIEDRICH | C14: ERIC | D14: 36925747 | E14: Córdoba | F14: Martillero, Corredor Público Y Corredor Inmobiliario | G14: 36925747 | H14: Miercoles 15 de noviembre 10.30h | I14: Córdoba
B15: CABALLERO PIPERNO | C15: CARLOS ALEJANDRO | D15: 31729753 | E15: Merlo | F15: Martillero, Corredor Público Y Corredor Inmobiliario | G15: 31729753 | H15: Miercoles 15 de noviembre 10.30h | I15: San Luis
B16: AKEL | C16: MARIA BEATRIZ | D16: 33137104 | E16: San Miguel De Tucuman | F16: Martillero, Corredor Público Y Corredor Inmobiliario | G16: 33137104 | H16: Miercoles 15 de noviembre 10.30h | I16: Tucumán
B17: ROJAS | C17: MARIA JOSE | D17: 38106491 | E17: Córdoba | F17: Martillero Y Corredor Público | G17: 38106491 | H17: Miercoles 15 de noviembre 10.30h | I17: Córdoba
B18: ZAVALA ESANDI | C18: PAULA EMILIA | D18: 29181570 | E18: Merlo | F18: Martillero, Corredor Público Y Corredor Inmobiliario | G18: 29181570 | H18: Miercoles 15 de noviembre 10.30h | I18: San Luis
B19: FUENTES | C19: ROBERTO DAMIAN | D19: 32389418 | E19: Córdoba | F19: Martillero Y Corredor Público | G19: 32389418 | H19: Miercoles 15 de noviembre 10.30h | I19: Córdoba
B20: LANZAVECCHIA | C20: FEDERICO | D20: 36773892 | E20: Córdoba | F20: Martillero Y Corredor Público | G20: 36773892 | H20: Miercoles 15 de noviembre 10.30h | I20: Córdoba
B21: GONZALEZ LEZCANO | C21: GISELA BELEN | D21: 37314662 | E21: Córdoba | F21: Martillero Y Corredor Público | G21: 37314662 | H21: Miercoles 15 de noviembre 10.30h | I21: Córdoba
B22: LOPEZ | C22: SILVIA PATRICIA | D22: 21719605 | E22: Embalse | F22: Martillero Y Corredor Público | G22: 21719605 | H22: Miercoles 15 de noviembre 10.30h | I22: Córdoba
B23: BUSTOS | C23: IVAN RUBEN | D23: 21592681 | E23: Córdoba | F23: Tecnicatura En Dirección De Protocolo, Organización De Eventos Y Relaciones Públicas | G23: 21592681 | H23: Miercoles 15 de noviembre 10.30h | I23: Córdoba
B24: MONTIEL | C24: CARINA | D24: 34590753 | E24: Río Cuarto | F24: Martillero Y Corredor Público | G24: 34590753 | H24: Miercoles 15 de noviembre 10.30h | I24: Córdoba
B25: BAYON | C25: VALERIA FERNANDA | D25: 39206304 | E25: Caleta Oliva | F25: Tecnicatura En Gestión Contable E Impositiva | G25: 39206304 | H25: Miercoles 15 de noviembre 10.30h | I25: Córdoba
B26: FERNANDEZ | C26: RICARDO ALBERTO | D26: 24262122 | E26: Córdoba | F26: Tecnicatura En Gestión Contable E Impositiva | G26: 24262122 | H26: Miercoles 15 de noviembre 10.30h | I26: Córdoba
B27: BARONE | C27: MATHIAS AGUSTIN | D27: 38561644 | E27: Buenos Aires | F27: Martillero, Corredor Público Y Corredor Inmobiliario | G27: 38561644 | H27: Miercoles 15 de noviembre 10.30h | I27: Buenos Aires
B28: GOMEZ FERREYRA | C28: ADRIAN EMILIO | D28: 32816138 | E28: Cruz Del Eje | F28: Martillero, Corredor Público Y Corredor Inmobiliario | G28: 32816138 | H28: Miercoles 15 de noviembre 10.30h | I28: Córdoba
B29: CUELLO | C29: ALEJANDRO FEDERICO | D29: 37314928 | E29: Córdoba | F29: Martillero, Corredor Público Y Corredor Inmobiliario | G29: 37314928 | H29: Miercoles 15 de noviembre 10.30h | I29: Córdoba
B30: RAMPA | C30: JUAN MANUEL | D30: 36432515 | E30: Cordoba | F30: Tecnicatura En Gestión Contable E Impositiva | G30: 36432515 | H30: Miercoles 15 de noviembre 10.30h | I30: Córdoba
B31: LIMA | C31: SALVADOR DANIEL | D31: 34617114 | E31: Capital Federal | F31: Tecnicatura En Gestión De Empresas Familiares | G31: 34617114 | H31: Miercoles 15 de noviembre 10.30h | I31: Buenos Aires
B32: GALLINA | C32: SEBASTIAN | D32: 30899867 | E32: Sin Datos | F32: Martillero, Corredor Público Y Corredor Inmobiliario | G32: 30899867 | H32: Miercoles 15 de noviembre 10.30h | I32: Córdoba
B33: ARNAUDE | C33: JUAN BAUTISTA | D33: 30886677 | E33: Capital Federal | F33: Martillero, Corredor Público Y Corredor Inmobiliario | G33: 30886677 | H33: Miercoles 15 de noviembre 10.30h | I33: Buenos Aires
B34: MEDINA | C34: RODRIGO EZEQUIEL | D34: 38563391 | E34: Córdoba | F34: Tecnicatura En Higiene Y Seguridad Laboral | G34: 38563391 | H34: Miercoles 15 de noviembre 10.30h | I34: Córdoba
B35: MIRANDA | C35: JORGE DANIEL | D35: 36220714 | E35: Córdoba | F35: Martillero, Corredor Público Y Corredor Inmobiliario | G35: 36220714 | H35: Miercoles 15 de noviembre 10.30h | I35: Córdoba
B36: PICASSO | C36: TERESA | D36: 32919892 | E36: Capital Federal | F36: Martillero Y Corredor Público | G36: 32919892 | H36: Miercoles 15 de noviembre 10.30h | I36: Buenos Aires
B37: INSAURRALDE | C37: CRISTINA | D37: 27992085 | E37: Villa Angela | F37: Tecnicatura En Higiene Y Seguridad Laboral | G37: 27992085 | H37: Miercoles 15 de noviembre 10.30h | I37: Córdoba
B38: FERNANDEZ PEREZ | C38: MARIA ROCIO | D38: 28875232 | E38: Santa Rosa De Calamuchita | F38: Martillero, Corredor Público Y Corredor Inmobiliario | G38: 28875232 | H38: Miercoles 15 de noviembre 10.30h | I38: Córdoba
B39: SPOSETTI | C39: SILVANA | D39: 23212670 | E39: Córdoba | F39: Martillero, Corredor Público Y Corredor Inmobiliario | G39: 23212670 | H39: Miercoles 15 de noviembre 10.30h | I39: Córdoba
B40: SUAREZ | C40: MATHIAS EMILIANO | D40: 34916125 | E40: San Juan | F40: Martillero Y Corredor Público | G40: 34916125 | H40: Miercoles 15 de noviembre 10.30h | I40: San Juan
B41: URQUIZA | C41: ALEXIS SEBASTIAN | D41: 29323400 | E41: General Acha | F41: Martillero Y Corredor Público | G41: 29323400 | H41: Miercoles 15 de noviembre 10.30h | I41: La Pampa
B42: DIP | C42: NORBERTO MATIAS | D42: 33050620 | E42: Buenos Aires | F42: Tecnicatura En Gestión Contable E Impositiva | G42: 33050620 | H42: Miercoles 15 de noviembre 10.30h | I42: Buenos Aires
B43: SOLE | C43: ALEJANDRO | D43: 31807799 | E43: Córdoba | F43: Martillero Y Corredor Público | G43: 31807799 | H43: Miercoles 15 de noviembre 10.30h | I43: Córdoba
B44: ALESANDRONI | C44: SILVINA | D44: 26005902 | E44: Córdoba | F44: Martillero, Corredor Público Y Corredor Inmobiliario | G44: 26005902 | H44: Miercoles 15 de noviembre 10.30h | I44: Córdoba
B45: FILLEUL SAAVEDRA | C45: GUSTAVO ESTEBAN | D45: 33529408 | E45: Chubut | F45: Martillero Y Corredor Público | G45: 33529408 | H45: Miercoles 15 de noviembre 10.30h | I45: Chubut
B46: PIATTI | C46: AGUSTIN | D46: 31134253 | E46: Santa Rosa | F46: Tecnicatura En Dirección De Equipos De Ventas | G46: 31134253 | H46: Miercoles 15 de noviembre 10.30h | I46: La Pampa
B47: ISAIA | C47: FABIAN | D47: 29607875 | E47: Córdoba | F47: Martillero, Corredor Público Y Corredor Inmobiliario | G47: 29607875 | H47: Miercoles 15 de noviembre 10.30h | I47: Córdoba
B48: BAROLO | C48: SONIA CAROLINA | D48: 32380465 | E48: Buenos Aires | F48: Tecnicatura En Dirección De Protocolo, Organización De Eventos Y Relaciones Públicas | G48: 32380465 | H48: Miercoles 15 de noviembre 10.30h | I48: Buenos Aires
B49: MASSARA | C49: VANESA | D49: 27711556 | E49: Buenos Aires | F49: Tecnicatura En Dirección De Protocolo, Organización De Eventos Y Relaciones Públicas | G49: 27711556 | H49: Miercoles 15 de noviembre 10.30h | I49: Buenos Aires
B50: IGLESIAS | C50: CLAUDIA | D50: 29606788 | E50: Cordoba | F50: Martillero, Corredor Público Y Corredor Inmobiliario | G50: 29606788 | H50: Miercoles 15 de noviembre 10.30h | I50: Córdoba
B51: SOLA | C51: JAIRO RAMIRO | D51: 33128050 | E51: El Carmen | F51: Martillero, Corredor Público Y Corredor Inmobiliario | G51: 33128050 | H51: Miercoles 15 de noviembre 10.30h | I51: Córdoba
B52: AFFONSO | C52: LAURA | D52: 30154813 | E52: Córdoba | F52: Tecnicatura En Dirección De Protocolo, Organización De Eventos Y Relaciones Públicas | G52: 30154813 | H52: Miercoles 15 de noviembre 10.30h | I52: Córdoba
B53: PESCARA | C53: MARIA CELESTE | D53: 36926157 | E53: Caleta Olivia | F53: Martillero, Corredor Público Y Corredor Inmobiliario | G53: 36926157 | H53: Miercoles 15 de noviembre 10.30h | I53: Córdoba
B54: SALAS | C54: NICOLAS ALBERTO | D54: 32979329 | E54: Monte Caseros | F54: Tecnicatura En Gestión Contable E Impositiva | G54: 32979329 | H54: Miercoles 15 de noviembre 10.30h | I54: Buenos Aires
B55: PRIETO | C55: PATRICIA ESTHER | D55: 21004585 | E55: Cordoba | F55: Tecnicatura En Gestión Contable E Impositiva | G55: 21004585 | H55: Miercoles 15 de noviembre 10.30h | I55: Córdoba
B56: ACTIS | C56: LISANDRO JOSE | D56: 25919503 | E56: Córdoba | F56: Martillero Y Corredor Público | G56: 25919503 | H56: Miercoles 15 de noviembre 10.30h | I56: Córdoba
B57: CASERES PLAZA | C57: LUIS | D57: 33755363 | E57: San Miguel De Tucuman | F57: Tecnicatura En Dirección De Protocolo, Organización De Eventos Y Relaciones Públicas | G57: 33755363 | H57: Miercoles 15 de noviembre 10.30h | I57: Tucumán
B58: MARQUEZ | C58: MARIA SILVANA | D58: 29964333 | E58: Córdoba | F58: Tecnicatura En Gestión Contable E Impositiva | G58: 29964333 | H58: Miercoles 15 de noviembre 10.30h | I58: Córdoba
B59: LATZINA | C59: MATEO EXEQUIEL | D59: 17387052 | E59: Villa Allende | F59: Martillero, Corredor Público Y Corredor Inmobiliario | G59: 17387052 | H59: Miercoles 15 de noviembre 10.30h | I59: Córdoba
B60: CAFFARATTI | C60: CAROLINA | D60: 23196037 | E60: Córdoba | F60: Martillero Y Corredor Público | G60: 23196037 | H60: Miercoles 15 de noviembre 10.30h | I60: Córdoba
B61: CABRAL | C61: CRISTINA | D61: 24297252 | E61: Córdoba | F61: Tecnicatura En Dirección De Protocolo, Organización De Eventos Y Relaciones Públicas | G61: 24297252 | H61: Miercoles 15 de noviembre 10.30h | I61: Córdoba
B62: PLATINETTI | C62: ELISA EDITH | D62: 34029401 | E62: Córdoba | F62: Tecnicatura En Dirección De Protocolo, Organización De Eventos Y Relaciones Públicas | G62: 34029401 | H62: Miercoles 15 de noviembre 10.30h | I62: Córdoba
B63: FONSECA | C63: GRACIELA | D63: 22079503 | E63: Córdoba | F63: Martillero, Corredor Público Y Corredor Inmobiliario | G63: 22079503 | H63: Miercoles 15 de noviembre 10.30h | I63: Córdoba
B64: CIRULLI | C64: JUAN PABLO | D64: 26896761 | E64: Córdoba | F64: Martillero Y Corredor Público | G64: 26896761 | H64: Miercoles 15 de noviembre 10.30h | I64: Córdoba
B65: LANGLOIS | C65: JULIETA | D65: 25848507 | E65: Capital Federal | F65: Procurador | G65: 25848507 | H65: Miercoles 15 de noviembre 10.30h | I65: Buenos Aires
B66: FERNANDEZ | C66: LILIANA CELESTE | D66: 30311077 | E66: Cruz Del Eje | F66: Martillero, Corredor Público Y Corredor Inmobiliario | G66: 30311077 | H66: Miercoles 15 de noviembre 10.30h | I66: Córdoba
B67: CARIDDI | C67: MARCO | D67: 38182086 | E67: Córdoba | F67: Martillero, Corredor Público Y Corredor Inmobiliario | G67: 38182086 | H67: Miercoles 15 de noviembre 10.30h | I67: Córdoba
B68: LICARI | C68: MARIA FERNANDA | D68: 24435392 | E68: Buenos Aires | F68: Procurador | G68: 24435392 | H68: Miercoles 15 de noviembre 10.30h | I68: Buenos Aires
B69: MARTIN | C69: MARIA JULIETA | D69: 34069665 | E69: Córdoba | F69: Martillero Y Corredor Público | G69: 34069665 | H69: Miercoles 15 de noviembre 10.30h | I69: Córdoba
B70: GEIMONAT | C70: MARIANA | D70: 22843801 | E70: Cordoba | F70: Martillero, Corredor Público Y Corredor Inmobiliario | G70: 22843801 | H70: Miercoles 15 de noviembre 10.30h | I70: Córdoba
B71: MORASSO | C71: NICOLAS | D71: 25436063 | E71: Capital Federal | F71: Martillero Y Corredor Público | G71: 25436063 | H71: Miercoles 15 de noviembre 10.30h | I71: Buenos Aires
B72: BERTHE | C72: PAOLA GISELLE | D72: 35218310 | E72: Rio Cuarto | F72: Tecnicatura En Gestión Contable E Impositiva | G72: 35218310 | H72: Miercoles 15 de noviembre 10.30h | I72: Córdoba
B73: RONDON | C73: MARIA BELEN | D73: 34674178 | E73: San Salvador De Jujuy | F73: Martillero Y Corredor Público | G73: 34674178 | H73: Miercoles 15 de noviembre 10.30h | I73: Jujuy
B74: CARRERO | C74: CARINA | D74: 23139972 | E74: Villa Giardino | F74: Martillero Y Corredor Público | G74: =D74*1 -> 23139972 | H74: =VLOOKUP(F74,colación,3,FALSE) -> Miercoles 15 de noviembre 10.30h | I74: =VLOOKUP(E74,provincia,2,FALSE) -> Córdoba
B75: REARTES | C75: DESIREE AYELEN | D75: 37851278 | E75: Córdoba | F75: Martillero, Corredor Público Y Corredor Inmobiliario | G75: 37851278 | H75: Miercoles 15 de noviembre 10.30h | I75: Córdoba
B76: MAZZUCCO | C76: GERONIMO MARTIN | D76: 33814394 | E76: Río Cuarto | F76: Tecnicatura En Higiene Y Seguridad Laboral | G76: 33814394 | H76: Miercoles 15 de noviembre 10.30h | I76: Córdoba
B77: GARRIDO RODRIGUEZ | C77: MARIA JOSE | D77: 27468731 | E77: Cordoba Capital | F77: Martillero, Corredor Público Y Corredor Inmobiliario | G77: 27468731 | H77: Miercoles 15 de noviembre 10.30h | I77: Córdoba
B78: GUTIERREZ | C78: DIEGO | D78: 31123513 | E78: Río Cuarto | F78: Martillero Y Corredor Público | G78: 31123513 | H78: Miercoles 15 de noviembre 10.30h | I78: Córdoba
B79: PAREDES | C79: IGNACIO | D79: 35332309 | E79: Buenos Aires | F79: Martillero, Corredor Público Y Corredor Inmobiliario | G79: 35332309 | H79: Miercoles 15 de noviembre 10.30h | I79: Buenos Aires
B80: PRINCE | C80: CARLA GISELA | D80: 33885687 | E80: Río Cuarto | F80: Martillero, Corredor Público Y Corredor Inmobiliario | G80: 33885687 | H80: Miercoles 15 de noviembre 10.30h | I80: Córdoba
B81: MENEGOZZI | C81: GUILLERMO JUAN | D81: 22186475 | E81: Las Varillas | F81: Martillero, Corredor Público Y Corredor Inmobiliario | G81: 22186475 | H81: Miercoles 15 de noviembre 10.30h | I81: Córdoba
B82: VIGLIONE | C82: JUAN JAVIER | D82: 23903623 | E82: Buenos Aires | F82: Martillero Y Corredor Público | G82: 23903623 | H82: Miercoles 15 de noviembre 10.30h | I82: Buenos Aires
B83: PLAZA | C83: MARIANO GABRIEL | D83: 29514896 | E83: Cordoba | F83: Martillero, Corredor Público Y Corredor Inmobiliario | G83: 29514896 | H83: Miercoles 15 de noviembre 10.30h | I83: Córdoba
B84: OLIVERA | C84: NICOLAS | D84: 28428367 | E84: Córdoba | F84: Tecnicatura En Higiene Y Seguridad Laboral | G84: 28428367 | H84: Miercoles 15 de noviembre 10.30h | I84: Córdoba
B85: TIRADO ALMEIDA | C85: NICOLAS | D85: 33832534 | E85: Córdoba | F85: Procurador | G85: 33832534 | H85: Miercoles 15 de noviembre 10.30h | I85: Córdoba
B86: DEPETRIS | C86: PAMELA VICTORIA | D86: 30499024 | E86: Córdoba | F86: Tecnicatura En Gestión Contable E Impositiva | G86: 30499024 | H86: Miercoles 15 de noviembre 10.30h | I86: Córdoba
B87: SCHERER | C87: ALEXIS | D87: 30152283 | E87: Capital Federal | F87: Tecnicatura En Higiene Y Seguridad Laboral | G87: 30152283 | H87: Miercoles 15 de noviembre 10.30h | I87: Buenos Aires
B88: CONTI | C88: ALFONSO | D88: 35832454 | E88: Río Cuarto | F88: Tecnicatura En Higiene Y Seguridad Laboral | G88: 35832454 | H88: Miercoles 15 de noviembre 10.30h | I88: Córdoba
B89: RYZEWSKI | C89: ALICIA | D89: 24852787 | E89: Capital Federal | F89: Tecnicatura En Dirección De Protocolo, Organización De Eventos Y Relaciones Públicas | G89: 24852787 | H89: Miercoles 15 de noviembre 10.30h | I89: Buenos Aires
B90: MEDINA | C90: ANA BEATRIZ | D90: 16089709 | E90: Buenos Aires | F90: Martillero, Corredor Público Y Corredor Inmobiliario | G90: 16089709 | H90: Miercoles 15 de noviembre 10.30h | I90: Buenos Aires
B91: BOSCH | C91: CELESTE | D91: 36431807 | E91: Córdoba | F91: Martillero, Corredor Público Y Corredor Inmobiliario | G91: 36431807 | H91: Miercoles 15 de noviembre 10.30h | I91: Córdoba
B92: SLADIC | C92: CLAUDIA VANESA | D92: 27657200 | E92: Cordoba | F92: Martillero, Corredor Público Y Corredor Inmobiliario | G92: 27657200 | H92: Miercoles 15 de noviembre 10.30h | I92: Córdoba
B93: YPPOLITO | C93: DAMIAN | D93: 33054188 | E93: Rio Cuarto | F93: Martillero, Corredor Público Y Corredor Inmobiliario | G93: 33054188 | H93: Miercoles 15 de noviembre 10.30h | I93: Córdoba
B94: GOMEZ | C94: DANIEL FERNANDO | D94: 25917833 | E94: Córdoba | F94: Martillero, Corredor Público Y Corredor Inmobiliario | G94: 25917833 | H94: Miercoles 15 de noviembre 10.30h | I94: Córdoba
B95: LIONETTO | C95: DANTE | D95: 37821579 | E95: Córdoba | F95: Martillero, Corredor Público Y Corredor Inmobiliario | G95: 37821579 | H95: Miercoles 15 de noviembre 10.30h | I95: Córdoba
B96: DIAZ | C96: DIEGO GABRIEL | D96: 25558537 | E96: Córdoba | F96: Tecnicatura En Higiene Y Seguridad Laboral | G96: 25558537 | H96: Miercoles 15 de noviembre 10.30h | I96: Córdoba
B97: HUPPI | C97: DIEGO ROBERTO | D97: 24472106 | E97: Córdoba | F97: Martillero, Corredor Público Y Corredor Inmobiliario | G97: 24472106 | H97: Miercoles 15 de noviembre 10.30h | I97: Córdoba
B98: TALAVERA | C98: EMANUEL | D98: 33975856 | E98: Nueve De Julio | F98: Martillero, Corredor Público Y Corredor Inmobiliario | G98: 33975856 | H98: Miercoles 15 de noviembre 10.30h | I98: Buenos Aires
B99: RODRIGUEZ | C99: ERICA | D99: 30030007 | E99: Río Cuarto | F99: Tecnicatura En Higiene Y Seguridad Laboral | G99: 30030007 | H99: Miercoles 15 de noviembre 10.30h | I99: Córdoba
B100: RETAMALES | C100: FEDERICO ALBERTO | D100: 33341142 | E100: Capital Federal | F100: Martillero, Corredor Público Y Corredor Inmobiliario | G100: 33341142 | H100: Miercoles 15 de noviembre 10.30h | I100: Buenos Aires
B101: CABRERA | C101: FERNANDO ESTEBAN | D101: 17948184 | E101: Córdoba | F101: Tecnicatura En Higiene Y Seguridad Laboral | G101: 17948184 | H101: Miercoles 15 de noviembre 10.30h | I101: Córdoba
B102: FUNES | C102: FERNANDO RUBEN | D102: 18496051 | E102: Rio Cuarto | F102: Martillero, Corredor Público Y Corredor Inmobiliario | G102: 18496051 | H102: Miercoles 15 de noviembre 10.30h | I102: Córdoba
B103: ROSSI | C103: FRANCO | D103: 33976914 | E103: Córdoba | F103: Martillero, Corredor Público Y Corredor Inmobiliario | G103: 33976914 | H103: Miercoles 15 de noviembre 10.30h | I103: Córdoba
B104: ESTEVEZ | C104: GABRIEL RODRIGO | D104: 29191011 | E104: Coronel Belisle | F104: Tecnicatura En Higiene Y Seguridad Laboral | G104: 29191011 | H104: Miercoles 15 de noviembre 10.30h | I104: Córdoba
B105: SARRO PUCHETA | C105: GERMAN MAURICIO | D105: 22970330 | E105: Buenos Aires | F105: Martillero, Corredor Público Y Corredor Inmobiliario | G105: 22970330 | H105: Miercoles 15 de noviembre 10.30h | I105: Buenos Aires
B106: SANCHEZ | C106: GISELA YAMILA | D106: 35574092 | E106: Cordoba Capital | F106: Tecnicatura En Dirección De Protocolo, Organización De Eventos Y Relaciones Públicas | G106: 35574092 | H106: Miercoles 15 de noviembre 10.30h | I106: Córdoba
B107: BORDON | C107: GISELLE | D107: 32048177 | E107: Córdoba | F107: Martillero, Corredor Público Y Corredor Inmobiliario | G107: 32048177 | H107: Miercoles 15 de noviembre 10.30h | I107: Córdoba
B108: PONCE | C108: IRENE ESTHER | D108: 18174351 | E108: Córdoba | F108: Martillero, Corredor Público Y Corredor Inmobiliario | G108: 18174351 | H108: Miercoles 15 de noviembre 10.30h | I108: Córdoba
B109: BALKENENDE | C109: IVANA ELISA | D109: 29015300 | E109: Córdoba | F109: Martillero, Corredor Público Y Corredor Inmobiliario | G109: 29015300 | H109: Miercoles 15 de noviembre 10.30h | I109: Córdoba
B110: CUELLO | C110: JOSE ANTONIO | D110: 11380923 | E110: Concepción | F110: Martillero, Corredor Público Y Corredor Inmobiliario | G110: 11380923 | H110: Miercoles 15 de noviembre 10.30h | I110: Entre Ríos
B111: GARCIA GIL | C111: JUAN FRANCISCO | D111: 36046035 | E111: San Luis | F111: Martillero, Corredor Público Y Corredor Inmobiliario | G111: 36046035 | H111: Miercoles 15 de noviembre 10.30h | I111: San Luis
B112: ANTUNEZ | C112: JULIO CESAR | D112: 33701661 | E112: Córdoba | F112: Martillero, Corredor Público Y Corredor Inmobiliario | G112: 33701661 | H112: Miercoles 15 de noviembre 10.30h | I112: Córdoba
B113: ALBERTINI | C113: LAURA | D113: 27249376 | E113: Córdoba | F113: Tecnicatura En Relaciones Laborales | G113: 27249376 | H113: Miercoles 15 de noviembre 10.30h | I113: Córdoba
B114: REYNA | C114: LILIANA DEL VALLE | D114: 21835945 | E114: Córdoba | F114: Martillero, Corredor Público Y Corredor Inmobiliario | G114: 21835945 | H114: Miercoles 15 de noviembre 10.30h | I114: Córdoba
B115: PENDOLA | C115: LUCAS JAVIER | D115: 31868525 | E115: Córdoba | F115: Martillero, Corredor Público Y Corredor Inmobiliario | G115: 31868525 | H115: Miercoles 15 de noviembre 10.30h | I115: Córdoba
B116: SARGNIOTTI | C116: LUCIA JORGELINA | D116: 38112045 | E116: Morteros | F116: Martillero, Corredor Público Y Corredor Inmobiliario | G116: 38112045 | H116: Miercoles 15 de noviembre 10.30h | I116: Córdoba
B117: MERCAU | C117: LUCIANO NICOLAS | D117: 34389406 | E117: Merlo | F117: Martillero, Corredor Público Y Corredor Inmobiliario | G117: 34389406 | H117: Miercoles 15 de noviembre 10.30h | I117: San Luis
B118: GALLI ROJAS | C118: LUCILA | D118: 28079037 | E118: Capital Federal | F118: Tecnicatura En Dirección De Protocolo, Organización De Eventos Y Relaciones Públicas | G118: 28079037 | H118: Miercoles 15 de noviembre 10.30h | I118: Buenos Aires
B119: MARTINEZ | C119: MARCELO | D119: 22560319 | E119: Córdoba | F119: Martillero, Corredor Público Y Corredor Inmobiliario | G119: 22560319 | H119: Miercoles 15 de noviembre 10.30h | I119: Córdoba
B120: VIGILANTE | C120: MARCELO | D120: 14449242 | E120: Córdoba | F120: Martillero, Corredor Público Y Corredor Inmobiliario | G120: 14449242 | H120: Miercoles 15 de noviembre 10.30h | I120: Córdoba
B121: ATIENZA | C121: MARIA ANA ELIZABETH | D121: 39445950 | E121: Córdoba | F121: Martillero, Corredor Público Y Corredor Inmobiliario | G121: 39445950 | H121: Miercoles 15 de noviembre 10.30h | I121: Córdoba
B122: CASABONE | C122: MARIA DE LOURDES | D122: 29372205 | E122: La Carlota | F122: Tecnicatura En Higiene Y Seguridad Laboral | G122: 29372205 | H122: Miercoles 15 de noviembre 10.30h | I122: Córdoba
B123: AZNAREZ | C123: MARIA LAURA | D123: 28985295 | E123: Capital Federal | F123: Martillero, Corredor Público Y Corredor Inmobiliario | G123: 28985295 | H123: Miercoles 15 de noviembre 10.30h | I123: Buenos Aires
B124: CUEVAS | C124: MATIAS | D124: 34316081 | E124: Córdoba | F124: Martillero, Corredor Público Y Corredor Inmobiliario | G124: 34316081 | H124: Miercoles 15 de noviembre 10.30h | I124: Córdoba
B125: RETAMALES | C125: MATIAS | D125: 32440206 | E125: Buenos Aires | F125: Martillero, Corredor Público Y Corredor Inmobiliario | G125: 32440206 | H125: Miercoles 15 de noviembre 10.30h | I125: Buenos Aires
B126: SALAS | C126: MAURICIO | D126: 32580426 | E126: La Paz | F126: Tecnicatura En Higiene Y Seguridad Laboral | G126: 32580426 | H126: Miercoles 15 de noviembre 10.30h | I126: Córdoba
B127: LUJAN | C127: MIRNA | D127: 22850016 | E127: Córdoba | F127: Martillero, Corredor Público Y Corredor Inmobiliario | G127: 22850016 | H127: Miercoles 15 de noviembre 10.30h | I127: Córdoba
B128: PERERA | C128: MIRTA ANDREA | D128: 21714335 | E128: Capital Federal | F128: Martillero, Corredor Público Y Corredor Inmobiliario | G128: 21714335 | H128: Miercoles 15 de noviembre 10.30h | I128: Buenos Aires
B129: PANIZZA | C129: MONICA ISABEL | D129: 12245281 | E129: Córdoba | F129: Martillero, Corredor Público Y Corredor Inmobiliario | G129: 12245281 | H129: Miercoles 15 de noviembre 10.30h | I129: Córdoba
B130: BRAVO | C130: NADIA | D130: 33600213 | E130: Córdoba | F130: Tecnicatura En Higiene Y Seguridad Laboral | G130: 33600213 | H130: Miercoles 15 de noviembre 10.30h | I130: Córdoba
B131: BATALLAN | C131: NADIA MERCEDES | D131: 30901505 | E131: Córdoba | F131: Martillero, Corredor Público Y Corredor Inmobiliario | G131: 30901505 | H131: Miercoles 15 de noviembre 10.30h | I131: Córdoba
B132: OSMERINI | C132: NATALIA ANDREA | D132: 28428738 | E132: Córdoba | F132: Martillero, Corredor Público Y Corredor Inmobiliario | G132: 28428738 | H132: Miercoles 15 de noviembre 10.30h | I132: Córdoba
B133: CHAPUR | C133: PABLO JAVIER | D133: 26087504 | E133: Córdoba | F133: Martillero, Corredor Público Y Corredor Inmobiliario | G133: 26087504 | H133: Miercoles 15 de noviembre 10.30h | I133: Córdoba
B134: FLORES | C134: PAMELA DEL VALLE | D134: 34768607 | E134: Córdoba | F134: Martillero, Corredor Público Y Corredor Inmobiliario | G134: 34768607 | H134: Miercoles 15 de noviembre 10.30h | I134: Córdoba
B135: DEMASI | C135: PAOLA | D135: 29664267 | E135: Rio Tercero | F135: Martillero, Corredor Público Y Corredor Inmobiliario | G135: 29664267 | H135: Miercoles 15 de noviembre 10.30h | I135: Córdoba
B136: PICCO | C136: PATRICIA | D136: 17010674 | E136: Capital Federal | F136: Martillero, Corredor Público Y Corredor Inmobiliario | G136: 17010674 | H136: Miercoles 15 de noviembre 10.30h | I136: Buenos Aires
B137: CEBALLOS | C137: PAULA | D137: 25038084 | E137: Córdoba | F137: Martillero, Corredor Público Y Corredor Inmobiliario | G137: 25038084 | H137: Miercoles 15 de noviembre 10.30h | I137: Córdoba
B138: VENTRE | C138: PEDRO AGUSTIN | D138: 12998771 | E138: Córdoba | F138: Martillero, Corredor Público Y Corredor Inmobiliario | G138: =D138*1 -> 12998771 | H138: =VLOOKUP(F138,colación,3,FALSE) -> Miercoles 15 de noviembre 10.30h | I138: =VLOOKUP(E138,provincia,2,FALSE) -> Córdoba
B139: BUCHARA | C139: RODRIGO MARTIN | D139: 33260844 | E139: Santa Rosa De La Pampa | F139: Martillero, Corredor Público Y Corredor Inmobiliario | G139: 33260844 | H139: Miercoles 15 de noviembre 10.30h | I139: La Pampa
B140: ROLDAN | C140: RODRIGO RAFAEL | D140: 31055237 | E140: Córdoba | F140: Tecnicatura En Higiene Y Seguridad Laboral | G140: 31055237 | H140: Miercoles 15 de noviembre 10.30h | I140: Córdoba
B141: DRAGUN | C141: ROMINA VANESSA | D141: 31449106 | E141: Córdoba | F141: Martillero, Corredor Público Y Corredor Inmobiliario | G141: 31449106 | H141: Miercoles 15 de noviembre 10.30h | I141: Córdoba
B142: DE LILLO | C142: SEBASTIAN | D142: 39823508 | E142: Córdoba | F142: Martillero, Corredor Público Y Corredor Inmobiliario | G142: 39823508 | H142: Miercoles 15 de noviembre 10.30h | I142: Córdoba
B143: GHISIGLIERI | C143: SEBASTIAN | D143: 24786571 | E143: Córdoba | F143: Martillero, Corredor Público Y Corredor Inmobiliario | G143: 24786571 | H143: Miercoles 15 de noviembre 10.30h | I143: Córdoba
B144: PETERSEN VICTORICA | C144: SILVINA | D144: 17262451 | E144: Buenos Aires | F144: Martillero, Corredor Público Y Corredor Inmobiliario | G144: 17262451 | H144: Miercoles 15 de noviembre 10.30h | I144: Buenos Aires
B145: ABDALA | C145: SOFIA | D145: 30596885 | E145: Buenos Aires | F145: Martillero, Corredor Público Y Corredor Inmobiliario | G145: 30596885 | H145: Miercoles 15 de noviembre 10.30h | I145: Buenos Aires
B146: FERNANDEZ | C146: SONIA | D146: 17444872 | E146: Capital Federal | F146: Tecnicatura En Dirección De Protocolo, Organización De Eventos Y Relaciones Públicas | G146: 17444872 | H146: Miercoles 15 de noviembre 10.30h | I146: Buenos Aires
B147: LIENDO | C147: VERONICA AMANDA | D147: 29294830 | E147: Córdoba | F147: Martillero, Corredor Público Y Corredor Inmobiliario | G147: 29294830 | H147: Miercoles 15 de noviembre 10.30h | I147: Córdoba
B148: FARIAS | C148: VERONICA DEL CARMEN | D148: 27550817 | E148: Córdoba | F148: Martillero, Corredor Público Y Corredor Inmobiliario | G148: 27550817 | H148: Miercoles 15 de noviembre 10.30h | I148: Córdoba
B149: CAPURRO | C149: JULIAN VALENTINO | D149: 31813857 | E149: Junin | F149: Martillero, Corredor Público Y Corredor Inmobiliario | G149: 31813857 | H149: Miercoles 15 de noviembre 10.30h | I149: Buenos Aires
B150: TARTALOS | C150: DIEGO NICOLAS | D150: 31221281 | E150: Córdoba | F150: Martillero Y Corredor Público | G150: 31221281 | H150: Miercoles 15 de noviembre 10.30h | I150: Córdoba
B151: SICCHAR GOMEZ | C151: FLAVIA GUADALUPE | D151: 27897248 | E151: Villa Maria | F151: Martillero, Corredor Público Y Corredor Inmobiliario | G151: 27897248 | H151: Miercoles 15 de noviembre 10.30h | I151: Córdoba
B152: BROMBIN | C152: FLORENCIA | D152: 32280771 | E152: Córdoba | F152: Martillero Y Corredor Público | G152: 32280771 | H152: Miercoles 15 de noviembre 10.30h | I152: Córdoba
B153: LOPEZ | C153: DALILA LUCRECIA | D153: 31356618 | E153: Córdoba | F153: Martillero, Corredor Público Y Corredor Inmobiliario | G153: 31356618 | H153: Miercoles 15 de noviembre 10.30h | I153: Córdoba
B154: RACERO | C154: MARCELA DEL CARMEN | D154: 21391387 | E154: Córdoba | F154: Tecnicatura En Gestión Contable E Impositiva | G154: 21391387 | H154: Miercoles 15 de noviembre 10.30h | I154: Córdoba
B155: ALONQUEO | C155: NATALIA | D155: 32334315 | E155: Santa Rosa De La Pampa | F155: Tecnicatura En Higiene Y Seguridad Laboral | G155: 32334315 | H155: Miercoles 15 de noviembre 10.30h | I155: La Pampa
B156: CONTRERAS | C156: MARGARITA ISABEL | D156: 13468953 | E156: Perito Moreno | F156: Tecnicatura En Dirección De Protocolo, Organización De Eventos Y Relaciones Públicas | G156: 13468953 | H156: Miercoles 15 de noviembre 10.30h | I156: Buenos Aires
B157: NAVAS | C157: ELIZABETH | D157: 22276296 | E157: Buenos Aires | F157: Tecnicatura En Higiene Y Seguridad Laboral | G157: 22276296 | H157: Miercoles 15 de noviembre 10.30h | I157: Buenos Aires
B158: MORIELLI | C158: FABRICIO NICOLAS | D158: 35894716 | E158: Rio Tercero | F158: Martillero Y Corredor Público | G158: 35894716 | H158: Miercoles 15 de noviembre 10.30h | I158: Córdoba
B159: WAKULUK | C159: YANINA | D159: 33750537 | E159: Córdoba | F159: Martillero, Corredor Público Y Corredor Inmobiliario | G159: 33750537 | H159: Miercoles 15 de noviembre 10.30h | I159: Córdoba
B160: ALLENDE POSSE | C160: SANTIAGO JUSTINIANO | D160: 35573768 | E160: Córdoba | F160: Martillero, Corredor Público Y Corredor Inmobiliario | G160: 35573768 | H160: Miercoles 15 de noviembre 10.30h | I160: Córdoba
B161: HILDNER | C161: DANILO | D161: 36994918 | E161: Santiago Del Estero | F161: Martillero Y Corredor Público | G161: 36994918 | H161: Miercoles 15 de noviembre 10.30h | I161: Santiago Del Estero
B162: BALZETA | C162: MERCEDES | D162: 27695307 | E162: Cordoba | F162: Tecnicatura En Gestión Contable E Impositiva | G162: 27695307 | H162: Miercoles 15 de noviembre 10.30h | I162: Córdoba
B163: MONJE | C163: DIEGO ALEXIS | D163: 36146564 | E163: Córdoba | F163: Tecnicatura En Dirección De Equipos De Ventas | G163: 36146564 | H163: Miercoles 15 de noviembre 10.30h | I163: Córdoba
B164: GONZALEZ MOENAERT | C164: MATIAS | D164: 26632806 | E164: Capital Federal | F164: Martillero Y Corredor Público | G164: 26632806 | H164: Miercoles 15 de noviembre 10.30h | I164: Buenos Aires
B165: RICCI CORREGIDO | C165: JULIA | D165: 30579812 | E165: Chaco | F165: Martillero, Corredor Público Y Corredor Inmobiliario | G165: 30579812 | H165: Miercoles 15 de noviembre 10.30h | I165: Chaco
B166: ALLENDE | C166: GERMAN | D166: 30327412 | E166: Córdoba | F166: Tecnicatura En Higiene Y Seguridad Laboral | G166: 30327412 | H166: Miercoles 15 de noviembre 10.30h | I166: Córdoba
B167: NILSON | C167: MARCELO EDUARDO | D167: 31393381 | E167: Rosario | F167: Martillero, Corredor Público Y Corredor Inmobiliario | G167: 31393381 | H167: Miercoles 15 de noviembre 10.30h | I167: Santa Fe
B168: FERNANDEZ FAVARON | C168: XIMENA | D168: 32204453 | E168: Córdoba | F168: Martillero, Corredor Público Y Corredor Inmobiliario | G168: 32204453 | H168: Miercoles 15 de noviembre 10.30h | I168: Córdoba
B169: CASTILLO | C169: ALEJANDRA VIRGINIA ESTER | D169: 31076896 | E169: Burzaco | F169: Martillero Y Corredor Público | G169: 31076896 | H169: Miercoles 15 de noviembre 10.30h | I169: Buenos Aires
B170: PEREZ SERBO | C170: ANDRES DAMIAN | D170: 31674379 | E170: Capital Federal | F170: Tecnicatura En Dirección De Equipos De Ventas | G170: 31674379 | H170: Miercoles 15 de noviembre 10.30h | I170: Buenos Aires
B171: MICHELL | C171: MARIA PAULA | D171: 18474250 | E171: Sin Datos | F171: Procurador | G171: 18474250 | H171: Miercoles 15 de noviembre 10.30h | I171: Córdoba
B172: OLIVIERI | C172: SEBASTIAN | D172: 33984129 | E172: Capital Federal | F172: Martillero Y Corredor Público | G172: 33984129 | H172: Miercoles 15 de noviembre 10.30h | I172: Buenos Aires
B173: TONELLO | C173: GABRIEL | D173: 32979620 | E173: Villa Dolores | F173: Martillero, Corredor Público Y Corredor Inmobiliario | G173: 32979620 | H173: Miercoles 15 de noviembre 10.30h | I173: Córdoba
B174: RUSCULLEDA | C174: TOMAS | D174: 35526379 | E174: Córdoba | F174: Martillero Y Corredor Público | G174: 35526379 | H174: Miercoles 15 de noviembre 10.30h | I174: Córdoba
B175: ALVARADO LOPEZ | C175: MARIA LAURA | D175: 26815991 | E175: Córdoba | F175: Martillero, Corredor Público Y Corredor Inmobiliario | G175: 26815991 | H175: Miercoles 15 de noviembre 10.30h | I175: Córdoba
B176: BAQUE | C176: MATIAS | D176: 29006491 | E176: Capital Federal | F176: Martillero, Corredor Público Y Corredor Inmobiliario | G176: 29006491 | H176: Miercoles 15 de noviembre 10.30h | I176: Buenos Aires
B177: BAGNIS | C177: VALERIA ANDREA | D177: 26462164 | E177: Río Cuarto | F177: Martillero Y Corredor Público | G177: 26462164 | H177: Miercoles 15 de noviembre 10.30h | I177: Córdoba
B178: SOLE ALANIZ | C178: ALEJANDRO | D178: 34838189 | E178: Córdoba | F178: Martillero, Corredor Público Y Corredor Inmobiliario | G178: 34838189 | H178: Miercoles 15 de noviembre 10.30h | I178: Córdoba
B179: ELIA | C179: MARCOS AGUSTIN | D179: 16062093 | E179: Capital Federal | F179: Martillero, Corredor Público Y Corredor Inmobiliario | G179: 16062093 | H179: Miercoles 15 de noviembre 10.30h | I179: Buenos Aires
B180: PIETRARELLI | C180: LUCIANO RICARDO | D180: 38106300 | E180: Córdoba | F180: Martillero Y Corredor Público | G180: 38106300 | H180: Miercoles 15 de noviembre 10.30h | I180: Córdoba
B181: ALVAREZ | C181: GABRIELA MACARENA | D181: 26483151 | E181: Córdoba | F181: Martillero, Corredor Público Y Corredor Inmobiliario | G181: 26483151 | H181: Miercoles 15 de noviembre 10.30h | I181: Córdoba
B182: NIEVA | C182: LUCIANO JOSE | D182: 35089075 | E182: Colonia Tirolesa | F182: Martillero, Corredor Público Y Corredor Inmobiliario | G182: 35089075 | H182: Miercoles 15 de noviembre 10.30h | I182: Córdoba
B183: PASCUALINI | C183: FRANCO | D183: 38106738 | E183: Córdoba | F183: Martillero, Corredor Público Y Corredor Inmobiliario | G183: 38106738 | H183: Miercoles 15 de noviembre 10.30h | I183: Córdoba
B184: GIRAUDO | C184: MARIANO | D184: 37225034 | E184: Córdoba | F184: Martillero Y Corredor Público | G184: 37225034 | H184: Miercoles 15 de noviembre 10.30h | I184: Córdoba
B185: ASTRADA | C185: NICOLAS | D185: 32933369 | E185: Río Cuarto | F185: Tecnicatura En Gestión Contable E Impositiva | G185: 32933369 | H185: Miercoles 15 de noviembre 10.30h | I185: Córdoba
B186: GUZMAN | C186: LEONARDO RAUL | D186: 39700823 | E186: La Rioja | F186: Tecnicatura En Dirección De Equipos De Ventas | G186: 39700823 | H186: Miercoles 15 de noviembre 10.30h | I186: La Rioja
B187: PAEZ | C187: FLAVIA JESSICA | D187: 36146804 | E187: Córdoba | F187: Tecnicatura En Dirección De Protocolo, Organización De Eventos Y Relaciones Públicas | G187: 36146804 | H187: Miercoles 15 de noviembre 10.30h | I187: Córdoba
B188: BERENGUE | C188: MARCELA | D188: 18268341 | E188: Capital Federal | F188: Tecnicatura En Gestión Contable E Impositiva | G188: 18268341 | H188: Miercoles 15 de noviembre 10.30h | I188: Buenos Aires
B189: JUNCOS | C189: MARCELA | D189: 20535696 | E189: Córdoba | F189: Tecnicatura En Higiene Y Seguridad Laboral | G189: 20535696 | H189: Miercoles 15 de noviembre 10.30h | I189: Córdoba
B190: CORIA | C190: RAFAEL | D190: 35545463 | E190: Río Cuarto | F190: Martillero, Corredor Público Y Corredor Inmobiliario | G190: 35545463 | H190: Miercoles 15 de noviembre 10.30h | I190: Córdoba
B191: CATIVA CAMPOS | C191: YANINA VANESA | D191: 36614120 | E191: Santa Cruz | F191: Tecnicatura En Higiene Y Seguridad Laboral | G191: 36614120 | H191: Miercoles 15 de noviembre 10.30h | I191: Santa Cruz
B192: CORONEL | C192: PAOLA SOLEDAD | D192: 32077984 | E192: Villa De Maria ( Rio Seco) | F192: Martillero Y Corredor Público | G192: 32077984 | H192: Miercoles 15 de noviembre 10.30h | I192: Córdoba
B193: CAHISA | C193: MELINA DAIANA | D193: 37908416 | E193: Ushuaia | F193: Tecnicatura En Administración Y Gestión Tributaria | G193: 37908416 | H193: Miercoles 15 de noviembre 10.30h | I193: Tierra Del Fuego
B194: RISIO | C194: MARIA FLORENCIA | D194: 33892725 | E194: Córdoba | F194: Martillero, Corredor Público Y Corredor Inmobiliario | G194: 33892725 | H194: Miercoles 15 de noviembre 10.30h | I194: Córdoba
B195: CAROT | C195: ALEJANDRO LEONIDAS | D195: 38107077 | E195: Córdoba | F195: Martillero, Corredor Público Y Corredor Inmobiliario | G195: 38107077 | H195: Miercoles 15 de noviembre 10.30h | I195: Córdoba
B196: VIVAS | C196: ADRIAN JOSE | D196: 25038186 | E196: Córdoba | F196: Tecnicatura En Higiene Y Seguridad Laboral | G196: 25038186 | H196: Miercoles 15 de noviembre 10.30h | I196: Córdoba
B197: ORIHUELA | C197: MARIA LAURA | D197: 34401829 | E197: Laboulaye | F197: Martillero, Corredor Público Y Corredor Inmobiliario | G197: 34401829 | H197: Miercoles 15 de noviembre 10.30h | I197: Córdoba
B198: LANZAVECCHIA | C198: GIULIANO | D198: 38646172 | E198: Córdoba | F198: Tecnicatura En Dirección De Protocolo, Organización De Eventos Y Relaciones Públicas | G198: 38646172 | H198: Miercoles 15 de noviembre 10.30h | I198: Córdoba
B199: MURIEL | C199: GABRIEL EMMANUEL | D199: 37619027 | E199: Córdoba | F199: Martillero, Corredor Público Y Corredor Inmobiliario | G199: 37619027 | H199: Miercoles 15 de noviembre 10.30h | I199: Córdoba
B200: ESLAVA | C200: ANALIA ADRIANA | D200: 30332178 | E200: Córdoba | F200: Martillero Y Corredor Público | G200: 30332178 | H200: Miercoles 15 de noviembre 10.30h | I200: Córdoba
B201: LAZZARIN LIMA | C201: MARIA INES | D201: 29317596 | E201: Buenos Aires | F201: Martillero Y Corredor Público | G201: 29317596 | H201: Miercoles 15 de noviembre 10.30h | I201: Buenos Aires
B202: QUARANTA | C202: GUIDO | D202: 33998341 | E202: Córdoba | F202: Martillero, Corredor Público Y Corredor Inmobiliario | G202: =D202*1 -> 33998341 | H202: =VLOOKUP(F202,colación,3,FALSE) -> Miercoles 15 de noviembre 10.30h | I202: =VLOOKUP(E202,provincia,2,FALSE) -> Córdoba
... 106 more rows

Sheet FECHA
I2: Provincia | J2: Provincia Real
B3: CARRERA | C3: COLACIÓN | D3: Fecha | I3: Mendoza | J3: Mendoza
B4: Martillero Y Corredor Público | C4: 1 | D4: Miercoles 15 de noviembre 10.30h | I4: Entre Rios | J4: Entre Ríos
B5: Martillero, Corredor Público y Corredor Inmobiliario | C5: 1 | D5: Miercoles 15 de noviembre 10.30h | I5: San Luis | J5: San Luis
B6: PROCURADOR | C6: 1 | D6: Miercoles 15 de noviembre 10.30h | I6: Cordoba | J6: Córdoba
B7: Tecnicatura en Administración y Gestión Tributaria | C7: 1 | D7: Miercoles 15 de noviembre 10.30h | I7: Buenos Aires | J7: Buenos Aires
B8: TECNICATURA EN DIRECCIÓN DE EQUIPOS DE VENTAS | C8: 1 | D8: Miercoles 15 de noviembre 10.30h | I8: Rio Negro | J8: Río Negro
B9: TECNICATURA EN DIRECCIÓN DE PROTOCOLO, ORGANIZACIÓN DE EVENTOS Y RELACIONES PÚBLICAS | C9: 1 | D9: Miercoles 15 de noviembre 10.30h | I9: Santa Fe | J9: Santa Fe
B10: TECNICATURA EN GESTIÓN CONTABLE E IMPOSITIVA | C10: 1 | D10: Miercoles 15 de noviembre 10.30h | I10: Sin Datos | J10: Córdoba
B11: Tecnicatura en Gestión de Empresas Familiares | C11: 1 | D11: Miercoles 15 de noviembre 10.30h | I11: Salta | J11: Salta
B12: TECNICATURA EN HIGIENE Y SEGURIDAD LABORAL | C12: 1 | D12: Miercoles 15 de noviembre 10.30h | I12: Misiones | J12: Misiones
B13: TECNICATURA EN RELACIONES LABORALES | C13: 1 | D13: Miercoles 15 de noviembre 10.30h | I13: Jujuy | J13: Jujuy
B14: Tecnicatura en Responsabilidad y Gestión Social | C14: 1 | D14: Miercoles 15 de noviembre 10.30h | I14: Ciudad Autonoma De Buenos Aires | J14: Buenos Aires
B15: ABOGACÍA | C15: 2 | D15: Miércoles 15 de noviembre 19.00h | I15: Santa Cruz | J15: Santa Cruz
B16: MBA: Maestría en Administración de Empresas | C16: 2 | D16: Miércoles 15 de noviembre 19.00h | I16: Chaco | J16: Chaco
B17: MDC: Especialización en Marketing y Dirección Comercial | C17: 2 | D17: Miércoles 15 de noviembre 19.00h | I17: Tucuman | J17: Tucumán
B18: CONTADOR PÚBLICO | C18: 3 | D18: Jueves 16 de noviembre 10.30h | I18: La Pampa | J18: La Pampa
B19: ESCRIBANÍA | C19: 3 | D19: Jueves 16 de noviembre 10.30h | I19: Formosa | J19: Formosa
B20: INGENIERÍA EN SISTEMAS | C20: 4 | D20: Jueves 16 de noviembre 19.30h | I20: La Rioja | J20: La Rioja
B21: INGENIERÍA EN SOFTWARE | C21: 4 | D21: Jueves 16 de noviembre 19.00h | I21: Chubut | J21: Chubut
B22: LICENCIATURA EN ADMINISTRACIÓN | C22: 4 | D22: Jueves 16 de noviembre 19.00h | I22: Neuquen | J22: Neuquén
B23: LICENCIATURA EN ADMINISTRACIÓN AGRARIA | C23: 4 | D23: Jueves 16 de noviembre 19.00h | I23: Santiago Del Estero | J23: Santiago Del Estero
B24: LICENCIATURA EN ADMINISTRACIÓN HOTELERA | C24: 4 | D24: Jueves 16 de noviembre 19.00h | I24: San Juan | J24: San Juan
B25: Licenciatura en Ciencia Política | C25: 4 | D25: Jueves 16 de noviembre 19.00h | I25: Corrientes | J25: Corrientes
B26: LICENCIATURA EN COMERCIALIZACIÓN | C26: 4 | D26: Jueves 16 de noviembre 19.00h | I26: Tierra Del Fuego | J26: Tierra Del Fuego
B27: LICENCIATURA EN COMERCIO INTERNACIONAL | C27: 4 | D27: Jueves 16 de noviembre 19.00h | I27: Catamarca | J27: Catamarca
B28: LICENCIATURA EN DISEÑO DE INDUMENTARIA Y TEXTIL | C28: 4 | D28: Jueves 16 de noviembre 19.00h | I28: Chile | J28: Córdoba
B29: LICENCIATURA EN DISEÑO GRÁFICO | C29: 4 | D29: Jueves 16 de noviembre 19.00h | I29: Lima | J29: Córdoba
B30: LICENCIATURA EN DISEÑO INDUSTRIAL | C30: 4 | D30: Jueves 16 de noviembre 19.00h | I30: Canada | J30: Córdoba
B31: Licenciatura En Educación - Ciclo | C31: 4 | D31: Jueves 16 de noviembre 19.00h | I31: Francia | J31: Córdoba
B32: LICENCIATURA EN GESTIÓN AMBIENTAL | C32: 4 | D32: Jueves 16 de noviembre 19.00h | I32: Córdoba | J32: Córdoba
B33: LICENCIATURA EN GESTIÓN DE RECURSOS HUMANOS | C33: 4 | D33: Jueves 16 de noviembre 19.00h | I33: Carlos Paz | J33: Córdoba
B34: LICENCIATURA EN GESTIÓN TURÍSTICA | C34: 4 | D34: Jueves 16 de noviembre 19.00h | I34: Río Cuarto | J34: Córdoba
B35: LICENCIATURA EN INFORMÁTICA | C35: 4 | D35: Jueves 16 de noviembre 19.00h | I35: San Miguel De Tucuman | J35: Tucumán
B36: LICENCIATURA EN PSICOLOGÍA | C36: 4 | D36: Jueves 16 de noviembre 19.00h | I36: Merlo | J36: San Luis
B37: LICENCIATURA EN PUBLICIDAD | C37: 4 | D37: Jueves 16 de noviembre 19.00h | I37: Embalse | J37: Córdoba
B38: LICENCIATURA EN RELACIONES INTERNACIONALES | C38: 4 | D38: Jueves 16 de noviembre 19.00h | I38: Caleta Oliva | J38: Córdoba
B39: LICENCIATURA EN RELACIONES PÚBLICAS E INSTITUCIONALES | C39: 4 | D39: Jueves 16 de noviembre 19.00h | I39: Cruz Del Eje | J39: Córdoba
B40: Tecnicatura Martillero Y Corredor Público (Pres) | C40: 1 | D40: Miercoles 15 de noviembre 10.30h | I40: Villa Angela | J40: Córdoba
B41: Martillero, Corredor Público Y Corredor Inmobiliario (Pres) | C41: 1 | D41: Miercoles 15 de noviembre 10.30h | I41: Santa Rosa De Calamuchita | J41: Córdoba
B42: Tecnicatura En Investigación De La Escena Del Crimen | C42: 1 | D42: Miercoles 15 de noviembre 10.30h | I42: General Acha | J42: La Pampa
I43: Santa Rosa | J43: La Pampa
I44: El Carmen | J44: Córdoba
I45: Monte Caseros | J45: Buenos Aires
I46: Villa Allende | J46: Córdoba
I47: Rio Cuarto | J47: Córdoba
I48: San Salvador De Jujuy | J48: Jujuy
I49: Cordoba Capital | J49: Córdoba
I50: Villa Giardino | J50: Córdoba
I51: Las Varillas | J51: Córdoba
I52: La Paz | J52: Córdoba
I53: La Carlota | J53: Córdoba
I54: Rio Tercero | J54: Córdoba
I55: Concepción | J55: Entre Ríos
I56: Santa Rosa De La Pampa | J56: La Pampa
I57: Coronel Belisle | J57: Córdoba
I58: Nueve De Julio | J58: Buenos Aires
I59: Junin | J59: Buenos Aires
I60: Villa Maria | J60: Córdoba
I61: Perito Moreno | J61: Buenos Aires
I62: Rosario | J62: Santa Fe
I63: Burzaco | J63: Buenos Aires
I64: Villa Dolores | J64: Córdoba
I65: Villa De Maria ( Rio Seco) | J65: Córdoba
I66: Ushuaia | J66: Tierra Del Fuego
I67: Laboulaye | J67: Córdoba
I68: Caleta Olivia | J68: Córdoba
I69: Morteros | J69: Córdoba
I70: Colonia Tirolesa | J70: Córdoba
I71: Monte Buey | J71: Córdoba
I72: General Deheza | J72: Córdoba
I73: Pilar | J73: Buenos Aires
I74: General Cabrera | J74: Córdoba
I75: San Martin | J75: Buenos Aires
I76: Venado Tuerto | J76: Buenos Aires
I77: Adrogue | J77: Buenos Aires
I78: Santa Elena | J78: Buenos Aires
I79: Capital Federal | J79: Buenos Aires
I80: Capital | J80: Buenos Aires
I81: La Plata | J81: Buenos Aires
I82: Alta Gracia | J82: Córdoba
I83: Río Negro | J83: Río Negro
I84: Tierra del Fuego, Antártida e Isla del Atlántico Sur | J84: Tierra Del Fuego
I85: Neuquén | J85: Neuquén
I86: Tucumán | J86: Tucumán
I87: Entre Ríos | J87: Entre Ríos
J88: Córdoba

Sheet Legajos_Inc_No (hidden)
X6: Egresados TECNICATURA - 24/11 único turno (10:30 Hs) | Y6: Egresados GRADO - 24/11 Turno Tarde (19:30 Hs) | Z6: Egresados GRADO - 25/11 Turno Tarde (19:30 Hs) | AA6: Egresados GRADO - 25/11 Turno Mañana (10:30 Hs)
U7: Envía Documentación | V7: =+W7/$W$10 ->  | W7: =+COUNTIF(#REF!,Legajos_Inc_No!U7) ->  | X7: =+COUNTIFS(#REF!,Legajos_Inc_No!$X$6,#REF!,Legajos_Inc_No!U7) ->  | Y7: =+COUNTIFS(#REF!,Legajos_Inc_No!$Y$6,#REF!,Legajos_Inc_No!U7) ->  | Z7: =+COUNTIFS(#REF!,Legajos_Inc_No!$Z$6,#REF!,Legajos_Inc_No!U7) ->  | AA7: =+COUNTIFS(#REF!,Legajos_Inc_No!$AA$6,#REF!,Legajos_Inc_No!U7) -> 
U8: No envía Documentación | V8: =+W8/$W$10 ->  | W8: =+COUNTIF(#REF!,Legajos_Inc_No!U8) ->  | X8: =+COUNTIFS(#REF!,Legajos_Inc_No!$X$6,#REF!,Legajos_Inc_No!U8) ->  | Y8: =+COUNTIFS(#REF!,Legajos_Inc_No!$Y$6,#REF!,Legajos_Inc_No!U8) ->  | Z8: =+COUNTIFS(#REF!,Legajos_Inc_No!$Z$6,#REF!,Legajos_Inc_No!U8) ->  | AA8: =+COUNTIFS(#REF!,Legajos_Inc_No!$AA$6,#REF!,Legajos_Inc_No!U8) -> 
U9: No envía Documentación, No la tiene | W9: =+COUNTIF(#REF!,Legajos_Inc_No!U9) ->  | X9: =+COUNTIFS(#REF!,Legajos_Inc_No!$X$6,#REF!,Legajos_Inc_No!U9) ->  | Y9: =+COUNTIFS(#REF!,Legajos_Inc_No!$Y$6,#REF!,Legajos_Inc_No!U9) ->  | Z9: =+COUNTIFS(#REF!,Legajos_Inc_No!$Z$6,#REF!,Legajos_Inc_No!U9) ->  | AA9: =+COUNTIFS(#REF!,Legajos_Inc_No!$AA$6,#REF!,Legajos_Inc_No!U9) -> 
W10: =SUM(W7:W9) ->  | X10: =SUM(X7:X9) ->  | Y10: =SUM(Y7:Y9) ->  | Z10: =SUM(Z7:Z9) ->  | AA10: =SUM(AA7:AA9) -> 
W13: Envía Documentación | X13: No envía Documentación | Y13: No envía Documentación, No la tiene | AB13: Envía Documentación | AC13: No envía Documentación | AD13: No envía Documentación, No la tiene
U14: Egresados TECNICATURA - 16/11 Turno Mañana (10:30 Hs) | W14: =+X7 ->  | X14: =+X8 ->  | Y14: =+X9 ->  | AB14: =+W14/SUM(W14:Y14) ->  | AC14: =+X14/SUM($W$14:$Y$14) -> 
U15: Egresados Escribana y CPB - 17/11 Turno Mañana (10:30 Hs) | W15: =+Y7 ->  | X15: =+Y8 ->  | Y15: =+Y9 ->  | AB15: =+W15/SUM($W$15:$Y$15) ->  | AC15: =+X15/SUM($W$15:$Y$15) -> 
U16: Egresados GRADO - 17/11 Turno Tarde (18:30 Hs) | W16: =+Z7 ->  | X16: =+Z8 ->  | Y16: =+Z9 ->  | AB16: =IFERROR(W16/SUM($W$16:$Y$16),0) -> 0 | AC16: =IFERROR(X16/SUM($W$16:$Y$16),0) -> 0 | AD16: 0
U17: Egresados ABG - Posgrados - 16/11 Turno Tarde (18:30 Hs) | W17: =+AA7 ->  | X17: =+AA8 ->  | Y17: =+AA9 ->  | AB17: =+W17/SUM($W$17:$Y$17) ->  | AC17: =+X17/SUM($W$17:$Y$17) -> 
W18: 3 | X18: 4 | Y18: 5 | Z18: 6 | AA18: 7 | AB18: 8 | AC18: 9 | AD18: 10
U19: =+REPORTE!#REF! ->  | W19: =IF($U$19="acumulado","",VLOOKUP($U$19,$U$13:$AD$17,W18,FALSE)) ->  | X19: =IF($U$19="acumulado","",VLOOKUP($U$19,$U$13:$AD$17,X18,FALSE)) ->  | AB19: =IF($U$19="acumulado","<--",VLOOKUP($U$19,$U$13:$AD$17,AB18,FALSE)) ->  | AC19: =IF($U$19="acumulado","<--",VLOOKUP($U$19,$U$13:$AD$17,AC18,FALSE)) -> 

Sheet DRIVE
B1: 1 | C1: 2 | D1: 3 | E1: 4 | F1: 5 | G1: 6 | H1: 7 | I1: 8 | J1: 9 | K1: 10 | L1: 11 | M1: 12 | N1: 13 | O1: 14 | P1: 15
A2: TIPO | B2: Nombre | C2: Apellido | D2: DNI | E2: Email | F2: Caract Cel | G2: Cel | H2: Direccion | I2: Barrio | J2: CP | K2: Ciudad | L2: Provincia | M2: Carrera | N2: Asisto | O2: Cantidad de Invitados | P2: Datos Correctos | Q2: Fecha Colacion | R2: ID_ | S2: Provincia
A3: =IFERROR(IFERROR(IF(VLOOKUP(D3,GR!G:G,1,FALSE)>0,"GRADO",""),IF(VLOOKUP(D3,PRE!G:G,1,FALSE)>0,"PREGRADO","")),"") -> GRADO | B3: MARIA FERNANDA | C3: SENTURIO | D3: 29845942 | E3: fsenturio@outlook.com.ar | F3: 3537 | G3: 327596 | H3: SAN LUIS 252 | I3: LA PIRAMIDE | J3: 2550 | K3: BELL VILLE | L3: Córdoba | M3: Abogacía | N3: Si | O3: 4 | P3: SI | Q3: =VLOOKUP(M3,colación,3,FALSE) -> Miércoles 15 de noviembre 19.00h | R3: =IF(P3="","NO","SI") -> SI | S3: =VLOOKUP(L3,provincia,2,FALSE) -> Córdoba
A4: =IFERROR(IFERROR(IF(VLOOKUP(D4,GR!G:G,1,FALSE)>0,"GRADO",""),IF(VLOOKUP(D4,PRE!G:G,1,FALSE)>0,"PREGRADO","")),"") -> GRADO | B4: Daniela Luz | C4: Fernández | D4: 33058714 | E4: fernandezdanielaluz@gmail.com | F4: 264 | G4: 5014323 | H4: Florida 744 | I4: Centro | J4: 5460 | K4: Jachal | L4: San Juan | M4: Abogacía | N4: Si | O4: 4 | P4: SI | Q4: =VLOOKUP(M4,colación,3,FALSE) -> Miércoles 15 de noviembre 19.00h | R4: =IF(P4="","NO","SI") -> SI | S4: =VLOOKUP(L4,provincia,2,FALSE) -> San Juan
A5: =IFERROR(IFERROR(IF(VLOOKUP(D5,GR!G:G,1,FALSE)>0,"GRADO",""),IF(VLOOKUP(D5,PRE!G:G,1,FALSE)>0,"PREGRADO","")),"") -> GRADO | B5: Marcelino Leonel | C5: Gomez | D5: 38179969 | E5: estudiojco.gomez@gmail.com | F5: 351 | G5: 2345560 | H5: Gustavo Brandan 1276 | I5: Altos de Velez sarsfield | J5: 5000 | K5: Cordoba | L5: Córdoba | M5: Abogacía | N5: Si | O5: 4 | P5: SI | Q5: Miércoles 15 de noviembre 19.00h | R5: SI | S5: Córdoba
A6: =IFERROR(IFERROR(IF(VLOOKUP(D6,GR!G:G,1,FALSE)>0,"GRADO",""),IF(VLOOKUP(D6,PRE!G:G,1,FALSE)>0,"PREGRADO","")),"") -> GRADO | B6: paula valeria | C6: Calventos Herrera | D6: 26905539 | E6: PAULACALVENTOS@GMAIL.COM | F6: 351 | G6: 157559213 | H6: Veracruz 1057 PA - OF. 8 | I6: LOMAS | J6: 5105 | K6: Villa Allende | L6: Córdoba | M6: Contador Público | N6: Si | O6: 4 | P6: NO | Q6: Jueves 16 de noviembre 10.30h | R6: SI | S6: Córdoba
A7: =IFERROR(IFERROR(IF(VLOOKUP(D7,GR!G:G,1,FALSE)>0,"GRADO",""),IF(VLOOKUP(D7,PRE!G:G,1,FALSE)>0,"PREGRADO","")),"") -> GRADO | B7: Maria victoria | C7: Beltran | D7: 34920047 | E7: Vikko_047@live.com | F7: 264 | G7: 155190378 | H7: Eladio Quiroga 252 este | I7: Barrio sarmiento | J7: 5413 | K7: San juan | L7: San Juan | M7: Abogacía | N7: Si | O7: 4 | P7: SI | Q7: Miércoles 15 de noviembre 19.00h | R7: SI | S7: San Juan
A8: =IFERROR(IFERROR(IF(VLOOKUP(D8,GR!G:G,1,FALSE)>0,"GRADO",""),IF(VLOOKUP(D8,PRE!G:G,1,FALSE)>0,"PREGRADO","")),"") -> GRADO | B8: Alejandro | C8: Torrembó | D8: 27362135 | E8: atorrembo@hotmail.com | F8: 351 | G8: 3193581 | H8: Argandoña 2317 | I8: San Vicente | J8: 5000 | K8: Cordoba | L8: Córdoba | M8: Ingeniería en Software | N8: Si | O8: 4 | P8: SI | Q8: Jueves 16 de noviembre 19.00h | R8: SI | S8: Córdoba
A9: =IFERROR(IFERROR(IF(VLOOKUP(D9,GR!G:G,1,FALSE)>0,"GRADO",""),IF(VLOOKUP(D9,PRE!G:G,1,FALSE)>0,"PREGRADO","")),"") -> GRADO | B9: Ignacio | C9: Miranda | D9: 34792959 | E9: mirandaignacio@icloud.com | F9: 351 | G9: 157689799 | H9: Bv. San Martín 821 | I9: Manuel Belgrano | J9: 2419 | K9: Brinkmann | L9: Córdoba | M9: Abogacía | N9: Si | O9: 4 | P9: SI | Q9: Miércoles 15 de noviembre 19.00h | R9: SI | S9: Córdoba
A10: =IFERROR(IFERROR(IF(VLOOKUP(D10,GR!G:G,1,FALSE)>0,"GRADO",""),IF(VLOOKUP(D10,PRE!G:G,1,FALSE)>0,"PREGRADO","")),"") -> GRADO | B10: Ana Laura | C10: Lucero | D10: 38883140 | E10: analauralucero@live.com.ar | F10: 358 | G10: 154190233 | H10: Bv. España 1133 | I10: Las Rosas | J10: 5809 | K10: General Cabrera | L10: Córdoba | M10: Contador Público | N10: Si | O10: 4 | P10: SI | Q10: Jueves 16 de noviembre 10.30h | R10: SI | S10: Córdoba
A11: =IFERROR(IFERROR(IF(VLOOKUP(D11,GR!G:G,1,FALSE)>0,"GRADO",""),IF(VLOOKUP(D11,PRE!G:G,1,FALSE)>0,"PREGRADO","")),"") -> GRADO | B11: Diamela | C11: Lorenzon | D11: 31043843 | E11: diam.lorenzon@gmail.com | F11: 3482 | G11: 627401 | H11: Alvear 1420 | I11: Fraternidad | J11: 3560 | K11: Reconquista | L11: Santa Fe | M11: Abogacía | N11: Si | O11: 4 | P11: SI | Q11: Miércoles 15 de noviembre 19.00h | R11: SI | S11: Santa Fe
A12: =IFERROR(IFERROR(IF(VLOOKUP(D12,GR!G:G,1,FALSE)>0,"GRADO",""),IF(VLOOKUP(D12,PRE!G:G,1,FALSE)>0,"PREGRADO","")),"") -> GRADO | B12: Ivana ines | C12: Villa | D12: 33964458 | E12: ivanavilla.88@gmail.com | F12: 3541 | G12: 15553782 | H12: Tucuman 10 | I12: José Muñoz | J12: 5152 | K12: Villa Carlos Paz | L12: Córdoba | M12: Licenciatura en Administración | N12: Si | O12: 4 | P12: NO | Q12: Jueves 16 de noviembre 19.00h | R12: SI | S12: Córdoba
A13: =IFERROR(IFERROR(IF(VLOOKUP(D13,GR!G:G,1,FALSE)>0,"GRADO",""),IF(VLOOKUP(D13,PRE!G:G,1,FALSE)>0,"PREGRADO","")),"") -> GRADO | B13: AGUSTIN EZEQUIEL | C13: LOPEZ | D13: 37195664 | E13: alopez.legales@gmail.com | F13: 351 | G13: 152761130 | H13: QUEBRADA DEL CONDORITO 203 | I13: SAN ISIDRO | J13: 5105 | K13: VILLA ALLENDE | L13: Córdoba | M13: Escribanía | N13: Si | O13: 4 | P13: SI | Q13: Jueves 16 de noviembre 10.30h | R13: SI | S13: Córdoba
A14: =IFERROR(IFERROR(IF(VLOOKUP(D14,GR!G:G,1,FALSE)>0,"GRADO",""),IF(VLOOKUP(D14,PRE!G:G,1,FALSE)>0,"PREGRADO","")),"") -> GRADO | B14: Federico Alejandro | C14: Cohen | D14: 20892668 | E14: c.federico@gmail.com | F14: 11 | G14: 1567308903 | H14: Simbron 3300 piso 1 | I14: Villa del Parque | J14: 1417 | K14: CABA | L14: Buenos Aires | M14: Abogacía | N14: Si | O14: 4 | P14: NO | Q14: Miércoles 15 de noviembre 19.00h | R14: SI | S14: Buenos Aires
A15: =IFERROR(IFERROR(IF(VLOOKUP(D15,GR!G:G,1,FALSE)>0,"GRADO",""),IF(VLOOKUP(D15,PRE!G:G,1,FALSE)>0,"PREGRADO","")),"") -> GRADO | B15: maria macarena | C15: prado | D15: 35109314 | E15: maca.prado@hotmail.com.ar | F15: 351 | G15: 153276320 | H15: av 24 de septiembre 1455 unidad judicial 11 | I15: general paz | J15: 5000 | K15: cordoba | L15: Córdoba | M15: Escribanía | N15: Si | O15: 4 | P15: NO | Q15: Jueves 16 de noviembre 10.30h | R15: SI | S15: Córdoba
A16: =IFERROR(IFERROR(IF(VLOOKUP(D16,GR!G:G,1,FALSE)>0,"GRADO",""),IF(VLOOKUP(D16,PRE!G:G,1,FALSE)>0,"PREGRADO","")),"") -> GRADO | B16: Gisela Paola | C16: Sanchez | D16: 30271364 | E16: giselapsanchez@gmail.com | F16: 3731 | G16: 624172 | H16: Junin N° 450 | I16: centro | J16: 3730 | K16: charata | L16: Chaco | M16: Escribanía | N16: Si | O16: 4 | P16: NO | Q16: Jueves 16 de noviembre 10.30h | R16: SI | S16: Chaco
A17: =IFERROR(IFERROR(IF(VLOOKUP(D17,GR!G:G,1,FALSE)>0,"GRADO",""),IF(VLOOKUP(D17,PRE!G:G,1,FALSE)>0,"PREGRADO","")),"") -> GRADO | B17: Estela Rosario | C17: Barreneche | D17: 21890904 | E17: estelabarreneche@yahoo.com.ar | F17: 353 | G17: 154084563 | H17: Ranqueles 501 | I17: Ucacha | J17: 2677 | K17: Ucacha | L17: Córdoba | M17: Abogacía | N17: Si | O17: 4 | P17: SI | Q17: Miércoles 15 de noviembre 19.00h | R17: SI | S17: Córdoba
A18: =IFERROR(IFERROR(IF(VLOOKUP(D18,GR!G:G,1,FALSE)>0,"GRADO",""),IF(VLOOKUP(D18,PRE!G:G,1,FALSE)>0,"PREGRADO","")),"") -> GRADO | B18: Stefania Lourdes | C18: Sartori | D18: 34130793 | E18: stefaniasartori18@gmail.com | F18: 351 | G18: 158018730 | H18: Bv san Juan 825, 2 D | I18: Centro | J18: 5000 | K18: Córdoba | L18: Córdoba | M18: Escribanía | N18: Si | O18: 4 | P18: SI | Q18: Jueves 16 de noviembre 10.30h | R18: SI | S18: Córdoba
A19: =IFERROR(IFERROR(IF(VLOOKUP(D19,GR!G:G,1,FALSE)>0,"GRADO",""),IF(VLOOKUP(D19,PRE!G:G,1,FALSE)>0,"PREGRADO","")),"") -> GRADO | B19: María Belén | C19: Zavala | D19: 29606316 | E19: mariabelenzavala@yahoo.com.ar | F19: 351 | G19: 6839743 | H19: Fleming 101 | I19: Oro verde | J19: 5113 | K19: SalSipuedes | L19: Córdoba | M19: Escribanía | N19: Si | O19: 4 | Q19: Jueves 16 de noviembre 10.30h | R19: NO | S19: Córdoba
A20: =IFERROR(IFERROR(IF(VLOOKUP(D20,GR!G:G,1,FALSE)>0,"GRADO",""),IF(VLOOKUP(D20,PRE!G:G,1,FALSE)>0,"PREGRADO","")),"") -> GRADO | B20: José Luis | C20: Fraga | D20: 30772430 | E20: Fragajoseluis@fibertel.com.ar | F20: 351 | G20: 2448415 | H20: María olguin 1334 2 a | I20: Centro | J20: 5800 | K20: Río cuarto | L20: Córdoba | M20: Abogacía | N20: Si | O20: 4 | P20: SI | Q20: Miércoles 15 de noviembre 19.00h | R20: SI | S20: Córdoba
A21: =IFERROR(IFERROR(IF(VLOOKUP(D21,GR!G:G,1,FALSE)>0,"GRADO",""),IF(VLOOKUP(D21,PRE!G:G,1,FALSE)>0,"PREGRADO","")),"") -> GRADO | B21: NADYA | C21: YATCHESEN | D21: 35104108 | E21: nadya.yatchesen@gmail.com | F21: 3532 | G21: 155188533 | H21: La Rioja 1050, Dpto. 13 | I21: Centro | J21: 5900 | K21: Villa María | L21: Córdoba | M21: Escribanía | N21: No | O21: 4 | Q21: Jueves 16 de noviembre 10.30h | R21: NO | S21: Córdoba
A22: =IFERROR(IFERROR(IF(VLOOKUP(D22,GR!G:G,1,FALSE)>0,"GRADO",""),IF(VLOOKUP(D22,PRE!G:G,1,FALSE)>0,"PREGRADO","")),"") -> GRADO | B22: Noelia Beatriz | C22: Sialle Muñoz | D22: 29486706 | E22: Noeliasialle@outlook.com | F22: 385 | G22: 154024384 | H22: San Lorenzo 2879 | I22: Juramento | J22: 4200 | K22: capital | L22: Santiago del Estero | M22: Contador Público | N22: Si | O22: 4 | P22: SI | Q22: Jueves 16 de noviembre 10.30h | R22: SI | S22: Santiago Del Estero
A23: =IFERROR(IFERROR(IF(VLOOKUP(D23,GR!G:G,1,FALSE)>0,"GRADO",""),IF(VLOOKUP(D23,PRE!G:G,1,FALSE)>0,"PREGRADO","")),"") -> GRADO | B23: Guadalupe | C23: Movalli | D23: 37629795 | E23: guadamovalli9@gmail.com | F23: 351 | G23: 155485810 | H23: Obispo Oro 237 dpto 8 A | I23: Nueva Córdoba | J23: 5000 | K23: Córdoba | L23: Córdoba | M23: Licenciatura en Relaciones Públicas e Institucionales | N23: Si | O23: 4 | P23: NO | Q23: Jueves 16 de noviembre 19.00h | R23: SI | S23: Córdoba
A24: =IFERROR(IFERROR(IF(VLOOKUP(D24,GR!G:G,1,FALSE)>0,"GRADO",""),IF(VLOOKUP(D24,PRE!G:G,1,FALSE)>0,"PREGRADO","")),"") -> GRADO | B24: Ana Laura | C24: Juncos | D24: 35573397 | E24: analau43@hotmail.com | F24: 351 | G24: 2575556 | H24: Cardinales alto panorama. Av. Colón 3451. Piso 17 dpto D. Torre 1 | I24: Alto Alberdi | J24: 5000 | K24: Córdoba | L24: Córdoba | M24: Abogacía | N24: Si | O24: 4 | P24: SI | Q24: Miércoles 15 de noviembre 19.00h | R24: SI | S24: Córdoba
A25: =IFERROR(IFERROR(IF(VLOOKUP(D25,GR!G:G,1,FALSE)>0,"GRADO",""),IF(VLOOKUP(D25,PRE!G:G,1,FALSE)>0,"PREGRADO","")),"") -> GRADO | B25: RAFAEL MAXIMILIANO | C25: FARIAS | D25: 24108421 | E25: raffarias.m@gmail.com | F25: 351 | G25: 156898335 | H25: ANACREONTE Nº568 | I25: ALTA CORDOBA | J25: 5001 | K25: CORDOBA | L25: Córdoba | M25: Abogacía | N25: Si | O25: 4 | P25: SI | Q25: Miércoles 15 de noviembre 19.00h | R25: SI | S25: Córdoba
A26: =IFERROR(IFERROR(IF(VLOOKUP(D26,GR!G:G,1,FALSE)>0,"GRADO",""),IF(VLOOKUP(D26,PRE!G:G,1,FALSE)>0,"PREGRADO","")),"") -> GRADO | B26: JOSE MARIA | C26: Palacio | D26: 25312835 | E26: lic_josepalacio@yahoo.com.ar | F26: 11 | G26: 1564560050 | H26: AV CORDOBA 1646 PISO 9 DEPTO 258 | I26: NORTE | J26: 1015 | K26: CABA | L26: Buenos Aires | M26: Abogacía | N26: Si | O26: 4 | P26: SI | Q26: Miércoles 15 de noviembre 19.00h | R26: SI | S26: Buenos Aires
A27: =IFERROR(IFERROR(IF(VLOOKUP(D27,GR!G:G,1,FALSE)>0,"GRADO",""),IF(VLOOKUP(D27,PRE!G:G,1,FALSE)>0,"PREGRADO","")),"") -> GRADO | B27: Nicolás | C27: Biangulli Cornella | D27: 33535872 | E27: nbiangulli@gmail.com | F27: 351 | G27: 7654943 | H27: Cerro Azul 8770 | I27: Villa Rivera Indarte | J27: 5147 | K27: Córdoba | L27: Córdoba | M27: Licenciatura en Administración | N27: Si | O27: 4 | P27: SI | Q27: Jueves 16 de noviembre 19.00h | R27: SI | S27: Córdoba
A28: =IFERROR(IFERROR(IF(VLOOKUP(D28,GR!G:G,1,FALSE)>0,"GRADO",""),IF(VLOOKUP(D28,PRE!G:G,1,FALSE)>0,"PREGRADO","")),"") -> GRADO | B28: María Ornella | C28: cozzi | D28: 37617934 | E28: mariaornellacozzi@gmail.com | F28: 351 | G28: 157046627 | H28: Rio primero 1035 | I28: Altamira | J28: 5006 | K28: Córdoba | L28: Córdoba | M28: Licenciatura en Psicología | N28: Si | O28: 4 | P28: SI | Q28: Jueves 16 de noviembre 19.00h | R28: SI | S28: Córdoba
A29: =IFERROR(IFERROR(IF(VLOOKUP(D29,GR!G:G,1,FALSE)>0,"GRADO",""),IF(VLOOKUP(D29,PRE!G:G,1,FALSE)>0,"PREGRADO","")),"") -> GRADO | B29: sandra | C29: paz | D29: 33609498 | E29: pazsandrab@gmail.com | F29: 351 | G29: 2663077 | H29: obispo salguero 479 5B | I29: nueva cordoba | J29: 5000 | K29: cordoba | L29: Córdoba | M29: Licenciatura en Relaciones Públicas e Institucionales | N29: Si | O29: 4 | P29: SI | Q29: Jueves 16 de noviembre 19.00h | R29: SI | S29: Córdoba
A30: =IFERROR(IFERROR(IF(VLOOKUP(D30,GR!G:G,1,FALSE)>0,"GRADO",""),IF(VLOOKUP(D30,PRE!G:G,1,FALSE)>0,"PREGRADO","")),"") -> GRADO | B30: ROMINA MACARENA | C30: MINATO | D30: 38330763 | E30: rominaminato@hotmail.com | F30: 351 | G30: 153063930 | H30: Bv los polacos 6421 | I30: los Boulevares | J30: 5022 | K30: Cordoba | L30: Córdoba | M30: Contador Público | N30: Si | O30: 4 | P30: SI | Q30: Jueves 16 de noviembre 10.30h | R30: SI | S30: Córdoba
A31: =IFERROR(IFERROR(IF(VLOOKUP(D31,GR!G:G,1,FALSE)>0,"GRADO",""),IF(VLOOKUP(D31,PRE!G:G,1,FALSE)>0,"PREGRADO","")),"") -> GRADO | B31: Miguel Angel | C31: Leiva | D31: 18197475 | E31: mal13rfc@yahoo.com.ar | F31: 3541 | G31: 660721 | H31: Barrio El Dorado 2 manz 2 lote 12 San Antonio de Arredondo | I31: El Dorado 2 | J31: 5153 | K31: San Antonio de Arredondo | L31: Córdoba | M31: Abogacía | N31: Si | O31: 4 | P31: SI | Q31: Miércoles 15 de noviembre 19.00h | R31: SI | S31: Córdoba
A32: =IFERROR(IFERROR(IF(VLOOKUP(D32,GR!G:G,1,FALSE)>0,"GRADO",""),IF(VLOOKUP(D32,PRE!G:G,1,FALSE)>0,"PREGRADO","")),"") -> GRADO | B32: Emilio | C32: Marziale | D32: 34688871 | E32: Emimarziale@gmail.com | F32: 351 | G32: 156841702 | H32: maestro vidal 377 | I32: alberdi | J32: 5000 | K32: Cordoba | L32: Córdoba | M32: Contador Público | N32: Si | O32: 4 | P32: SI | Q32: Jueves 16 de noviembre 10.30h | R32: SI | S32: Córdoba
A33: =IFERROR(IFERROR(IF(VLOOKUP(D33,GR!G:G,1,FALSE)>0,"GRADO",""),IF(VLOOKUP(D33,PRE!G:G,1,FALSE)>0,"PREGRADO","")),"") -> GRADO | B33: Nora Evelyn | C33: Santos | D33: 92515389 | E33: noraesantos71@yahoo.com | F33: 261 | G33: 6236190 | H33: Calle Huarpes M B C 16 | I33: Nuevas Quintas | J33: 5539 | K33: Las Heras | L33: Mendoza | M33: Licenciatura En Educación - Ciclo | N33: Si | O33: 4 | P33: SI | Q33: Jueves 16 de noviembre 19.00h | R33: SI | S33: Mendoza
A34: =IFERROR(IFERROR(IF(VLOOKUP(D34,GR!G:G,1,FALSE)>0,"GRADO",""),IF(VLOOKUP(D34,PRE!G:G,1,FALSE)>0,"PREGRADO","")),"") -> GRADO | B34: Juan Manuel | C34: Andres | D34: 30844310 | E34: jmandres.andres@gmail.com | F34: 351 | G34: 153411318 | H34: Jose Dulce 3717 | I34: Amp. San Fernando | J34: 5016 | K34: Cordoba | L34: Córdoba | M34: Abogacía | N34: Si | O34: 4 | P34: SI | Q34: Miércoles 15 de noviembre 19.00h | R34: SI | S34: Córdoba
A35: =IFERROR(IFERROR(IF(VLOOKUP(D35,GR!G:G,1,FALSE)>0,"GRADO",""),IF(VLOOKUP(D35,PRE!G:G,1,FALSE)>0,"PREGRADO","")),"") -> GRADO | B35: RICARDO DANIEL | C35: CHAIN | D35: 11219423 | E35: ricardochain51@yahoo.com.ar | F35: 236 | G35: 4414730 | H35: COMANDANTE ACHA 109 | I35: NUESTRA SRA.DEL CARMEN | J35: 6000 | K35: JUNIN | L35: Buenos Aires | M35: Abogacía | N35: Si | O35: 4 | P35: SI | Q35: Miércoles 15 de noviembre 19.00h | R35: SI | S35: Buenos Aires
A36: =IFERROR(IFERROR(IF(VLOOKUP(D36,GR!G:G,1,FALSE)>0,"GRADO",""),IF(VLOOKUP(D36,PRE!G:G,1,FALSE)>0,"PREGRADO","")),"") -> GRADO | B36: Antonella | C36: Sicoli | D36: 37491758 | E36: Antosicoli_08@hotmail.com | F36: 3522 | G36: 15649403 | H36: BV illia 357 piso 8 dpto C | I36: Nueva Córdoba | J36: 5000 | K36: Córdoba | L36: Córdoba | M36: Licenciatura en Relaciones Públicas e Institucionales | N36: Si | O36: 4 | P36: NO | Q36: Jueves 16 de noviembre 19.00h | R36: SI | S36: Córdoba
A37: =IFERROR(IFERROR(IF(VLOOKUP(D37,GR!G:G,1,FALSE)>0,"GRADO",""),IF(VLOOKUP(D37,PRE!G:G,1,FALSE)>0,"PREGRADO","")),"") -> GRADO | B37: Claudia Lorena | C37: Mendonça | D37: 24997821 | E37: lore.mendonca@gmail.com | F37: 54911 | G37: 31679688 | H37: Ruta 58 Km 18 | I37: Country San Eliseo | J37: 1865 | K37: San Vicente | L37: Buenos Aires | M37: Contador Público | N37: Si | O37: 3 | P37: SI | Q37: Jueves 16 de noviembre 10.30h | R37: SI | S37: Buenos Aires
A38: =IFERROR(IFERROR(IF(VLOOKUP(D38,GR!G:G,1,FALSE)>0,"GRADO",""),IF(VLOOKUP(D38,PRE!G:G,1,FALSE)>0,"PREGRADO","")),"") -> GRADO | B38: Valentina | C38: Reineri | D38: 37196721 | E38: vreineri@outlook.com | F38: 358 | G38: 4027510 | H38: Ituzaingo 1159 | I38: Nueva Córdoba | J38: 5000 | K38: Córdoba | L38: Córdoba | M38: Abogacía | N38: Si | O38: 4 | P38: SI | Q38: Miércoles 15 de noviembre 19.00h | R38: SI | S38: Córdoba
A39: =IFERROR(IFERROR(IF(VLOOKUP(D39,GR!G:G,1,FALSE)>0,"GRADO",""),IF(VLOOKUP(D39,PRE!G:G,1,FALSE)>0,"PREGRADO","")),"") -> GRADO | B39: Marcelo Javier | C39: Cabral | D39: 28505509 | E39: drmarcelojcabral@yahoo.com.ar | F39: 351 | G39: 156773081 | H39: Pelagio Luna 3847 | I39: Urca | J39: 5009 | K39: Córdoba | L39: Córdoba | M39: Escribanía | N39: Si | O39: 4 | P39: NO | Q39: Jueves 16 de noviembre 10.30h | R39: SI | S39: Córdoba
A40: =IFERROR(IFERROR(IF(VLOOKUP(D40,GR!G:G,1,FALSE)>0,"GRADO",""),IF(VLOOKUP(D40,PRE!G:G,1,FALSE)>0,"PREGRADO","")),"") -> GRADO | B40: Alejandro | C40: Loaiza | D40: 36053385 | E40: loaiza_alejandro@hotmail.es | F40: 3537 | G40: 15669225 | H40: Paraná 479 Piso 10 Dpto D | I40: Nueva Córdoba | J40: 5000 | K40: Córdoba | L40: Córdoba | M40: Abogacía | N40: Si | O40: 4 | P40: NO | Q40: Miércoles 15 de noviembre 19.00h | R40: SI | S40: Córdoba
A41: =IFERROR(IFERROR(IF(VLOOKUP(D41,GR!G:G,1,FALSE)>0,"GRADO",""),IF(VLOOKUP(D41,PRE!G:G,1,FALSE)>0,"PREGRADO","")),"") -> GRADO | B41: Verónica Antonella | C41: Laurenti | D41: 36141597 | E41: veronicalaurenti10@gmail.com | F41: 351 | G41: 157448631 | H41: Tucumán 144 6b | I41: Centro | J41: 5000 | K41: Córdoba | L41: Córdoba | M41: Licenciatura en Relaciones Públicas e Institucionales | N41: Si | O41: 4 | P41: NO | Q41: Jueves 16 de noviembre 19.00h | R41: SI | S41: Córdoba
A42: =IFERROR(IFERROR(IF(VLOOKUP(D42,GR!G:G,1,FALSE)>0,"GRADO",""),IF(VLOOKUP(D42,PRE!G:G,1,FALSE)>0,"PREGRADO","")),"") -> GRADO | B42: Angelina | C42: Vigliocco | D42: 36132564 | E42: angelinavigliocco@gmail.com | F42: 3548 | G42: 15577162 | H42: 34865737 | I42: Nueva Córdoba | J42: 5000 | K42: Córdoba | L42: Córdoba | M42: Licenciatura en Relaciones Públicas e Institucionales | N42: Si | O42: 4 | Q42: Jueves 16 de noviembre 19.00h | R42: NO | S42: Córdoba
A43: =IFERROR(IFERROR(IF(VLOOKUP(D43,GR!G:G,1,FALSE)>0,"GRADO",""),IF(VLOOKUP(D43,PRE!G:G,1,FALSE)>0,"PREGRADO","")),"") -> GRADO | B43: Victoria | C43: Guevara Casaletti | D43: 37854700 | E43: vguevaracasaletti@gmail.com | F43: 351 | G43: 157563748 | H43: Cumbres Negras 2529 | I43: Parque Capital | J43: 5000 | K43: Cordoba | L43: Córdoba | M43: Licenciatura en Comercio Internacional | N43: Si | O43: 4 | P43: SI | Q43: Jueves 16 de noviembre 19.00h | R43: SI | S43: Córdoba
A44: =IFERROR(IFERROR(IF(VLOOKUP(D44,GR!G:G,1,FALSE)>0,"GRADO",""),IF(VLOOKUP(D44,PRE!G:G,1,FALSE)>0,"PREGRADO","")),"") -> GRADO | B44: Gustavo Dario | C44: Moreno | D44: 33670714 | E44: gustavomoreno@live.com.ar | F44: 3572 | G44: 570565 | H44: Belgrano 878 | I44: Hipotecario | J44: 5972 | K44: Pilar | L44: Córdoba | M44: Abogacía | N44: Si | O44: 4 | P44: SI | Q44: Miércoles 15 de noviembre 19.00h | R44: SI | S44: Córdoba
A45: =IFERROR(IFERROR(IF(VLOOKUP(D45,GR!G:G,1,FALSE)>0,"GRADO",""),IF(VLOOKUP(D45,PRE!G:G,1,FALSE)>0,"PREGRADO","")),"") -> GRADO | B45: Pamela Andrea | C45: Moneta | D45: 34011179 | E45: pamemoneta@gmail.com | F45: 3886 | G45: 527852 | H45: Argañaraz 149 of d | I45: Centro | J45: 4600 | K45: San Salvador de jujuy | L45: Jujuy | M45: Abogacía | N45: Si | O45: 4 | P45: SI | Q45: Miércoles 15 de noviembre 19.00h | R45: SI | S45: Jujuy
A46: =IFERROR(IFERROR(IF(VLOOKUP(D46,GR!G:G,1,FALSE)>0,"GRADO",""),IF(VLOOKUP(D46,PRE!G:G,1,FALSE)>0,"PREGRADO","")),"") -> GRADO | B46: Luciana Gisel | C46: Ochoa | D46: 35580002 | E46: lucianaochoa@gmail.com | F46: 351 | G46: 156535613 | H46: Yatay 2489 - Casa B | I46: Parque Chacabuco | J46: 5008 | K46: Córdoba | L46: Córdoba | M46: Licenciatura en Relaciones Públicas e Institucionales | N46: Si | O46: 4 | P46: SI | Q46: Jueves 16 de noviembre 19.00h | R46: SI | S46: Córdoba
A47: =IFERROR(IFERROR(IF(VLOOKUP(D47,GR!G:G,1,FALSE)>0,"GRADO",""),IF(VLOOKUP(D47,PRE!G:G,1,FALSE)>0,"PREGRADO","")),"") -> GRADO | B47: Ana Laura | C47: Mellano | D47: 25834987 | E47: analauramellano@hotmail.com | F47: 351 | G47: 155061817 | H47: Buceo 344 | I47: Lomas del Suquia | J47: 5000 | K47: Córdoba | L47: Córdoba | M47: Abogacía | N47: Si | O47: 4 | P47: SI | Q47: Miércoles 15 de noviembre 19.00h | R47: SI | S47: Córdoba
A48: =IFERROR(IFERROR(IF(VLOOKUP(D48,GR!G:G,1,FALSE)>0,"GRADO",""),IF(VLOOKUP(D48,PRE!G:G,1,FALSE)>0,"PREGRADO","")),"") -> GRADO | B48: Raquel Elda María | C48: Vianello | D48: 28581369 | E48: raquelvianello18@gmail.com | F48: 351 | G48: 153321672 | H48: Haedo 1492 | I48: Avenida | J48: 5000 | K48: Cordoba | L48: Córdoba | M48: Abogacía | N48: Si | O48: 4 | P48: NO | Q48: Miércoles 15 de noviembre 19.00h | R48: SI | S48: Córdoba
A49: =IFERROR(IFERROR(IF(VLOOKUP(D49,GR!G:G,1,FALSE)>0,"GRADO",""),IF(VLOOKUP(D49,PRE!G:G,1,FALSE)>0,"PREGRADO","")),"") -> GRADO | B49: Giuliana | C49: Peretti | D49: 37522627 | E49: giuliperetti@hotmail.com | F49: 2984 | G49: 415868 | H49: Chacabuco 757 | I49: Nueva Córdoba | J49: 5000 | K49: Córdoba | L49: Córdoba | M49: Licenciatura en Relaciones Públicas e Institucionales | N49: Si | O49: 4 | P49: SI | Q49: Jueves 16 de noviembre 19.00h | R49: SI | S49: Córdoba
A50: =IFERROR(IFERROR(IF(VLOOKUP(D50,GR!G:G,1,FALSE)>0,"GRADO",""),IF(VLOOKUP(D50,PRE!G:G,1,FALSE)>0,"PREGRADO","")),"") -> GRADO | B50: Miguel Enrique | C50: Quevedo | D50: 13955997 | E50: quevedos@futurnet.com.ar | F50: 3468 | G50: 646131 | H50: Santa Cruz 775 | I50: Hipotecario | J50: 2645 | K50: Corral de Bustos-Ifflinger | L50: Córdoba | M50: Abogacía | N50: Si | O50: 4 | P50: SI | Q50: Miércoles 15 de noviembre 19.00h | R50: SI | S50: Córdoba
A51: =IFERROR(IFERROR(IF(VLOOKUP(D51,GR!G:G,1,FALSE)>0,"GRADO",""),IF(VLOOKUP(D51,PRE!G:G,1,FALSE)>0,"PREGRADO","")),"") -> GRADO | B51: Guillermo | C51: Sacavino | D51: 32203242 | E51: guillesacavino@gmail.com | F51: 351 | G51: 2405378 | H51: Fitz Roy 2247 | I51: Parque Capital | J51: 5010 | K51: Cordoba | L51: Córdoba | M51: Licenciatura en Gestión De Recursos Humanos | N51: Si | O51: 4 | P51: SI | Q51: Jueves 16 de noviembre 19.00h | R51: SI | S51: Córdoba
A52: =IFERROR(IFERROR(IF(VLOOKUP(D52,GR!G:G,1,FALSE)>0,"GRADO",""),IF(VLOOKUP(D52,PRE!G:G,1,FALSE)>0,"PREGRADO","")),"") -> GRADO | B52: Ivana Ayelen | C52: Vilchez | D52: 30751189 | E52: ivana.vilchez@gmail.com | F52: 298 | G52: 154335626 | H52: Los Alerces 2509 | I52: Stefenelli | J52: 8332 | K52: General Roca | L52: Río Negro | M52: Licenciatura en Gestión De Recursos Humanos | N52: Si | O52: 4 | P52: NO | Q52: Jueves 16 de noviembre 19.00h | R52: SI | S52: Río Negro
A53: =IFERROR(IFERROR(IF(VLOOKUP(D53,GR!G:G,1,FALSE)>0,"GRADO",""),IF(VLOOKUP(D53,PRE!G:G,1,FALSE)>0,"PREGRADO","")),"") -> GRADO | B53: Antonella | C53: Perlo | D53: 37315941 | E53: antop_54@hotmail.com | F53: 351 | G53: 156505885 | H53: Rosario de Santa Fe 871 4C | I53: General Paz | J53: 5000 | K53: Cordoba | L53: Córdoba | M53: Licenciatura en Comercialización | N53: Si | O53: 4 | P53: SI | Q53: Jueves 16 de noviembre 19.00h | R53: SI | S53: Córdoba
A54: =IFERROR(IFERROR(IF(VLOOKUP(D54,GR!G:G,1,FALSE)>0,"GRADO",""),IF(VLOOKUP(D54,PRE!G:G,1,FALSE)>0,"PREGRADO","")),"") -> GRADO | B54: leandro Exequiel | C54: Lemme | D54: 36133644 | E54: llemme@good-sweets.com | F54: 3541 | G54: 540024 | H54: Con olmos 2490 | I54: Santa Rita | J54: 5152 | K54: Villa carlos paz | L54: Córdoba | M54: Licenciatura en Comercialización | N54: Si | O54: 4 | P54: NO | Q54: Jueves 16 de noviembre 19.00h | R54: SI | S54: Córdoba
A55: =IFERROR(IFERROR(IF(VLOOKUP(D55,GR!G:G,1,FALSE)>0,"GRADO",""),IF(VLOOKUP(D55,PRE!G:G,1,FALSE)>0,"PREGRADO","")),"") -> GRADO | B55: Velia Analía | C55: Trepat | D55: 31558895 | E55: analia.trepat@gmail.com | F55: 351 | G55: 152035104 | H55: Gregorio Carreras Nº 390 Piso 1º Dpto. 7 | I55: Centro | J55: 5220 | K55: Jesus Maria | L55: Córdoba | M55: Contador Público | N55: Si | O55: 4 | P55: NO | Q55: Jueves 16 de noviembre 10.30h | R55: SI | S55: Córdoba
A56: =IFERROR(IFERROR(IF(VLOOKUP(D56,GR!G:G,1,FALSE)>0,"GRADO",""),IF(VLOOKUP(D56,PRE!G:G,1,FALSE)>0,"PREGRADO","")),"") -> GRADO | B56: Constanza | C56: Orías | D56: 34440048 | E56: cotiorias@gmail.com | F56: 351 | G56: 157048293 | H56: Gral O Higgins 5390 | I56: Fortin del Pozo | J56: 5014 | K56: Córdoba | L56: Córdoba | M56: Licenciatura en Relaciones Públicas e Institucionales | N56: Si | O56: 4 | P56: NO | Q56: Jueves 16 de noviembre 19.00h | R56: SI | S56: Córdoba
A57: =IFERROR(IFERROR(IF(VLOOKUP(D57,GR!G:G,1,FALSE)>0,"GRADO",""),IF(VLOOKUP(D57,PRE!G:G,1,FALSE)>0,"PREGRADO","")),"") -> GRADO | B57: Lucas | C57: Zurschmitten | D57: 36430184 | E57: lucaszurschmitten761@hotmail.com | F57: 351 | G57: 2259924 | H57: Romulo Carbia 3364 | I57: Poeta lugones | J57: 5008 | K57: Cordoba | L57: Córdoba | M57: Abogacía | N57: Si | O57: 4 | P57: SI | Q57: Miércoles 15 de noviembre 19.00h | R57: SI | S57: Córdoba
A58: =IFERROR(IFERROR(IF(VLOOKUP(D58,GR!G:G,1,FALSE)>0,"GRADO",""),IF(VLOOKUP(D58,PRE!G:G,1,FALSE)>0,"PREGRADO","")),"") -> GRADO | B58: Gerardo Daniel | C58: Lemme | D58: 34981617 | E58: gera_lemme@hotmail.com | F58: 3541 | G58: 525170 | H58: Gobernador Olmos 2490 | I58: Santa Rita | J58: 5152 | K58: Villa Carlos Paz | L58: Córdoba | M58: Licenciatura en Administración | N58: Si | O58: 4 | P58: SI | Q58: Jueves 16 de noviembre 19.00h | R58: SI | S58: Córdoba
A59: =IFERROR(IFERROR(IF(VLOOKUP(D59,GR!G:G,1,FALSE)>0,"GRADO",""),IF(VLOOKUP(D59,PRE!G:G,1,FALSE)>0,"PREGRADO","")),"") -> GRADO | B59: LUCAS EMMANUEL | C59: NIETO | D59: 34848426 | E59: lucasemmanuel@hotmail.com | F59: 3543 | G59: 616976 | H59: 25 DE MAYO Nº 180 | I59: CENTRO | J59: 5105 | K59: VILLA ALLENDE | L59: Córdoba | M59: Abogacía | N59: Si | O59: 4 | P59: SI | Q59: Miércoles 15 de noviembre 19.00h | R59: SI | S59: Córdoba
A60: =IFERROR(IFERROR(IF(VLOOKUP(D60,GR!G:G,1,FALSE)>0,"GRADO",""),IF(VLOOKUP(D60,PRE!G:G,1,FALSE)>0,"PREGRADO","")),"") -> GRADO | B60: MARIANO ALEJANDRO | C60: NEME | D60: 29964125 | E60: nememariano@hotmail.com | F60: 351 | G60: 155731003 | H60: Claudio Cuenca nº 1742 | I60: Villa cabrera | J60: 5009 | K60: Córdoba | L60: Córdoba | M60: Abogacía | N60: Si | O60: 4 | P60: SI | Q60: Miércoles 15 de noviembre 19.00h | R60: SI | S60: Córdoba
A61: =IFERROR(IFERROR(IF(VLOOKUP(D61,GR!G:G,1,FALSE)>0,"GRADO",""),IF(VLOOKUP(D61,PRE!G:G,1,FALSE)>0,"PREGRADO","")),"") -> GRADO | B61: Natalia Fernanda | C61: Sánchez | D61: 28343650 | E61: natysanchez80@yahoo.com.ar | F61: 351 | G61: 152590420 | H61: Sofia Bozan 2556 | I61: Centro America | J61: 5001 | K61: Cordoba | L61: Córdoba | M61: Escribanía | N61: Si | O61: 4 | P61: SI | Q61: Jueves 16 de noviembre 10.30h | R61: SI | S61: Córdoba
A62: =IFERROR(IFERROR(IF(VLOOKUP(D62,GR!G:G,1,FALSE)>0,"GRADO",""),IF(VLOOKUP(D62,PRE!G:G,1,FALSE)>0,"PREGRADO","")),"") -> GRADO | B62: Mery Ibel | C62: Salgán | D62: 37127734 | E62: meryibel@hotmail.com | F62: 358 | G62: 6543366 | H62: Egidio Sosa 424 | I62: Fenix | J62: 5800 | K62: Río Cuarto | L62: Córdoba | M62: Abogacía | N62: Si | O62: 4 | P62: SI | Q62: Miércoles 15 de noviembre 19.00h | R62: SI | S62: Córdoba
A63: =IFERROR(IFERROR(IF(VLOOKUP(D63,GR!G:G,1,FALSE)>0,"GRADO",""),IF(VLOOKUP(D63,PRE!G:G,1,FALSE)>0,"PREGRADO","")),"") -> GRADO | B63: Maria de los Milagros | C63: Parra Atis | D63: 34429379 | E63: mili_lapetti@hotmail.com | F63: 2302 | G63: 456205 | H63: Int. Civalero 167 | I63: Villa Crespo | J63: 6270 | K63: Huinca Renanco | L63: Córdoba | M63: Abogacía | N63: Si | O63: 3 | P63: SI | Q63: Miércoles 15 de noviembre 19.00h | R63: SI | S63: Córdoba
A64: =IFERROR(IFERROR(IF(VLOOKUP(D64,GR!G:G,1,FALSE)>0,"GRADO",""),IF(VLOOKUP(D64,PRE!G:G,1,FALSE)>0,"PREGRADO","")),"") -> GRADO | B64: Candela | C64: Ferrari | D64: 34909629 | E64: salgadocandela@hotmail.com | F64: 351 | G64: 6790629 | H64: Achaval Rodriguez 579 dpto 1 A timbre 3 | I64: Guemes | J64: 5000 | K64: Córdoba | L64: Córdoba | M64: Licenciatura en Relaciones Públicas e Institucionales | N64: Si | O64: 4 | P64: NO | Q64: Jueves 16 de noviembre 19.00h | R64: SI | S64: Córdoba
A65: =IFERROR(IFERROR(IF(VLOOKUP(D65,GR!G:G,1,FALSE)>0,"GRADO",""),IF(VLOOKUP(D65,PRE!G:G,1,FALSE)>0,"PREGRADO","")),"") -> GRADO | B65: MARIA SOFIA | C65: FILIPPA | D65: 28577961 | E65: SOFIFILIPPA@HOTMAIL.COM | F65: 3472 | G65: 468431 | H65: JUAN CRUZ GONZALEZ ESTE 471 | I65: EL PANAL | J65: 2580 | K65: MARCOS JUAREZ | L65: Córdoba | M65: Abogacía | N65: Si | O65: 4 | P65: SI | Q65: Miércoles 15 de noviembre 19.00h | R65: SI | S65: Córdoba
A66: =IFERROR(IFERROR(IF(VLOOKUP(D66,GR!G:G,1,FALSE)>0,"GRADO",""),IF(VLOOKUP(D66,PRE!G:G,1,FALSE)>0,"PREGRADO","")),"") -> GRADO | B66: Guido Julián | C66: Aracena | D66: 34247980 | E66: guidoaracena@outlook.com | F66: 351 | G66: 3931401 | H66: Cayetano Silva 725 | I66: Alberdi | J66: 5013 | K66: Córdoba | L66: Córdoba | M66: Licenciatura en Relaciones Públicas e Institucionales | N66: Si | O66: 4 | P66: SI | Q66: Jueves 16 de noviembre 19.00h | R66: SI | S66: Córdoba
A67: =IFERROR(IFERROR(IF(VLOOKUP(D67,GR!G:G,1,FALSE)>0,"GRADO",""),IF(VLOOKUP(D67,PRE!G:G,1,FALSE)>0,"PREGRADO","")),"") -> GRADO | B67: Lucrecia carolina | C67: Pages | D67: 28816899 | E67: p_lucrecia@hotmail.com | F67: 3571 | G67: 15565789 | H67: Mariano moreno 450 | I67: Acuña | J67: 5850 | K67: Río tercero | L67: Córdoba | M67: Escribanía | N67: Si | O67: 3 | P67: NO | Q67: Jueves 16 de noviembre 10.30h | R67: SI | S67: Córdoba
A68: =IFERROR(IFERROR(IF(VLOOKUP(D68,GR!G:G,1,FALSE)>0,"GRADO",""),IF(VLOOKUP(D68,PRE!G:G,1,FALSE)>0,"PREGRADO","")),"") -> GRADO | B68: Matias Nicolás | C68: Aubrit Vayssie | D68: 36357985 | E68: matiasaubrit@hotmail.com | F68: 351 | G68: 156515479 | H68: Macaon 4410 | I68: Jardines del jockey | J68: 5000 | K68: Cordoba | L68: Córdoba | M68: Licenciatura en Administración | N68: Si | O68: 4 | P68: NO | Q68: =VLOOKUP(M68,colación,3,FALSE) -> Jueves 16 de noviembre 19.00h | R68: =IF(P68="","NO","SI") -> SI | S68: =VLOOKUP(L68,provincia,2,FALSE) -> Córdoba
A69: =IFERROR(IFERROR(IF(VLOOKUP(D69,GR!G:G,1,FALSE)>0,"GRADO",""),IF(VLOOKUP(D69,PRE!G:G,1,FALSE)>0,"PREGRADO","")),"") -> GRADO | B69: Sabrina Antonella | C69: Amedeo | D69: 37874240 | E69: sabri.amedeo@gmail.com | F69: 3563 | G69: 15412466 | H69: Mar Chiquita 37 | I69: - | J69: 5141 | K69: Balnearia | L69: Córdoba | M69: Licenciatura en Comercialización | N69: Si | O69: 4 | P69: SI | Q69: Jueves 16 de noviembre 19.00h | R69: SI | S69: Córdoba
A70: =IFERROR(IFERROR(IF(VLOOKUP(D70,GR!G:G,1,FALSE)>0,"GRADO",""),IF(VLOOKUP(D70,PRE!G:G,1,FALSE)>0,"PREGRADO","")),"") -> GRADO | B70: Lucía Andrea | C70: Galíndez | D70: 35089415 | E70: lucia.galindez@gmail.com | F70: 351 | G70: 158007634 | H70: 27 de abril 2479 | I70: Alto Alberdi | J70: 5000 | K70: Córdoba | L70: Córdoba | M70: Escribanía | N70: Si | O70: 4 | P70: SI | Q70: Jueves 16 de noviembre 10.30h | R70: SI | S70: Córdoba
A71: =IFERROR(IFERROR(IF(VLOOKUP(D71,GR!G:G,1,FALSE)>0,"GRADO",""),IF(VLOOKUP(D71,PRE!G:G,1,FALSE)>0,"PREGRADO","")),"") -> GRADO | B71: Santiago | C71: Marchisio | D71: 35939207 | E71: smarchisio894@gmail.com | F71: 358 | G71: 156017137 | H71: Sobremonte 2061 | I71: General Paz | J71: 5800 | K71: Río Cuarto | L71: Córdoba | M71: Licenciatura en Administración Agraria | N71: Si | O71: 4 | P71: SI | Q71: Jueves 16 de noviembre 19.00h | R71: SI | S71: Córdoba
A72: =IFERROR(IFERROR(IF(VLOOKUP(D72,GR!G:G,1,FALSE)>0,"GRADO",""),IF(VLOOKUP(D72,PRE!G:G,1,FALSE)>0,"PREGRADO","")),"") -> GRADO | B72: Victor Gabriel | C72: Savignano | D72: 30918601 | E72: victorsavignano@hotmail.com | F72: 2473 | G72: 468547 | H72: Calle 43 N817 | I72: Mitre | J72: 2720 | K72: Colón | L72: Buenos Aires | M72: Abogacía | N72: Si | O72: 4 | P72: SI | Q72: Miércoles 15 de noviembre 19.00h | R72: SI | S72: Buenos Aires
A73: =IFERROR(IFERROR(IF(VLOOKUP(D73,GR!G:G,1,FALSE)>0,"GRADO",""),IF(VLOOKUP(D73,PRE!G:G,1,FALSE)>0,"PREGRADO","")),"") -> GRADO | B73: Javier | C73: Santanoceto | D73: 35212175 | E73: javier.santanoceto@gmail.com | F73: 351 | G73: 156326281 | H73: Obispo Oro 353 1 A | I73: Nueva Córdoba | J73: 5000 | K73: Córdoba Capital | L73: Córdoba | M73: Escribanía | N73: Si | O73: 3 | P73: SI | Q73: Jueves 16 de noviembre 10.30h | R73: SI | S73: Córdoba
A74: =IFERROR(IFERROR(IF(VLOOKUP(D74,GR!G:G,1,FALSE)>0,"GRADO",""),IF(VLOOKUP(D74,PRE!G:G,1,FALSE)>0,"PREGRADO","")),"") -> GRADO | B74: Romina Gisele | C74: Gimera | D74: 32137364 | E74: Rogimera@hotmail.com | F74: 2901 | G74: 524464 | H74: Barrio Mirador del Olivia casa 32 | I74: Mirador del olivia | J74: 9410 | K74: Ushuaia | L74: Tierra del Fuego, Antártida e Isla del Atlántico Sur | M74: Escribanía | N74: Si | O74: 4 | P74: SI | Q74: Jueves 16 de noviembre 10.30h | R74: SI | S74: Tierra Del Fuego
A75: =IFERROR(IFERROR(IF(VLOOKUP(D75,GR!G:G,1,FALSE)>0,"GRADO",""),IF(VLOOKUP(D75,PRE!G:G,1,FALSE)>0,"PREGRADO","")),"") -> GRADO | B75: Flavia Noemi | C75: Funes | D75: 33893789 | E75: Flavianfunes@gmail.com | F75: 351 | G75: 155185186 | H75: Av padre Mariani 436 | I75: Las rosas | J75: 5105 | K75: Villa allende | L75: Córdoba | M75: Contador Público | N75: Si | O75: 4 | P75: SI | Q75: Jueves 16 de noviembre 10.30h | R75: SI | S75: Córdoba
A76: =IFERROR(IFERROR(IF(VLOOKUP(D76,GR!G:G,1,FALSE)>0,"GRADO",""),IF(VLOOKUP(D76,PRE!G:G,1,FALSE)>0,"PREGRADO","")),"") -> GRADO | B76: Agustin Ignacio | C76: aquilano | D76: 30339844 | E76: agustinaquilano@gmail.com | F76: 291 | G76: 155104946 | H76: angel brunel 1053 duplex 3 | I76: pedro pico | J76: 8000 | K76: BAHIA BLANCA | L76: Buenos Aires | M76: Licenciatura en Administración | N76: Si | O76: 4 | P76: NO | Q76: Jueves 16 de noviembre 19.00h | R76: SI | S76: Buenos Aires
A77: =IFERROR(IFERROR(IF(VLOOKUP(D77,GR!G:G,1,FALSE)>0,"GRADO",""),IF(VLOOKUP(D77,PRE!G:G,1,FALSE)>0,"PREGRADO","")),"") -> GRADO | B77: Noelia Mariana | C77: Rodeiro | D77: 31668609 | E77: Nmrodeiro@hotmail.com | F77: 351 | G77: 2105904 | H77: Humberto primo 3035 | I77: Alto alberdi | J77: 5003 | K77: Córdoba | L77: Córdoba | M77: Escribanía | N77: Si | O77: 4 | P77: SI | Q77: Jueves 16 de noviembre 10.30h | R77: SI | S77: Córdoba
A78: =IFERROR(IFERROR(IF(VLOOKUP(D78,GR!G:G,1,FALSE)>0,"GRADO",""),IF(VLOOKUP(D78,PRE!G:G,1,FALSE)>0,"PREGRADO","")),"") -> GRADO | B78: Paulo | C78: Delfino | D78: 35672268 | E78: pauloodelfino@gmail.com | F78: 358 | G78: 5606166 | H78: Saturnino Segurola 2141 | I78: Banda Norte | J78: 5800 | K78: Río Cuarto | L78: Córdoba | M78: Licenciatura en Administración Agraria | N78: Si | O78: 4 | P78: SI | Q78: Jueves 16 de noviembre 19.00h | R78: SI | S78: Córdoba
A79: =IFERROR(IFERROR(IF(VLOOKUP(D79,GR!G:G,1,FALSE)>0,"GRADO",""),IF(VLOOKUP(D79,PRE!G:G,1,FALSE)>0,"PREGRADO","")),"") -> GRADO | B79: Natalia | C79: Monutti | D79: 25651492 | E79: Nati.monutti@Gmail.com | F79: 351 | G79: 157668251 | H79: Laprida 53 | I79: Nueva Cordoba | J79: 5000 | K79: Cordoba | L79: Córdoba | M79: Licenciatura en Psicología | N79: Si | O79: 4 | P79: SI | Q79: Jueves 16 de noviembre 19.00h | R79: SI | S79: Córdoba
A80: =IFERROR(IFERROR(IF(VLOOKUP(D80,GR!G:G,1,FALSE)>0,"GRADO",""),IF(VLOOKUP(D80,PRE!G:G,1,FALSE)>0,"PREGRADO","")),"") -> GRADO | B80: Omar Enrique | C80: Chardin Vizioli | D80: 13976892 | E80: ochardin@gmail.com | F80: 11 | G80: 35728706 | H80: Colón 519 | I80: Temperley | J80: 1834 | K80: Lomas de Zamora | L80: Buenos Aires | M80: Abogacía | N80: Si | O80: 4 | P80: SI | Q80: Miércoles 15 de noviembre 19.00h | R80: SI | S80: Buenos Aires
A81: =IFERROR(IFERROR(IF(VLOOKUP(D81,GR!G:G,1,FALSE)>0,"GRADO",""),IF(VLOOKUP(D81,PRE!G:G,1,FALSE)>0,"PREGRADO","")),"") -> GRADO | B81: María Pilar | C81: Favre | D81: 36133201 | E81: Pilifavre@hotmail.com | F81: 358 | G81: 156544143 | H81: Calle 9 782 | I81: Golf | J81: 5800 | K81: Río cuarto | L81: Córdoba | M81: Abogacía | N81: Si | O81: 4 | P81: SI | Q81: Miércoles 15 de noviembre 19.00h | R81: SI | S81: Córdoba
A82: =IFERROR(IFERROR(IF(VLOOKUP(D82,GR!G:G,1,FALSE)>0,"GRADO",""),IF(VLOOKUP(D82,PRE!G:G,1,FALSE)>0,"PREGRADO","")),"") -> GRADO | B82: Alberto César Manqueo | C82: Manqueo | D82: 17238956 | E82: safmagri1@hotmail.com | F82: 299 | G82: 154703353 | H82: Los Perales 2170 | I82: Confluencia | J82: 8300 | K82: Neuquén | L82: Neuquén | M82: Licenciatura En Educación - Ciclo | N82: Si | O82: 4 | P82: SI | Q82: Jueves 16 de noviembre 19.00h | R82: SI | S82: Neuquén
A83: =IFERROR(IFERROR(IF(VLOOKUP(D83,GR!G:G,1,FALSE)>0,"GRADO",""),IF(VLOOKUP(D83,PRE!G:G,1,FALSE)>0,"PREGRADO","")),"") -> GRADO | B83: Sandra Estefania | C83: ALVAREZ | D83: 32794938 | E83: Sandra2148@hotmail.com | F83: 351 | G83: 152462418 | H83: Corro 467 piso 6 B | I83: centro | J83: 5000 | K83: cordoba | L83: Córdoba | M83: Escribanía | N83: Si | O83: 4 | P83: NO | Q83: Jueves 16 de noviembre 10.30h | R83: SI | S83: Córdoba
A84: =IFERROR(IFERROR(IF(VLOOKUP(D84,GR!G:G,1,FALSE)>0,"GRADO",""),IF(VLOOKUP(D84,PRE!G:G,1,FALSE)>0,"PREGRADO","")),"") -> GRADO | B84: Julia | C84: Erramouspe | D84: 32925957 | E84: Julia.erramouspe@hotmail.com | F84: 351 | G84: 153719796 | H84: Independencia 533 | I84: Nueva Córdoba | J84: 5000 | K84: Córdoba | L84: Córdoba | M84: Licenciatura en Psicología | N84: Si | O84: 4 | Q84: Jueves 16 de noviembre 19.00h | R84: NO | S84: Córdoba
A85: =IFERROR(IFERROR(IF(VLOOKUP(D85,GR!G:G,1,FALSE)>0,"GRADO",""),IF(VLOOKUP(D85,PRE!G:G,1,FALSE)>0,"PREGRADO","")),"") -> GRADO | B85: Horacio Damian | C85: Martinez Lopez | D85: 26213496 | E85: hdm-03@hotmail.com | F85: 351 | G85: 155090812 | H85: Boyle 5893 casa 8 | I85: Villa Belgrano | J85: 5021 | K85: Córdoba | L85: Córdoba | M85: Abogacía | N85: Si | O85: 4 | P85: NO | Q85: Miércoles 15 de noviembre 19.00h | R85: SI | S85: Córdoba
A86: =IFERROR(IFERROR(IF(VLOOKUP(D86,GR!G:G,1,FALSE)>0,"GRADO",""),IF(VLOOKUP(D86,PRE!G:G,1,FALSE)>0,"PREGRADO","")),"") -> GRADO | B86: Melisa | C86: Ruatta | D86: 37488914 | E86: meliruatta_11@hotmail.com | F86: 358 | G86: 155091709 | H86: Juan b busto 326 | I86: .. | J86: 5805 | K86: Carnerillo | L86: Córdoba | M86: Abogacía | N86: Si | O86: 4 | P86: SI | Q86: Miércoles 15 de noviembre 19.00h | R86: SI | S86: Córdoba
A87: =IFERROR(IFERROR(IF(VLOOKUP(D87,GR!G:G,1,FALSE)>0,"GRADO",""),IF(VLOOKUP(D87,PRE!G:G,1,FALSE)>0,"PREGRADO","")),"") -> GRADO | B87: GONZALO | C87: JAUREGUIALZO | D87: 16652689 | E87: jaureguialzogon@gmail.com | F87: 3468 | G87: 15408077 | H87: 25 de Mayo 445 | I87: SUR | J87: 2645 | K87: CORRAL DE BUSTOS | L87: Córdoba | M87: Escribanía | N87: Si | O87: 1 | P87: NO | Q87: Jueves 16 de noviembre 10.30h | R87: SI | S87: Córdoba
A88: =IFERROR(IFERROR(IF(VLOOKUP(D88,GR!G:G,1,FALSE)>0,"GRADO",""),IF(VLOOKUP(D88,PRE!G:G,1,FALSE)>0,"PREGRADO","")),"") -> GRADO | B88: Marina Laura | C88: González | D88: 36185909 | E88: marinagonzalez-@hotmail.com | F88: 351 | G88: 158002163 | H88: Obispo Salguero 732 8 A | I88: Nueva Córdoba | J88: 5000 | K88: Córdoba | L88: Córdoba | M88: Contador Público | N88: Si | O88: 4 | P88: NO | Q88: Jueves 16 de noviembre 10.30h | R88: SI | S88: Córdoba
A89: =IFERROR(IFERROR(IF(VLOOKUP(D89,GR!G:G,1,FALSE)>0,"GRADO",""),IF(VLOOKUP(D89,PRE!G:G,1,FALSE)>0,"PREGRADO","")),"") -> GRADO | B89: Marta Rita | C89: Mazzuchi | D89: 30583880 | E89: martamazzuchi@hotmail.com | F89: 3521 | G89: 416335 | H89: Alberdi 134 | I89: Obras Sanitarias | J89: 5200 | K89: Dean Funes | L89: Córdoba | M89: Contador Público | N89: Si | O89: 4 | P89: NO | Q89: Jueves 16 de noviembre 10.30h | R89: SI | S89: Córdoba
A90: =IFERROR(IFERROR(IF(VLOOKUP(D90,GR!G:G,1,FALSE)>0,"GRADO",""),IF(VLOOKUP(D90,PRE!G:G,1,FALSE)>0,"PREGRADO","")),"") -> GRADO | B90: Vanesa | C90: Gomez | D90: 29238571 | E90: vanines81@hotmail.com | F90: 2302 | G90: 15-502191 | H90: Las Heras 199 | I90: Villa Elvina | J90: 6300 | K90: Santa rosa | L90: La Pampa | M90: Abogacía | N90: Si | O90: 4 | Q90: Miércoles 15 de noviembre 19.00h | R90: NO | S90: La Pampa
A91: =IFERROR(IFERROR(IF(VLOOKUP(D91,GR!G:G,1,FALSE)>0,"GRADO",""),IF(VLOOKUP(D91,PRE!G:G,1,FALSE)>0,"PREGRADO","")),"") -> GRADO | B91: Sabrina Giselle | C91: CUIS | D91: 32146862 | E91: sabricuis@live.com.ar | F91: 3329 | G91: 510979 | H91: ANASTASI 980 | I91: BARADERO | J91: 2942 | K91: BARADERO | L91: Buenos Aires | M91: Contador Público | N91: Si | O91: 4 | P91: NO | Q91: Jueves 16 de noviembre 10.30h | R91: SI | S91: Buenos Aires
A92: =IFERROR(IFERROR(IF(VLOOKUP(D92,GR!G:G,1,FALSE)>0,"GRADO",""),IF(VLOOKUP(D92,PRE!G:G,1,FALSE)>0,"PREGRADO","")),"") -> GRADO | B92: ELIDA ELVIRA | C92: CORZÓN | D92: 16399813 | E92: eli_novo@hotmail.com | F92: 11 | G92: 59758987 | H92: Alsina 1740 | I92: San Fernando | J92: 1646 | K92: San Fernando | L92: Buenos Aires | M92: Abogacía | N92: Si | O92: 1 | P92: NO | Q92: Miércoles 15 de noviembre 19.00h | R92: SI | S92: Buenos Aires
A93: =IFERROR(IFERROR(IF(VLOOKUP(D93,GR!G:G,1,FALSE)>0,"GRADO",""),IF(VLOOKUP(D93,PRE!G:G,1,FALSE)>0,"PREGRADO","")),"") -> GRADO | B93: Horacio Joel | C93: Monsello | D93: 33323880 | E93: HORACIOMONSELLO@HOTMAIL.COM | F93: 353 | G93: 15417617 | H93: Santiago del estero | I93: Lamadrid | J93: 5900 | K93: Villa Maria | L93: Córdoba | M93: Contador Público | N93: Si | O93: 4 | Q93: Jueves 16 de noviembre 10.30h | R93: NO | S93: Córdoba
A94: =IFERROR(IFERROR(IF(VLOOKUP(D94,GR!G:G,1,FALSE)>0,"GRADO",""),IF(VLOOKUP(D94,PRE!G:G,1,FALSE)>0,"PREGRADO","")),"") -> GRADO | B94: Maria gracia | C94: Visconti | D94: 31623773 | E94: Cra.visconti@hotmail.com | F94: 3533 | G94: 15409721 | H94: Lage weskamp 183 | I94: Centro | J94: 5913 | K94: Pozo del molle | L94: Córdoba | M94: Abogacía | N94: Si | O94: 4 | P94: SI | Q94: Miércoles 15 de noviembre 19.00h | R94: SI | S94: Córdoba
A95: =IFERROR(IFERROR(IF(VLOOKUP(D95,GR!G:G,1,FALSE)>0,"GRADO",""),IF(VLOOKUP(D95,PRE!G:G,1,FALSE)>0,"PREGRADO","")),"") -> GRADO | B95: Marina del Carmen | C95: Alessandretti | D95: 35045281 | E95: Marina_alessandretti2@hotmail.com | F95: 3584 | G95: 15598420 | H95: General paz 388 | I95: Centro | J95: 2670 | K95: La Carlota | L95: Córdoba | M95: Abogacía | N95: Si | O95: 4 | P95: SI | Q95: Miércoles 15 de noviembre 19.00h | R95: SI | S95: Córdoba
A96: =IFERROR(IFERROR(IF(VLOOKUP(D96,GR!G:G,1,FALSE)>0,"GRADO",""),IF(VLOOKUP(D96,PRE!G:G,1,FALSE)>0,"PREGRADO","")),"") -> GRADO | B96: Silvia Amalia | C96: Peralta | D96: 17891397 | E96: silviaperalta3@gmail.com | F96: 3804 | G96: 4661944 | H96: Chibchas 2465 | I96: Facundo quiroga | J96: 5300 | K96: La rioja | L96: La Rioja | M96: Abogacía | N96: Si | O96: 4 | P96: SI | Q96: Miércoles 15 de noviembre 19.00h | R96: SI | S96: La Rioja
A97: =IFERROR(IFERROR(IF(VLOOKUP(D97,GR!G:G,1,FALSE)>0,"GRADO",""),IF(VLOOKUP(D97,PRE!G:G,1,FALSE)>0,"PREGRADO","")),"") -> GRADO | B97: Paula Florencia | C97: Gomez | D97: 34218959 | E97: paulagomezbernachea@hotmail.com | F97: 3571 | G97: 614791 | H97: Obispo Trejo 951 - 7 A | I97: Nueva Córdoba | J97: 5000 | K97: Córdoba | L97: Córdoba | M97: Abogacía | N97: Si | O97: 4 | P97: SI | Q97: Miércoles 15 de noviembre 19.00h | R97: SI | S97: Córdoba
A98: =IFERROR(IFERROR(IF(VLOOKUP(D98,GR!G:G,1,FALSE)>0,"GRADO",""),IF(VLOOKUP(D98,PRE!G:G,1,FALSE)>0,"PREGRADO","")),"") -> GRADO | B98: Juan Ignacio | C98: Rodriguez | D98: 35525661 | E98: rodriguezjuanignacio90@gmail.com | F98: 351 | G98: 155057831 | H98: José Otero 936 | I98: Urca | J98: 5009 | K98: Cordoba capital | L98: Córdoba | M98: Abogacía | N98: Si | O98: 3 | P98: NO | Q98: Miércoles 15 de noviembre 19.00h | R98: SI | S98: Córdoba
A99: =IFERROR(IFERROR(IF(VLOOKUP(D99,GR!G:G,1,FALSE)>0,"GRADO",""),IF(VLOOKUP(D99,PRE!G:G,1,FALSE)>0,"PREGRADO","")),"") -> GRADO | B99: SOFIA | C99: LUQUE | D99: 33592464 | E99: sofialuque33@hotmail.com | F99: 353 | G99: 156568165 | H99: LAS HERAS 2246 | I99: SAN JUAN BAUTISTA | J99: 5900 | K99: VILLA MARIA | L99: Córdoba | M99: Abogacía | N99: Si | O99: 4 | P99: SI | Q99: Miércoles 15 de noviembre 19.00h | R99: SI | S99: Córdoba
A100: =IFERROR(IFERROR(IF(VLOOKUP(D100,GR!G:G,1,FALSE)>0,"GRADO",""),IF(VLOOKUP(D100,PRE!G:G,1,FALSE)>0,"PREGRADO","")),"") -> GRADO | B100: CECILIA | C100: BEDINO | D100: 30850348 | E100: ceciliabedino20@hotmail.com | F100: 3385 | G100: 15681185 | H100: ITALIA 179 | I100: SUR | J100: 6132 | K100: GENERAL LEVALLE | L100: Córdoba | M100: Contador Público | N100: Si | O100: 3 | P100: SI | Q100: Jueves 16 de noviembre 10.30h | R100: SI | S100: Córdoba
A101: =IFERROR(IFERROR(IF(VLOOKUP(D101,GR!G:G,1,FALSE)>0,"GRADO",""),IF(VLOOKUP(D101,PRE!G:G,1,FALSE)>0,"PREGRADO","")),"") -> GRADO | B101: florencia Lucía | C101: Pietribiasi | D101: 33510538 | E101: florpietri@hotmail.com | F101: 351 | G101: 152717051 | H101: Poeta Lugones 422 9C | I101: Nueva Cordoba | J101: 5000 | K101: Córdoba | L101: Córdoba | M101: Licenciatura en Diseño De Indumentaria y Textil | N101: Si | O101: 4 | P101: NO | Q101: Jueves 16 de noviembre 19.00h | R101: SI | S101: Córdoba
A102: =IFERROR(IFERROR(IF(VLOOKUP(D102,GR!G:G,1,FALSE)>0,"GRADO",""),IF(VLOOKUP(D102,PRE!G:G,1,FALSE)>0,"PREGRADO","")),"") -> GRADO | B102: MARIA EUGENIA | C102: BARONETTO | D102: 30971219 | E102: euge_bm@hotmail.com | F102: 3576 | G102: 473116 | H102: miguel ferrero 215 | I102: - | J102: 2435 | K102: la tordilla | L102: Córdoba | M102: Abogacía | N102: Si | O102: 4 | P102: SI | Q102: Miércoles 15 de noviembre 19.00h | R102: SI | S102: Córdoba
A103: =IFERROR(IFERROR(IF(VLOOKUP(D103,GR!G:G,1,FALSE)>0,"GRADO",""),IF(VLOOKUP(D103,PRE!G:G,1,FALSE)>0,"PREGRADO","")),"") -> GRADO | B103: Paula Cinthia | C103: Gallero | D103: 32933208 | E103: paug_cba1987@hotmail.com | F103: 351 | G103: 152354691 | H103: Jujuy 8. 2c | I103: Centro | J103: 5000 | K103: Córdoba | L103: Córdoba | M103: Abogacía | N103: Si | O103: 4 | P103: SI | Q103: Miércoles 15 de noviembre 19.00h | R103: SI | S103: Córdoba
A104: =IFERROR(IFERROR(IF(VLOOKUP(D104,GR!G:G,1,FALSE)>0,"GRADO",""),IF(VLOOKUP(D104,PRE!G:G,1,FALSE)>0,"PREGRADO","")),"") -> GRADO | B104: Gabriela Maria | C104: Zorzon | D104: 36545773 | E104: gabi_qti@hotmail.com | F104: 3482 | G104: 15552799 | H104: Calle 8 nro. 532 | I104: Barrio Itati | J104: 3561 | K104: Avellaneda | L104: Santa Fe | M104: Abogacía | N104: Si | O104: 4 | P104: SI | Q104: Miércoles 15 de noviembre 19.00h | R104: SI | S104: Santa Fe
A105: =IFERROR(IFERROR(IF(VLOOKUP(D105,GR!G:G,1,FALSE)>0,"GRADO",""),IF(VLOOKUP(D105,PRE!G:G,1,FALSE)>0,"PREGRADO","")),"") -> GRADO | B105: Nicolas | C105: Reynoso | D105: 33599500 | E105: nico_reynoso@hotmail.com | F105: 351 | G105: 153291083 | H105: Independencia 4132 | I105: Los flores | J105: 4200 | K105: Santiago del estero | L105: Santiago del Estero | M105: Licenciatura en Administración | N105: Si | O105: 4 | P105: SI | Q105: Jueves 16 de noviembre 19.00h | R105: SI | S105: Santiago Del Estero
A106: =IFERROR(IFERROR(IF(VLOOKUP(D106,GR!G:G,1,FALSE)>0,"GRADO",""),IF(VLOOKUP(D106,PRE!G:G,1,FALSE)>0,"PREGRADO","")),"") -> GRADO | B106: Maria Constanza | C106: Bosio | D106: 34840141 | E106: mariaconstanzabosio@gmail.com | F106: 351 | G106: 153794825 | H106: Bv. san juan 782 11 B | I106: Observatorio | J106: 5006 | K106: Cordoba | L106: Córdoba | M106: Licenciatura en Relaciones Públicas e Institucionales | N106: Si | O106: 4 | P106: SI | Q106: Jueves 16 de noviembre 19.00h | R106: SI | S106: Córdoba
A107: =IFERROR(IFERROR(IF(VLOOKUP(D107,GR!G:G,1,FALSE)>0,"GRADO",""),IF(VLOOKUP(D107,PRE!G:G,1,FALSE)>0,"PREGRADO","")),"") -> GRADO | B107: Horacio Marcelo | C107: Frossasco | D107: 16857492 | E107: h.frossasco@gmail.com | F107: 353 | G107: 4240586 | H107: Monte olivia 300 | I107: Jardín del golf | J107: 5903 | K107: Villa Nueva | L107: Córdoba | M107: Escribanía | N107: Si | O107: 4 | P107: SI | Q107: Jueves 16 de noviembre 10.30h | R107: SI | S107: Córdoba
A108: =IFERROR(IFERROR(IF(VLOOKUP(D108,GR!G:G,1,FALSE)>0,"GRADO",""),IF(VLOOKUP(D108,PRE!G:G,1,FALSE)>0,"PREGRADO","")),"") -> GRADO | B108: Nicolás Gustavo | C108: Maluf Aguirre | D108: 28752133 | E108: nicolasmaluf81@hotmail.com | F108: 358 | G108: 156547556 | H108: Roque Sáenz Peña 1364 | I108: Roque Sáenz peña | J108: 5800 | K108: Río cuarto | L108: Córdoba | M108: Abogacía | N108: Si | O108: 4 | P108: SI | Q108: Miércoles 15 de noviembre 19.00h | R108: SI | S108: Córdoba
A109: =IFERROR(IFERROR(IF(VLOOKUP(D109,GR!G:G,1,FALSE)>0,"GRADO",""),IF(VLOOKUP(D109,PRE!G:G,1,FALSE)>0,"PREGRADO","")),"") -> GRADO | B109: ANTONELLA | C109: DE LUCA | D109: 37919148 | E109: ANTODELUCA.RH@GMAIL.COM | F109: 351 | G109: 155323777 | H109: ibarbal 752 torre II 4B (complejo cardinales) | I109: general paz | J109: 5000 | K109: CORDOBA | L109: Córdoba | M109: Licenciatura en Gestión De Recursos Humanos | N109: Si | O109: 4 | P109: NO | Q109: Jueves 16 de noviembre 19.00h | R109: SI | S109: Córdoba
A110: =IFERROR(IFERROR(IF(VLOOKUP(D110,GR!G:G,1,FALSE)>0,"GRADO",""),IF(VLOOKUP(D110,PRE!G:G,1,FALSE)>0,"PREGRADO","")),"") -> GRADO | B110: María Ines | C110: Biurrun | D110: 31960863 | E110: mariainesbiurrun@hotmail.com | F110: 341 | G110: 2604109 | H110: Montevideo 560 6a | I110: Centro | J110: 2009 | K110: Rosario | L110: Santa Fe | M110: Licenciatura en Diseño Gráfico | N110: Si | O110: 4 | P110: SI | Q110: Jueves 16 de noviembre 19.00h | R110: SI | S110: Santa Fe
A111: =IFERROR(IFERROR(IF(VLOOKUP(D111,GR!G:G,1,FALSE)>0,"GRADO",""),IF(VLOOKUP(D111,PRE!G:G,1,FALSE)>0,"PREGRADO","")),"") -> GRADO | B111: MARIA JOSE | C111: MENDIZABAL | D111: 27379928 | E111: mariajosem22@hotmail.com | F111: 2473 | G111: 448545 | H111: 20 n975 | I111: centro | J111: 2720 | K111: colon | L111: Buenos Aires | M111: Abogacía | N111: Si | O111: 4 | Q111: Miércoles 15 de noviembre 19.00h | R111: NO | S111: Buenos Aires
A112: =IFERROR(IFERROR(IF(VLOOKUP(D112,GR!G:G,1,FALSE)>0,"GRADO",""),IF(VLOOKUP(D112,PRE!G:G,1,FALSE)>0,"PREGRADO","")),"") -> GRADO | B112: Bárbara María | C112: Roca Babnik | D112: 34316296 | E112: barbararocab@gmail.com | F112: 531 | G112: 152596583 | H112: Ibarbalz N°752 - torre 2 - 12 D | I112: General Paz | J112: 5003 | K112: Cordoba | L112: Córdoba | M112: Escribanía | N112: Si | O112: 4 | Q112: Jueves 16 de noviembre 10.30h | R112: NO | S112: Córdoba
A113: =IFERROR(IFERROR(IF(VLOOKUP(D113,GR!G:G,1,FALSE)>0,"GRADO",""),IF(VLOOKUP(D113,PRE!G:G,1,FALSE)>0,"PREGRADO","")),"") -> GRADO | B113: Mónica Roxana | C113: Stendella | D113: 24367806 | E113: roxanasten@hotmail.com | F113: 351 | G113: 156222987 | H113: charcas 914 planta alta | I113: Pueyrredón | J113: 5000 | K113: Córdoba | L113: Córdoba | M113: Escribanía | N113: Si | O113: 4 | P113: SI | Q113: Jueves 16 de noviembre 10.30h | R113: SI | S113: Córdoba
A114: =IFERROR(IFERROR(IF(VLOOKUP(D114,GR!G:G,1,FALSE)>0,"GRADO",""),IF(VLOOKUP(D114,PRE!G:G,1,FALSE)>0,"PREGRADO","")),"") -> GRADO | B114: victoria eliana | C114: dopico spampinato | D114: 28462817 | E114: victoriadopico@hotmail.com | F114: 3547 | G114: 675719 | H114: ruta E 96 | I114: Falda del Carmen | J114: 5187 | K114: Falda del Carmen | L114: Córdoba | M114: Abogacía | N114: Si | O114: 4 | Q114: Miércoles 15 de noviembre 19.00h | R114: NO | S114: Córdoba
A115: =IFERROR(IFERROR(IF(VLOOKUP(D115,GR!G:G,1,FALSE)>0,"GRADO",""),IF(VLOOKUP(D115,PRE!G:G,1,FALSE)>0,"PREGRADO","")),"") -> GRADO | B115: María Emilia | C115: Nigro | D115: 37374514 | E115: eminigro@hotmail.com | F115: 351 | G115: 6636483 | H115: Caucel 4185 | I115: Jardines del jockey | J115: 5016 | K115: Cordoba | L115: Córdoba | M115: Licenciatura en Relaciones Públicas e Institucionales | N115: Si | O115: 4 | P115: SI | Q115: Jueves 16 de noviembre 19.00h | R115: SI | S115: Córdoba
A116: =IFERROR(IFERROR(IF(VLOOKUP(D116,GR!G:G,1,FALSE)>0,"GRADO",""),IF(VLOOKUP(D116,PRE!G:G,1,FALSE)>0,"PREGRADO","")),"") -> GRADO | B116: SILVINA | C116: FESSIA | D116: 33602459 | E116: silvinaf88@hotmail.com | F116: 3573 | G116: 413468 | H116: San juan 834 | I116: Centro | J116: 5967 | K116: Luque | L116: Córdoba | M116: Contador Público | N116: Si | O116: 4 | P116: SI | Q116: Jueves 16 de noviembre 10.30h | R116: SI | S116: Córdoba
A117: =IFERROR(IFERROR(IF(VLOOKUP(D117,GR!G:G,1,FALSE)>0,"GRADO",""),IF(VLOOKUP(D117,PRE!G:G,1,FALSE)>0,"PREGRADO","")),"") -> GRADO | B117: Juan Cruz | C117: Fanin | D117: 35964258 | E117: juanxfanin@hotmail.com | F117: 3537 | G117: 651559 | H117: Juan Jose Paso 436 | I117: Parque | J117: 2553 | K117: Justiniano Posse | L117: Córdoba | M117: Escribanía | N117: Si | O117: 4 | P117: SI | Q117: Jueves 16 de noviembre 10.30h | R117: SI | S117: Córdoba
A118: =IFERROR(IFERROR(IF(VLOOKUP(D118,GR!G:G,1,FALSE)>0,"GRADO",""),IF(VLOOKUP(D118,PRE!G:G,1,FALSE)>0,"PREGRADO","")),"") -> GRADO | B118: SILVINA VALERIA | C118: GIRON | D118: 27252164 | E118: gironsilvina@gmail.com | F118: 351 | G118: 152617986 | H118: OVIDIO LAGOS 262, PISO 3, DPTO. C | I118: GENERAL PAZ | J118: 5000 | K118: CORDOBA CAPITAL | L118: Córdoba | M118: Abogacía | N118: Si | O118: 4 | P118: SI | Q118: Miércoles 15 de noviembre 19.00h | R118: SI | S118: Córdoba
A119: =IFERROR(IFERROR(IF(VLOOKUP(D119,GR!G:G,1,FALSE)>0,"GRADO",""),IF(VLOOKUP(D119,PRE!G:G,1,FALSE)>0,"PREGRADO","")),"") -> GRADO | B119: Lilian | C119: Lallana | D119: 35144518 | E119: lilianlallana@hotmail.com | F119: 351 | G119: 8097402 | H119: Héroes de vilcapugio 1886 | I119: Yofre norte | J119: 5012 | K119: Córdoba | L119: Córdoba | M119: Abogacía | N119: Si | O119: 4 | P119: SI | Q119: Miércoles 15 de noviembre 19.00h | R119: SI | S119: Córdoba
A120: =IFERROR(IFERROR(IF(VLOOKUP(D120,GR!G:G,1,FALSE)>0,"GRADO",""),IF(VLOOKUP(D120,PRE!G:G,1,FALSE)>0,"PREGRADO","")),"") -> GRADO | B120: CRISTIAN JAVIER | C120: PODIO | D120: 33198937 | E120: cristianpodio@hotmail.com | F120: 3573 | G120: 15401829 | H120: SAN JUAN 834 | I120: CENTRO | J120: 5967 | K120: LUQUE | L120: Córdoba | M120: Contador Público | N120: Si | O120: 4 | P120: SI | Q120: Jueves 16 de noviembre 10.30h | R120: SI | S120: Córdoba
A121: =IFERROR(IFERROR(IF(VLOOKUP(D121,GR!G:G,1,FALSE)>0,"GRADO",""),IF(VLOOKUP(D121,PRE!G:G,1,FALSE)>0,"PREGRADO","")),"") -> GRADO | B121: Solange Magali | C121: Córdoba | D121: 30329179 | E121: solangecordoba@hotmail.com | F121: 351 | G121: 156568349 | H121: pasaje willington 3751 | I121: los pinos | J121: 5012 | K121: cordoba | L121: Córdoba | M121: Escribanía | N121: Si | O121: 2 | P121: SI | Q121: Jueves 16 de noviembre 10.30h | R121: SI | S121: Córdoba
A122: =IFERROR(IFERROR(IF(VLOOKUP(D122,GR!G:G,1,FALSE)>0,"GRADO",""),IF(VLOOKUP(D122,PRE!G:G,1,FALSE)>0,"PREGRADO","")),"") -> GRADO | B122: Martin Alonso | C122: Gamboa | D122: 29897420 | E122: martingamboa1@hotmail.com | F122: 351 | G122: 158074988 | H122: angelo de peredo 122, piso 8 Dpto D | I122: nueva cordoba | J122: 5000 | K122: cordoba | L122: Córdoba | M122: Contador Público | N122: Si | O122: 4 | P122: NO | Q122: Jueves 16 de noviembre 10.30h | R122: SI | S122: Córdoba
A123: =IFERROR(IFERROR(IF(VLOOKUP(D123,GR!G:G,1,FALSE)>0,"GRADO",""),IF(VLOOKUP(D123,PRE!G:G,1,FALSE)>0,"PREGRADO","")),"") -> GRADO | B123: maria Roberta | C123: farias | D123: 33149823 | E123: mariafarias5@hotmail.com | F123: 385 | G123: 156973915 | H123: Mza10 lote 23 | I123: Saint germain | J123: 4200 | K123: Santiago del estero | L123: Santiago del Estero | M123: Abogacía | N123: Si | O123: 4 | P123: SI | Q123: Miércoles 15 de noviembre 19.00h | R123: SI | S123: Santiago Del Estero
A124: =IFERROR(IFERROR(IF(VLOOKUP(D124,GR!G:G,1,FALSE)>0,"GRADO",""),IF(VLOOKUP(D124,PRE!G:G,1,FALSE)>0,"PREGRADO","")),"") -> GRADO | B124: MARIA VIRGINIA | C124: GUGGER | D124: 36880150 | E124: virgigugger_033@hotmail.com | F124: 3521 | G124: 15403482 | H124: Alberdi 341 | I124: Obras Sanitarias | J124: 5200 | K124: Deán Funes | L124: Córdoba | M124: Contador Público | N124: Si | O124: 4 | P124: SI | Q124: Jueves 16 de noviembre 10.30h | R124: SI | S124: Córdoba
A125: =IFERROR(IFERROR(IF(VLOOKUP(D125,GR!G:G,1,FALSE)>0,"GRADO",""),IF(VLOOKUP(D125,PRE!G:G,1,FALSE)>0,"PREGRADO","")),"") -> GRADO | B125: Natalia Mercedes | C125: Ibarra Theiler | D125: 27445033 | E125: ibarranatalia@hotmail.com | F125: 351 | G125: 1562828 | H125: Av. Santa Fe 615, Torre 1, PB C -Torres del Rio- | I125: Providencia | J125: 5000 | K125: Córdoba | L125: Córdoba | M125: Abogacía | N125: Si | O125: 4 | Q125: Miércoles 15 de noviembre 19.00h | R125: NO | S125: Córdoba
A126: =IFERROR(IFERROR(IF(VLOOKUP(D126,GR!G:G,1,FALSE)>0,"GRADO",""),IF(VLOOKUP(D126,PRE!G:G,1,FALSE)>0,"PREGRADO","")),"") -> GRADO | B126: MARIA MARTA | C126: SACCHETTA | D126: 32000701 | E126: sacchettamaria@hotmail.com | F126: 351 | G126: 2038680 | H126: obispo salguero 585 8B | I126: nueva cordoba | J126: 5000 | K126: cordoba | L126: Córdoba | M126: Contador Público | N126: Si | O126: 4 | P126: SI | Q126: Jueves 16 de noviembre 10.30h | R126: SI | S126: Córdoba
A127: =IFERROR(IFERROR(IF(VLOOKUP(D127,GR!G:G,1,FALSE)>0,"GRADO",""),IF(VLOOKUP(D127,PRE!G:G,1,FALSE)>0,"PREGRADO","")),"") -> GRADO | B127: Antonella | C127: Olocco | D127: 35531535 | E127: oloccoanto@gmail.com | F127: 351 | G127: 157471724 | H127: Ibarbalz 752 Torre 2 Piso 17 Dpto 9 | I127: Gral Paz | J127: 5000 | K127: Córdoba Capital | L127: Córdoba | M127: Licenciatura en Diseño Gráfico | N127: Si | O127: 4 | P127: NO | Q127: Jueves 16 de noviembre 19.00h | R127: SI | S127: Córdoba
A128: =IFERROR(IFERROR(IF(VLOOKUP(D128,GR!G:G,1,FALSE)>0,"GRADO",""),IF(VLOOKUP(D128,PRE!G:G,1,FALSE)>0,"PREGRADO","")),"") -> GRADO | B128: Florencia Daniela | C128: Córdoba | D128: 37313156 | E128: floor-c.25@hotmail.com | F128: 385 | G128: 154845162 | H128: peatonal 2 n° 668 | I128: Colón | J128: 4200 | K128: Santiago Del Estero | L128: Santiago del Estero | M128: Abogacía | N128: Si | O128: 4 | P128: NO | Q128: Miércoles 15 de noviembre 19.00h | R128: SI | S128: Santiago Del Estero
A129: =IFERROR(IFERROR(IF(VLOOKUP(D129,GR!G:G,1,FALSE)>0,"GRADO",""),IF(VLOOKUP(D129,PRE!G:G,1,FALSE)>0,"PREGRADO","")),"") -> GRADO | B129: Jorge Enrique | C129: Horianski | D129: 11917527 | E129: online3355@gmail.com | F129: 2954 | G129: 15551323 | H129: Márquez Este 1289 | I129: Colonia Escalante | J129: 6300 | K129: Santa Rosa | L129: La Pampa | M129: Abogacía | N129: Si | O129: 4 | P129: SI | Q129: Miércoles 15 de noviembre 19.00h | R129: SI | S129: La Pampa
A130: =IFERROR(IFERROR(IF(VLOOKUP(D130,GR!G:G,1,FALSE)>0,"GRADO",""),IF(VLOOKUP(D130,PRE!G:G,1,FALSE)>0,"PREGRADO","")),"") -> GRADO | B130: José Santiago | C130: Castilla Guillén | D130: 30091196 | E130: onlytiago@hotmail.com | F130: 264 | G130: 156707768 | H130: Av. Mendoza 1061 sur | I130: villa Cenobia Bustos | J130: 5425 | K130: Rawson | L130: San Juan | M130: Escribanía | N130: Si | O130: 4 | P130: SI | Q130: Jueves 16 de noviembre 10.30h | R130: SI | S130: San Juan
A131: =IFERROR(IFERROR(IF(VLOOKUP(D131,GR!G:G,1,FALSE)>0,"GRADO",""),IF(VLOOKUP(D131,PRE!G:G,1,FALSE)>0,"PREGRADO","")),"") -> GRADO | B131: Zaira Yazmín | C131: Sarsur | D131: 37821509 | E131: yazminsarsur@hotmail.com | F131: 351 | G131: 153070503 | H131: Ruta 5 - Km 18. | I131: Campos del Virrey, Lote 40. | J131: 5110 | K131: Cordoba | L131: Córdoba | M131: Licenciatura en Comercialización | N131: Si | O131: 4 | P131: SI | Q131: Jueves 16 de noviembre 19.00h | R131: SI | S131: Córdoba
A132: =IFERROR(IFERROR(IF(VLOOKUP(D132,GR!G:G,1,FALSE)>0,"GRADO",""),IF(VLOOKUP(D132,PRE!G:G,1,FALSE)>0,"PREGRADO","")),"") -> GRADO | B132: Natalia Carolina | C132: Budassi | D132: 28345057 | E132: nataliabudassi@hotmail.com | F132: 351 | G132: 153998172 | H132: Sierras de comechingones 511 | I132: San isidro | J132: 5105 | K132: Villa Allende | L132: Córdoba | M132: Abogacía | N132: Si | O132: 4 | P132: SI | Q132: =VLOOKUP(M132,colación,3,FALSE) -> Miércoles 15 de noviembre 19.00h | R132: =IF(P132="","NO","SI") -> SI | S132: =VLOOKUP(L132,provincia,2,FALSE) -> Córdoba
A133: =IFERROR(IFERROR(IF(VLOOKUP(D133,GR!G:G,1,FALSE)>0,"GRADO",""),IF(VLOOKUP(D133,PRE!G:G,1,FALSE)>0,"PREGRADO","")),"") -> GRADO | B133: Valeria Fernanda | C133: Diaz | D133: 29939670 | E133: valefd@hotmail.com | F133: 3549 | G133: 534071 | H133: Ruta A 175 km 12 | I133: El brete | J133: 5281 | K133: El brete | L133: Córdoba | M133: Escribanía | N133: Si | O133: 4 | P133: NO | Q133: Jueves 16 de noviembre 10.30h | R133: SI | S133: Córdoba
A134: =IFERROR(IFERROR(IF(VLOOKUP(D134,GR!G:G,1,FALSE)>0,"GRADO",""),IF(VLOOKUP(D134,PRE!G:G,1,FALSE)>0,"PREGRADO","")),"") -> GRADO | B134: Emiliano | C134: Ocampo Baccola | D134: 32926838 | E134: emilianob87@yahoo.com.ar | F134: 351 | G134: 157597284 | H134: Crisol 65 6b | I134: Nueva cordoba | J134: 5000 | K134: Cordoba | L134: Córdoba | M134: Abogacía | N134: Si | O134: 4 | P134: SI | Q134: Miércoles 15 de noviembre 19.00h | R134: SI | S134: Córdoba
A135: =IFERROR(IFERROR(IF(VLOOKUP(D135,GR!G:G,1,FALSE)>0,"GRADO",""),IF(VLOOKUP(D135,PRE!G:G,1,FALSE)>0,"PREGRADO","")),"") -> GRADO | B135: Maria Agustina | C135: Flores | D135: 36745558 | E135: aggus.f@hotmail.com | F135: 351 | G135: 157531539 | H135: Calle Sargento Mario Cisneros Manzana 14 casa 21 | I135: Ampliación Los Robles | J135: 5003 | K135: Córdoba | L135: Córdoba | M135: Contador Público | N135: Si | O135: 4 | P135: SI | Q135: Jueves 16 de noviembre 10.30h | R135: SI | S135: Córdoba
A136: =IFERROR(IFERROR(IF(VLOOKUP(D136,GR!G:G,1,FALSE)>0,"GRADO",""),IF(VLOOKUP(D136,PRE!G:G,1,FALSE)>0,"PREGRADO","")),"") -> GRADO | B136: Luciana carla | C136: Gozzi | D136: 33526813 | E136: lu_gozz@hotmail.com | F136: 2302 | G136: 504648 | H136: calle 26 n 1684 | I136: Este | J136: 6360 | K136: General pico | L136: La Pampa | M136: Abogacía | N136: Si | O136: 3 | P136: NO | Q136: Miércoles 15 de noviembre 19.00h | R136: SI | S136: La Pampa
A137: =IFERROR(IFERROR(IF(VLOOKUP(D137,GR!G:G,1,FALSE)>0,"GRADO",""),IF(VLOOKUP(D137,PRE!G:G,1,FALSE)>0,"PREGRADO","")),"") -> GRADO | B137: Damián | C137: Racca Tonelli | D137: 37403966 | E137: damianracca.4@hotmail.com | F137: 3467 | G137: 15448509 | H137: 24 de septiembre 1739 dpto 1 B | I137: General Paz | J137: 5000 | K137: Ciudad de Córdoba | L137: Córdoba | M137: Abogacía | N137: Si | O137: 4 | P137: NO | Q137: Miércoles 15 de noviembre 19.00h | R137: SI | S137: Córdoba
A138: =IFERROR(IFERROR(IF(VLOOKUP(D138,GR!G:G,1,FALSE)>0,"GRADO",""),IF(VLOOKUP(D138,PRE!G:G,1,FALSE)>0,"PREGRADO","")),"") -> GRADO | B138: Cintia Romina del Valle | C138: Zavalla | D138: 33320717 | E138: abzavalla@gmail.com | F138: 351 | G138: 152001058 | H138: Calingasta 5417 | I138: Primero de Mayo | J138: 5006 | K138: Córdoba | L138: Córdoba | M138: Escribanía | N138: Si | O138: 4 | P138: SI | Q138: Jueves 16 de noviembre 10.30h | R138: SI | S138: Córdoba
A139: =IFERROR(IFERROR(IF(VLOOKUP(D139,GR!G:G,1,FALSE)>0,"GRADO",""),IF(VLOOKUP(D139,PRE!G:G,1,FALSE)>0,"PREGRADO","")),"") -> GRADO | B139: Andrea Mariana | C139: Maristany | D139: 30502655 | E139: marianamaristany_legge@hotmail.com | F139: 351 | G139: 155058738 | H139: RODRIGUEZ PEÑA2163 | I139: Alta Córdoba | J139: 5000 | K139: CORDOBA | L139: Córdoba | M139: Abogacía | N139: Si | O139: 4 | Q139: Miércoles 15 de noviembre 19.00h | R139: NO | S139: Córdoba
A140: =IFERROR(IFERROR(IF(VLOOKUP(D140,GR!G:G,1,FALSE)>0,"GRADO",""),IF(VLOOKUP(D140,PRE!G:G,1,FALSE)>0,"PREGRADO","")),"") -> GRADO | B140: Marianella Susana | C140: Granado | D140: 34200306 | E140: marianella_granado@hotmail.com | F140: 351 | G140: 156837904 | H140: Rondeau 548, 2C | I140: Nueva Cordoba | J140: 5000 | K140: Cordoba | L140: Córdoba | M140: Abogacía | N140: Si | O140: 4 | P140: SI | Q140: Miércoles 15 de noviembre 19.00h | R140: SI | S140: Córdoba
A141: =IFERROR(IFERROR(IF(VLOOKUP(D141,GR!G:G,1,FALSE)>0,"GRADO",""),IF(VLOOKUP(D141,PRE!G:G,1,FALSE)>0,"PREGRADO","")),"") -> GRADO | B141: Joana Elisabet | C141: Osuna | D141: 36730958 | E141: joanaeosuna@hotmail.com | F141: 3544 | G141: 406851 | H141: Avenida Argentina 250 | I141: Los Olivos | J141: 5870 | K141: Villa Dolores | L141: Córdoba | M141: Abogacía | N141: Si | O141: 4 | P141: SI | Q141: Miércoles 15 de noviembre 19.00h | R141: SI | S141: Córdoba
A142: =IFERROR(IFERROR(IF(VLOOKUP(D142,GR!G:G,1,FALSE)>0,"GRADO",""),IF(VLOOKUP(D142,PRE!G:G,1,FALSE)>0,"PREGRADO","")),"") -> GRADO | B142: Macarena | C142: Fabrissin | D142: 37452558 | E142: macafabrissin@hotmail.com | F142: 3482 | G142: 15625130 | H142: General Paz 3693 | I142: Panamericano | J142: 5000 | K142: Córdoba | L142: Córdoba | M142: Licenciatura en Gestión De Recursos Humanos | N142: Si | O142: 4 | P142: SI | Q142: Jueves 16 de noviembre 19.00h | R142: SI | S142: Córdoba
A143: =IFERROR(IFERROR(IF(VLOOKUP(D143,GR!G:G,1,FALSE)>0,"GRADO",""),IF(VLOOKUP(D143,PRE!G:G,1,FALSE)>0,"PREGRADO","")),"") -> GRADO | B143: VERONICA CECILIA | C143: FERNANDEZ | D143: 23244472 | E143: luygre@yahoo.com.ar | F143: 11 | G143: 15 33089164 | H143: RAWSON 687 | I143: MERLO | J143: 1722 | K143: MERLO | L143: Buenos Aires | M143: Escribanía | N143: Si | O143: 4 | P143: SI | Q143: Jueves 16 de noviembre 10.30h | R143: SI | S143: Buenos Aires
A144: =IFERROR(IFERROR(IF(VLOOKUP(D144,GR!G:G,1,FALSE)>0,"GRADO",""),IF(VLOOKUP(D144,PRE!G:G,1,FALSE)>0,"PREGRADO","")),"") -> GRADO | B144: Nadia | C144: Chesani Rosas | D144: 31586672 | E144: Yayifem@hotmail.com | F144: 221 | G144: 5479279 | H144: 55 n 551 esquina 5 piso 7 depto 6 | I144: La plata | J144: 1900 | K144: La plata | L144: Buenos Aires | M144: Abogacía | N144: Si | O144: 4 | P144: SI | Q144: Miércoles 15 de noviembre 19.00h | R144: SI | S144: Buenos Aires
A145: =IFERROR(IFERROR(IF(VLOOKUP(D145,GR!G:G,1,FALSE)>0,"GRADO",""),IF(VLOOKUP(D145,PRE!G:G,1,FALSE)>0,"PREGRADO","")),"") -> GRADO | B145: María Constanza | C145: Campos Sierra | D145: 33270600 | E145: cocamposierra@gmail.com | F145: 351 | G145: 152473554 | H145: Victoriano Rodriguez 2046 | I145: Cerro de las Rosas | J145: 5009 | K145: Córdoba | L145: Córdoba | M145: Licenciatura en Psicología | N145: Si | O145: 4 | P145: SI | Q145: Jueves 16 de noviembre 19.00h | R145: SI | S145: Córdoba
A146: =IFERROR(IFERROR(IF(VLOOKUP(D146,GR!G:G,1,FALSE)>0,"GRADO",""),IF(VLOOKUP(D146,PRE!G:G,1,FALSE)>0,"PREGRADO","")),"") -> GRADO | B146: Patricio | C146: Nally | D146: 34289544 | E146: patricionally@gmail.com | F146: 351 | G146: 153709666 | H146: Saavedra Lamas 192 | I146: Los Gigantes | J146: 5000 | K146: Córdoba | L146: Córdoba | M146: Licenciatura en Administración | N146: Si | O146: 3 | P146: SI | Q146: Jueves 16 de noviembre 19.00h | R146: SI | S146: Córdoba
A147: =IFERROR(IFERROR(IF(VLOOKUP(D147,GR!G:G,1,FALSE)>0,"GRADO",""),IF(VLOOKUP(D147,PRE!G:G,1,FALSE)>0,"PREGRADO","")),"") -> GRADO | B147: Federico | C147: Augsburger | D147: 31889811 | E147: fede_voodoo@hotmail.com | F147: 351 | G147: 155572888 | H147: almirante brown 2359 | I147: rosedal | J147: 5010 | K147: cordoba | L147: Córdoba | M147: Abogacía | N147: Si | O147: 4 | P147: SI | Q147: Miércoles 15 de noviembre 19.00h | R147: SI | S147: Córdoba
A148: =IFERROR(IFERROR(IF(VLOOKUP(D148,GR!G:G,1,FALSE)>0,"GRADO",""),IF(VLOOKUP(D148,PRE!G:G,1,FALSE)>0,"PREGRADO","")),"") -> GRADO | B148: Sergio Hugo | C148: Tocalli | D148: 11919450 | E148: shtocalli@hotmail.com | F148: 351 | G148: 5175466 | H148: Rivadavia 717 | I148: Las Flores | J148: 2589 | K148: Monte Buey | L148: Córdoba | M148: Licenciatura en Relaciones Públicas e Institucionales | N148: Si | O148: 4 | P148: SI | Q148: Jueves 16 de noviembre 19.00h | R148: SI | S148: Córdoba
A149: =IFERROR(IFERROR(IF(VLOOKUP(D149,GR!G:G,1,FALSE)>0,"GRADO",""),IF(VLOOKUP(D149,PRE!G:G,1,FALSE)>0,"PREGRADO","")),"") -> GRADO | B149: Paola Fernanda | C149: Dupin | D149: 25141370 | E149: paoladupin@hotmail.com | F149: 351 | G149: 3574469 | H149: jose maria uriburu 435 | I149: San Martin | J149: 3600 | K149: formosa | L149: Formosa | M149: Licenciatura en Relaciones Públicas e Institucionales | N149: Si | O149: 4 | Q149: Jueves 16 de noviembre 19.00h | R149: NO | S149: Formosa
A150: =IFERROR(IFERROR(IF(VLOOKUP(D150,GR!G:G,1,FALSE)>0,"GRADO",""),IF(VLOOKUP(D150,PRE!G:G,1,FALSE)>0,"PREGRADO","")),"") -> GRADO | B150: Tomás | C150: Funes | D150: 35573791 | E150: tomas.funes@gmail.com | F150: 351 | G150: 155057185 | H150: Andres Maria Ampere 7669 | I150: Villa Belgrano | J150: 5147 | K150: Cordoba | L150: Córdoba | M150: Licenciatura en Comercio Internacional | N150: Si | O150: 4 | P150: SI | Q150: Jueves 16 de noviembre 19.00h | R150: SI | S150: Córdoba
A151: =IFERROR(IFERROR(IF(VLOOKUP(D151,GR!G:G,1,FALSE)>0,"GRADO",""),IF(VLOOKUP(D151,PRE!G:G,1,FALSE)>0,"PREGRADO","")),"") -> GRADO | B151: GRACIELA ALICIA | C151: SANGUINETTI | D151: 11672601 | E151: gracielasanguinetti1@hotmail.com | F151: 341 | G151: 156132070 | H151: Juan Jose PASO 7724 | I151: FISHERTON | J151: 2000 | K151: ROSARIO | L151: Santa Fe | M151: Contador Público | N151: Si | O151: 3 | P151: SI | Q151: Jueves 16 de noviembre 10.30h | R151: SI | S151: Santa Fe
A152: =IFERROR(IFERROR(IF(VLOOKUP(D152,GR!G:G,1,FALSE)>0,"GRADO",""),IF(VLOOKUP(D152,PRE!G:G,1,FALSE)>0,"PREGRADO","")),"") -> GRADO | B152: EMELI | C152: Ozcoidi | D152: 35109555 | E152: eozcoidi@hotmail.com | F152: 351 | G152: 153208900 | H152: JACINTO RÍOS 67 - 5C | I152: General Paz | J152: 5000 | K152: Córdoba | L152: Córdoba | M152: Licenciatura en Administración | N152: Si | O152: 4 | P152: SI | Q152: Jueves 16 de noviembre 19.00h | R152: SI | S152: Córdoba
A153: =IFERROR(IFERROR(IF(VLOOKUP(D153,GR!G:G,1,FALSE)>0,"GRADO",""),IF(VLOOKUP(D153,PRE!G:G,1,FALSE)>0,"PREGRADO","")),"") -> GRADO | B153: Roberto Adrián | C153: Novillo Tula | D153: 38106993 | E153: rant_94@hotmail.com | F153: 351 | G153: 155584505 | H153: Antonio Saenz 5271 | I153: Dean Funes | J153: 5123 | K153: Cordoba | L153: Córdoba | M153: Abogacía | N153: Si | O153: 3 | P153: SI | Q153: Miércoles 15 de noviembre 19.00h | R153: SI | S153: Córdoba
A154: =IFERROR(IFERROR(IF(VLOOKUP(D154,GR!G:G,1,FALSE)>0,"GRADO",""),IF(VLOOKUP(D154,PRE!G:G,1,FALSE)>0,"PREGRADO","")),"") -> GRADO | B154: Nicolás | C154: Rufeil | D154: 33599585 | E154: nicolasrufeil@hotmail.com | F154: 351 | G154: 156004794 | H154: Chacabuco 1104 | I154: Nueva córdoba | J154: 5000 | K154: Córdoba | L154: Córdoba | M154: Contador Público | N154: Si | O154: 3 | P154: SI | Q154: Jueves 16 de noviembre 10.30h | R154: SI | S154: Córdoba
A155: =IFERROR(IFERROR(IF(VLOOKUP(D155,GR!G:G,1,FALSE)>0,"GRADO",""),IF(VLOOKUP(D155,PRE!G:G,1,FALSE)>0,"PREGRADO","")),"") -> GRADO | B155: Flavia Valeria | C155: Encinas | D155: 32672091 | E155: flavale_02@hotmail.com | F155: 362 | G155: 4720393 | H155: Mz 24 Parcela 26 | I155: 60 viviendas | J155: 3505 | K155: Puerto Tirol | L155: Chaco | M155: Abogacía | N155: Si | O155: 4 | P155: NO | Q155: Miércoles 15 de noviembre 19.00h | R155: SI | S155: Chaco
A156: =IFERROR(IFERROR(IF(VLOOKUP(D156,GR!G:G,1,FALSE)>0,"GRADO",""),IF(VLOOKUP(D156,PRE!G:G,1,FALSE)>0,"PREGRADO","")),"") -> GRADO | B156: Jessica Denis | C156: Pastrello | D156: 35669806 | E156: jessipastrello@hotmail.com | F156: 351 | G156: 155720490 | H156: 9 de julio 5204 | I156: San Ignacio | J156: 5003 | K156: Córdoba | L156: Córdoba | M156: Contador Público | N156: Si | O156: 4 | P156: SI | Q156: Jueves 16 de noviembre 10.30h | R156: SI | S156: Córdoba
A157: =IFERROR(IFERROR(IF(VLOOKUP(D157,GR!G:G,1,FALSE)>0,"GRADO",""),IF(VLOOKUP(D157,PRE!G:G,1,FALSE)>0,"PREGRADO","")),"") -> GRADO | B157: Maria Florencia | C157: Muñoz | D157: 35279195 | E157: mariaflorenciam4@hotmail.com | F157: 351 | G157: 7722626 | H157: 25 de Mayo 1644 | I157: General Paz | J157: 5000 | K157: Córdoba | L157: Córdoba | M157: Contador Público | N157: Si | O157: 4 | P157: SI | Q157: Jueves 16 de noviembre 10.30h | R157: SI | S157: Córdoba
A158: =IFERROR(IFERROR(IF(VLOOKUP(D158,GR!G:G,1,FALSE)>0,"GRADO",""),IF(VLOOKUP(D158,PRE!G:G,1,FALSE)>0,"PREGRADO","")),"") -> GRADO | B158: Juliana | C158: Bustos | D158: 33264479 | E158: julianabustosg@gmail.com | F158: 358 | G158: 154252470 | H158: Lavalle 122 | I158: Macrocentro | J158: 5805 | K158: Las Higueras | L158: Córdoba | M158: Contador Público | N158: Si | O158: 4 | P158: SI | Q158: Jueves 16 de noviembre 10.30h | R158: SI | S158: Córdoba
A159: =IFERROR(IFERROR(IF(VLOOKUP(D159,GR!G:G,1,FALSE)>0,"GRADO",""),IF(VLOOKUP(D159,PRE!G:G,1,FALSE)>0,"PREGRADO","")),"") -> GRADO | B159: Silvana Soledad | C159: Cerda | D159: 29033702 | E159: silcer21@hotmail.com | F159: 299 | G159: 154138947 | H159: Quili Malal y Milun | I159: Primeros Pobladores | J159: 8306 | K159: San Patricio del Chañar | L159: Neuquén | M159: Abogacía | N159: Si | O159: 4 | P159: SI | Q159: Miércoles 15 de noviembre 19.00h | R159: SI | S159: Neuquén
A160: =IFERROR(IFERROR(IF(VLOOKUP(D160,GR!G:G,1,FALSE)>0,"GRADO",""),IF(VLOOKUP(D160,PRE!G:G,1,FALSE)>0,"PREGRADO","")),"") -> GRADO | B160: Pamela Soledad | C160: Conte | D160: 31243457 | E160: tetu457_pam@hotmail.com | F160: 3562 | G160: 15438972 | H160: Mariano Moreno N° 168 | I160: Centro | J160: 2347 | K160: San Guillermo | L160: Santa Fe | M160: Licenciatura en Comercio Internacional | N160: Si | O160: 4 | P160: SI | Q160: Jueves 16 de noviembre 19.00h | R160: SI | S160: Santa Fe
A161: =IFERROR(IFERROR(IF(VLOOKUP(D161,GR!G:G,1,FALSE)>0,"GRADO",""),IF(VLOOKUP(D161,PRE!G:G,1,FALSE)>0,"PREGRADO","")),"") -> GRADO | B161: Lorena Ruth | C161: González | D161: 23764413 | E161: Loreley2109@hotmail.com | F161: 351 | G161: 3276355 | H161: José orzali 7039 | I161: Don Bosco | J161: 5003 | K161: Córdoba | L161: Córdoba | M161: Abogacía | N161: Si | O161: 4 | P161: SI | Q161: Miércoles 15 de noviembre 19.00h | R161: SI | S161: Córdoba
A162: =IFERROR(IFERROR(IF(VLOOKUP(D162,GR!G:G,1,FALSE)>0,"GRADO",""),IF(VLOOKUP(D162,PRE!G:G,1,FALSE)>0,"PREGRADO","")),"") -> GRADO | B162: Georgina Mariel | C162: Destefanis | D162: 30848808 | E162: georgidestefanis@hotmail.com | F162: 3401 | G162: 512895 | H162: 9 de julio 98 | I162: centro | J162: 5940 | K162: Las Varillas | L162: Córdoba | M162: Escribanía | N162: Si | O162: 4 | P162: NO | Q162: Jueves 16 de noviembre 10.30h | R162: SI | S162: Córdoba
A163: =IFERROR(IFERROR(IF(VLOOKUP(D163,GR!G:G,1,FALSE)>0,"GRADO",""),IF(VLOOKUP(D163,PRE!G:G,1,FALSE)>0,"PREGRADO","")),"") -> GRADO | B163: Isabel del Pilar | C163: Sivadon | D163: 21753957 | E163: isabeldsivadon@hotmail.com | F163: 351 | G163: 3150017 | H163: Cnel. Pringles 91 piso 5° B | I163: General Paz | J163: 5004 | K163: Córdoba | L163: Córdoba | M163: Abogacía | N163: Si | O163: 4 | P163: SI | Q163: Miércoles 15 de noviembre 19.00h | R163: SI | S163: Córdoba
A164: =IFERROR(IFERROR(IF(VLOOKUP(D164,GR!G:G,1,FALSE)>0,"GRADO",""),IF(VLOOKUP(D164,PRE!G:G,1,FALSE)>0,"PREGRADO","")),"") -> GRADO | B164: walter daniel antonio | C164: palavecino | D164: 16460127 | E164: danielpalavecino@hotmail.es | F164: 3865 | G164: 536645 | H164: General Paz 1020 | I164: San Martin | J164: 4152 | K164: Aguilares | L164: Tucumán | M164: Abogacía | N164: Si | O164: 4 | P164: SI | Q164: Miércoles 15 de noviembre 19.00h | R164: SI | S164: Tucumán
A165: =IFERROR(IFERROR(IF(VLOOKUP(D165,GR!G:G,1,FALSE)>0,"GRADO",""),IF(VLOOKUP(D165,PRE!G:G,1,FALSE)>0,"PREGRADO","")),"") -> GRADO | B165: Melisa | C165: Eujanian | D165: 34288642 | E165: melisa.eujanian@gmail.com | F165: 351 | G165: 155171856 | H165: Pasaje tomas oliver 50 piso 9 | I165: Centro | J165: 5000 | K165: Cordoba | L165: Córdoba | M165: Licenciatura en Gestión De Recursos Humanos | N165: Si | O165: 3 | P165: SI | Q165: Jueves 16 de noviembre 19.00h | R165: SI | S165: Córdoba
A166: =IFERROR(IFERROR(IF(VLOOKUP(D166,GR!G:G,1,FALSE)>0,"GRADO",""),IF(VLOOKUP(D166,PRE!G:G,1,FALSE)>0,"PREGRADO","")),"") -> GRADO | B166: Natalia Carolina | C166: Budassi | D166: 28345057 | E166: nataliabudassi@hotmail.com | F166: 351 | G166: 153998172 | H166: Sierras de comechingones 511 | I166: San Isidro | J166: 5105 | K166: Villa allende | L166: Córdoba | M166: Abogacía | N166: Si | O166: 4 | P166: SI | Q166: Miércoles 15 de noviembre 19.00h | R166: SI | S166: Córdoba
A167: =IFERROR(IFERROR(IF(VLOOKUP(D167,GR!G:G,1,FALSE)>0,"GRADO",""),IF(VLOOKUP(D167,PRE!G:G,1,FALSE)>0,"PREGRADO","")),"") -> GRADO | B167: Heliana Emilse | C167: Martinez | D167: 31666990 | E167: Martinezheliana@hotmail.com | F167: 351 | G167: 7502548 | H167: Marco del pont 2348 | I167: Ampliación América | J167: 5012 | K167: Córdoba | L167: Córdoba | M167: Abogacía | N167: Si | O167: 4 | P167: SI | Q167: Miércoles 15 de noviembre 19.00h | R167: SI | S167: Córdoba
A168: =IFERROR(IFERROR(IF(VLOOKUP(D168,GR!G:G,1,FALSE)>0,"GRADO",""),IF(VLOOKUP(D168,PRE!G:G,1,FALSE)>0,"PREGRADO","")),"") -> GRADO | B168: Lucrecia Victoria | C168: Paris | D168: 29182923 | E168: lucrecia.v.paris@gmail.com | F168: 353 | G168: 154086740 | H168: Mendoza 644 - Planta Baja - Dpto. 1 | I168: Centro | J168: 5900 | K168: Villa María | L168: Córdoba | M168: Abogacía | N168: Si | O168: 4 | P168: SI | Q168: Miércoles 15 de noviembre 19.00h | R168: SI | S168: Córdoba
A169: =IFERROR(IFERROR(IF(VLOOKUP(D169,GR!G:G,1,FALSE)>0,"GRADO",""),IF(VLOOKUP(D169,PRE!G:G,1,FALSE)>0,"PREGRADO","")),"") -> GRADO | B169: Lucia Romina | C169: Diaz Bozza | D169: 36534398 | E169: luchi_14_1@hotmail.com | F169: 3863 | G169: 692368 | H169: Bv Alvear 445 | I169: Centro | J169: 5900 | K169: Villa Maria | L169: Córdoba | M169: Abogacía | N169: Si | O169: 4 | P169: SI | Q169: Miércoles 15 de noviembre 19.00h | R169: SI | S169: Córdoba
A170: =IFERROR(IFERROR(IF(VLOOKUP(D170,GR!G:G,1,FALSE)>0,"GRADO",""),IF(VLOOKUP(D170,PRE!G:G,1,FALSE)>0,"PREGRADO","")),"") ->  | B170: Emanuel | C170: Fernandez | D170: 37187209 | E170: emanuelillo.fer@gmail.com | F170: 3826 | G170: 413973 | H170: Cordoba | I170: nueva cordoba | J170: 5000 | K170: Cordoba | L170: Córdoba | M170: Ingeniería en Software | Q170: Jueves 16 de noviembre 19.00h | R170: NO | S170: Córdoba
A171: =IFERROR(IFERROR(IF(VLOOKUP(D171,GR!G:G,1,FALSE)>0,"GRADO",""),IF(VLOOKUP(D171,PRE!G:G,1,FALSE)>0,"PREGRADO","")),"") -> GRADO | B171: Ana laura | C171: Eliazarian | D171: 34011352 | E171: anitaeliazarian@hotmail.com | F171: 388 | G171: 155846736 | H171: Arenales 1121 | I171: Centro | J171: 4600 | K171: San Salvador de jujuy | L171: Jujuy | M171: Abogacía | N171: Si | O171: 4 | P171: SI | Q171: Miércoles 15 de noviembre 19.00h | R171: SI | S171: Jujuy
A172: =IFERROR(IFERROR(IF(VLOOKUP(D172,GR!G:G,1,FALSE)>0,"GRADO",""),IF(VLOOKUP(D172,PRE!G:G,1,FALSE)>0,"PREGRADO","")),"") -> GRADO | B172: María Belén | C172: Araya | D172: 27345034 | E172: mbelaraya@gmail.com | F172: 351 | G172: 2893453 | H172: caseros 4250 bloc 12 depto 8 complejo | I172: terrezas del cerro | J172: 5001 | K172: capital | L172: Córdoba | M172: Contador Público | N172: Si | O172: 4 | P172: NO | Q172: Jueves 16 de noviembre 10.30h | R172: SI | S172: Córdoba
A173: =IFERROR(IFERROR(IF(VLOOKUP(D173,GR!G:G,1,FALSE)>0,"GRADO",""),IF(VLOOKUP(D173,PRE!G:G,1,FALSE)>0,"PREGRADO","")),"") -> GRADO | B173: erica | C173: villega | D173: 28570687 | E173: ericavillega@hotmail.com | F173: 264 | G173: 4507493 | H173: Huaco este 530 | I173: san juan | J173: 5400 | K173: Capital | L173: San Juan | M173: Contador Público | N173: Si | O173: 4 | P173: NO | Q173: Jueves 16 de noviembre 10.30h | R173: SI | S173: San Juan
A174: =IFERROR(IFERROR(IF(VLOOKUP(D174,GR!G:G,1,FALSE)>0,"GRADO",""),IF(VLOOKUP(D174,PRE!G:G,1,FALSE)>0,"PREGRADO","")),"") -> GRADO | B174: flavia | C174: mensato | D174: 24615089 | E174: Flavia_mensato@hotmail.com | F174: 351 | G174: 7643364 | H174: publica mzna 107 lote 16 | I174: los aromas | J174: 5003 | K174: cordoba | L174: Córdoba | M174: Contador Público | N174: Si | O174: 4 | P174: NO | Q174: Jueves 16 de noviembre 10.30h | R174: SI | S174: Córdoba
A175: =IFERROR(IFERROR(IF(VLOOKUP(D175,GR!G:G,1,FALSE)>0,"GRADO",""),IF(VLOOKUP(D175,PRE!G:G,1,FALSE)>0,"PREGRADO","")),"") -> GRADO | B175: Lucía | C175: Di Muzio | D175: 35104051 | E175: luciadimuzio@hotmai.com | F175: 351 | G175: 2455395 | H175: Río negro 436 | I175: Paso de los andes | J175: 5000 | K175: Córdoba | L175: Córdoba | M175: Escribanía | N175: Si | O175: 4 | P175: SI | Q175: Jueves 16 de noviembre 10.30h | R175: SI | S175: Córdoba
A176: =IFERROR(IFERROR(IF(VLOOKUP(D176,GR!G:G,1,FALSE)>0,"GRADO",""),IF(VLOOKUP(D176,PRE!G:G,1,FALSE)>0,"PREGRADO","")),"") -> GRADO | B176: Ernesto Javier | C176: Olivera Mas | D176: 29911600 | E176: ernestolivera@hotmail.com | F176: 264 | G176: 154146783 | H176: Los Álamos 399 (Norte) | I176: Natania 4 | J176: 5400 | K176: Rivadavia | L176: San Juan | M176: Licenciatura en Administración Agraria | N176: Si | O176: 4 | P176: SI | Q176: Jueves 16 de noviembre 19.00h | R176: SI | S176: San Juan
A177: =IFERROR(IFERROR(IF(VLOOKUP(D177,GR!G:G,1,FALSE)>0,"GRADO",""),IF(VLOOKUP(D177,PRE!G:G,1,FALSE)>0,"PREGRADO","")),"") -> GRADO | B177: Gervasio | C177: Lazo | D177: 34605198 | E177: gervalazo@hotmail.com | F177: 351 | G177: 153646355 | H177: Crisol 266 7 C | I177: Nueva Córdoba | J177: 5000 | K177: Córdoba | L177: Córdoba | M177: Licenciatura en Relaciones Públicas e Institucionales | N177: Si | O177: 4 | P177: SI | Q177: Jueves 16 de noviembre 19.00h | R177: SI | S177: Córdoba
A178: =IFERROR(IFERROR(IF(VLOOKUP(D178,GR!G:G,1,FALSE)>0,"GRADO",""),IF(VLOOKUP(D178,PRE!G:G,1,FALSE)>0,"PREGRADO","")),"") -> GRADO | B178: Paula florencia | C178: Brizuela borchert | D178: 37302330 | E178: brizuela704@hotmail.com | F178: 3876 | G178: 15452685 | H178: Catamarca 468 | I178: Granadero diaz | J178: 4440 | K178: Metan | L178: Salta | M178: Abogacía | N178: Si | O178: 4 | P178: SI | Q178: Miércoles 15 de noviembre 19.00h | R178: SI | S178: Salta
A179: =IFERROR(IFERROR(IF(VLOOKUP(D179,GR!G:G,1,FALSE)>0,"GRADO",""),IF(VLOOKUP(D179,PRE!G:G,1,FALSE)>0,"PREGRADO","")),"") -> GRADO | B179: Diego Alejandro | C179: Reyes | D179: 32623971 | E179: dr_t86@hotmail.com | F179: 351 | G179: 155911991 | H179: Pública A 3037 | I179: Ampliación San Carlos | J179: 5014 | K179: Córdoba | L179: Córdoba | M179: Abogacía | N179: Si | O179: 4 | P179: SI | Q179: Miércoles 15 de noviembre 19.00h | R179: SI | S179: Córdoba
A180: =IFERROR(IFERROR(IF(VLOOKUP(D180,GR!G:G,1,FALSE)>0,"GRADO",""),IF(VLOOKUP(D180,PRE!G:G,1,FALSE)>0,"PREGRADO","")),"") -> GRADO | B180: Daiana Gisela | C180: Montenegro | D180: 34241756 | E180: daiana28m@hotmail.com | F180: 385 | G180: 155955363 | H180: Saravia 354 | I180: Gral Bustos | J180: 5001 | K180: Cordoba | L180: Córdoba | M180: Contador Público | N180: Si | O180: 4 | P180: SI | Q180: Jueves 16 de noviembre 10.30h | R180: SI | S180: Córdoba
A181: =IFERROR(IFERROR(IF(VLOOKUP(D181,GR!G:G,1,FALSE)>0,"GRADO",""),IF(VLOOKUP(D181,PRE!G:G,1,FALSE)>0,"PREGRADO","")),"") -> GRADO | B181: Santiago Antonio | C181: Perdigues Lijaretzky | D181: 32004512 | E181: santiago_perdigues@hotmail.com | F181: 351 | G181: 2474584 | H181: Santa Fe 654 6 B | I181: Providencia | J181: 5000 | K181: Córdoba Capital | L181: Córdoba | M181: Abogacía | N181: Si | O181: 4 | P181: NO | Q181: Miércoles 15 de noviembre 19.00h | R181: SI | S181: Córdoba
A182: =IFERROR(IFERROR(IF(VLOOKUP(D182,GR!G:G,1,FALSE)>0,"GRADO",""),IF(VLOOKUP(D182,PRE!G:G,1,FALSE)>0,"PREGRADO","")),"") -> GRADO | B182: ANGELINA VICTORIA CORINA | C182: JAIMEZ LUCCHETTA | D182: 32680785 | E182: ANGELINA_DINTINO@HOTMAIL.COM | F182: 358 | G182: 154838313 | H182: PAUNERO 550 DEPTO 3 A | I182: CENTRO | J182: 5800 | K182: RIO CUARTO | L182: Córdoba | M182: Abogacía | N182: Si | O182: 4 | P182: NO | Q182: Miércoles 15 de noviembre 19.00h | R182: SI | S182: Córdoba
A183: =IFERROR(IFERROR(IF(VLOOKUP(D183,GR!G:G,1,FALSE)>0,"GRADO",""),IF(VLOOKUP(D183,PRE!G:G,1,FALSE)>0,"PREGRADO","")),"") -> GRADO | B183: Emilse | C183: Yong | D183: 31669468 | E183: emy1816@hotmail.com | F183: 351 | G183: 152391953 | H183: Francisco Compañy 2236 | I183: Santa clara de. Asis | J183: 5012 | K183: Córdoba | L183: Córdoba | M183: Licenciatura en Diseño De Indumentaria y Textil | N183: Si | O183: 4 | P183: SI | Q183: Jueves 16 de noviembre 19.00h | R183: SI | S183: Córdoba
A184: =IFERROR(IFERROR(IF(VLOOKUP(D184,GR!G:G,1,FALSE)>0,"GRADO",""),IF(VLOOKUP(D184,PRE!G:G,1,FALSE)>0,"PREGRADO","")),"") -> GRADO | B184: Corina Betty Iris | C184: Quevedo Gómez | D184: 33287895 | E184: betty_q@hotmail.com | F184: 261 | G184: 156297991 | H184: Rondeau 571 4°A | I184: Nueva Cordoba | J184: 5000 | K184: Capital | L184: Córdoba | M184: Abogacía | N184: Si | O184: 4 | P184: SI | Q184: Miércoles 15 de noviembre 19.00h | R184: SI | S184: Córdoba
A185: =IFERROR(IFERROR(IF(VLOOKUP(D185,GR!G:G,1,FALSE)>0,"GRADO",""),IF(VLOOKUP(D185,PRE!G:G,1,FALSE)>0,"PREGRADO","")),"") -> GRADO | B185: VERONICA ANDREA | C185: SOSA | D185: 30771175 | E185: avera_sosa07@hotmail.com | F185: 358 | G185: 154166942 | H185: Estado de Israel 1150 3 Piso Departamento 1 | I185: Mojica | J185: 5800 | K185: Rio Cuarto | L185: Córdoba | M185: Abogacía | N185: Si | O185: 4 | P185: SI | Q185: Miércoles 15 de noviembre 19.00h | R185: SI | S185: Córdoba
A186: =IFERROR(IFERROR(IF(VLOOKUP(D186,GR!G:G,1,FALSE)>0,"GRADO",""),IF(VLOOKUP(D186,PRE!G:G,1,FALSE)>0,"PREGRADO","")),"") -> GRADO | B186: Carolina Micaela | C186: Pastrello | D186: 26469382 | E186: kamipa87@hotmail.com | F186: 3537 | G186: 15652994 | H186: 1º de Mayo 497 | I186: Sarmiento | J186: 2550 | K186: Bell Ville | L186: Córdoba | M186: Licenciatura En Educación - Ciclo | N186: Si | O186: 4 | P186: SI | Q186: Jueves 16 de noviembre 19.00h | R186: SI | S186: Córdoba
A187: =IFERROR(IFERROR(IF(VLOOKUP(D187,GR!G:G,1,FALSE)>0,"GRADO",""),IF(VLOOKUP(D187,PRE!G:G,1,FALSE)>0,"PREGRADO","")),"") -> GRADO | B187: Pamela Cecilia | C187: PRESTIPINO | D187: 31976498 | E187: pamelaprestipino@outlook.com | F187: 3537 | G187: 15656544 | H187: PASAJE MARCELA DE MENDOZA 850 | I187: RESIDENCIAL | J187: 2550 | K187: BELL VILLE | L187: Córdoba | M187: Contador Público | N187: Si | O187: 4 | P187: SI | Q187: Jueves 16 de noviembre 10.30h | R187: SI | S187: Córdoba
A188: =IFERROR(IFERROR(IF(VLOOKUP(D188,GR!G:G,1,FALSE)>0,"GRADO",""),IF(VLOOKUP(D188,PRE!G:G,1,FALSE)>0,"PREGRADO","")),"") -> GRADO | B188: ANDREA YANINA | C188: OCAMPO | D188: 33937425 | E188: andrea.ocampo@hotmail.com.ar | F188: 351 | G188: 3411840 | H188: OBISPO TREJO 719 | I188: Nueva Córdoba | J188: 5000 | K188: CORDOBA - CORDOBA CAPITAL | L188: Córdoba | M188: Abogacía | N188: Si | O188: 4 | Q188: Miércoles 15 de noviembre 19.00h | R188: NO | S188: Córdoba
A189: =IFERROR(IFERROR(IF(VLOOKUP(D189,GR!G:G,1,FALSE)>0,"GRADO",""),IF(VLOOKUP(D189,PRE!G:G,1,FALSE)>0,"PREGRADO","")),"") -> GRADO | B189: Cecilia Vanesa | C189: Lopez | D189: 34220493 | E189: ceciliavanesalopez@yahoo.com.ar | F189: 299 | G189: 154513207 | H189: Lacar y Epulafquen N°7 | I189: Parque Oeste | J189: 8322 | K189: Cutral Có | L189: Neuquén | M189: Escribanía | N189: Si | O189: 2 | P189: NO | Q189: Jueves 16 de noviembre 10.30h | R189: SI | S189: Neuquén
A190: =IFERROR(IFERROR(IF(VLOOKUP(D190,GR!G:G,1,FALSE)>0,"GRADO",""),IF(VLOOKUP(D190,PRE!G:G,1,FALSE)>0,"PREGRADO","")),"") -> GRADO | B190: Melisa | C190: Loza | D190: 35472195 | E190: meli_stefi@hotmail.com | F190: 3546 | G190: 513055 | H190: Av Fza Aerea 706 | I190: Altos de Loma Hermosa | J190: 5196 | K190: Santa Rosa de Calamuchita | L190: Córdoba | M190: Licenciatura en Gestión De Recursos Humanos | N190: Si | O190: 4 | P190: SI | Q190: Jueves 16 de noviembre 19.00h | R190: SI | S190: Córdoba
A191: =IFERROR(IFERROR(IF(VLOOKUP(D191,GR!G:G,1,FALSE)>0,"GRADO",""),IF(VLOOKUP(D191,PRE!G:G,1,FALSE)>0,"PREGRADO","")),"") -> GRADO | B191: Marcela Florencia | C191: Canale | D191: 37732430 | E191: florcanale@hotmail.com.ar | F191: 351 | G191: 152485023 | H191: Dr. Luis Agote 2566 | I191: San Rafael | J191: 5010 | K191: Córdoba | L191: Córdoba | M191: Abogacía | N191: Si | O191: 4 | P191: SI | Q191: Miércoles 15 de noviembre 19.00h | R191: SI | S191: Córdoba
A192: =IFERROR(IFERROR(IF(VLOOKUP(D192,GR!G:G,1,FALSE)>0,"GRADO",""),IF(VLOOKUP(D192,PRE!G:G,1,FALSE)>0,"PREGRADO","")),"") -> GRADO | B192: Gustavo Alberto | C192: Bouvier | D192: 29991917 | E192: gusti_mav@hotmail.com | F192: 3496 | G192: 15548604 | H192: Colon 1155 | I192: Norte | J192: 3080 | K192: Esperanza | L192: Santa Fe | M192: Contador Público | N192: Si | O192: 4 | P192: SI | Q192: Jueves 16 de noviembre 10.30h | R192: SI | S192: Santa Fe
A193: =IFERROR(IFERROR(IF(VLOOKUP(D193,GR!G:G,1,FALSE)>0,"GRADO",""),IF(VLOOKUP(D193,PRE!G:G,1,FALSE)>0,"PREGRADO","")),"") -> GRADO | B193: Daniel Ignacio | C193: López | D193: 24147289 | E193: danielignaciolopez@hotmail.com | F193: 351 | G193: 155571693 | H193: Avenida Colon 36 piso 2 | I193: Centro | J193: 5000 | K193: Cordoba | L193: Córdoba | M193: Abogacía | N193: Si | O193: 4 | P193: NO | Q193: Miércoles 15 de noviembre 19.00h | R193: SI | S193: Córdoba
A194: =IFERROR(IFERROR(IF(VLOOKUP(D194,GR!G:G,1,FALSE)>0,"GRADO",""),IF(VLOOKUP(D194,PRE!G:G,1,FALSE)>0,"PREGRADO","")),"") -> GRADO | B194: Lionela Natalí | C194: Moriconi | D194: 34885432 | E194: liosuardi@hotmail.com | F194: 3562 | G194: 15507391 | H194: Almirante Brown 652 | I194: este | J194: 2349 | K194: Suardi | L194: Santa Fe | M194: Abogacía | N194: Si | O194: 4 | P194: SI | Q194: Miércoles 15 de noviembre 19.00h | R194: SI | S194: Santa Fe
A195: =IFERROR(IFERROR(IF(VLOOKUP(D195,GR!G:G,1,FALSE)>0,"GRADO",""),IF(VLOOKUP(D195,PRE!G:G,1,FALSE)>0,"PREGRADO","")),"") -> GRADO | B195: CARLOS DANIEL | C195: COLINO | D195: 30635271 | E195: rully_carlosdaniel@hotmail.com | F195: 351 | G195: 156323744 | H195: av renault 2046 | I195: santa isabel 1º secc | J195: 5017 | K195: cordoba | L195: Córdoba | M195: Abogacía | N195: Si | O195: 4 | P195: SI | Q195: Miércoles 15 de noviembre 19.00h | R195: SI | S195: Córdoba
A196: =IFERROR(IFERROR(IF(VLOOKUP(D196,GR!G:G,1,FALSE)>0,"GRADO",""),IF(VLOOKUP(D196,PRE!G:G,1,FALSE)>0,"PREGRADO","")),"") -> GRADO | B196: Zulma Edith | C196: Montenegro | D196: 14665844 | E196: Zulmamontenegro@hotmail.com | F196: 3537 | G196: 15591719 | H196: Hipólito Irigoyen 940 | I196: Centro | J196: 2550 | K196: Bell ville | L196: Córdoba | M196: Abogacía | N196: Si | O196: 4 | P196: NO | Q196: =VLOOKUP(M196,colación,3,FALSE) -> Miércoles 15 de noviembre 19.00h | R196: =IF(P196="","NO","SI") -> SI | S196: =VLOOKUP(L196,provincia,2,FALSE) -> Córdoba
A197: =IFERROR(IFERROR(IF(VLOOKUP(D197,GR!G:G,1,FALSE)>0,"GRADO",""),IF(VLOOKUP(D197,PRE!G:G,1,FALSE)>0,"PREGRADO","")),"") -> GRADO | B197: Maria Belen | C197: Cordoba | D197: 31593316 | E197: belucop@hotmail.com | F197: 351 | G197: 157911019 | H197: 9 de Julio Nº 1066 | I197: Central Norte | J197: 5133 | K197: Santa Rosa de Rio Primero | L197: Córdoba | M197: Abogacía | N197: Si | O197: 4 | P197: SI | Q197: Miércoles 15 de noviembre 19.00h | R197: SI | S197: Córdoba
A198: =IFERROR(IFERROR(IF(VLOOKUP(D198,GR!G:G,1,FALSE)>0,"GRADO",""),IF(VLOOKUP(D198,PRE!G:G,1,FALSE)>0,"PREGRADO","")),"") -> GRADO | B198: Elena Elizabeth | C198: Carrizo | D198: 30157468 | E198: elenaelizabethcarrizo@hotmail.com | F198: 351 | G198: 155179905 | H198: Av 24 de septiembre 1739 torre 2, piso 4 C | I198: Gral paz | J198: 5000 | K198: Córdoba | L198: Córdoba | M198: Escribanía | N198: Si | O198: 4 | P198: NO | Q198: Jueves 16 de noviembre 10.30h | R198: SI | S198: Córdoba
A199: =IFERROR(IFERROR(IF(VLOOKUP(D199,GR!G:G,1,FALSE)>0,"GRADO",""),IF(VLOOKUP(D199,PRE!G:G,1,FALSE)>0,"PREGRADO","")),"") -> GRADO | B199: María Silvina | C199: Garcia | D199: 29826004 | E199: Msilvinags@hotmail.com | F199: 385 | G199: 4825599 | H199: Leandro Alem 541 | I199: Alberdi | J199: 4200 | K199: Santiago del estero | L199: Santiago del Estero | M199: Abogacía | N199: Si | O199: 4 | P199: NO | Q199: Miércoles 15 de noviembre 19.00h | R199: SI | S199: Santiago Del Estero
A200: =IFERROR(IFERROR(IF(VLOOKUP(D200,GR!G:G,1,FALSE)>0,"GRADO",""),IF(VLOOKUP(D200,PRE!G:G,1,FALSE)>0,"PREGRADO","")),"") -> GRADO | B200: DAYANA LOURDES | C200: ROMERO | D200: 38003210 | E200: Dayii15@hotmail.com | F200: 351 | G200: 153485643 | H200: FULTON 6623 | I200: ITUZAINGO | J200: 5020 | K200: CORDOBA | L200: Córdoba | M200: Contador Público | N200: Si | O200: 4 | P200: SI | Q200: Jueves 16 de noviembre 10.30h | R200: SI | S200: Córdoba
... 1166 more rows

Sheet Datos
C1: GRADO | D1: PREGRADO | E1: ACUMULADO | AG1: Acumulado
B2: Total de Egresados | C2: =COUNTA(GR!B:B)-1 -> 2040 | D2: =COUNTA(PRE!B:B)-1 -> 305 | E2: =C2+D2 -> 2345 | AG2: Miercoles 15 de noviembre 10.30h
Q3: FECHA | R3: =VLOOKUP(REPORTE!Z8,REPORTE!$W$8:$X$12,2,FALSE) -> Acumulado | AG3: Miércoles 15 de noviembre 19.00h
V4: Base real | X4: Respondieron el Link | AG4: Jueves 16 de noviembre 10.30h
B5: Fechas | C5: Miercoles 15 de noviembre 10.30h | D5: Miércoles 15 de noviembre 19.00h | E5: Jueves 16 de noviembre 10.30h | F5: Jueves 16 de noviembre 19.30h | G5: Jueves 16 de noviembre 19.00h | H5: ACUMULADO | Q5: Provincia | R5: Graduados Asisten | S5: Acompañantes | T5: No asisten | U5: NO Contactados | V5: GRADO REAL | W5: PREGRADO REAL | X5: GRADO | Y5: PREGRADO | Z5: Tasa Asisten Sobre Real | AA5: Tasa Contactados sobre Real | AB5: Total | AC5: Restan | AD5: Respondieron | AE5: Restan Link | AG5: Jueves 16 de noviembre 19.00h
B6: Base | Q6: Buenos Aires | R6: =IF($R$3="ACUMULADO",COUNTIFS(DRIVE!$S:$S,Datos!$Q6,DRIVE!$N:$N,"Si",DRIVE!$R:$R,"SI"),COUNTIFS(DRIVE!$S:$S,Datos!$Q6,DRIVE!$N:$N,"Si",DRIVE!$Q:$Q,Datos!$R$3,DRIVE!$R:$R,"SI")) -> 33 | S6: =IF($R$3="ACUMULADO",SUMIFS(DRIVE!O:O,DRIVE!$S:$S,Datos!$Q6,DRIVE!$N:$N,"Si",DRIVE!$R:$R,"SI"),SUMIFS(DRIVE!O:O,DRIVE!$S:$S,Datos!$Q6,DRIVE!$N:$N,"Si",DRIVE!$Q:$Q,Datos!$R$3,DRIVE!$R:$R,"SI")) -> 106 | T6: =IF($R$3="ACUMULADO",COUNTIFS(DRIVE!$S:$S,Datos!$Q6,DRIVE!$N:$N,"No"),COUNTIFS(DRIVE!$S:$S,Datos!$Q6,DRIVE!$N:$N,"No",DRIVE!$Q:$Q,Datos!$R$3)) -> 1 | U6: =IF($R$3="ACUMULADO",COUNTIFS(DRIVE!$S:$S,Datos!$Q6,DRIVE!$N:$N,"Si",DRIVE!$R:$R,"NO"),COUNTIFS(DRIVE!$S:$S,Datos!$Q6,DRIVE!$N:$N,"Si",DRIVE!$Q:$Q,Datos!$R$3,DRIVE!$R:$R,"NO")) -> 6 | V6: =IF($R$3="ACUMULADO",COUNTIF(GR!I:I,Datos!Q6),COUNTIFS(GR!$I:$I,Datos!$Q6,GR!$H:$H,Datos!$R$3)) -> 249 | W6: =IF($R$3="ACUMULADO",COUNTIF(PRE!I:I,Datos!Q6),COUNTIFS(PRE!$I:$I,Datos!$Q6,PRE!$H:$H,Datos!$R$3)) -> 72 | X6: =IF($R$3="ACUMULADO",COUNTIFS(DRIVE!$S:$S,Datos!$Q6,DRIVE!$A:$A,Datos!X$5),COUNTIFS(DRIVE!$S:$S,Datos!$Q6,DRIVE!$A:$A,Datos!X$5,DRIVE!$Q:$Q,Datos!$R$3)) -> 39 | Y6: =IF($R$3="ACUMULADO",COUNTIFS(DRIVE!$S:$S,Datos!$Q6,DRIVE!$A:$A,Datos!Y$5),COUNTIFS(DRIVE!$S:$S,Datos!$Q6,DRIVE!$A:$A,Datos!Y$5,DRIVE!$Q:$Q,Datos!$R$3)) -> 1 | Z6: =IFERROR(R6/AD6,0) -> 0.825 | AA6: =IFERROR(R6/AD6,0) -> 0.825 | AB6: =V6+W6 -> 321 | AC6: =(X6+Y6)-R6 -> 7 | AD6: =X6+Y6 -> 40 | AE6: =(V6+W6)-AD6 -> 281
B7: Grado | C7: =COUNTIF(GR!$H:$H,Datos!C$5) -> 0 | D7: =COUNTIF(GR!$H:$H,Datos!D$5) -> 901 | E7: =COUNTIF(GR!$H:$H,Datos!E$5) -> 620 | F7: =COUNTIF(GR!$H:$H,Datos!F$5) -> 3 | G7: =COUNTIF(GR!$H:$H,Datos!G$5) -> 516 | H7: =SUM(C7:G7) -> 2040 | Q7: Catamarca | R7: =IF($R$3="ACUMULADO",COUNTIFS(DRIVE!$S:$S,Datos!$Q7,DRIVE!$N:$N,"Si",DRIVE!$R:$R,"SI"),COUNTIFS(DRIVE!$S:$S,Datos!$Q7,DRIVE!$N:$N,"Si",DRIVE!$Q:$Q,Datos!$R$3,DRIVE!$R:$R,"SI")) -> 3 | S7: =IF($R$3="ACUMULADO",SUMIFS(DRIVE!O:O,DRIVE!$S:$S,Datos!$Q7,DRIVE!$N:$N,"Si",DRIVE!$R:$R,"SI"),SUMIFS(DRIVE!O:O,DRIVE!$S:$S,Datos!$Q7,DRIVE!$N:$N,"Si",DRIVE!$Q:$Q,Datos!$R$3,DRIVE!$R:$R,"SI")) -> 12 | T7: =IF($R$3="ACUMULADO",COUNTIFS(DRIVE!$S:$S,Datos!$Q7,DRIVE!$N:$N,"No"),COUNTIFS(DRIVE!$S:$S,Datos!$Q7,DRIVE!$N:$N,"No",DRIVE!$Q:$Q,Datos!$R$3)) -> 0 | U7: =IF($R$3="ACUMULADO",COUNTIFS(DRIVE!$S:$S,Datos!$Q7,DRIVE!$N:$N,"Si",DRIVE!$R:$R,"NO"),COUNTIFS(DRIVE!$S:$S,Datos!$Q7,DRIVE!$N:$N,"Si",DRIVE!$Q:$Q,Datos!$R$3,DRIVE!$R:$R,"NO")) -> 3 | V7: =IF($R$3="ACUMULADO",COUNTIF(GR!I:I,Datos!Q7),COUNTIFS(GR!$I:$I,Datos!$Q7,GR!$H:$H,Datos!$R$3)) -> 19 | W7: =IF($R$3="ACUMULADO",COUNTIF(PRE!I:I,Datos!Q7),COUNTIFS(PRE!$I:$I,Datos!$Q7,PRE!$H:$H,Datos!$R$3)) -> 2 | X7: =IF($R$3="ACUMULADO",COUNTIFS(DRIVE!$S:$S,Datos!$Q7,DRIVE!$A:$A,Datos!X$5),COUNTIFS(DRIVE!$S:$S,Datos!$Q7,DRIVE!$A:$A,Datos!X$5,DRIVE!$Q:$Q,Datos!$R$3)) -> 6 | Y7: =IF($R$3="ACUMULADO",COUNTIFS(DRIVE!$S:$S,Datos!$Q7,DRIVE!$A:$A,Datos!Y$5),COUNTIFS(DRIVE!$S:$S,Datos!$Q7,DRIVE!$A:$A,Datos!Y$5,DRIVE!$Q:$Q,Datos!$R$3)) -> 0 | Z7: =IFERROR(R7/AD7,0) -> 0.5 | AA7: =IFERROR(R7/AD7,0) -> 0.5 | AB7: =V7+W7 -> 21 | AC7: =(X7+Y7)-R7 -> 3 | AD7: =X7+Y7 -> 6 | AE7: =(V7+W7)-AD7 -> 15
B8: Pregrado | C8: =COUNTIF(PRE!$H:$H,Datos!C$5) -> 305 | D8: =COUNTIF(PRE!$H:$H,Datos!D$5) -> 0 | E8: =COUNTIF(PRE!$H:$H,Datos!E$5) -> 0 | F8: =COUNTIF(PRE!$H:$H,Datos!F$5) -> 0 | G8: =COUNTIF(PRE!$H:$H,Datos!G$5) -> 0 | H8: =SUM(C8:G8) -> 305 | Q8: Chaco | R8: =IF($R$3="ACUMULADO",COUNTIFS(DRIVE!$S:$S,Datos!$Q8,DRIVE!$N:$N,"Si",DRIVE!$R:$R,"SI"),COUNTIFS(DRIVE!$S:$S,Datos!$Q8,DRIVE!$N:$N,"Si",DRIVE!$Q:$Q,Datos!$R$3,DRIVE!$R:$R,"SI")) -> 3 | S8: =IF($R$3="ACUMULADO",SUMIFS(DRIVE!O:O,DRIVE!$S:$S,Datos!$Q8,DRIVE!$N:$N,"Si",DRIVE!$R:$R,"SI"),SUMIFS(DRIVE!O:O,DRIVE!$S:$S,Datos!$Q8,DRIVE!$N:$N,"Si",DRIVE!$Q:$Q,Datos!$R$3,DRIVE!$R:$R,"SI")) -> 12 | T8: =IF($R$3="ACUMULADO",COUNTIFS(DRIVE!$S:$S,Datos!$Q8,DRIVE!$N:$N,"No"),COUNTIFS(DRIVE!$S:$S,Datos!$Q8,DRIVE!$N:$N,"No",DRIVE!$Q:$Q,Datos!$R$3)) -> 0 | U8: =IF($R$3="ACUMULADO",COUNTIFS(DRIVE!$S:$S,Datos!$Q8,DRIVE!$N:$N,"Si",DRIVE!$R:$R,"NO"),COUNTIFS(DRIVE!$S:$S,Datos!$Q8,DRIVE!$N:$N,"Si",DRIVE!$Q:$Q,Datos!$R$3,DRIVE!$R:$R,"NO")) -> 0 | V8: =IF($R$3="ACUMULADO",COUNTIF(GR!I:I,Datos!Q8),COUNTIFS(GR!$I:$I,Datos!$Q8,GR!$H:$H,Datos!$R$3)) -> 39 | W8: =IF($R$3="ACUMULADO",COUNTIF(PRE!I:I,Datos!Q8),COUNTIFS(PRE!$I:$I,Datos!$Q8,PRE!$H:$H,Datos!$R$3)) -> 1 | X8: =IF($R$3="ACUMULADO",COUNTIFS(DRIVE!$S:$S,Datos!$Q8,DRIVE!$A:$A,Datos!X$5),COUNTIFS(DRIVE!$S:$S,Datos!$Q8,DRIVE!$A:$A,Datos!X$5,DRIVE!$Q:$Q,Datos!$R$3)) -> 3 | Y8: =IF($R$3="ACUMULADO",COUNTIFS(DRIVE!$S:$S,Datos!$Q8,DRIVE!$A:$A,Datos!Y$5),COUNTIFS(DRIVE!$S:$S,Datos!$Q8,DRIVE!$A:$A,Datos!Y$5,DRIVE!$Q:$Q,Datos!$R$3)) -> 0 | Z8: 1 | AA8: 1 | AB8: 40 | AC8: 0 | AD8: 3 | AE8: 37
Q9: Chubut | R9: =IF($R$3="ACUMULADO",COUNTIFS(DRIVE!$S:$S,Datos!$Q9,DRIVE!$N:$N,"Si",DRIVE!$R:$R,"SI"),COUNTIFS(DRIVE!$S:$S,Datos!$Q9,DRIVE!$N:$N,"Si",DRIVE!$Q:$Q,Datos!$R$3,DRIVE!$R:$R,"SI")) -> 2 | S9: =IF($R$3="ACUMULADO",SUMIFS(DRIVE!O:O,DRIVE!$S:$S,Datos!$Q9,DRIVE!$N:$N,"Si",DRIVE!$R:$R,"SI"),SUMIFS(DRIVE!O:O,DRIVE!$S:$S,Datos!$Q9,DRIVE!$N:$N,"Si",DRIVE!$Q:$Q,Datos!$R$3,DRIVE!$R:$R,"SI")) -> 8 | T9: =IF($R$3="ACUMULADO",COUNTIFS(DRIVE!$S:$S,Datos!$Q9,DRIVE!$N:$N,"No"),COUNTIFS(DRIVE!$S:$S,Datos!$Q9,DRIVE!$N:$N,"No",DRIVE!$Q:$Q,Datos!$R$3)) -> 0 | U9: =IF($R$3="ACUMULADO",COUNTIFS(DRIVE!$S:$S,Datos!$Q9,DRIVE!$N:$N,"Si",DRIVE!$R:$R,"NO"),COUNTIFS(DRIVE!$S:$S,Datos!$Q9,DRIVE!$N:$N,"Si",DRIVE!$Q:$Q,Datos!$R$3,DRIVE!$R:$R,"NO")) -> 0 | V9: =IF($R$3="ACUMULADO",COUNTIF(GR!I:I,Datos!Q9),COUNTIFS(GR!$I:$I,Datos!$Q9,GR!$H:$H,Datos!$R$3)) -> 21 | W9: =IF($R$3="ACUMULADO",COUNTIF(PRE!I:I,Datos!Q9),COUNTIFS(PRE!$I:$I,Datos!$Q9,PRE!$H:$H,Datos!$R$3)) -> 1 | X9: =IF($R$3="ACUMULADO",COUNTIFS(DRIVE!$S:$S,Datos!$Q9,DRIVE!$A:$A,Datos!X$5),COUNTIFS(DRIVE!$S:$S,Datos!$Q9,DRIVE!$A:$A,Datos!X$5,DRIVE!$Q:$Q,Datos!$R$3)) -> 2 | Y9: =IF($R$3="ACUMULADO",COUNTIFS(DRIVE!$S:$S,Datos!$Q9,DRIVE!$A:$A,Datos!Y$5),COUNTIFS(DRIVE!$S:$S,Datos!$Q9,DRIVE!$A:$A,Datos!Y$5,DRIVE!$Q:$Q,Datos!$R$3)) -> 0 | Z9: 1 | AA9: 1 | AB9: 22 | AC9: 0 | AD9: 2 | AE9: 20
B10: Respondieron link | Q10: Córdoba | R10: =IF($R$3="ACUMULADO",COUNTIFS(DRIVE!$S:$S,Datos!$Q10,DRIVE!$N:$N,"Si",DRIVE!$R:$R,"SI"),COUNTIFS(DRIVE!$S:$S,Datos!$Q10,DRIVE!$N:$N,"Si",DRIVE!$Q:$Q,Datos!$R$3,DRIVE!$R:$R,"SI")) -> 514 | S10: =IF($R$3="ACUMULADO",SUMIFS(DRIVE!O:O,DRIVE!$S:$S,Datos!$Q10,DRIVE!$N:$N,"Si",DRIVE!$R:$R,"SI"),SUMIFS(DRIVE!O:O,DRIVE!$S:$S,Datos!$Q10,DRIVE!$N:$N,"Si",DRIVE!$Q:$Q,Datos!$R$3,DRIVE!$R:$R,"SI")) -> 1979 | T10: =IF($R$3="ACUMULADO",COUNTIFS(DRIVE!$S:$S,Datos!$Q10,DRIVE!$N:$N,"No"),COUNTIFS(DRIVE!$S:$S,Datos!$Q10,DRIVE!$N:$N,"No",DRIVE!$Q:$Q,Datos!$R$3)) -> 5 | U10: =IF($R$3="ACUMULADO",COUNTIFS(DRIVE!$S:$S,Datos!$Q10,DRIVE!$N:$N,"Si",DRIVE!$R:$R,"NO"),COUNTIFS(DRIVE!$S:$S,Datos!$Q10,DRIVE!$N:$N,"Si",DRIVE!$Q:$Q,Datos!$R$3,DRIVE!$R:$R,"NO")) -> 56 | V10: =IF($R$3="ACUMULADO",COUNTIF(GR!I:I,Datos!Q10),COUNTIFS(GR!$I:$I,Datos!$Q10,GR!$H:$H,Datos!$R$3)) -> 1023 | W10: =IF($R$3="ACUMULADO",COUNTIF(PRE!I:I,Datos!Q10),COUNTIFS(PRE!$I:$I,Datos!$Q10,PRE!$H:$H,Datos!$R$3)) -> 207 | X10: =IF($R$3="ACUMULADO",COUNTIFS(DRIVE!$S:$S,Datos!$Q10,DRIVE!$A:$A,Datos!X$5),COUNTIFS(DRIVE!$S:$S,Datos!$Q10,DRIVE!$A:$A,Datos!X$5,DRIVE!$Q:$Q,Datos!$R$3)) -> 461 | Y10: =IF($R$3="ACUMULADO",COUNTIFS(DRIVE!$S:$S,Datos!$Q10,DRIVE!$A:$A,Datos!Y$5),COUNTIFS(DRIVE!$S:$S,Datos!$Q10,DRIVE!$A:$A,Datos!Y$5,DRIVE!$Q:$Q,Datos!$R$3)) -> 114 | Z10: 0.8939130435 | AA10: 0.8939130435 | AB10: 1230 | AC10: 61 | AD10: 575 | AE10: 655 | AG10: Grafico1 | AH10: GRafico2 | AI10: Grafico 3
B11: Grado | C11: =COUNTIFS(DRIVE!$A:$A,Datos!$B11,DRIVE!$Q:$Q,Datos!C$5) -> 0 | D11: =COUNTIFS(DRIVE!$A:$A,Datos!$B11,DRIVE!$Q:$Q,Datos!D$5) -> 281 | E11: =COUNTIFS(DRIVE!$A:$A,Datos!$B11,DRIVE!$Q:$Q,Datos!E$5) -> 181 | F11: =COUNTIFS(DRIVE!$A:$A,Datos!$B11,DRIVE!$Q:$Q,Datos!F$5) -> 0 | G11: =COUNTIFS(DRIVE!$A:$A,Datos!$B11,DRIVE!$Q:$Q,Datos!G$5) -> 183 | H11: =SUM(C11:G11) -> 645 | Q11: Corrientes | R11: =IF($R$3="ACUMULADO",COUNTIFS(DRIVE!$S:$S,Datos!$Q11,DRIVE!$N:$N,"Si",DRIVE!$R:$R,"SI"),COUNTIFS(DRIVE!$S:$S,Datos!$Q11,DRIVE!$N:$N,"Si",DRIVE!$Q:$Q,Datos!$R$3,DRIVE!$R:$R,"SI")) -> 0 | S11: =IF($R$3="ACUMULADO",SUMIFS(DRIVE!O:O,DRIVE!$S:$S,Datos!$Q11,DRIVE!$N:$N,"Si",DRIVE!$R:$R,"SI"),SUMIFS(DRIVE!O:O,DRIVE!$S:$S,Datos!$Q11,DRIVE!$N:$N,"Si",DRIVE!$Q:$Q,Datos!$R$3,DRIVE!$R:$R,"SI")) -> 0 | T11: =IF($R$3="ACUMULADO",COUNTIFS(DRIVE!$S:$S,Datos!$Q11,DRIVE!$N:$N,"No"),COUNTIFS(DRIVE!$S:$S,Datos!$Q11,DRIVE!$N:$N,"No",DRIVE!$Q:$Q,Datos!$R$3)) -> 0 | U11: =IF($R$3="ACUMULADO",COUNTIFS(DRIVE!$S:$S,Datos!$Q11,DRIVE!$N:$N,"Si",DRIVE!$R:$R,"NO"),COUNTIFS(DRIVE!$S:$S,Datos!$Q11,DRIVE!$N:$N,"Si",DRIVE!$Q:$Q,Datos!$R$3,DRIVE!$R:$R,"NO")) -> 0 | V11: =IF($R$3="ACUMULADO",COUNTIF(GR!I:I,Datos!Q11),COUNTIFS(GR!$I:$I,Datos!$Q11,GR!$H:$H,Datos!$R$3)) -> 23 | W11: =IF($R$3="ACUMULADO",COUNTIF(PRE!I:I,Datos!Q11),COUNTIFS(PRE!$I:$I,Datos!$Q11,PRE!$H:$H,Datos!$R$3)) -> 0 | X11: =IF($R$3="ACUMULADO",COUNTIFS(DRIVE!$S:$S,Datos!$Q11,DRIVE!$A:$A,Datos!X$5),COUNTIFS(DRIVE!$S:$S,Datos!$Q11,DRIVE!$A:$A,Datos!X$5,DRIVE!$Q:$Q,Datos!$R$3)) -> 0 | Y11: =IF($R$3="ACUMULADO",COUNTIFS(DRIVE!$S:$S,Datos!$Q11,DRIVE!$A:$A,Datos!Y$5),COUNTIFS(DRIVE!$S:$S,Datos!$Q11,DRIVE!$A:$A,Datos!Y$5,DRIVE!$Q:$Q,Datos!$R$3)) -> 0 | Z11: 0 | AA11: 0 | AB11: 23 | AC11: 0 | AD11: 0 | AE11: 23 | AG11: =REPORTE!AH12 -> 677 | AH11: =REPORTE!AI12 -> 757 | AI11: =AD29 -> 763
B12: Pregrado | C12: =COUNTIFS(DRIVE!$A:$A,Datos!$B12,DRIVE!$Q:$Q,Datos!C$5) -> 114 | D12: =COUNTIFS(DRIVE!$A:$A,Datos!$B12,DRIVE!$Q:$Q,Datos!D$5) -> 0 | E12: =COUNTIFS(DRIVE!$A:$A,Datos!$B12,DRIVE!$Q:$Q,Datos!E$5) -> 0 | F12: =COUNTIFS(DRIVE!$A:$A,Datos!$B12,DRIVE!$Q:$Q,Datos!F$5) -> 0 | G12: =COUNTIFS(DRIVE!$A:$A,Datos!$B12,DRIVE!$Q:$Q,Datos!G$5) -> 0 | H12: =SUM(C12:G12) -> 114 | Q12: Entre Ríos | R12: =IF($R$3="ACUMULADO",COUNTIFS(DRIVE!$S:$S,Datos!$Q12,DRIVE!$N:$N,"Si",DRIVE!$R:$R,"SI"),COUNTIFS(DRIVE!$S:$S,Datos!$Q12,DRIVE!$N:$N,"Si",DRIVE!$Q:$Q,Datos!$R$3,DRIVE!$R:$R,"SI")) -> 1 | S12: =IF($R$3="ACUMULADO",SUMIFS(DRIVE!O:O,DRIVE!$S:$S,Datos!$Q12,DRIVE!$N:$N,"Si",DRIVE!$R:$R,"SI"),SUMIFS(DRIVE!O:O,DRIVE!$S:$S,Datos!$Q12,DRIVE!$N:$N,"Si",DRIVE!$Q:$Q,Datos!$R$3,DRIVE!$R:$R,"SI")) -> 4 | T12: =IF($R$3="ACUMULADO",COUNTIFS(DRIVE!$S:$S,Datos!$Q12,DRIVE!$N:$N,"No"),COUNTIFS(DRIVE!$S:$S,Datos!$Q12,DRIVE!$N:$N,"No",DRIVE!$Q:$Q,Datos!$R$3)) -> 0 | U12: =IF($R$3="ACUMULADO",COUNTIFS(DRIVE!$S:$S,Datos!$Q12,DRIVE!$N:$N,"Si",DRIVE!$R:$R,"NO"),COUNTIFS(DRIVE!$S:$S,Datos!$Q12,DRIVE!$N:$N,"Si",DRIVE!$Q:$Q,Datos!$R$3,DRIVE!$R:$R,"NO")) -> 1 | V12: =IF($R$3="ACUMULADO",COUNTIF(GR!I:I,Datos!Q12),COUNTIFS(GR!$I:$I,Datos!$Q12,GR!$H:$H,Datos!$R$3)) -> 54 | W12: =IF($R$3="ACUMULADO",COUNTIF(PRE!I:I,Datos!Q12),COUNTIFS(PRE!$I:$I,Datos!$Q12,PRE!$H:$H,Datos!$R$3)) -> 1 | X12: =IF($R$3="ACUMULADO",COUNTIFS(DRIVE!$S:$S,Datos!$Q12,DRIVE!$A:$A,Datos!X$5),COUNTIFS(DRIVE!$S:$S,Datos!$Q12,DRIVE!$A:$A,Datos!X$5,DRIVE!$Q:$Q,Datos!$R$3)) -> 2 | Y12: =IF($R$3="ACUMULADO",COUNTIFS(DRIVE!$S:$S,Datos!$Q12,DRIVE!$A:$A,Datos!Y$5),COUNTIFS(DRIVE!$S:$S,Datos!$Q12,DRIVE!$A:$A,Datos!Y$5,DRIVE!$Q:$Q,Datos!$R$3)) -> 0 | Z12: 0.5 | AA12: 0.5 | AB12: 55 | AC12: 1 | AD12: 2 | AE12: 53 | AG12: =REPORTE!AH13 -> 86 | AH12: =REPORTE!AI13 -> 6 | AI12: =AE29 -> 1582
Q13: Formosa | R13: =IF($R$3="ACUMULADO",COUNTIFS(DRIVE!$S:$S,Datos!$Q13,DRIVE!$N:$N,"Si",DRIVE!$R:$R,"SI"),COUNTIFS(DRIVE!$S:$S,Datos!$Q13,DRIVE!$N:$N,"Si",DRIVE!$Q:$Q,Datos!$R$3,DRIVE!$R:$R,"SI")) -> 0 | S13: =IF($R$3="ACUMULADO",SUMIFS(DRIVE!O:O,DRIVE!$S:$S,Datos!$Q13,DRIVE!$N:$N,"Si",DRIVE!$R:$R,"SI"),SUMIFS(DRIVE!O:O,DRIVE!$S:$S,Datos!$Q13,DRIVE!$N:$N,"Si",DRIVE!$Q:$Q,Datos!$R$3,DRIVE!$R:$R,"SI")) -> 0 | T13: =IF($R$3="ACUMULADO",COUNTIFS(DRIVE!$S:$S,Datos!$Q13,DRIVE!$N:$N,"No"),COUNTIFS(DRIVE!$S:$S,Datos!$Q13,DRIVE!$N:$N,"No",DRIVE!$Q:$Q,Datos!$R$3)) -> 0 | U13: =IF($R$3="ACUMULADO",COUNTIFS(DRIVE!$S:$S,Datos!$Q13,DRIVE!$N:$N,"Si",DRIVE!$R:$R,"NO"),COUNTIFS(DRIVE!$S:$S,Datos!$Q13,DRIVE!$N:$N,"Si",DRIVE!$Q:$Q,Datos!$R$3,DRIVE!$R:$R,"NO")) -> 1 | V13: =IF($R$3="ACUMULADO",COUNTIF(GR!I:I,Datos!Q13),COUNTIFS(GR!$I:$I,Datos!$Q13,GR!$H:$H,Datos!$R$3)) -> 15 | W13: =IF($R$3="ACUMULADO",COUNTIF(PRE!I:I,Datos!Q13),COUNTIFS(PRE!$I:$I,Datos!$Q13,PRE!$H:$H,Datos!$R$3)) -> 0 | X13: =IF($R$3="ACUMULADO",COUNTIFS(DRIVE!$S:$S,Datos!$Q13,DRIVE!$A:$A,Datos!X$5),COUNTIFS(DRIVE!$S:$S,Datos!$Q13,DRIVE!$A:$A,Datos!X$5,DRIVE!$Q:$Q,Datos!$R$3)) -> 1 | Y13: =IF($R$3="ACUMULADO",COUNTIFS(DRIVE!$S:$S,Datos!$Q13,DRIVE!$A:$A,Datos!Y$5),COUNTIFS(DRIVE!$S:$S,Datos!$Q13,DRIVE!$A:$A,Datos!Y$5,DRIVE!$Q:$Q,Datos!$R$3)) -> 0 | Z13: 0 | AA13: 0 | AB13: 15 | AC13: 1 | AD13: 1 | AE13: 14
B14: Tasa | Q14: Jujuy | R14: =IF($R$3="ACUMULADO",COUNTIFS(DRIVE!$S:$S,Datos!$Q14,DRIVE!$N:$N,"Si",DRIVE!$R:$R,"SI"),COUNTIFS(DRIVE!$S:$S,Datos!$Q14,DRIVE!$N:$N,"Si",DRIVE!$Q:$Q,Datos!$R$3,DRIVE!$R:$R,"SI")) -> 8 | S14: =IF($R$3="ACUMULADO",SUMIFS(DRIVE!O:O,DRIVE!$S:$S,Datos!$Q14,DRIVE!$N:$N,"Si",DRIVE!$R:$R,"SI"),SUMIFS(DRIVE!O:O,DRIVE!$S:$S,Datos!$Q14,DRIVE!$N:$N,"Si",DRIVE!$Q:$Q,Datos!$R$3,DRIVE!$R:$R,"SI")) -> 31 | T14: =IF($R$3="ACUMULADO",COUNTIFS(DRIVE!$S:$S,Datos!$Q14,DRIVE!$N:$N,"No"),COUNTIFS(DRIVE!$S:$S,Datos!$Q14,DRIVE!$N:$N,"No",DRIVE!$Q:$Q,Datos!$R$3)) -> 0 | U14: =IF($R$3="ACUMULADO",COUNTIFS(DRIVE!$S:$S,Datos!$Q14,DRIVE!$N:$N,"Si",DRIVE!$R:$R,"NO"),COUNTIFS(DRIVE!$S:$S,Datos!$Q14,DRIVE!$N:$N,"Si",DRIVE!$Q:$Q,Datos!$R$3,DRIVE!$R:$R,"NO")) -> 1 | V14: =IF($R$3="ACUMULADO",COUNTIF(GR!I:I,Datos!Q14),COUNTIFS(GR!$I:$I,Datos!$Q14,GR!$H:$H,Datos!$R$3)) -> 44 | W14: =IF($R$3="ACUMULADO",COUNTIF(PRE!I:I,Datos!Q14),COUNTIFS(PRE!$I:$I,Datos!$Q14,PRE!$H:$H,Datos!$R$3)) -> 1 | X14: =IF($R$3="ACUMULADO",COUNTIFS(DRIVE!$S:$S,Datos!$Q14,DRIVE!$A:$A,Datos!X$5),COUNTIFS(DRIVE!$S:$S,Datos!$Q14,DRIVE!$A:$A,Datos!X$5,DRIVE!$Q:$Q,Datos!$R$3)) -> 9 | Y14: =IF($R$3="ACUMULADO",COUNTIFS(DRIVE!$S:$S,Datos!$Q14,DRIVE!$A:$A,Datos!Y$5),COUNTIFS(DRIVE!$S:$S,Datos!$Q14,DRIVE!$A:$A,Datos!Y$5,DRIVE!$Q:$Q,Datos!$R$3)) -> 0 | Z14: 0.8888888889 | AA14: 0.8888888889 | AB14: 45 | AC14: 1 | AD14: 9 | AE14: 36
B15: Grado | C15: =IFERROR(C11/C7,0) -> 0 | D15: =IFERROR(D11/D7,0) -> 0.3118756937 | E15: 0.2919354839 | F15: 0 | G15: 0.3546511628 | H15: =IFERROR(H11/H7,0) -> 0.3161764706 | Q15: La Pampa | R15: =IF($R$3="ACUMULADO",COUNTIFS(DRIVE!$S:$S,Datos!$Q15,DRIVE!$N:$N,"Si",DRIVE!$R:$R,"SI"),COUNTIFS(DRIVE!$S:$S,Datos!$Q15,DRIVE!$N:$N,"Si",DRIVE!$Q:$Q,Datos!$R$3,DRIVE!$R:$R,"SI")) -> 6 | S15: =IF($R$3="ACUMULADO",SUMIFS(DRIVE!O:O,DRIVE!$S:$S,Datos!$Q15,DRIVE!$N:$N,"Si",DRIVE!$R:$R,"SI"),SUMIFS(DRIVE!O:O,DRIVE!$S:$S,Datos!$Q15,DRIVE!$N:$N,"Si",DRIVE!$Q:$Q,Datos!$R$3,DRIVE!$R:$R,"SI")) -> 21 | T15: =IF($R$3="ACUMULADO",COUNTIFS(DRIVE!$S:$S,Datos!$Q15,DRIVE!$N:$N,"No"),COUNTIFS(DRIVE!$S:$S,Datos!$Q15,DRIVE!$N:$N,"No",DRIVE!$Q:$Q,Datos!$R$3)) -> 0 | U15: =IF($R$3="ACUMULADO",COUNTIFS(DRIVE!$S:$S,Datos!$Q15,DRIVE!$N:$N,"Si",DRIVE!$R:$R,"NO"),COUNTIFS(DRIVE!$S:$S,Datos!$Q15,DRIVE!$N:$N,"Si",DRIVE!$Q:$Q,Datos!$R$3,DRIVE!$R:$R,"NO")) -> 2 | V15: =IF($R$3="ACUMULADO",COUNTIF(GR!I:I,Datos!Q15),COUNTIFS(GR!$I:$I,Datos!$Q15,GR!$H:$H,Datos!$R$3)) -> 26 | W15: =IF($R$3="ACUMULADO",COUNTIF(PRE!I:I,Datos!Q15),COUNTIFS(PRE!$I:$I,Datos!$Q15,PRE!$H:$H,Datos!$R$3)) -> 4 | X15: =IF($R$3="ACUMULADO",COUNTIFS(DRIVE!$S:$S,Datos!$Q15,DRIVE!$A:$A,Datos!X$5),COUNTIFS(DRIVE!$S:$S,Datos!$Q15,DRIVE!$A:$A,Datos!X$5,DRIVE!$Q:$Q,Datos!$R$3)) -> 8 | Y15: =IF($R$3="ACUMULADO",COUNTIFS(DRIVE!$S:$S,Datos!$Q15,DRIVE!$A:$A,Datos!Y$5),COUNTIFS(DRIVE!$S:$S,Datos!$Q15,DRIVE!$A:$A,Datos!Y$5,DRIVE!$Q:$Q,Datos!$R$3)) -> 0 | Z15: 0.75 | AA15: 0.75 | AB15: 30 | AC15: 2 | AD15: 8 | AE15: 22
B16: Pregrado | C16: =IFERROR(C12/C8,0) -> 0.3737704918 | D16: 0 | E16: 0 | F16: 0 | G16: 0 | H16: =IFERROR(H12/H8,0) -> 0.3737704918 | Q16: La Rioja | R16: =IF($R$3="ACUMULADO",COUNTIFS(DRIVE!$S:$S,Datos!$Q16,DRIVE!$N:$N,"Si",DRIVE!$R:$R,"SI"),COUNTIFS(DRIVE!$S:$S,Datos!$Q16,DRIVE!$N:$N,"Si",DRIVE!$Q:$Q,Datos!$R$3,DRIVE!$R:$R,"SI")) -> 4 | S16: =IF($R$3="ACUMULADO",SUMIFS(DRIVE!O:O,DRIVE!$S:$S,Datos!$Q16,DRIVE!$N:$N,"Si",DRIVE!$R:$R,"SI"),SUMIFS(DRIVE!O:O,DRIVE!$S:$S,Datos!$Q16,DRIVE!$N:$N,"Si",DRIVE!$Q:$Q,Datos!$R$3,DRIVE!$R:$R,"SI")) -> 14 | T16: =IF($R$3="ACUMULADO",COUNTIFS(DRIVE!$S:$S,Datos!$Q16,DRIVE!$N:$N,"No"),COUNTIFS(DRIVE!$S:$S,Datos!$Q16,DRIVE!$N:$N,"No",DRIVE!$Q:$Q,Datos!$R$3)) -> 0 | U16: =IF($R$3="ACUMULADO",COUNTIFS(DRIVE!$S:$S,Datos!$Q16,DRIVE!$N:$N,"Si",DRIVE!$R:$R,"NO"),COUNTIFS(DRIVE!$S:$S,Datos!$Q16,DRIVE!$N:$N,"Si",DRIVE!$Q:$Q,Datos!$R$3,DRIVE!$R:$R,"NO")) -> 1 | V16: =IF($R$3="ACUMULADO",COUNTIF(GR!I:I,Datos!Q16),COUNTIFS(GR!$I:$I,Datos!$Q16,GR!$H:$H,Datos!$R$3)) -> 28 | W16: =IF($R$3="ACUMULADO",COUNTIF(PRE!I:I,Datos!Q16),COUNTIFS(PRE!$I:$I,Datos!$Q16,PRE!$H:$H,Datos!$R$3)) -> 1 | X16: =IF($R$3="ACUMULADO",COUNTIFS(DRIVE!$S:$S,Datos!$Q16,DRIVE!$A:$A,Datos!X$5),COUNTIFS(DRIVE!$S:$S,Datos!$Q16,DRIVE!$A:$A,Datos!X$5,DRIVE!$Q:$Q,Datos!$R$3)) -> 5 | Y16: =IF($R$3="ACUMULADO",COUNTIFS(DRIVE!$S:$S,Datos!$Q16,DRIVE!$A:$A,Datos!Y$5),COUNTIFS(DRIVE!$S:$S,Datos!$Q16,DRIVE!$A:$A,Datos!Y$5,DRIVE!$Q:$Q,Datos!$R$3)) -> 0 | Z16: 0.8 | AA16: 0.8 | AB16: 29 | AC16: 1 | AD16: 5 | AE16: 24
Q17: Mendoza | R17: =IF($R$3="ACUMULADO",COUNTIFS(DRIVE!$S:$S,Datos!$Q17,DRIVE!$N:$N,"Si",DRIVE!$R:$R,"SI"),COUNTIFS(DRIVE!$S:$S,Datos!$Q17,DRIVE!$N:$N,"Si",DRIVE!$Q:$Q,Datos!$R$3,DRIVE!$R:$R,"SI")) -> 10 | S17: =IF($R$3="ACUMULADO",SUMIFS(DRIVE!O:O,DRIVE!$S:$S,Datos!$Q17,DRIVE!$N:$N,"Si",DRIVE!$R:$R,"SI"),SUMIFS(DRIVE!O:O,DRIVE!$S:$S,Datos!$Q17,DRIVE!$N:$N,"Si",DRIVE!$Q:$Q,Datos!$R$3,DRIVE!$R:$R,"SI")) -> 33 | T17: =IF($R$3="ACUMULADO",COUNTIFS(DRIVE!$S:$S,Datos!$Q17,DRIVE!$N:$N,"No"),COUNTIFS(DRIVE!$S:$S,Datos!$Q17,DRIVE!$N:$N,"No",DRIVE!$Q:$Q,Datos!$R$3)) -> 0 | U17: =IF($R$3="ACUMULADO",COUNTIFS(DRIVE!$S:$S,Datos!$Q17,DRIVE!$N:$N,"Si",DRIVE!$R:$R,"NO"),COUNTIFS(DRIVE!$S:$S,Datos!$Q17,DRIVE!$N:$N,"Si",DRIVE!$Q:$Q,Datos!$R$3,DRIVE!$R:$R,"NO")) -> 0 | V17: =IF($R$3="ACUMULADO",COUNTIF(GR!I:I,Datos!Q17),COUNTIFS(GR!$I:$I,Datos!$Q17,GR!$H:$H,Datos!$R$3)) -> 91 | W17: =IF($R$3="ACUMULADO",COUNTIF(PRE!I:I,Datos!Q17),COUNTIFS(PRE!$I:$I,Datos!$Q17,PRE!$H:$H,Datos!$R$3)) -> 0 | X17: =IF($R$3="ACUMULADO",COUNTIFS(DRIVE!$S:$S,Datos!$Q17,DRIVE!$A:$A,Datos!X$5),COUNTIFS(DRIVE!$S:$S,Datos!$Q17,DRIVE!$A:$A,Datos!X$5,DRIVE!$Q:$Q,Datos!$R$3)) -> 10 | Y17: =IF($R$3="ACUMULADO",COUNTIFS(DRIVE!$S:$S,Datos!$Q17,DRIVE!$A:$A,Datos!Y$5),COUNTIFS(DRIVE!$S:$S,Datos!$Q17,DRIVE!$A:$A,Datos!Y$5,DRIVE!$Q:$Q,Datos!$R$3)) -> 0 | Z17: 1 | AA17: 1 | AB17: 91 | AC17: 0 | AD17: 10 | AE17: 81
B18: Asiste / GRADO | Q18: Misiones | R18: =IF($R$3="ACUMULADO",COUNTIFS(DRIVE!$S:$S,Datos!$Q18,DRIVE!$N:$N,"Si",DRIVE!$R:$R,"SI"),COUNTIFS(DRIVE!$S:$S,Datos!$Q18,DRIVE!$N:$N,"Si",DRIVE!$Q:$Q,Datos!$R$3,DRIVE!$R:$R,"SI")) -> 2 | S18: =IF($R$3="ACUMULADO",SUMIFS(DRIVE!O:O,DRIVE!$S:$S,Datos!$Q18,DRIVE!$N:$N,"Si",DRIVE!$R:$R,"SI"),SUMIFS(DRIVE!O:O,DRIVE!$S:$S,Datos!$Q18,DRIVE!$N:$N,"Si",DRIVE!$Q:$Q,Datos!$R$3,DRIVE!$R:$R,"SI")) -> 6 | T18: =IF($R$3="ACUMULADO",COUNTIFS(DRIVE!$S:$S,Datos!$Q18,DRIVE!$N:$N,"No"),COUNTIFS(DRIVE!$S:$S,Datos!$Q18,DRIVE!$N:$N,"No",DRIVE!$Q:$Q,Datos!$R$3)) -> 0 | U18: =IF($R$3="ACUMULADO",COUNTIFS(DRIVE!$S:$S,Datos!$Q18,DRIVE!$N:$N,"Si",DRIVE!$R:$R,"NO"),COUNTIFS(DRIVE!$S:$S,Datos!$Q18,DRIVE!$N:$N,"Si",DRIVE!$Q:$Q,Datos!$R$3,DRIVE!$R:$R,"NO")) -> 0 | V18: =IF($R$3="ACUMULADO",COUNTIF(GR!I:I,Datos!Q18),COUNTIFS(GR!$I:$I,Datos!$Q18,GR!$H:$H,Datos!$R$3)) -> 21 | W18: =IF($R$3="ACUMULADO",COUNTIF(PRE!I:I,Datos!Q18),COUNTIFS(PRE!$I:$I,Datos!$Q18,PRE!$H:$H,Datos!$R$3)) -> 0 | X18: =IF($R$3="ACUMULADO",COUNTIFS(DRIVE!$S:$S,Datos!$Q18,DRIVE!$A:$A,Datos!X$5),COUNTIFS(DRIVE!$S:$S,Datos!$Q18,DRIVE!$A:$A,Datos!X$5,DRIVE!$Q:$Q,Datos!$R$3)) -> 2 | Y18: =IF($R$3="ACUMULADO",COUNTIFS(DRIVE!$S:$S,Datos!$Q18,DRIVE!$A:$A,Datos!Y$5),COUNTIFS(DRIVE!$S:$S,Datos!$Q18,DRIVE!$A:$A,Datos!Y$5,DRIVE!$Q:$Q,Datos!$R$3)) -> 0 | Z18: 1 | AA18: 1 | AB18: 21 | AC18: 0 | AD18: 2 | AE18: 19
B19: SI | C19: =COUNTIFS(DRIVE!$A:$A,Datos!$B11,DRIVE!$Q:$Q,Datos!C$5,DRIVE!$N:$N,Datos!$B19) -> 0 | D19: =COUNTIFS(DRIVE!$A:$A,Datos!$B11,DRIVE!$Q:$Q,Datos!D$5,DRIVE!$N:$N,Datos!$B19) -> 279 | E19: =COUNTIFS(DRIVE!$A:$A,Datos!$B11,DRIVE!$Q:$Q,Datos!E$5,DRIVE!$N:$N,Datos!$B19) -> 180 | F19: =COUNTIFS(DRIVE!$A:$A,Datos!$B11,DRIVE!$Q:$Q,Datos!F$5,DRIVE!$N:$N,Datos!$B19) -> 0 | G19: =COUNTIFS(DRIVE!$A:$A,Datos!$B11,DRIVE!$Q:$Q,Datos!G$5,DRIVE!$N:$N,Datos!$B19) -> 182 | H19: =SUM(C19:G19) -> 641 | Q19: Neuquén | R19: =IF($R$3="ACUMULADO",COUNTIFS(DRIVE!$S:$S,Datos!$Q19,DRIVE!$N:$N,"Si",DRIVE!$R:$R,"SI"),COUNTIFS(DRIVE!$S:$S,Datos!$Q19,DRIVE!$N:$N,"Si",DRIVE!$Q:$Q,Datos!$R$3,DRIVE!$R:$R,"SI")) -> 12 | S19: =IF($R$3="ACUMULADO",SUMIFS(DRIVE!O:O,DRIVE!$S:$S,Datos!$Q19,DRIVE!$N:$N,"Si",DRIVE!$R:$R,"SI"),SUMIFS(DRIVE!O:O,DRIVE!$S:$S,Datos!$Q19,DRIVE!$N:$N,"Si",DRIVE!$Q:$Q,Datos!$R$3,DRIVE!$R:$R,"SI")) -> 41 | T19: =IF($R$3="ACUMULADO",COUNTIFS(DRIVE!$S:$S,Datos!$Q19,DRIVE!$N:$N,"No"),COUNTIFS(DRIVE!$S:$S,Datos!$Q19,DRIVE!$N:$N,"No",DRIVE!$Q:$Q,Datos!$R$3)) -> 0 | U19: =IF($R$3="ACUMULADO",COUNTIFS(DRIVE!$S:$S,Datos!$Q19,DRIVE!$N:$N,"Si",DRIVE!$R:$R,"NO"),COUNTIFS(DRIVE!$S:$S,Datos!$Q19,DRIVE!$N:$N,"Si",DRIVE!$Q:$Q,Datos!$R$3,DRIVE!$R:$R,"NO")) -> 0 | V19: =IF($R$3="ACUMULADO",COUNTIF(GR!I:I,Datos!Q19),COUNTIFS(GR!$I:$I,Datos!$Q19,GR!$H:$H,Datos!$R$3)) -> 31 | W19: =IF($R$3="ACUMULADO",COUNTIF(PRE!I:I,Datos!Q19),COUNTIFS(PRE!$I:$I,Datos!$Q19,PRE!$H:$H,Datos!$R$3)) -> 0 | X19: =IF($R$3="ACUMULADO",COUNTIFS(DRIVE!$S:$S,Datos!$Q19,DRIVE!$A:$A,Datos!X$5),COUNTIFS(DRIVE!$S:$S,Datos!$Q19,DRIVE!$A:$A,Datos!X$5,DRIVE!$Q:$Q,Datos!$R$3)) -> 12 | Y19: =IF($R$3="ACUMULADO",COUNTIFS(DRIVE!$S:$S,Datos!$Q19,DRIVE!$A:$A,Datos!Y$5),COUNTIFS(DRIVE!$S:$S,Datos!$Q19,DRIVE!$A:$A,Datos!Y$5,DRIVE!$Q:$Q,Datos!$R$3)) -> 0 | Z19: 1 | AA19: 1 | AB19: 31 | AC19: 0 | AD19: 12 | AE19: 19
B20: Acompañantes | C20: =SUMIFS(DRIVE!$O:$O,DRIVE!$A:$A,Datos!$B7,DRIVE!$Q:$Q,Datos!C$5,DRIVE!$N:$N,Datos!$B19) -> 0 | D20: =SUMIFS(DRIVE!$O:$O,DRIVE!$A:$A,Datos!$B7,DRIVE!$Q:$Q,Datos!D$5,DRIVE!$N:$N,Datos!$B19) -> 1048 | E20: =SUMIFS(DRIVE!$O:$O,DRIVE!$A:$A,Datos!$B7,DRIVE!$Q:$Q,Datos!E$5,DRIVE!$N:$N,Datos!$B19) -> 667 | F20: =SUMIFS(DRIVE!$O:$O,DRIVE!$A:$A,Datos!$B7,DRIVE!$Q:$Q,Datos!F$5,DRIVE!$N:$N,Datos!$B19) -> 0 | G20: =SUMIFS(DRIVE!$O:$O,DRIVE!$A:$A,Datos!$B7,DRIVE!$Q:$Q,Datos!G$5,DRIVE!$N:$N,Datos!$B19) -> 693 | H20: =SUM(C20:G20) -> 2408 | Q20: Río Negro | R20: =IF($R$3="ACUMULADO",COUNTIFS(DRIVE!$S:$S,Datos!$Q20,DRIVE!$N:$N,"Si",DRIVE!$R:$R,"SI"),COUNTIFS(DRIVE!$S:$S,Datos!$Q20,DRIVE!$N:$N,"Si",DRIVE!$Q:$Q,Datos!$R$3,DRIVE!$R:$R,"SI")) -> 4 | S20: =IF($R$3="ACUMULADO",SUMIFS(DRIVE!O:O,DRIVE!$S:$S,Datos!$Q20,DRIVE!$N:$N,"Si",DRIVE!$R:$R,"SI"),SUMIFS(DRIVE!O:O,DRIVE!$S:$S,Datos!$Q20,DRIVE!$N:$N,"Si",DRIVE!$Q:$Q,Datos!$R$3,DRIVE!$R:$R,"SI")) -> 16 | T20: =IF($R$3="ACUMULADO",COUNTIFS(DRIVE!$S:$S,Datos!$Q20,DRIVE!$N:$N,"No"),COUNTIFS(DRIVE!$S:$S,Datos!$Q20,DRIVE!$N:$N,"No",DRIVE!$Q:$Q,Datos!$R$3)) -> 0 | U20: =IF($R$3="ACUMULADO",COUNTIFS(DRIVE!$S:$S,Datos!$Q20,DRIVE!$N:$N,"Si",DRIVE!$R:$R,"NO"),COUNTIFS(DRIVE!$S:$S,Datos!$Q20,DRIVE!$N:$N,"Si",DRIVE!$Q:$Q,Datos!$R$3,DRIVE!$R:$R,"NO")) -> 0 | V20: =IF($R$3="ACUMULADO",COUNTIF(GR!I:I,Datos!Q20),COUNTIFS(GR!$I:$I,Datos!$Q20,GR!$H:$H,Datos!$R$3)) -> 20 | W20: =IF($R$3="ACUMULADO",COUNTIF(PRE!I:I,Datos!Q20),COUNTIFS(PRE!$I:$I,Datos!$Q20,PRE!$H:$H,Datos!$R$3)) -> 1 | X20: =IF($R$3="ACUMULADO",COUNTIFS(DRIVE!$S:$S,Datos!$Q20,DRIVE!$A:$A,Datos!X$5),COUNTIFS(DRIVE!$S:$S,Datos!$Q20,DRIVE!$A:$A,Datos!X$5,DRIVE!$Q:$Q,Datos!$R$3)) -> 4 | Y20: =IF($R$3="ACUMULADO",COUNTIFS(DRIVE!$S:$S,Datos!$Q20,DRIVE!$A:$A,Datos!Y$5),COUNTIFS(DRIVE!$S:$S,Datos!$Q20,DRIVE!$A:$A,Datos!Y$5,DRIVE!$Q:$Q,Datos!$R$3)) -> 0 | Z20: 1 | AA20: 1 | AB20: 21 | AC20: 0 | AD20: 4 | AE20: 17
B21: NO | C21: =COUNTIFS(DRIVE!$A:$A,Datos!$B11,DRIVE!$Q:$Q,Datos!C$5,DRIVE!$N:$N,Datos!$B21) -> 0 | D21: =COUNTIFS(DRIVE!$A:$A,Datos!$B11,DRIVE!$Q:$Q,Datos!D$5,DRIVE!$N:$N,Datos!$B21) -> 2 | E21: =COUNTIFS(DRIVE!$A:$A,Datos!$B11,DRIVE!$Q:$Q,Datos!E$5,DRIVE!$N:$N,Datos!$B21) -> 1 | F21: =COUNTIFS(DRIVE!$A:$A,Datos!$B11,DRIVE!$Q:$Q,Datos!F$5,DRIVE!$N:$N,Datos!$B21) -> 0 | G21: =COUNTIFS(DRIVE!$A:$A,Datos!$B11,DRIVE!$Q:$Q,Datos!G$5,DRIVE!$N:$N,Datos!$B21) -> 1 | H21: =SUM(C21:G21) -> 4 | Q21: Salta | R21: =IF($R$3="ACUMULADO",COUNTIFS(DRIVE!$S:$S,Datos!$Q21,DRIVE!$N:$N,"Si",DRIVE!$R:$R,"SI"),COUNTIFS(DRIVE!$S:$S,Datos!$Q21,DRIVE!$N:$N,"Si",DRIVE!$Q:$Q,Datos!$R$3,DRIVE!$R:$R,"SI")) -> 11 | S21: =IF($R$3="ACUMULADO",SUMIFS(DRIVE!O:O,DRIVE!$S:$S,Datos!$Q21,DRIVE!$N:$N,"Si",DRIVE!$R:$R,"SI"),SUMIFS(DRIVE!O:O,DRIVE!$S:$S,Datos!$Q21,DRIVE!$N:$N,"Si",DRIVE!$Q:$Q,Datos!$R$3,DRIVE!$R:$R,"SI")) -> 33 | T21: =IF($R$3="ACUMULADO",COUNTIFS(DRIVE!$S:$S,Datos!$Q21,DRIVE!$N:$N,"No"),COUNTIFS(DRIVE!$S:$S,Datos!$Q21,DRIVE!$N:$N,"No",DRIVE!$Q:$Q,Datos!$R$3)) -> 0 | U21: =IF($R$3="ACUMULADO",COUNTIFS(DRIVE!$S:$S,Datos!$Q21,DRIVE!$N:$N,"Si",DRIVE!$R:$R,"NO"),COUNTIFS(DRIVE!$S:$S,Datos!$Q21,DRIVE!$N:$N,"Si",DRIVE!$Q:$Q,Datos!$R$3,DRIVE!$R:$R,"NO")) -> 2 | V21: =IF($R$3="ACUMULADO",COUNTIF(GR!I:I,Datos!Q21),COUNTIFS(GR!$I:$I,Datos!$Q21,GR!$H:$H,Datos!$R$3)) -> 65 | W21: =IF($R$3="ACUMULADO",COUNTIF(PRE!I:I,Datos!Q21),COUNTIFS(PRE!$I:$I,Datos!$Q21,PRE!$H:$H,Datos!$R$3)) -> 0 | X21: =IF($R$3="ACUMULADO",COUNTIFS(DRIVE!$S:$S,Datos!$Q21,DRIVE!$A:$A,Datos!X$5),COUNTIFS(DRIVE!$S:$S,Datos!$Q21,DRIVE!$A:$A,Datos!X$5,DRIVE!$Q:$Q,Datos!$R$3)) -> 13 | Y21: =IF($R$3="ACUMULADO",COUNTIFS(DRIVE!$S:$S,Datos!$Q21,DRIVE!$A:$A,Datos!Y$5),COUNTIFS(DRIVE!$S:$S,Datos!$Q21,DRIVE!$A:$A,Datos!Y$5,DRIVE!$Q:$Q,Datos!$R$3)) -> 0 | Z21: 0.8461538462 | AA21: 0.8461538462 | AB21: 65 | AC21: 2 | AD21: 13 | AE21: 52
Q22: San Juan | R22: =IF($R$3="ACUMULADO",COUNTIFS(DRIVE!$S:$S,Datos!$Q22,DRIVE!$N:$N,"Si",DRIVE!$R:$R,"SI"),COUNTIFS(DRIVE!$S:$S,Datos!$Q22,DRIVE!$N:$N,"Si",DRIVE!$Q:$Q,Datos!$R$3,DRIVE!$R:$R,"SI")) -> 13 | S22: =IF($R$3="ACUMULADO",SUMIFS(DRIVE!O:O,DRIVE!$S:$S,Datos!$Q22,DRIVE!$N:$N,"Si",DRIVE!$R:$R,"SI"),SUMIFS(DRIVE!O:O,DRIVE!$S:$S,Datos!$Q22,DRIVE!$N:$N,"Si",DRIVE!$Q:$Q,Datos!$R$3,DRIVE!$R:$R,"SI")) -> 49 | T22: =IF($R$3="ACUMULADO",COUNTIFS(DRIVE!$S:$S,Datos!$Q22,DRIVE!$N:$N,"No"),COUNTIFS(DRIVE!$S:$S,Datos!$Q22,DRIVE!$N:$N,"No",DRIVE!$Q:$Q,Datos!$R$3)) -> 0 | U22: =IF($R$3="ACUMULADO",COUNTIFS(DRIVE!$S:$S,Datos!$Q22,DRIVE!$N:$N,"Si",DRIVE!$R:$R,"NO"),COUNTIFS(DRIVE!$S:$S,Datos!$Q22,DRIVE!$N:$N,"Si",DRIVE!$Q:$Q,Datos!$R$3,DRIVE!$R:$R,"NO")) -> 0 | V22: =IF($R$3="ACUMULADO",COUNTIF(GR!I:I,Datos!Q22),COUNTIFS(GR!$I:$I,Datos!$Q22,GR!$H:$H,Datos!$R$3)) -> 47 | W22: =IF($R$3="ACUMULADO",COUNTIF(PRE!I:I,Datos!Q22),COUNTIFS(PRE!$I:$I,Datos!$Q22,PRE!$H:$H,Datos!$R$3)) -> 1 | X22: =IF($R$3="ACUMULADO",COUNTIFS(DRIVE!$S:$S,Datos!$Q22,DRIVE!$A:$A,Datos!X$5),COUNTIFS(DRIVE!$S:$S,Datos!$Q22,DRIVE!$A:$A,Datos!X$5,DRIVE!$Q:$Q,Datos!$R$3)) -> 13 | Y22: =IF($R$3="ACUMULADO",COUNTIFS(DRIVE!$S:$S,Datos!$Q22,DRIVE!$A:$A,Datos!Y$5),COUNTIFS(DRIVE!$S:$S,Datos!$Q22,DRIVE!$A:$A,Datos!Y$5,DRIVE!$Q:$Q,Datos!$R$3)) -> 0 | Z22: 1 | AA22: 1 | AB22: 48 | AC22: 0 | AD22: 13 | AE22: 35
B23: Asiste / PREGRADO | Q23: San Luis | R23: =IF($R$3="ACUMULADO",COUNTIFS(DRIVE!$S:$S,Datos!$Q23,DRIVE!$N:$N,"Si",DRIVE!$R:$R,"SI"),COUNTIFS(DRIVE!$S:$S,Datos!$Q23,DRIVE!$N:$N,"Si",DRIVE!$Q:$Q,Datos!$R$3,DRIVE!$R:$R,"SI")) -> 3 | S23: =IF($R$3="ACUMULADO",SUMIFS(DRIVE!O:O,DRIVE!$S:$S,Datos!$Q23,DRIVE!$N:$N,"Si",DRIVE!$R:$R,"SI"),SUMIFS(DRIVE!O:O,DRIVE!$S:$S,Datos!$Q23,DRIVE!$N:$N,"Si",DRIVE!$Q:$Q,Datos!$R$3,DRIVE!$R:$R,"SI")) -> 11 | T23: =IF($R$3="ACUMULADO",COUNTIFS(DRIVE!$S:$S,Datos!$Q23,DRIVE!$N:$N,"No"),COUNTIFS(DRIVE!$S:$S,Datos!$Q23,DRIVE!$N:$N,"No",DRIVE!$Q:$Q,Datos!$R$3)) -> 0 | U23: =IF($R$3="ACUMULADO",COUNTIFS(DRIVE!$S:$S,Datos!$Q23,DRIVE!$N:$N,"Si",DRIVE!$R:$R,"NO"),COUNTIFS(DRIVE!$S:$S,Datos!$Q23,DRIVE!$N:$N,"Si",DRIVE!$Q:$Q,Datos!$R$3,DRIVE!$R:$R,"NO")) -> 1 | V23: =IF($R$3="ACUMULADO",COUNTIF(GR!I:I,Datos!Q23),COUNTIFS(GR!$I:$I,Datos!$Q23,GR!$H:$H,Datos!$R$3)) -> 46 | W23: =IF($R$3="ACUMULADO",COUNTIF(PRE!I:I,Datos!Q23),COUNTIFS(PRE!$I:$I,Datos!$Q23,PRE!$H:$H,Datos!$R$3)) -> 4 | X23: =IF($R$3="ACUMULADO",COUNTIFS(DRIVE!$S:$S,Datos!$Q23,DRIVE!$A:$A,Datos!X$5),COUNTIFS(DRIVE!$S:$S,Datos!$Q23,DRIVE!$A:$A,Datos!X$5,DRIVE!$Q:$Q,Datos!$R$3)) -> 4 | Y23: =IF($R$3="ACUMULADO",COUNTIFS(DRIVE!$S:$S,Datos!$Q23,DRIVE!$A:$A,Datos!Y$5),COUNTIFS(DRIVE!$S:$S,Datos!$Q23,DRIVE!$A:$A,Datos!Y$5,DRIVE!$Q:$Q,Datos!$R$3)) -> 0 | Z23: 0.75 | AA23: 0.75 | AB23: 50 | AC23: 1 | AD23: 4 | AE23: 46
B24: SI | C24: =COUNTIFS(DRIVE!$A:$A,Datos!$B12,DRIVE!$Q:$Q,Datos!C$5,DRIVE!$N:$N,Datos!$B24) -> 112 | D24: =COUNTIFS(DRIVE!$A:$A,Datos!$B12,DRIVE!$Q:$Q,Datos!D$5,DRIVE!$N:$N,Datos!$B24) -> 0 | E24: =COUNTIFS(DRIVE!$A:$A,Datos!$B12,DRIVE!$Q:$Q,Datos!E$5,DRIVE!$N:$N,Datos!$B24) -> 0 | F24: =COUNTIFS(DRIVE!$A:$A,Datos!$B12,DRIVE!$Q:$Q,Datos!F$5,DRIVE!$N:$N,Datos!$B24) -> 0 | G24: =COUNTIFS(DRIVE!$A:$A,Datos!$B12,DRIVE!$Q:$Q,Datos!G$5,DRIVE!$N:$N,Datos!$B24) -> 0 | H24: =SUM(C24:G24) -> 112 | Q24: Santa Cruz | R24: =IF($R$3="ACUMULADO",COUNTIFS(DRIVE!$S:$S,Datos!$Q24,DRIVE!$N:$N,"Si",DRIVE!$R:$R,"SI"),COUNTIFS(DRIVE!$S:$S,Datos!$Q24,DRIVE!$N:$N,"Si",DRIVE!$Q:$Q,Datos!$R$3,DRIVE!$R:$R,"SI")) -> 4 | S24: =IF($R$3="ACUMULADO",SUMIFS(DRIVE!O:O,DRIVE!$S:$S,Datos!$Q24,DRIVE!$N:$N,"Si",DRIVE!$R:$R,"SI"),SUMIFS(DRIVE!O:O,DRIVE!$S:$S,Datos!$Q24,DRIVE!$N:$N,"Si",DRIVE!$Q:$Q,Datos!$R$3,DRIVE!$R:$R,"SI")) -> 16 | T24: =IF($R$3="ACUMULADO",COUNTIFS(DRIVE!$S:$S,Datos!$Q24,DRIVE!$N:$N,"No"),COUNTIFS(DRIVE!$S:$S,Datos!$Q24,DRIVE!$N:$N,"No",DRIVE!$Q:$Q,Datos!$R$3)) -> 0 | U24: =IF($R$3="ACUMULADO",COUNTIFS(DRIVE!$S:$S,Datos!$Q24,DRIVE!$N:$N,"Si",DRIVE!$R:$R,"NO"),COUNTIFS(DRIVE!$S:$S,Datos!$Q24,DRIVE!$N:$N,"Si",DRIVE!$Q:$Q,Datos!$R$3,DRIVE!$R:$R,"NO")) -> 1 | V24: =IF($R$3="ACUMULADO",COUNTIF(GR!I:I,Datos!Q24),COUNTIFS(GR!$I:$I,Datos!$Q24,GR!$H:$H,Datos!$R$3)) -> 21 | W24: =IF($R$3="ACUMULADO",COUNTIF(PRE!I:I,Datos!Q24),COUNTIFS(PRE!$I:$I,Datos!$Q24,PRE!$H:$H,Datos!$R$3)) -> 1 | X24: =IF($R$3="ACUMULADO",COUNTIFS(DRIVE!$S:$S,Datos!$Q24,DRIVE!$A:$A,Datos!X$5),COUNTIFS(DRIVE!$S:$S,Datos!$Q24,DRIVE!$A:$A,Datos!X$5,DRIVE!$Q:$Q,Datos!$R$3)) -> 3 | Y24: =IF($R$3="ACUMULADO",COUNTIFS(DRIVE!$S:$S,Datos!$Q24,DRIVE!$A:$A,Datos!Y$5),COUNTIFS(DRIVE!$S:$S,Datos!$Q24,DRIVE!$A:$A,Datos!Y$5,DRIVE!$Q:$Q,Datos!$R$3)) -> 2 | Z24: 0.8 | AA24: 0.8 | AB24: 22 | AC24: 1 | AD24: 5 | AE24: 17
B25: Acompañantes | C25: =SUMIFS(DRIVE!$O:$O,DRIVE!$A:$A,Datos!$B12,DRIVE!$Q:$Q,Datos!C$5,DRIVE!$N:$N,Datos!$B24) -> 428 | D25: =SUMIFS(DRIVE!$O:$O,DRIVE!$A:$A,Datos!$B12,DRIVE!$Q:$Q,Datos!D$5,DRIVE!$N:$N,Datos!$B24) -> 0 | E25: =SUMIFS(DRIVE!$O:$O,DRIVE!$A:$A,Datos!$B12,DRIVE!$Q:$Q,Datos!E$5,DRIVE!$N:$N,Datos!$B24) -> 0 | F25: =SUMIFS(DRIVE!$O:$O,DRIVE!$A:$A,Datos!$B12,DRIVE!$Q:$Q,Datos!F$5,DRIVE!$N:$N,Datos!$B24) -> 0 | G25: =SUMIFS(DRIVE!$O:$O,DRIVE!$A:$A,Datos!$B12,DRIVE!$Q:$Q,Datos!G$5,DRIVE!$N:$N,Datos!$B24) -> 0 | H25: =SUM(C25:G25) -> 428 | Q25: Santa Fe | R25: =IF($R$3="ACUMULADO",COUNTIFS(DRIVE!$S:$S,Datos!$Q25,DRIVE!$N:$N,"Si",DRIVE!$R:$R,"SI"),COUNTIFS(DRIVE!$S:$S,Datos!$Q25,DRIVE!$N:$N,"Si",DRIVE!$Q:$Q,Datos!$R$3,DRIVE!$R:$R,"SI")) -> 19 | S25: =IF($R$3="ACUMULADO",SUMIFS(DRIVE!O:O,DRIVE!$S:$S,Datos!$Q25,DRIVE!$N:$N,"Si",DRIVE!$R:$R,"SI"),SUMIFS(DRIVE!O:O,DRIVE!$S:$S,Datos!$Q25,DRIVE!$N:$N,"Si",DRIVE!$Q:$Q,Datos!$R$3,DRIVE!$R:$R,"SI")) -> 64 | T25: =IF($R$3="ACUMULADO",COUNTIFS(DRIVE!$S:$S,Datos!$Q25,DRIVE!$N:$N,"No"),COUNTIFS(DRIVE!$S:$S,Datos!$Q25,DRIVE!$N:$N,"No",DRIVE!$Q:$Q,Datos!$R$3)) -> 0 | U25: =IF($R$3="ACUMULADO",COUNTIFS(DRIVE!$S:$S,Datos!$Q25,DRIVE!$N:$N,"Si",DRIVE!$R:$R,"NO"),COUNTIFS(DRIVE!$S:$S,Datos!$Q25,DRIVE!$N:$N,"Si",DRIVE!$Q:$Q,Datos!$R$3,DRIVE!$R:$R,"NO")) -> 1 | V25: =IF($R$3="ACUMULADO",COUNTIF(GR!I:I,Datos!Q25),COUNTIFS(GR!$I:$I,Datos!$Q25,GR!$H:$H,Datos!$R$3)) -> 68 | W25: =IF($R$3="ACUMULADO",COUNTIF(PRE!I:I,Datos!Q25),COUNTIFS(PRE!$I:$I,Datos!$Q25,PRE!$H:$H,Datos!$R$3)) -> 1 | X25: =IF($R$3="ACUMULADO",COUNTIFS(DRIVE!$S:$S,Datos!$Q25,DRIVE!$A:$A,Datos!X$5),COUNTIFS(DRIVE!$S:$S,Datos!$Q25,DRIVE!$A:$A,Datos!X$5,DRIVE!$Q:$Q,Datos!$R$3)) -> 20 | Y25: =IF($R$3="ACUMULADO",COUNTIFS(DRIVE!$S:$S,Datos!$Q25,DRIVE!$A:$A,Datos!Y$5),COUNTIFS(DRIVE!$S:$S,Datos!$Q25,DRIVE!$A:$A,Datos!Y$5,DRIVE!$Q:$Q,Datos!$R$3)) -> 0 | Z25: 0.95 | AA25: 0.95 | AB25: 69 | AC25: 1 | AD25: 20 | AE25: 49
B26: NO | C26: =COUNTIFS(DRIVE!$A:$A,Datos!$B12,DRIVE!$Q:$Q,Datos!C$5,DRIVE!$N:$N,Datos!$B26) -> 2 | D26: =COUNTIFS(DRIVE!$A:$A,Datos!$B12,DRIVE!$Q:$Q,Datos!D$5,DRIVE!$N:$N,Datos!$B26) -> 0 | E26: =COUNTIFS(DRIVE!$A:$A,Datos!$B12,DRIVE!$Q:$Q,Datos!E$5,DRIVE!$N:$N,Datos!$B26) -> 0 | F26: =COUNTIFS(DRIVE!$A:$A,Datos!$B12,DRIVE!$Q:$Q,Datos!F$5,DRIVE!$N:$N,Datos!$B26) -> 0 | G26: =COUNTIFS(DRIVE!$A:$A,Datos!$B12,DRIVE!$Q:$Q,Datos!G$5,DRIVE!$N:$N,Datos!$B26) -> 0 | H26: =SUM(C26:G26) -> 2 | Q26: Santiago Del Estero | R26: =IF($R$3="ACUMULADO",COUNTIFS(DRIVE!$S:$S,Datos!$Q26,DRIVE!$N:$N,"Si",DRIVE!$R:$R,"SI"),COUNTIFS(DRIVE!$S:$S,Datos!$Q26,DRIVE!$N:$N,"Si",DRIVE!$Q:$Q,Datos!$R$3,DRIVE!$R:$R,"SI")) -> 15 | S26: =IF($R$3="ACUMULADO",SUMIFS(DRIVE!O:O,DRIVE!$S:$S,Datos!$Q26,DRIVE!$N:$N,"Si",DRIVE!$R:$R,"SI"),SUMIFS(DRIVE!O:O,DRIVE!$S:$S,Datos!$Q26,DRIVE!$N:$N,"Si",DRIVE!$Q:$Q,Datos!$R$3,DRIVE!$R:$R,"SI")) -> 58 | T26: =IF($R$3="ACUMULADO",COUNTIFS(DRIVE!$S:$S,Datos!$Q26,DRIVE!$N:$N,"No"),COUNTIFS(DRIVE!$S:$S,Datos!$Q26,DRIVE!$N:$N,"No",DRIVE!$Q:$Q,Datos!$R$3)) -> 0 | U26: =IF($R$3="ACUMULADO",COUNTIFS(DRIVE!$S:$S,Datos!$Q26,DRIVE!$N:$N,"Si",DRIVE!$R:$R,"NO"),COUNTIFS(DRIVE!$S:$S,Datos!$Q26,DRIVE!$N:$N,"Si",DRIVE!$Q:$Q,Datos!$R$3,DRIVE!$R:$R,"NO")) -> 3 | V26: =IF($R$3="ACUMULADO",COUNTIF(GR!I:I,Datos!Q26),COUNTIFS(GR!$I:$I,Datos!$Q26,GR!$H:$H,Datos!$R$3)) -> 53 | W26: =IF($R$3="ACUMULADO",COUNTIF(PRE!I:I,Datos!Q26),COUNTIFS(PRE!$I:$I,Datos!$Q26,PRE!$H:$H,Datos!$R$3)) -> 3 | X26: =IF($R$3="ACUMULADO",COUNTIFS(DRIVE!$S:$S,Datos!$Q26,DRIVE!$A:$A,Datos!X$5),COUNTIFS(DRIVE!$S:$S,Datos!$Q26,DRIVE!$A:$A,Datos!X$5,DRIVE!$Q:$Q,Datos!$R$3)) -> 18 | Y26: =IF($R$3="ACUMULADO",COUNTIFS(DRIVE!$S:$S,Datos!$Q26,DRIVE!$A:$A,Datos!Y$5),COUNTIFS(DRIVE!$S:$S,Datos!$Q26,DRIVE!$A:$A,Datos!Y$5,DRIVE!$Q:$Q,Datos!$R$3)) -> 0 | Z26: 0.8333333333 | AA26: 0.8333333333 | AB26: 56 | AC26: 3 | AD26: 18 | AE26: 38
Q27: Tierra Del Fuego | R27: =IF($R$3="ACUMULADO",COUNTIFS(DRIVE!$S:$S,Datos!$Q27,DRIVE!$N:$N,"Si",DRIVE!$R:$R,"SI"),COUNTIFS(DRIVE!$S:$S,Datos!$Q27,DRIVE!$N:$N,"Si",DRIVE!$Q:$Q,Datos!$R$3,DRIVE!$R:$R,"SI")) -> 4 | S27: =IF($R$3="ACUMULADO",SUMIFS(DRIVE!O:O,DRIVE!$S:$S,Datos!$Q27,DRIVE!$N:$N,"Si",DRIVE!$R:$R,"SI"),SUMIFS(DRIVE!O:O,DRIVE!$S:$S,Datos!$Q27,DRIVE!$N:$N,"Si",DRIVE!$Q:$Q,Datos!$R$3,DRIVE!$R:$R,"SI")) -> 13 | T27: =IF($R$3="ACUMULADO",COUNTIFS(DRIVE!$S:$S,Datos!$Q27,DRIVE!$N:$N,"No"),COUNTIFS(DRIVE!$S:$S,Datos!$Q27,DRIVE!$N:$N,"No",DRIVE!$Q:$Q,Datos!$R$3)) -> 0 | U27: =IF($R$3="ACUMULADO",COUNTIFS(DRIVE!$S:$S,Datos!$Q27,DRIVE!$N:$N,"Si",DRIVE!$R:$R,"NO"),COUNTIFS(DRIVE!$S:$S,Datos!$Q27,DRIVE!$N:$N,"Si",DRIVE!$Q:$Q,Datos!$R$3,DRIVE!$R:$R,"NO")) -> 0 | V27: =IF($R$3="ACUMULADO",COUNTIF(GR!I:I,Datos!Q27),COUNTIFS(GR!$I:$I,Datos!$Q27,GR!$H:$H,Datos!$R$3)) -> 9 | W27: =IF($R$3="ACUMULADO",COUNTIF(PRE!I:I,Datos!Q27),COUNTIFS(PRE!$I:$I,Datos!$Q27,PRE!$H:$H,Datos!$R$3)) -> 2 | X27: =IF($R$3="ACUMULADO",COUNTIFS(DRIVE!$S:$S,Datos!$Q27,DRIVE!$A:$A,Datos!X$5),COUNTIFS(DRIVE!$S:$S,Datos!$Q27,DRIVE!$A:$A,Datos!X$5,DRIVE!$Q:$Q,Datos!$R$3)) -> 4 | Y27: =IF($R$3="ACUMULADO",COUNTIFS(DRIVE!$S:$S,Datos!$Q27,DRIVE!$A:$A,Datos!Y$5),COUNTIFS(DRIVE!$S:$S,Datos!$Q27,DRIVE!$A:$A,Datos!Y$5,DRIVE!$Q:$Q,Datos!$R$3)) -> 0 | Z27: 1 | AA27: 1 | AB27: 11 | AC27: 0 | AD27: 4 | AE27: 7
B28: GRADO | Q28: Tucumán | R28: =IF($R$3="ACUMULADO",COUNTIFS(DRIVE!$S:$S,Datos!$Q28,DRIVE!$N:$N,"Si",DRIVE!$R:$R,"SI"),COUNTIFS(DRIVE!$S:$S,Datos!$Q28,DRIVE!$N:$N,"Si",DRIVE!$Q:$Q,Datos!$R$3,DRIVE!$R:$R,"SI")) -> 6 | S28: =IF($R$3="ACUMULADO",SUMIFS(DRIVE!O:O,DRIVE!$S:$S,Datos!$Q28,DRIVE!$N:$N,"Si",DRIVE!$R:$R,"SI"),SUMIFS(DRIVE!O:O,DRIVE!$S:$S,Datos!$Q28,DRIVE!$N:$N,"Si",DRIVE!$Q:$Q,Datos!$R$3,DRIVE!$R:$R,"SI")) -> 23 | T28: =IF($R$3="ACUMULADO",COUNTIFS(DRIVE!$S:$S,Datos!$Q28,DRIVE!$N:$N,"No"),COUNTIFS(DRIVE!$S:$S,Datos!$Q28,DRIVE!$N:$N,"No",DRIVE!$Q:$Q,Datos!$R$3)) -> 0 | U28: =IF($R$3="ACUMULADO",COUNTIFS(DRIVE!$S:$S,Datos!$Q28,DRIVE!$N:$N,"Si",DRIVE!$R:$R,"NO"),COUNTIFS(DRIVE!$S:$S,Datos!$Q28,DRIVE!$N:$N,"Si",DRIVE!$Q:$Q,Datos!$R$3,DRIVE!$R:$R,"NO")) -> 1 | V28: =IF($R$3="ACUMULADO",COUNTIF(GR!I:I,Datos!Q28),COUNTIFS(GR!$I:$I,Datos!$Q28,GR!$H:$H,Datos!$R$3)) -> 27 | W28: =IF($R$3="ACUMULADO",COUNTIF(PRE!I:I,Datos!Q28),COUNTIFS(PRE!$I:$I,Datos!$Q28,PRE!$H:$H,Datos!$R$3)) -> 2 | X28: =IF($R$3="ACUMULADO",COUNTIFS(DRIVE!$S:$S,Datos!$Q28,DRIVE!$A:$A,Datos!X$5),COUNTIFS(DRIVE!$S:$S,Datos!$Q28,DRIVE!$A:$A,Datos!X$5,DRIVE!$Q:$Q,Datos!$R$3)) -> 7 | Y28: =IF($R$3="ACUMULADO",COUNTIFS(DRIVE!$S:$S,Datos!$Q28,DRIVE!$A:$A,Datos!Y$5),COUNTIFS(DRIVE!$S:$S,Datos!$Q28,DRIVE!$A:$A,Datos!Y$5,DRIVE!$Q:$Q,Datos!$R$3)) -> 0 | Z28: 0.8571428571 | AA28: 0.8571428571 | AB28: 29 | AC28: 1 | AD28: 7 | AE28: 22
B29: Contactado | C29: =C11-C30 -> 0 | D29: =D11-D30 -> 243 | E29: 164 | F29: 0 | G29: 167 | H29: =SUM(C29:G29) -> 574 | Q29: Total | R29: =SUM(R6:R28) -> 677 | S29: =SUM(S6:S28) -> 2550 | T29: =SUM(T6:T28) -> 6 | U29: =SUM(U6:U28) -> 80 | V29: =SUM(V6:V28) -> 2040 | W29: 305 | X29: =SUM(X6:X28) -> 646 | Y29: =SUM(Y6:Y28) -> 117 | Z29: 0.8872870249 | AA29: 0.8872870249 | AB29: =V29+W29 -> 2345 | AC29: 86 | AD29: =X29+Y29 -> 763 | AE29: =(V29+W29)-AD29 -> 1582
B30: No contactado | C30: =COUNTIFS(DRIVE!$A:$A,Datos!$B28,DRIVE!$Q:$Q,Datos!C$5,DRIVE!$P:$P,"") -> 0 | D30: =COUNTIFS(DRIVE!$A:$A,Datos!$B28,DRIVE!$Q:$Q,Datos!D$5,DRIVE!$P:$P,"") -> 38 | E30: =COUNTIFS(DRIVE!$A:$A,Datos!$B28,DRIVE!$Q:$Q,Datos!E$5,DRIVE!$P:$P,"") -> 17 | F30: =COUNTIFS(DRIVE!$A:$A,Datos!$B28,DRIVE!$Q:$Q,Datos!F$5,DRIVE!$P:$P,"") -> 0 | G30: =COUNTIFS(DRIVE!$A:$A,Datos!$B28,DRIVE!$Q:$Q,Datos!G$5,DRIVE!$P:$P,"") -> 16 | H30: =SUM(C30:G30) -> 71
B32: Tasa Contacto GRADO | C32: =IFERROR(C29/C11,0) -> 0 | D32: =IFERROR(D29/D11,0) -> 0.8647686833 | E32: 0.9060773481 | F32: 0 | G32: 0.912568306 | H32: 0.8899224806
B34: PREGRADO
B35: Contactado | C35: =C12-C36 -> 104 | D35: =D12-D36 -> 0 | E35: 0 | F35: 0 | G35: 0 | H35: =SUM(C35:G35) -> 104
B36: No contactado | C36: =COUNTIFS(DRIVE!$A:$A,Datos!$B34,DRIVE!$Q:$Q,Datos!C$5,DRIVE!$P:$P,"") -> 10 | D36: =COUNTIFS(DRIVE!$A:$A,Datos!$B34,DRIVE!$Q:$Q,Datos!D$5,DRIVE!$P:$P,"") -> 0 | E36: =COUNTIFS(DRIVE!$A:$A,Datos!$B34,DRIVE!$Q:$Q,Datos!E$5,DRIVE!$P:$P,"") -> 0 | F36: =COUNTIFS(DRIVE!$A:$A,Datos!$B34,DRIVE!$Q:$Q,Datos!F$5,DRIVE!$P:$P,"") -> 0 | G36: =COUNTIFS(DRIVE!$A:$A,Datos!$B34,DRIVE!$Q:$Q,Datos!G$5,DRIVE!$P:$P,"") -> 0 | H36: =SUM(C36:G36) -> 10
Y37: Buenos Aires | Z37: Catamarca | AA37: Chaco | AB37: Chubut | AC37: Córdoba | AD37: Corrientes | AE37: Entre Ríos | AF37: Formosa | AG37: Jujuy | AH37: La Pampa | AI37: La Rioja | AJ37: Mendoza | AK37: Misiones | AL37: Neuquén | AM37: Río Negro | AN37: Salta | AO37: San Juan | AP37: San Luis | AQ37: Santa Cruz | AR37: Santa Fe | AS37: Santiago Del Estero | AT37: Tierra Del Fuego | AU37: Tucumán
B38: Tasa Contacto PREGRADO | C38: =IFERROR(C35/C12,0) -> 0.9122807018 | D38: =IFERROR(D35/D12,0) -> 0 | E38: 0 | F38: 0 | G38: 0 | H38: 0.9122807018 | X38: Asisten | Y38: =VLOOKUP(Y$37,Asiste_,2,FALSE) -> 33 | Z38: 3 | AA38: 3 | AB38: 2 | AC38: 514 | AD38: 0 | AE38: 1 | AF38: 0 | AG38: 8 | AH38: 6 | AI38: 4 | AJ38: 10 | AK38: 2 | AL38: 12 | AM38: 4 | AN38: 11 | AO38: 13 | AP38: 3 | AQ38: 4 | AR38: 19 | AS38: 15 | AT38: 4 | AU38: 6
X39: Invitados | Y39: =VLOOKUP(Y$37,Asiste_,3,FALSE) -> 106 | Z39: 12 | AA39: 12 | AB39: 8 | AC39: 1979 | AD39: 0 | AE39: 4 | AF39: 0 | AG39: 31 | AH39: 21 | AI39: 14 | AJ39: 33 | AK39: 6 | AL39: 41 | AM39: 16 | AN39: 33 | AO39: 49 | AP39: 11 | AQ39: 16 | AR39: 64 | AS39: 58 | AT39: 13 | AU39: 23

Sheet Legajos_Inc
A1: =REPORTE!A2 -> 2017-09-25
W3: Base | X3: =SUMIF(#REF!,1,#REF!) ->  | Y3: =X4/X3 ->  | AA3: =X6 ->  | AB3: =X4 -> 
W4: Barridos | X4: =SUMIF(#REF!,1,#REF!)+SUMIF(#REF!,1,#REF!) ->  | AA4: =X3-AA3 ->  | AB4: =X7 -> 
W5: Contactados | X5: =SUMIF(#REF!,1,#REF!) ->  | Y5: =X5/X3 -> 
K6: =+CONCATENATE("Actualizado al ",TEXT(A1,"dd/mm/yyyy")) -> Actualizado al 25/09/2017 | W6: Pendientes de contacto | X6: =X3-X5 ->  | Y6: =X4-X5 -> 
W7: Pendientes de Discar | X7: =X3-X4 -> 
W9: No, aun no la presenta, la presentara | X9: =COUNTIF(#REF!,Legajos_Inc!W9) ->  | Y9: =X4-X10-X9 ->  | Z9: =X9/X5 -> 
W10: Si, ya la presento | X10: =COUNTIF(#REF!,Legajos_Inc!W10) ->  | Z10: =X10/X5 -> 

Sheet Hoja2 (hidden)
A1: Estado | B1: Marca temporal | C1: Nombre y Apellido del Alumno | D1: DNI del Alumno | E1: Legajo del Alumno | F1: Numero de Referencia | G1: ¿Presento la Documentación Incompleta? | H1: Selecciona la documentación que Informa haber completado | I1: Selecciona tu nombre en el Desplegable | K1: =IFERROR(VLOOKUP(D1,#REF!,6,FALSE),"") ->  | L1: =MID(G1,1,2) -> ¿P
A2: =K2 ->  | B2: 2016-08-22T17:00:35 | C2: RAMOS, ELENNA | D2: 24873076 | E2: MAR02005 | G2: No, aun no la presenta, la presentara | I2: Tomas | K2: =IFERROR(VLOOKUP(D2,#REF!,7,FALSE),"") ->  | L2: =MID(G2,1,2) -> No
A3: =K3 ->  | B3: 2016-08-22T17:17:55 | C3: COBO, AGUSTIN | D3: 37994152 | E3: MAR01997 | G3: No, aun no la presenta, la presentara | I3: Tomas | K3: =IFERROR(VLOOKUP(D3,#REF!,7,FALSE),"") ->  | L3: No
B4: 2016-08-22T17:24:31 | C4: BUSTOS, LUCAS MARIANO | D4: 24692610 | E4: MAR01991 | G4: Si, ya la presento | H4: Analitico | I4: Tomas | K4: =IFERROR(VLOOKUP(D4,#REF!,7,FALSE),"") ->  | L4: Si
B5: 2016-08-22T17:29:58 | C5: GRANGETTO, LORENA | D5: 27501340 | E5: MAR01978 | G5: No, aun no la presenta, la presentara | I5: Tomas | K5: =IFERROR(VLOOKUP(D5,#REF!,7,FALSE),"") ->  | L5: No
B6: 2016-08-22T18:03:07 | C6: GUDINO, CLAUDIA ALEJANDRA | D6: 22772705 | E6: MAR01975 | F6: 5493141618 | G6: No, aun no la presenta, la presentara | I6: Tomas | K6: =IFERROR(VLOOKUP(D6,#REF!,7,FALSE),"") ->  | L6: No
B7: 2016-08-22T18:34:24 | C7: RODRIGUEZ, PATRICIA EDITH | D7: 23196877 | E7: MAR01884 | F7: 5493513423073 | G7: Si, ya la presento | H7: Analitico | I7: Tomas | K7: =IFERROR(VLOOKUP(D7,#REF!,7,FALSE),"") ->  | L7: Si
B8: 2016-08-22T19:51:32 | C8: GAVIER, FERNANDO NICOLAS | D8: 22773476 | E8: TMCI02825 | F8: 5493515145491 | G8: Si, ya la presento | H8: Documento - DNI, Analitico, Solicitud de Inscripcion | I8: Tomas | K8: =IFERROR(VLOOKUP(D8,#REF!,7,FALSE),"") ->  | L8: Si
B9: 2016-08-23T12:45:30 | C9: LANZAVECCHIA FEMENIAS MICAELA | D9: 35899881 | E9: MKT01609 | F9: 1923 | G9: Si, ya la presento | H9: Documento - DNI, Analitico, Solicitud de Inscripcion | I9: Luis | K9: =IFERROR(VLOOKUP(D9,#REF!,7,FALSE),"") ->  | L9: Si
B10: 2016-08-23T12:50:06 | C10: PARRA ROCIO AYELEN | D10: 34701840 | E10: VESC02454 | F10: 1922 | G10: Si, ya la presento | H10: Documento - DNI, Analitico, Solicitud de Inscripcion | I10: Luis | K10: =IFERROR(VLOOKUP(D10,#REF!,7,FALSE),"") ->  | L10: Si
B11: 2016-08-23T12:58:42 | C11: PICCA MARIA CELESTE | D11: 32772278 | E11: VESC02212 | F11: 1920 | G11: No, aun no la presenta, la presentara | I11: Luis | K11: =IFERROR(VLOOKUP(D11,#REF!,7,FALSE),"") ->  | L11: No
B12: 2016-08-23T13:02:23 | C12: Sanchez, Carina Edit | D12: 27869458 | E12: PDCE02448 | F12: 8 | G12: Si, ya la presento | H12: Documento - DNI | I12: Anabella | K12: =IFERROR(VLOOKUP(D12,#REF!,7,FALSE),"") ->  | L12: Si
B13: 2016-08-23T13:06:50 | C13: MARCOS ALBERTO MIGLIAZZO | D13: 31221214 | E13: VESC02450 | F13: 1919 | G13: No, aun no la presenta, la presentara | I13: Luis | K13: =IFERROR(VLOOKUP(D13,#REF!,7,FALSE),"") ->  | L13: No
B14: 2016-08-23T13:11:18 | C14: GUTIERREZ SIGMARINGO, GONZALO | D14: 32565759 | E14: PDGR12902 | F14: 10 | G14: Si, ya la presento | H14: Documento - DNI, Analitico, Solicitud de Inscripcion | I14: Anabella | K14: =IFERROR(VLOOKUP(D14,#REF!,7,FALSE),"") ->  | L14: Si
B15: 2016-08-23T13:26:57 | C15: STELLA MARYS ROSSI WENK | D15: 12331113 | E15: VESC02374 | F15: 1914 | G15: No, aun no la presenta, la presentara | I15: Luis | K15: =IFERROR(VLOOKUP(D15,#REF!,7,FALSE),"") ->  | L15: No
B16: 2016-08-23T13:34:22 | C16: NATALIA ARIAS | D16: 25449523 | E16: VESC02304 | F16: 1911 | G16: No, aun no la presenta, la presentara | I16: Luis | K16: =IFERROR(VLOOKUP(D16,#REF!,7,FALSE),"") ->  | L16: No
B17: 2016-08-23T13:44:02 | C17: Merlo, Erika | D17: 29030010 | E17: PSHS04660 | F17: 11 | G17: Si, ya la presento | H17: Documento - DNI, Analitico, Solicitud de Inscripcion | I17: Anabella | K17: =IFERROR(VLOOKUP(D17,#REF!,7,FALSE),"") ->  | L17: Si
B18: 2016-08-23T14:08:33 | C18: MARTIN FABIÁN SERRA | D18: 22184656 | E18: VESC02394 | F18: 1910 | G18: Si, ya la presento | H18: Documento - DNI, Analitico, Solicitud de Inscripcion | I18: Luis | K18: =IFERROR(VLOOKUP(D18,#REF!,7,FALSE),"") ->  | L18: Si
B19: 2016-08-23T14:14:33 | C19: LUCAS EMMANUEL SUASTE | D19: 27763757 | E19: VESC02363 | F19: 1909 | G19: Si, ya la presento | H19: Documento - DNI, Analitico, Solicitud de Inscripcion | I19: Luis | K19: =IFERROR(VLOOKUP(D19,#REF!,7,FALSE),"") ->  | L19: Si
B20: 2016-08-23T14:16:50 | C20: FLAVIA SILVANA OBDRZALEK GORSD | D20: 34486712 | E20: VESC01938 | F20: 1908 | G20: No, aun no la presenta, la presentara | I20: Luis | K20: =IFERROR(VLOOKUP(D20,#REF!,7,FALSE),"") ->  | L20: No
B21: 2016-08-23T14:23:55 | C21: INES DEL VALLE BARROS | D21: 11190121 | E21: VESC02352 | F21: 1906 | G21: No, aun no la presenta, la presentara | I21: Luis | K21: =IFERROR(VLOOKUP(D21,#REF!,7,FALSE),"") ->  | L21: No
B22: 2016-08-23T14:28:53 | C22: LARRAN, MA. ANTONELLA | D22: 33359788 | E22: PDGC03047 | F22: 28 | G22: Si, ya la presento | H22: Documento - DNI, Analitico, Solicitud de Inscripcion | I22: Anabella | K22: =IFERROR(VLOOKUP(D22,#REF!,7,FALSE),"") ->  | L22: Si
B23: 2016-08-23T14:30:12 | C23: ALASIA, EZEQUIEL | D23: 30125147 | E23: PDGR05569 | F23: 27 | G23: Si, ya la presento | H23: Documento - DNI, Analitico, Solicitud de Inscripcion | I23: Anabella | K23: =IFERROR(VLOOKUP(D23,#REF!,7,FALSE),"") ->  | L23: Si
B24: 2016-08-23T14:33:38 | C24: GRACIELA BEATRIZ LEDEZMA DE VILLALBA | D24: 14915026 | E24: VESC02166 | F24: 1903 | G24: No, aun no la presenta, la presentara | I24: Luis | K24: =IFERROR(VLOOKUP(D24,#REF!,7,FALSE),"") ->  | L24: No
B25: 2016-08-23T14:47:11 | C25: LEANDRO RAUL GUANZIROLI | D25: 27136195 | E25: VESC02322 | F25: 1899 | G25: No, aun no la presenta, la presentara | I25: Luis | K25: =IFERROR(VLOOKUP(D25,#REF!,7,FALSE),"") ->  | L25: No
B26: 2016-08-23T14:56:18 | C26: AGUIAR GONZALEZ,WERTHER FEDERICO | D26: 34071061 | E26: PDGR02084 | F26: 24 | G26: Si, ya la presento | H26: Documento - DNI, Analitico, Solicitud de Inscripcion | I26: Anabella | K26: =IFERROR(VLOOKUP(D26,#REF!,7,FALSE),"") ->  | L26: Si
B27: 2016-08-23T15:02:53 | C27: MAITE ROXANA RODRIGUEZ | D27: 23497233 | E27: VESC02178 | F27: 1897 | G27: No, aun no la presenta, la presentara | I27: Luis | K27: =IFERROR(VLOOKUP(D27,#REF!,7,FALSE),"") ->  | L27: No
B28: 2016-08-23T15:25:20 | C28: LUCIA ELIZABETH MARTIN | D28: 33325032 | E28: VESC02227 | F28: 1896 | G28: No, aun no la presenta, la presentara | I28: Luis | K28: =IFERROR(VLOOKUP(D28,#REF!,7,FALSE),"") ->  | L28: No
B29: 2016-08-23T15:45:11 | C29: MARISA MABEL PLEITAVINO | D29: 21404586 | E29: VESC01852 | F29: 1887 | G29: No, aun no la presenta, la presentara | I29: Luis | K29: =IFERROR(VLOOKUP(D29,#REF!,7,FALSE),"") ->  | L29: No
B30: 2016-08-23T15:48:27 | C30: ROMINA GISEL DECIMA | D30: 33894951 | E30: VESC01499 | F30: 1886 | G30: No, aun no la presenta, la presentara | I30: Luis | K30: =IFERROR(VLOOKUP(D30,#REF!,7,FALSE),"") ->  | L30: No
B31: 2016-08-23T16:05:10 | C31: KAKUBUR, DENISSE SOLANGE | D31: 31502188 | E31: VESC02092 | F31: 5493764390041 | G31: Si, ya la presento | H31: Documento - DNI, Analitico, Solicitud de Inscripcion | I31: Tomas | K31: =IFERROR(VLOOKUP(D31,#REF!,7,FALSE),"") ->  | L31: Si
B32: 2016-08-23T16:17:27 | C32: BLANCA HAYDEE TORANZOS OVEJEROS | D32: 29409721 | E32: VESC02144 | F32: 5493874810253 | G32: Si, ya la presento | H32: Documento - DNI, Analitico | I32: Fernanda | K32: =IFERROR(VLOOKUP(D32,#REF!,7,FALSE),"") ->  | L32: Si
B33: 2016-08-23T16:20:45 | C33: MORALES IBARRA, GIMENA MAGALI | D33: 31988487 | E33: VESC02079 | F33: 5492657508598 | G33: Si, ya la presento | H33: Documento - DNI, Analitico, Solicitud de Inscripcion | I33: Tomas | K33: =IFERROR(VLOOKUP(D33,#REF!,7,FALSE),"") ->  | L33: Si
B34: 2016-08-23T16:29:25 | C34: MARIA FLORENCIA GARZON CUART | D34: 31837768 | E34: VESC02421 | F34: 5493844466024 | G34: No, aun no la presenta, la presentara | I34: Fernanda | K34: =IFERROR(VLOOKUP(D34,#REF!,7,FALSE),"") ->  | L34: No
B35: 2016-08-23T16:31:08 | C35: OLIVA PANIZZA, LUCRECIA | D35: 33303718 | E35: VESC01860 | F35: 5493412779439 | G35: Si, ya la presento | H35: Documento - DNI, Analitico | I35: Tomas | K35: =IFERROR(VLOOKUP(D35,#REF!,7,FALSE),"") ->  | L35: Si
B36: 2016-08-23T16:51:13 | C36: OLIVA PANIZZA, LUCRECIA | D36: 33303718 | E36: VESC01860 | F36: 5493412779439 | G36: No, aun no la presenta, la presentara | I36: Tomas | K36: =IFERROR(VLOOKUP(D36,#REF!,7,FALSE),"") ->  | L36: No
B37: 2016-08-23T17:10:39 | C37: GOMEZ, JULIETA MARIEL | D37: 34975132 | E37: VESC02008 | F37: 5493584022670 | G37: Si, ya la presento | H37: Documento - DNI, Analitico, Solicitud de Inscripcion | I37: Tomas | K37: =IFERROR(VLOOKUP(D37,#REF!,7,FALSE),"") ->  | L37: Si
B38: 2016-08-23T17:16:03 | C38: MARIA PAULA FERRERO FRANCIA | D38: 34908227 | E38: VESC02441 | F38: 5493518064368 | G38: Si, ya la presento | H38: Documento - DNI, Analitico | I38: Fernanda | K38: =IFERROR(VLOOKUP(D38,#REF!,7,FALSE),"") ->  | L38: Si
B39: 2016-08-23T18:16:58 | C39: ALAN DAMIAN HELLIN | D39: 33047089 | E39: VESC02283 | F39: 3515946023 | G39: No, aun no la presenta, la presentara | I39: Fernanda | K39: =IFERROR(VLOOKUP(D39,#REF!,7,FALSE),"") ->  | L39: No
B40: 2016-08-23T18:18:13 | C40: ALVARENGA, LAURA OFELIA | D40: 30294802 | E40: VESC01947 | F40: 5493731455856 | G40: No, aun no la presenta, la presentara | I40: Tomas | K40: =IFERROR(VLOOKUP(D40,#REF!,7,FALSE),"") ->  | L40: No
B41: 2016-08-23T20:31:58 | C41: PODETTI, FRANCO ALEJANDRO | D41: 30597527 | E41: VESC02305 | F41: 543584839689 | G41: Si, ya la presento | H41: Documento - DNI, Analitico, Solicitud de Inscripcion | I41: Tomas | K41: =IFERROR(VLOOKUP(D41,#REF!,7,FALSE),"") ->  | L41: Si
B42: 2016-08-23T20:43:12 | C42: ARRIETA, FRANCISCO JAVIER | D42: 33371727 | E42: VESC02262 | F42: 5493544610487 | G42: No, aun no la presenta, la presentara | I42: Tomas | K42: =IFERROR(VLOOKUP(D42,#REF!,7,FALSE),"") ->  | L42: No
B43: 2016-08-23T20:51:11 | C43: SEGURA, TERESITA NANCY | D43: 16873062 | E43: VESC02288 | F43: 5492664322907 | G43: No, aun no la presenta, la presentara | I43: Tomas | K43: =IFERROR(VLOOKUP(D43,#REF!,7,FALSE),"") ->  | L43: No
B44: 2016-08-24T11:06:04 | C44: DUOBAITIL,LORENA EZABETH | D44: 25759832 | E44: TMCI00890 | F44: 2004 | G44: Si, ya la presento | H44: Documento - DNI, Analitico, Solicitud de Inscripcion | I44: Luis | K44: =IFERROR(VLOOKUP(D44,#REF!,7,FALSE),"") ->  | L44: Si
B45: 2016-08-24T11:07:49 | C45: SARACCO,PAULA | D45: 33054937 | E45: PDCE03236 | F45: 1994 | G45: No, aun no la presenta, la presentara | I45: Luis | K45: =IFERROR(VLOOKUP(D45,#REF!,7,FALSE),"") ->  | L45: No
B46: 2016-08-24T11:20:01 | C46: CONTI, ALEJO | D46: 37903633 | E46: TPGR00764 | F46: 67 | G46: Si, ya la presento | H46: Documento - DNI, Analitico, Solicitud de Inscripcion | I46: Luis | K46: =IFERROR(VLOOKUP(D46,#REF!,7,FALSE),"") ->  | L46: Si
B47: 2016-08-24T11:25:58 | C47: SANCHEZ,GUSTAVO RUFINO | D47: 35279016 | E47: PDGR12871 | F47: 68 | G47: Si, ya la presento | H47: Documento - DNI, Analitico, Solicitud de Inscripcion | I47: Luis | K47: =IFERROR(VLOOKUP(D47,#REF!,7,FALSE),"") ->  | L47: Si
B48: 2016-08-24T11:30:32 | C48: LETONA MIRABILE,JULIAN | D48: 38332675 | E48: PDCE02608 | F48: 69 | G48: No, aun no la presenta, la presentara | I48: Luis | K48: =IFERROR(VLOOKUP(D48,#REF!,7,FALSE),"") ->  | L48: No
B49: 2016-08-24T11:35:53 | C49: CARLA PAOLA MARZANO | D49: 30125896 | E49: PDGR16101 | F49: 70 | G49: Si, ya la presento | H49: Documento - DNI, Analitico, Solicitud de Inscripcion | I49: Luis | K49: =IFERROR(VLOOKUP(D49,#REF!,7,FALSE),"") ->  | L49: Si
B50: 2016-08-24T11:44:28 | C50: NOELIA SOLEDAD GIMENEZ | D50: 28403290 | E50: PSHS05919 | F50: 73 | G50: Si, ya la presento | H50: Documento - DNI, Analitico, Solicitud de Inscripcion | I50: Luis | K50: =IFERROR(VLOOKUP(D50,#REF!,7,FALSE),"") ->  | L50: Si
B51: 2016-08-24T12:00:10 | C51: GEORGINA VANESA DE PRADA | D51: 35472668 | E51: PDGC02957 | F51: 80 | G51: Si, ya la presento | H51: Documento - DNI, Analitico, Solicitud de Inscripcion | I51: Luis | K51: =IFERROR(VLOOKUP(D51,#REF!,7,FALSE),"") ->  | L51: Si
B52: 2016-08-24T12:03:11 | C52: MELINA DANIELA RASANO | D52: 25862538 | E52: PSHS02480 | F52: 81 | G52: Si, ya la presento | H52: Documento - DNI, Analitico, Solicitud de Inscripcion | I52: Luis | K52: =IFERROR(VLOOKUP(D52,#REF!,7,FALSE),"") ->  | L52: Si
B53: 2016-08-24T12:14:22 | C53: PABLO ALEJANDRO MOLINERIS | D53: 37874502 | E53: TPGR00763 | F53: 86 | G53: Si, ya la presento | H53: Documento - DNI, Analitico, Solicitud de Inscripcion | I53: Luis | K53: =IFERROR(VLOOKUP(D53,#REF!,7,FALSE),"") ->  | L53: Si
B54: 2016-08-24T12:27:11 | C54: FRANCESCO NICOLAS MOLINA | D54: 37873962 | E54: TPGR00813 | F54: 89 | G54: Si, ya la presento | H54: Documento - DNI, Analitico, Solicitud de Inscripcion | I54: Luis | K54: =IFERROR(VLOOKUP(D54,#REF!,7,FALSE),"") ->  | L54: Si
B55: 2016-08-24T12:31:08 | C55: LEONARDO DAUD KERBAGE | D55: 33771610 | E55: TPGR00187 | F55: 90 | G55: Si, ya la presento | H55: Documento - DNI, Analitico, Solicitud de Inscripcion | I55: Luis | K55: =IFERROR(VLOOKUP(D55,#REF!,7,FALSE),"") ->  | L55: Si
B56: 2016-08-24T12:41:19 | C56: SOLANGE ANAHI BONARDO | D56: 35894115 | E56: TPGR00649 | F56: 92 | G56: Si, ya la presento | H56: Documento - DNI, Analitico, Solicitud de Inscripcion | I56: Luis | K56: =IFERROR(VLOOKUP(D56,#REF!,7,FALSE),"") ->  | L56: Si
B57: 2016-08-24T12:44:00 | C57: DIEGO SEBASTIÁN PERUCHINI | D57: 28700041 | E57: PDGR13557 | F57: 93 | G57: Si, ya la presento | H57: Documento - DNI, Analitico, Solicitud de Inscripcion | I57: Luis | K57: =IFERROR(VLOOKUP(D57,#REF!,7,FALSE),"") ->  | L57: Si
B58: 2016-08-24T12:46:06 | C58: MARIA ALEJANDRA OTAMENDI | D58: 12560573 | E58: PDGR13012 | F58: 94 | G58: Si, ya la presento | H58: Documento - DNI, Analitico, Solicitud de Inscripcion | I58: Luis | K58: =IFERROR(VLOOKUP(D58,#REF!,7,FALSE),"") ->  | L58: Si
B59: 2016-08-24T12:47:11 | C59: Amaya, Amariana | D59: 28269923 | E59: PROC02858 | F59: 270 | G59: No, aun no la presenta, la presentara | I59: Anabella | K59: =IFERROR(VLOOKUP(D59,#REF!,7,FALSE),"") ->  | L59: No
B60: 2016-08-24T12:55:07 | C60: CARMELA EVA ISABEL TIRRI | D60: 24303157 | E60: TMCI00594 | F60: 96 | G60: Si, ya la presento | H60: Documento - DNI, Analitico, Solicitud de Inscripcion | I60: Luis | K60: =IFERROR(VLOOKUP(D60,#REF!,7,FALSE),"") ->  | L60: Si
B61: 2016-08-24T12:58:18 | C61: ANA MARIA FERMINA VALLES | D61: 20380303 | E61: TMCI00442 | F61: 97 | G61: Si, ya la presento | H61: Documento - DNI, Analitico, Solicitud de Inscripcion | I61: Luis | K61: =IFERROR(VLOOKUP(D61,#REF!,7,FALSE),"") ->  | L61: Si
B62: 2016-08-24T13:03:13 | C62: LORENA NATALIA ROELLO | D62: 32169860 | E62: TMCI03514 | F62: 98 | G62: Si, ya la presento | H62: Documento - DNI, Analitico, Solicitud de Inscripcion | I62: Luis | K62: =IFERROR(VLOOKUP(D62,#REF!,7,FALSE),"") ->  | L62: Si
B63: 2016-08-24T13:06:42 | C63: SOLEDAD DEL VALLE RAMALLO | D63: 27920923 | E63: TMCI02143 | F63: 99 | G63: Si, ya la presento | H63: Documento - DNI, Analitico, Solicitud de Inscripcion | I63: Luis | K63: =IFERROR(VLOOKUP(D63,#REF!,7,FALSE),"") ->  | L63: Si
B64: 2016-08-24T13:12:20 | C64: NADIA CELESTE GUIRADO | D64: 35109627 | E64: TPGR00705 | F64: 101 | G64: Si, ya la presento | H64: Documento - DNI, Analitico, Solicitud de Inscripcion | I64: Luis | K64: =IFERROR(VLOOKUP(D64,#REF!,7,FALSE),"") ->  | L64: Si
B65: 2016-08-24T13:18:19 | C65: Salonia, Diego | D65: 29714394 | E65: MAR01776 | F65: 282 | G65: No, aun no la presenta, la presentara | I65: Anabella | K65: =IFERROR(VLOOKUP(D65,#REF!,7,FALSE),"") ->  | L65: No
B66: 2016-08-24T13:24:07 | C66: LUCAS HERMANN DEGRA | D66: 34885897 | E66: TMCI00745 | F66: 34885897 | G66: Si, ya la presento | H66: Documento - DNI, Analitico, Solicitud de Inscripcion | I66: Luis | K66: =IFERROR(VLOOKUP(D66,#REF!,7,FALSE),"") ->  | L66: =MID(G66,1,2) -> Si
A67: =K67 ->  | B67: 2016-08-24T14:34:26 | C67: DAVID MUNOZ | D67: 33751195 | E67: TMCI01978 | F67: 110 | G67: Si, ya la presento | H67: Documento - DNI, Analitico, Solicitud de Inscripcion | I67: Luis | K67: =IFERROR(VLOOKUP(D67,#REF!,7,FALSE),"") ->  | L67: Si
B68: 2016-08-24T14:37:33 | C68: MARIA FLORENCIA GIRAUDO | D68: 34940821 | E68: TMCI05308 | F68: 111 | G68: Si, ya la presento | H68: Documento - DNI, Analitico, Solicitud de Inscripcion | I68: Luis | K68: =IFERROR(VLOOKUP(D68,#REF!,7,FALSE),"") ->  | L68: Si
B69: 2016-08-24T14:43:14 | C69: CHRISTIAN LEANDRO TANQUIA | D69: 23089900 | E69: PDGR07007 | F69: 115 | G69: Si, ya la presento | H69: Documento - DNI, Analitico, Solicitud de Inscripcion | I69: Luis | K69: =IFERROR(VLOOKUP(D69,#REF!,7,FALSE),"") ->  | L69: Si
B70: 2016-08-24T14:45:18 | C70: CARLA DURANTE | D70: 40573201 | E70: PDCE02447 | F70: 116 | G70: Si, ya la presento | H70: Documento - DNI, Analitico, Solicitud de Inscripcion | I70: Luis | K70: =IFERROR(VLOOKUP(D70,#REF!,7,FALSE),"") ->  | L70: Si
B71: 2016-08-24T14:57:19 | C71: MARIA NATALIA RODRIGUEZ CAMARA | D71: 28429726 | E71: TMCI03962 | F71: 120 | G71: Si, ya la presento | H71: Documento - DNI, Analitico, Solicitud de Inscripcion | I71: Luis | K71: =IFERROR(VLOOKUP(D71,#REF!,7,FALSE),"") ->  | L71: Si
B72: 2016-08-24T15:28:33 | C72: PINTO, NICOLAS EMANUEL | D72: 35316075 | E72: VESC01806 | F72: 5492664295571 | G72: Si, ya la presento | H72: Documento - DNI, Analitico | I72: Tomas | K72: =IFERROR(VLOOKUP(D72,#REF!,7,FALSE),"") ->  | L72: Si
B73: 2016-08-24T15:33:47 | C73: SARJANOVICH, MARIA JOSE | D73: 27139769 | E73: VESC00537 | F73: 5493442545883 | G73: No, aun no la presenta, la presentara | I73: Tomas | K73: =IFERROR(VLOOKUP(D73,#REF!,7,FALSE),"") ->  | L73: No
B74: 2016-08-24T15:37:30 | C74: ORTEGA, PATRICIA DANIELA | D74: 18528427 | E74: VESC01916 | F74: 5492262411077 | G74: Si, ya la presento | H74: Documento - DNI, Analitico, Solicitud de Inscripcion | I74: Tomas | K74: =IFERROR(VLOOKUP(D74,#REF!,7,FALSE),"") ->  | L74: Si
B75: 2016-08-24T15:48:00 | C75: MIRANDA, MARIA FLORENCIA | D75: 17759652 | E75: VESC01994 | F75: 5491153853611 | G75: Si, ya la presento | H75: Documento - DNI, Analitico, Solicitud de Inscripcion | I75: Tomas | K75: =IFERROR(VLOOKUP(D75,#REF!,7,FALSE),"") ->  | L75: Si
B76: 2016-08-24T15:54:50 | C76: EVA ANGELINAR REARTES | D76: 28654532 | E76: VESC02009 | F76: 5493512268311 | G76: Si, ya la presento | H76: Documento - DNI, Analitico, Solicitud de Inscripcion | I76: Fernanda | K76: =IFERROR(VLOOKUP(D76,#REF!,7,FALSE),"") ->  | L76: Si
B77: 2016-08-24T16:16:11 | C77: JOSE ANTONIO PEZZARINI | D77: 30079425 | E77: VESC01942 | F77: 5493456507067 | G77: Si, ya la presento | H77: Analitico | I77: Fernanda | K77: =IFERROR(VLOOKUP(D77,#REF!,7,FALSE),"") ->  | L77: Si
B78: 2016-08-24T16:33:49 | C78: MARTINELLI, MARIA DEL ROCIO | D78: 32815291 | E78: VESC02257 | F78: 5493446609709 | G78: No, aun no la presenta, la presentara | I78: Tomas | K78: =IFERROR(VLOOKUP(D78,#REF!,7,FALSE),"") ->  | L78: No
B79: 2016-08-24T16:45:07 | C79: JAVIER COLONO | D79: 31374092 | E79: VESC02153 | F79: 5493493459594 | G79: No, aun no la presenta, la presentara | I79: Fernanda | K79: =IFERROR(VLOOKUP(D79,#REF!,7,FALSE),"") ->  | L79: No
B80: 2016-08-24T17:12:00 | C80: JESICA MARICEL VIDABLE | D80: 28032577 | E80: VESC02334 | F80: 5491150609882 | G80: Si, ya la presento | H80: Documento - DNI, Analitico | I80: Fernanda | K80: =IFERROR(VLOOKUP(D80,#REF!,7,FALSE),"") ->  | L80: Si
B81: 2016-08-24T18:02:21 | C81: LOVATTO, RAUL VICTOR DAVID | D81: 30549869 | E81: VESC02311 | F81: 5493442506946 | G81: No, aun no la presenta, la presentara | I81: Tomas | K81: =IFERROR(VLOOKUP(D81,#REF!,7,FALSE),"") ->  | L81: No
B82: 2016-08-24T18:38:57 | C82: STEFANIA TURLETTI | D82: 32777281 | E82: VESC02086 | F82: 5493517557508 | G82: No, aun no la presenta, la presentara | I82: Fernanda | K82: =IFERROR(VLOOKUP(D82,#REF!,7,FALSE),"") ->  | L82: No
B83: 2016-08-24T19:35:32 | C83: MEDINA, CECILIA ELIZABETH | D83: 31118151 | E83: VESC02052 | F83: 5493456431741 | G83: No, aun no la presenta, la presentara | I83: Tomas | K83: =IFERROR(VLOOKUP(D83,#REF!,7,FALSE),"") ->  | L83: No
B84: 2016-08-24T19:43:50 | C84: ERPEN, CAROLINA VALERIA | D84: 35558995 | E84: VESC02140 | F84: 5493445623903 | G84: Si, ya la presento | H84: Documento - DNI, Analitico, Solicitud de Inscripcion | I84: Tomas | K84: =IFERROR(VLOOKUP(D84,#REF!,7,FALSE),"") ->  | L84: Si
B85: 2016-08-24T19:52:24 | C85: MIGUEL GAITAN, LORENA | D85: 30900176 | E85: VESC02220 | F85: 5493513190800 | G85: No, aun no la presenta, la presentara | I85: Tomas | K85: =IFERROR(VLOOKUP(D85,#REF!,7,FALSE),"") ->  | L85: No
B86: 2016-08-24T19:57:12 | C86: MARSENGO TOLEDO, SALOME | D86: 34992905 | E86: VESC02243 | F86: 542657312704 | G86: Si, ya la presento | H86: Documento - DNI, Analitico, Solicitud de Inscripcion | I86: Tomas | K86: =IFERROR(VLOOKUP(D86,#REF!,7,FALSE),"") ->  | L86: Si
B87: 2016-08-24T20:03:18 | C87: ESTRADA, LEANDRO ALFONSO CIRILO | D87: 23999138 | E87: VESC02318 | F87: 5492657523907 | G87: No, aun no la presenta, la presentara | I87: Tomas | K87: =IFERROR(VLOOKUP(D87,#REF!,7,FALSE),"") ->  | L87: No
B88: 2016-08-24T20:15:19 | C88: VIETTO, ARIEL MARCELO | D88: 23835149 | E88: VESC02188 | F88: 543535691768 | G88: Si, ya la presento | H88: Documento - DNI, Analitico, Solicitud de Inscripcion | I88: Tomas | K88: =IFERROR(VLOOKUP(D88,#REF!,7,FALSE),"") ->  | L88: Si
B89: 2016-08-24T20:38:53 | C89: ENRIA, ROSANA MARCELA | D89: 26923111 | E89: VESC02082 | F89: 5493534060697 | G89: No, aun no la presenta, la presentara | I89: Tomas | K89: =IFERROR(VLOOKUP(D89,#REF!,7,FALSE),"") ->  | L89: No
B90: 2016-08-25T09:26:47 | C90: MARIA FLORENCIA RUGGIERI | D90: 36234184 | E90: PDGR06029 | F90: 122 | G90: Si, ya la presento | H90: Documento - DNI, Analitico, Solicitud de Inscripcion | I90: Luis | K90: =IFERROR(VLOOKUP(D90,#REF!,7,FALSE),"") ->  | L90: Si
B91: 2016-08-25T09:31:02 | C91: EMMANUEL BAZAN | D91: 33467924 | E91: PSHS04618 | F91: 123 | G91: Si, ya la presento | H91: Documento - DNI, Analitico, Solicitud de Inscripcion | I91: Luis | K91: =IFERROR(VLOOKUP(D91,#REF!,7,FALSE),"") ->  | L91: Si
B92: 2016-08-25T09:35:05 | C92: LUCIANO MIGUEL CURLETTO | D92: 32495790 | E92: TMCI00515 | F92: 124 | G92: Si, ya la presento | H92: Documento - DNI, Analitico, Solicitud de Inscripcion | I92: Luis | K92: =IFERROR(VLOOKUP(D92,#REF!,7,FALSE),"") ->  | L92: Si
B93: 2016-08-25T09:38:23 | C93: GRACIELA ZATTI | D93: 27423255 | E93: PDVS01044 | F93: 125 | G93: Si, ya la presento | H93: Documento - DNI, Analitico, Solicitud de Inscripcion | I93: Luis | K93: =IFERROR(VLOOKUP(D93,#REF!,7,FALSE),"") ->  | L93: Si
B94: 2016-08-25T09:43:21 | C94: MARTIN RICARDO DIEMA | D94: 36029517 | E94: PSHS01486 | F94: 126 | G94: Si, ya la presento | H94: Documento - DNI, Analitico, Solicitud de Inscripcion | I94: Luis | K94: =IFERROR(VLOOKUP(D94,#REF!,7,FALSE),"") ->  | L94: Si
B95: 2016-08-25T09:49:23 | C95: MAYRA LILIANA TORRES | D95: 25652809 | E95: PDVS01227 | F95: 127 | G95: Si, ya la presento | H95: Documento - DNI, Analitico, Solicitud de Inscripcion | I95: Luis | K95: =IFERROR(VLOOKUP(D95,#REF!,7,FALSE),"") ->  | L95: Si
B96: 2016-08-25T10:05:12 | C96: MARICEL DEL VALLE PALACIO | D96: 28651743 | E96: PDGR07723 | F96: 129 | G96: Si, ya la presento | H96: Documento - DNI, Analitico, Solicitud de Inscripcion | I96: Luis | K96: =IFERROR(VLOOKUP(D96,#REF!,7,FALSE),"") ->  | L96: Si
B97: 2016-08-25T10:18:13 | C97: LILIANA ANAHI PIBOULEAU | D97: 29476637 | E97: PDCE02512 | F97: 130 | G97: Si, ya la presento | H97: Documento - DNI, Analitico, Solicitud de Inscripcion | I97: Luis | K97: =IFERROR(VLOOKUP(D97,#REF!,7,FALSE),"") ->  | L97: Si
B98: 2016-08-25T10:39:33 | C98: DIEGO GONZALO NAVARRO | D98: 31087109 | E98: PSHS02954 | F98: 131 | G98: Si, ya la presento | H98: Documento - DNI, Analitico, Solicitud de Inscripcion | I98: Luis | K98: =IFERROR(VLOOKUP(D98,#REF!,7,FALSE),"") ->  | L98: Si
B99: 2016-08-25T10:44:22 | C99: YANINA VANESA AMADO | D99: 30773856 | E99: PDGR05934 | F99: 133 | G99: Si, ya la presento | H99: Documento - DNI, Analitico, Solicitud de Inscripcion | I99: Luis | K99: =IFERROR(VLOOKUP(D99,#REF!,7,FALSE),"") ->  | L99: Si
B100: 2016-08-25T10:49:16 | C100: GASTON NIELSEN | D100: 31838131 | E100: PDGR13001 | F100: 134 | G100: Si, ya la presento | H100: Documento - DNI, Analitico, Solicitud de Inscripcion | I100: Luis | K100: =IFERROR(VLOOKUP(D100,#REF!,7,FALSE),"") ->  | L100: Si
B101: 2016-08-25T10:53:26 | C101: URIEL KALEN FERRARIS | D101: 38088523 | E101: PSHS03003 | F101: 135 | G101: Si, ya la presento | H101: Documento - DNI, Analitico, Solicitud de Inscripcion | I101: Luis | K101: =IFERROR(VLOOKUP(D101,#REF!,7,FALSE),"") ->  | L101: Si
B102: 2016-08-25T10:55:40 | C102: EMILIO GIORDANO | D102: 36425752 | E102: PSHS02921 | F102: 136 | G102: Si, ya la presento | H102: Documento - DNI, Analitico, Solicitud de Inscripcion | I102: Luis | K102: =IFERROR(VLOOKUP(D102,#REF!,7,FALSE),"") ->  | L102: Si
B103: 2016-08-25T10:58:03 | C103: ANTONELA AMALIA CEPEDA | D103: 36264522 | E103: TMCI02885 | F103: 137 | G103: Si, ya la presento | H103: Documento - DNI, Analitico, Solicitud de Inscripcion | I103: Luis | K103: =IFERROR(VLOOKUP(D103,#REF!,7,FALSE),"") ->  | L103: Si
B104: 2016-08-25T11:00:04 | C104: NICOLAS EDUARDO TOLEDO | D104: 28456593 | E104: PDGR13651 | F104: 138 | G104: Si, ya la presento | H104: Documento - DNI, Analitico, Solicitud de Inscripcion | I104: Luis | K104: =IFERROR(VLOOKUP(D104,#REF!,7,FALSE),"") ->  | L104: Si
B105: 2016-08-25T11:01:48 | C105: MARTIN DAVID ALVARO CACHO | D105: 17985080 | E105: PDGR15876 | F105: 139 | G105: Si, ya la presento | H105: Documento - DNI, Analitico, Solicitud de Inscripcion | I105: Luis | K105: =IFERROR(VLOOKUP(D105,#REF!,7,FALSE),"") ->  | L105: Si
B106: 2016-08-25T11:03:32 | C106: MARTIN MILES | D106: 34768903 | E106: TMCI06272 | F106: 140 | G106: Si, ya la presento | H106: Documento - DNI, Analitico, Solicitud de Inscripcion | I106: Luis | K106: =IFERROR(VLOOKUP(D106,#REF!,7,FALSE),"") ->  | L106: Si
B107: 2016-08-25T11:06:22 | C107: PABLO CESAR GONZALEZ | D107: 24226890 | E107: PDGR16152 | F107: 141 | G107: Si, ya la presento | H107: Documento - DNI, Analitico, Solicitud de Inscripcion | I107: Luis | K107: =IFERROR(VLOOKUP(D107,#REF!,7,FALSE),"") ->  | L107: Si
B108: 2016-08-25T11:08:34 | C108: BODO ANA CECILIA | D108: 29176818 | E108: PDCE02785 | F108: 142 | G108: Si, ya la presento | H108: Documento - DNI, Analitico, Solicitud de Inscripcion | I108: Luis | K108: =IFERROR(VLOOKUP(D108,#REF!,7,FALSE),"") ->  | L108: Si
B109: 2016-08-25T11:11:03 | C109: NICOLAS ADRIAN FOGLIA | D109: 32495965 | E109: PSHS02981 | F109: 143 | G109: Si, ya la presento | H109: Documento - DNI, Analitico, Solicitud de Inscripcion | I109: Luis | K109: =IFERROR(VLOOKUP(D109,#REF!,7,FALSE),"") ->  | L109: Si
B110: 2016-08-25T11:13:14 | C110: HORACIO ENRIQUE DE MARCHI | D110: 29079202 | E110: PSHS04550 | F110: 144 | G110: Si, ya la presento | H110: Documento - DNI, Analitico, Solicitud de Inscripcion | I110: Luis | K110: =IFERROR(VLOOKUP(D110,#REF!,7,FALSE),"") ->  | L110: Si
B111: 2016-08-25T11:14:37 | C111: MARIA SOLEDAD BAEZ | D111: 20814782 | E111: 20814782 | F111: 145 | G111: Si, ya la presento | H111: Documento - DNI, Analitico, Solicitud de Inscripcion | I111: Luis | K111: =IFERROR(VLOOKUP(D111,#REF!,7,FALSE),"") ->  | L111: Si
B112: 2016-08-25T11:16:25 | C112: JUAN MANUEL VELEZ | D112: 29292724 | E112: TMCI00869 | F112: 146 | G112: Si, ya la presento | H112: Documento - DNI, Analitico, Solicitud de Inscripcion | I112: Luis | K112: =IFERROR(VLOOKUP(D112,#REF!,7,FALSE),"") ->  | L112: Si
B113: 2016-08-25T11:19:15 | C113: CECILIA INES MAIMONE ILLA | D113: 25649787 | E113: TMCI01725 | F113: 147 | G113: Si, ya la presento | H113: Documento - DNI, Analitico, Solicitud de Inscripcion | I113: Luis | K113: =IFERROR(VLOOKUP(D113,#REF!,7,FALSE),"") ->  | L113: Si
B114: 2016-08-25T11:22:49 | C114: GISELE ALBY | D114: 32314428 | E114: PSHS03102 | F114: 148 | G114: Si, ya la presento | H114: Documento - DNI, Analitico, Solicitud de Inscripcion | I114: Luis | K114: =IFERROR(VLOOKUP(D114,#REF!,7,FALSE),"") ->  | L114: Si
B115: 2016-08-25T11:25:22 | C115: MARIA VICTORIA VIÑUALES GOMEZ | D115: 36985823 | E115: TMCI01084 | F115: 149 | G115: Si, ya la presento | H115: Documento - DNI, Analitico, Solicitud de Inscripcion | I115: Luis | K115: =IFERROR(VLOOKUP(D115,#REF!,7,FALSE),"") ->  | L115: Si
B116: 2016-08-25T11:36:25 | C116: MARÍA ANABELA TOMBESI | D116: 34131809 | E116: TMCI00694 | F116: 151 | G116: Si, ya la presento | H116: Documento - DNI, Analitico, Solicitud de Inscripcion | I116: Luis | K116: =IFERROR(VLOOKUP(D116,#REF!,7,FALSE),"") ->  | L116: Si
B117: 2016-08-25T11:48:05 | C117: MARÍA ANABELA TOMBESI | D117: 34131809 | E117: TMCI00694 | F117: 151 | G117: Si, ya la presento | H117: Documento - DNI, Analitico, Solicitud de Inscripcion | I117: Luis | K117: =IFERROR(VLOOKUP(D117,#REF!,7,FALSE),"") ->  | L117: Si
B118: 2016-08-25T11:55:07 | C118: MARCELO ALEJANDRO TORRES | D118: 29967415 | E118: TMCI00871 | F118: 152 | G118: Si, ya la presento | H118: Documento - DNI, Analitico, Solicitud de Inscripcion | I118: Luis | K118: =IFERROR(VLOOKUP(D118,#REF!,7,FALSE),"") ->  | L118: Si
B119: 2016-08-25T11:56:37 | C119: PAULA VERONICA VALLEJOS | D119: 25589904 | E119: TMCI01662 | F119: 153 | G119: Si, ya la presento | H119: Documento - DNI, Analitico, Solicitud de Inscripcion | I119: Luis | K119: =IFERROR(VLOOKUP(D119,#REF!,7,FALSE),"") ->  | L119: Si
B120: 2016-08-25T12:06:23 | C120: AGUSTIN MAINERI | D120: 27246187 | E120: TMCI03260 | F120: 154 | G120: Si, ya la presento | H120: Documento - DNI, Analitico, Solicitud de Inscripcion | I120: Luis | K120: =IFERROR(VLOOKUP(D120,#REF!,7,FALSE),"") ->  | L120: Si
B121: 2016-08-25T12:10:13 | C121: DÉBORA SOLEDAD FARIAS | D121: 22371821 | E121: TMCI03302 | F121: 155 | G121: Si, ya la presento | H121: Documento - DNI, Analitico, Solicitud de Inscripcion | I121: Luis | K121: =IFERROR(VLOOKUP(D121,#REF!,7,FALSE),"") ->  | L121: Si
B122: 2016-08-25T12:18:57 | C122: NORA ANDREA OCAMPO | D122: 28656727 | E122: PSHS04437 | F122: 156 | G122: Si, ya la presento | H122: Documento - DNI, Analitico, Solicitud de Inscripcion | I122: Luis | K122: =IFERROR(VLOOKUP(D122,#REF!,7,FALSE),"") ->  | L122: Si
B123: 2016-08-25T12:26:09 | C123: MAXIMILIANO OSCAR JUNCOS | D123: 35963889 | E123: PSHS04666 | F123: 157 | G123: Si, ya la presento | H123: Documento - DNI, Analitico, Solicitud de Inscripcion | I123: Luis | K123: =IFERROR(VLOOKUP(D123,#REF!,7,FALSE),"") ->  | L123: Si
B124: 2016-08-25T12:29:32 | C124: JOSÉ IGNACIO RAMOS | D124: 30376191 | E124: TMCI03116 | F124: 158 | G124: Si, ya la presento | H124: Documento - DNI, Analitico, Solicitud de Inscripcion | I124: Luis | K124: =IFERROR(VLOOKUP(D124,#REF!,7,FALSE),"") ->  | L124: Si
B125: 2016-08-25T12:45:44 | C125: MARÍA MACARENA BRINGAS | D125: 34254996 | E125: TMCI01959 | F125: 159 | G125: Si, ya la presento | H125: Documento - DNI, Analitico, Solicitud de Inscripcion | I125: Luis | K125: =IFERROR(VLOOKUP(D125,#REF!,7,FALSE),"") ->  | L125: Si
B126: 2016-08-25T12:46:19 | C126: LUCAS ARIEL KLOR | D126: 25754868 | E126: TMCI00477 | F126: 160 | G126: Si, ya la presento | H126: Documento - DNI, Analitico, Solicitud de Inscripcion | I126: Luis | K126: =IFERROR(VLOOKUP(D126,#REF!,7,FALSE),"") ->  | L126: Si
B127: 2016-08-25T12:48:11 | C127: LEANDRO MANUEL BRANQUER | D127: 32015464 | E127: TMCI01266 | F127: 161 | G127: Si, ya la presento | H127: Documento - DNI, Analitico, Solicitud de Inscripcion | I127: Luis | K127: =IFERROR(VLOOKUP(D127,#REF!,7,FALSE),"") ->  | L127: Si
B128: 2016-08-25T12:53:31 | C128: JULIETA VICTORIA IACOBELLI | D128: 37475788 | E128: PMCI00142 | F128: 162 | G128: Si, ya la presento | H128: Documento - DNI, Analitico, Solicitud de Inscripcion | I128: Luis | K128: =IFERROR(VLOOKUP(D128,#REF!,7,FALSE),"") ->  | L128: Si
B129: 2016-08-25T12:55:54 | C129: MARCELO ALEJANDRO PAGLIANO | D129: 32407314 | E129: TMCI06506 | F129: 163 | G129: Si, ya la presento | H129: Documento - DNI, Analitico, Solicitud de Inscripcion | I129: Luis | K129: =IFERROR(VLOOKUP(D129,#REF!,7,FALSE),"") ->  | L129: Si
B130: 2016-08-25T12:57:54 | C130: GLORIA DEL ROCIO CARABAJAL | D130: 22034484 | E130: TMCI03204 | F130: 164 | G130: Si, ya la presento | H130: Documento - DNI, Analitico, Solicitud de Inscripcion | I130: Luis | K130: =IFERROR(VLOOKUP(D130,#REF!,7,FALSE),"") ->  | L130: =MID(G130,1,2) -> Si
A131: =K131 ->  | B131: 2016-08-25T13:00:55 | C131: JUAN GUILLERMO MONDELO | D131: 25975288 | E131: TMCI02335 | F131: 165 | G131: Si, ya la presento | H131: Documento - DNI, Analitico, Solicitud de Inscripcion | I131: Luis | K131: =IFERROR(VLOOKUP(D131,#REF!,7,FALSE),"") ->  | L131: Si
B132: 2016-08-25T13:02:32 | C132: CLAUDIO LANDAIDA | D132: 30986227 | E132: TMCI03517 | F132: 166 | G132: Si, ya la presento | H132: Documento - DNI, Analitico, Solicitud de Inscripcion | I132: Luis | K132: =IFERROR(VLOOKUP(D132,#REF!,7,FALSE),"") ->  | L132: Si
B133: 2016-08-25T13:05:13 | C133: LORENA VIRGINIA SANCHEZ | D133: 33885641 | E133: TMCI01776 | F133: 167 | G133: Si, ya la presento | H133: Documento - DNI, Analitico, Solicitud de Inscripcion | I133: Luis | K133: =IFERROR(VLOOKUP(D133,#REF!,7,FALSE),"") ->  | L133: Si
B134: 2016-08-25T13:06:50 | C134: JUAN MANUEL EXPOSITO | D134: 39612384 | E134: TMCI06033 | F134: 168 | G134: Si, ya la presento | H134: Documento - DNI, Analitico, Solicitud de Inscripcion | I134: Luis | K134: =IFERROR(VLOOKUP(D134,#REF!,7,FALSE),"") ->  | L134: Si
B135: 2016-08-25T13:09:37 | C135: MONICA ALEJANDRA ROLDAN | D135: 24015974 | E135: TMCI01451 | F135: 169 | G135: Si, ya la presento | H135: Documento - DNI, Analitico, Solicitud de Inscripcion | I135: Luis | K135: =IFERROR(VLOOKUP(D135,#REF!,7,FALSE),"") ->  | L135: Si
B136: 2016-08-25T13:15:13 | C136: SERGIO MONTON | D136: 22034922 | E136: PSHS03404 | F136: 170 | G136: Si, ya la presento | H136: Documento - DNI, Analitico, Solicitud de Inscripcion | I136: Luis | K136: =IFERROR(VLOOKUP(D136,#REF!,7,FALSE),"") ->  | L136: Si
B137: 2016-08-25T13:19:27 | C137: LUCIA MARICEL COLLASSO | D137: 38986562 | E137: TPGR00727 | F137: 171 | G137: Si, ya la presento | H137: Documento - DNI, Analitico, Solicitud de Inscripcion | I137: Luis | K137: =IFERROR(VLOOKUP(D137,#REF!,7,FALSE),"") ->  | L137: Si
B138: 2016-08-25T13:32:47 | C138: MICAELA CELESTE BAZAN | D138: 35580718 | E138: MAR01811 | F138: 285 | G138: No, aun no la presenta, la presentara | I138: Luis | K138: =IFERROR(VLOOKUP(D138,#REF!,7,FALSE),"") ->  | L138: No
B139: 2016-08-25T14:23:21 | C139: ARLETTE OTERO | D139: 33415378 | E139: MAR01822 | F139: 286 | G139: No, aun no la presenta, la presentara | I139: Luis | K139: =IFERROR(VLOOKUP(D139,#REF!,7,FALSE),"") ->  | L139: No
B140: 2016-08-25T14:51:22 | C140: DANIELA LEAL | D140: 35054436 | E140: MAR01858 | F140: 287 | G140: No, aun no la presenta, la presentara | I140: Luis | K140: =IFERROR(VLOOKUP(D140,#REF!,7,FALSE),"") ->  | L140: No
B141: 2016-08-25T14:53:08 | C141: GIULIANNA PESCI | D141: 26767717 | E141: MAR01878 | F141: 288 | G141: No, aun no la presenta, la presentara | I141: Luis | K141: =IFERROR(VLOOKUP(D141,#REF!,7,FALSE),"") ->  | L141: No
B142: 2016-08-25T14:55:32 | C142: MAXIMILIANO MATIAS JARA | D142: 36983676 | E142: MAR01901 | F142: 289 | G142: Si, ya la presento | H142: Documento - DNI, Analitico, Solicitud de Inscripcion | I142: Luis | K142: =IFERROR(VLOOKUP(D142,#REF!,7,FALSE),"") ->  | L142: Si
B143: 2016-08-25T16:44:43 | C143: MANASSERO, RAMIRO | D143: 36341593 | E143: MAR01956 | F143: 5493541591845 | G143: No, aun no la presenta, la presentara | I143: Tomas | K143: =IFERROR(VLOOKUP(D143,#REF!,7,FALSE),"") ->  | L143: No
B144: 2016-08-25T16:54:29 | C144: FACUNDO SANCHEZ | D144: 30656326 | E144: PDGR06997 | F144: 5493513996646 | G144: No, aun no la presenta, la presentara | I144: Fernanda | K144: =IFERROR(VLOOKUP(D144,#REF!,7,FALSE),"") ->  | L144: No
B145: 2016-08-25T17:00:00 | C145: ESCOBAR, LUCAS | D145: 36232198 | E145: MAR01872 | F145: 5493513094900 | G145: Si, ya la presento | H145: Documento - DNI, Analitico, Solicitud de Inscripcion | I145: Tomas | K145: =IFERROR(VLOOKUP(D145,#REF!,7,FALSE),"") ->  | L145: Si
B146: 2016-08-25T17:07:19 | C146: BACCHINA FIGUEROA, CYNTHIA | D146: 37627189 | E146: MAR01888 | F146: 5493512453537 | G146: Si, ya la presento | H146: Documento - DNI, Analitico, Solicitud de Inscripcion | I146: Tomas | K146: =IFERROR(VLOOKUP(D146,#REF!,7,FALSE),"") ->  | L146: Si
B147: 2016-08-25T17:11:19 | C147: CLAUDIA ALEJANDRA WINDHOLZ | D147: 27891258 | E147: TMCI01075 | F147: 5493512057860 | G147: Si, ya la presento | H147: Documento - DNI, Analitico, Solicitud de Inscripcion | I147: Fernanda | K147: =IFERROR(VLOOKUP(D147,#REF!,7,FALSE),"") ->  | L147: Si
B148: 2016-08-25T17:22:33 | C148: CONSUELO, MARIA VICTORIA | D148: 35212158 | E148: MAR01899 | F148: 5493515171224 | G148: No, aun no la presenta, la presentara | I148: Tomas | K148: =IFERROR(VLOOKUP(D148,#REF!,7,FALSE),"") ->  | L148: No
B149: 2016-08-26T10:05:01 | C149: Heis, Stefania | D149: 36120014 | E149: MAR01511 | F149: 277 | G149: No, aun no la presenta, la presentara | I149: Anabella | K149: =IFERROR(VLOOKUP(D149,#REF!,7,FALSE),"") ->  | L149: No
B150: 2016-08-26T10:10:06 | C150: Pedraza, Evelin | D150: 38105848 | E150: MAR01720 | F150: 276 | G150: No, aun no la presenta, la presentara | I150: Anabella | K150: =IFERROR(VLOOKUP(D150,#REF!,7,FALSE),"") ->  | L150: No
B151: 2016-08-26T10:23:24 | C151: Munoz, Valetin | D151: 34277538 | E151: PROC04141 | G151: Si, ya la presento | H151: Documento - DNI, Analitico | I151: Anabella | K151: =IFERROR(VLOOKUP(D151,#REF!,7,FALSE),"") ->  | L151: Si
B152: 2016-08-26T10:43:40 | C152: LA MARCA,YANINA SOLANGE | D152: 35108426 | E152: TPGR00660 | F152: 255 | G152: No, aun no la presenta, la presentara | I152: Anabella | K152: =IFERROR(VLOOKUP(D152,#REF!,7,FALSE),"") ->  | L152: No
B153: 2016-08-26T10:54:13 | C153: DIAZ, DIEGO MARTIN | D153: 21756483 | E153: PDGR15089 | F153: 260 | G153: No, aun no la presenta, la presentara | I153: Anabella | K153: =IFERROR(VLOOKUP(D153,#REF!,7,FALSE),"") ->  | L153: No
B154: 2016-08-26T11:00:02 | C154: FERRARIO, HECTOR JULIO | D154: 16409093 | E154: TMCI01789 | F154: 261 | G154: No, aun no la presenta, la presentara | I154: Anabella | K154: =IFERROR(VLOOKUP(D154,#REF!,7,FALSE),"") ->  | L154: No
B155: 2016-08-26T11:10:45 | C155: WILLIAMS, JOAQUIN | D155: 35889583 | E155: TPGR00390 | F155: 263 | G155: No, aun no la presenta, la presentara | I155: Anabella | K155: =IFERROR(VLOOKUP(D155,#REF!,7,FALSE),"") ->  | L155: No
B156: 2016-08-26T11:16:46 | C156: FINI, RUBEN ESTEBAN | D156: 24578365 | E156: PDGR15941 | F156: 264 | G156: No, aun no la presenta, la presentara | I156: Anabella | K156: =IFERROR(VLOOKUP(D156,#REF!,7,FALSE),"") ->  | L156: No
B157: 2016-08-26T11:30:22 | C157: COPPIN, EVELYN | D157: 37488308 | E157: PSHS03050 | F157: 266 | G157: No, aun no la presenta, la presentara | I157: Anabella | K157: =IFERROR(VLOOKUP(D157,#REF!,7,FALSE),"") ->  | L157: No
B158: 2016-08-26T15:28:30 | C158: ANDREA LEYRIA | D158: 28530394 | E158: PROC04351 | F158: 219 | G158: Si, ya la presento | H158: Documento - DNI, Analitico, Solicitud de Inscripcion | I158: Luis | K158: =IFERROR(VLOOKUP(D158,#REF!,7,FALSE),"") ->  | L158: Si
B159: 2016-08-26T15:34:07 | C159: FRANCISCO JOSE PEREZ | D159: 32103534 | E159: PROC04299 | F159: 220 | G159: Si, ya la presento | H159: Documento - DNI, Analitico, Solicitud de Inscripcion | I159: Luis | K159: =IFERROR(VLOOKUP(D159,#REF!,7,FALSE),"") ->  | L159: Si
B160: 2016-08-26T15:46:46 | C160: ZUPEL,ALEXIS HERNAN | D160: 127228834 | E160: PSHS05158 | F160: 1985 | G160: No, aun no la presenta, la presentara | I160: Luis | K160: =IFERROR(VLOOKUP(D160,#REF!,7,FALSE),"") ->  | L160: No
B161: 2016-08-26T15:50:13 | C161: TISSERA, RODOLFO EDUARDO | D161: 126177459 | E161: PLAB00153 | F161: 1986 | G161: Si, ya la presento | H161: Documento - DNI, Analitico, Solicitud de Inscripcion | I161: Luis | K161: =IFERROR(VLOOKUP(D161,#REF!,7,FALSE),"") ->  | L161: Si
B162: 2016-08-26T15:59:50 | C162: PAIVA, TOMAS | D162: 139621427 | E162: TMCI01813 | F162: 1989 | G162: Si, ya la presento | H162: Documento - DNI, Analitico, Solicitud de Inscripcion | I162: Luis | K162: =IFERROR(VLOOKUP(D162,#REF!,7,FALSE),"") ->  | L162: Si
B163: 2016-08-26T16:03:29 | C163: NOTTARIS, NICOLAS | D163: 135966990 | E163: TMCI01746 | F163: 1990 | G163: No, aun no la presenta, la presentara | I163: Luis | K163: =IFERROR(VLOOKUP(D163,#REF!,7,FALSE),"") ->  | L163: No
B164: 2016-08-26T16:06:43 | C164: TOVO, JUAN FERNANDO | D164: 138885855 | E164: PMCI00348 | F164: 1992 | G164: No, aun no la presenta, la presentara | I164: Luis | K164: =IFERROR(VLOOKUP(D164,#REF!,7,FALSE),"") ->  | L164: No
B165: 2016-08-26T16:18:27 | C165: SCAMPERTI, VIRGINIA | D165: 139080387 | E165: PMCI00240 | F165: 1993 | G165: No, aun no la presenta, la presentara | I165: Luis | K165: =IFERROR(VLOOKUP(D165,#REF!,7,FALSE),"") ->  | L165: No
B166: 2016-08-26T16:28:33 | C166: PUCHETA LASCANO,EDUARDO HORACIO | D166: 113150809 | E166: TMCI05623 | F166: 1997 | G166: Si, ya la presento | H166: Documento - DNI, Analitico, Solicitud de Inscripcion | I166: Luis | K166: =IFERROR(VLOOKUP(D166,#REF!,7,FALSE),"") ->  | L166: Si
B167: 2016-08-26T16:38:26 | C167: FARIAS,IRENE GRACIELA | D167: 123300577 | E167: PMCI00203 | F167: 2001 | G167: Si, ya la presento | H167: Documento - DNI, Analitico, Solicitud de Inscripcion | I167: Luis | K167: =IFERROR(VLOOKUP(D167,#REF!,7,FALSE),"") ->  | L167: Si
B168: 2016-08-26T16:51:10 | C168: AGUERO GARCIA,ROLANDO | D168: 127246356 | E168: TMCI06787 | F168: 2007 | G168: No, aun no la presenta, la presentara | I168: Luis | K168: =IFERROR(VLOOKUP(D168,#REF!,7,FALSE),"") ->  | L168: No
B169: 2016-08-26T17:13:10 | C169: CAFFARO,AGUSTIN | D169: 138816815 | E169: TMCI01357 | F169: 2010 | G169: No, aun no la presenta, la presentara | I169: Luis | K169: =IFERROR(VLOOKUP(D169,#REF!,7,FALSE),"") ->  | L169: No
B170: 2016-08-26T17:18:23 | C170: MANZANELLI,GLORIA NATALIA | D170: 131057096 | E170: TMCI01714 | F170: 2012 | G170: Si, ya la presento | H170: Documento - DNI, Analitico, Solicitud de Inscripcion | I170: Luis | K170: =IFERROR(VLOOKUP(D170,#REF!,7,FALSE),"") ->  | L170: Si
B171: 2016-08-26T17:24:16 | C171: JULIA,MARIANO JOSE | D171: 126672358 | E171: TMCI00119 | F171: 2013 | G171: No, aun no la presenta, la presentara | I171: Luis | K171: =IFERROR(VLOOKUP(D171,#REF!,7,FALSE),"") ->  | L171: No
B172: 2016-08-26T17:28:41 | C172: LAVES,ADA LORENA | D172: 126849877 | E172: TMCI04801 | F172: 2014 | G172: Si, ya la presento | H172: Documento - DNI, Analitico, Solicitud de Inscripcion | I172: Luis | K172: =IFERROR(VLOOKUP(D172,#REF!,7,FALSE),"") ->  | L172: Si
B173: 2016-08-26T17:44:45 | C173: LEDESMA, FACUNDO | D173: 136987283 | E173: PSHS05121 | F173: 2015 | G173: No, aun no la presenta, la presentara | I173: Luis | K173: =IFERROR(VLOOKUP(D173,#REF!,7,FALSE),"") ->  | L173: No
B174: 2016-08-26T17:47:16 | C174: MARTINEZ,JORGE RAMON ARIEL | D174: 126026841 | E174: TMCI01036 | F174: 2016 | G174: No, aun no la presenta, la presentara | I174: Luis | K174: =IFERROR(VLOOKUP(D174,#REF!,7,FALSE),"") ->  | L174: No
B175: 2016-08-26T17:54:08 | C175: GAVIER,FERNANDO NICOLAS | D175: 122773476 | E175: TMCI02825 | F175: 2017 | G175: No, aun no la presenta, la presentara | I175: Luis | K175: =IFERROR(VLOOKUP(D175,#REF!,7,FALSE),"") ->  | L175: No
B176: 2016-08-26T17:58:59 | C176: GOFFI,ANA VALERIA | D176: 125794322 | E176: TMCI00042 | F176: 2018 | G176: Si, ya la presento | H176: Documento - DNI, Analitico, Solicitud de Inscripcion | I176: Luis | K176: =IFERROR(VLOOKUP(D176,#REF!,7,FALSE),"") ->  | L176: Si
B177: 2016-08-26T18:13:10 | C177: HIGA MARQUILLAS,MARIA ALEJANDRA | D177: 128261511 | E177: PSHS05276 | F177: 2023 | G177: Si, ya la presento | H177: Documento - DNI, Analitico, Solicitud de Inscripcion | I177: Luis | K177: =IFERROR(VLOOKUP(D177,#REF!,7,FALSE),"") ->  | L177: Si
B178: 2016-08-26T18:17:54 | C178: MARIA NATALIA LEAL | D178: 25656041 | E178: MAR01728 | F178: 2025 | G178: No, aun no la presenta, la presentara | I178: Luis | K178: =IFERROR(VLOOKUP(D178,#REF!,7,FALSE),"") ->  | L178: No
B179: 2016-08-26T18:20:53 | C179: LLANES MAIRA DAYANA | D179: 33809370 | E179: MAR01769 | F179: 2026 | G179: No, aun no la presenta, la presentara | I179: Luis | K179: =IFERROR(VLOOKUP(D179,#REF!,7,FALSE),"") ->  | L179: No
K180: =IFERROR(VLOOKUP(D180,#REF!,7,FALSE),"") -> 
K181: =IFERROR(VLOOKUP(D181,#REF!,7,FALSE),"") -> 
K182: =IFERROR(VLOOKUP(D182,#REF!,7,FALSE),"") -> 
K183: =IFERROR(VLOOKUP(D183,#REF!,7,FALSE),"") -> 
K184: =IFERROR(VLOOKUP(D184,#REF!,7,FALSE),"") -> 
K185: =IFERROR(VLOOKUP(D185,#REF!,7,FALSE),"") -> 
K186: =IFERROR(VLOOKUP(D186,#REF!,7,FALSE),"") -> 
K187: =IFERROR(VLOOKUP(D187,#REF!,7,FALSE),"") -> 
K188: =IFERROR(VLOOKUP(D188,#REF!,7,FALSE),"") -> 
K189: =IFERROR(VLOOKUP(D189,#REF!,7,FALSE),"") -> 
K190: =IFERROR(VLOOKUP(D190,#REF!,7,FALSE),"") -> 
K191: =IFERROR(VLOOKUP(D191,#REF!,7,FALSE),"") -> 
K192: =IFERROR(VLOOKUP(D192,#REF!,7,FALSE),"") -> 
K193: =IFERROR(VLOOKUP(D193,#REF!,7,FALSE),"") -> 
K194: =IFERROR(VLOOKUP(D194,#REF!,7,FALSE),"") ->  | L194: =MID(G194,1,2) -> 
K195: =IFERROR(VLOOKUP(D195,#REF!,7,FALSE),"") -> 
K196: =IFERROR(VLOOKUP(D196,#REF!,7,FALSE),"") -> 
K197: =IFERROR(VLOOKUP(D197,#REF!,7,FALSE),"") -> 
K198: =IFERROR(VLOOKUP(D198,#REF!,7,FALSE),"") -> 
K199: =IFERROR(VLOOKUP(D199,#REF!,7,FALSE),"") -> 
K200: =IFERROR(VLOOKUP(D200,#REF!,7,FALSE),"") -> 
... 1109 more rows

Sheet Hoja3 (hidden)
A1: ORIGEN | B1: BASE DE ORIGEN | C1: APELLIDO | D1: NOMBRE | E1: DNI | F1: Resultado de Llamada
A2: Incompletos Tecnicatura | B2: Incompletos Tecnicatura | C2: MOLDES CAFARO | D2: CONDESA KATEN | E2: 128777677 | F2: No Atendio
A3: Incompletos Tecnicatura | B3: Incompletos Tecnicatura | C3: PERAZZO | D3: MARTIN | E3: 131843651 | F3: No Atendio
A4: Incompletos Tecnicatura | B4: Incompletos Tecnicatura | C4: ALTURRIA | D4: MELISA GISEL | E4: 134290070 | F4: No Atendio
A5: Incompletos Tecnicatura | B5: Incompletos Tecnicatura | C5: ROMERO | D5: YAMILA | E5: 132749403 | F5: No Atendio
A6: Incompletos Tecnicatura | B6: Incompletos Tecnicatura | C6: SANCHEZ | D6: FACUNDO | E6: 130656326 | F6: Atendio
A7: Incompletos Tecnicatura | B7: Incompletos Tecnicatura | C7: WINDHOLZ | D7: CLAUDIA ALEJANDRA | E7: 127891258 | F7: Atendio
A8: Incompletos Tecnicatura | B8: Incompletos Tecnicatura | C8: LA MARCA | D8: YANINA SOLANGE | E8: 135108426 | F8: Atendio
A9: Incompletos Tecnicatura | B9: Incompletos Tecnicatura | C9: BERTELLA | D9: FRANCO | E9: 138179605 | F9: No Atendio
A10: Incompletos Tecnicatura | B10: Incompletos Tecnicatura | C10: AHUMADA | D10: RODRIGO | E10: 134909468 | F10: No Atendio
A11: Incompletos Tecnicatura | B11: Incompletos Tecnicatura | C11: ALVAREZ | D11: FLORENCIA | E11: 133602111 | F11: No Atendio
A12: Incompletos Tecnicatura | B12: Incompletos Tecnicatura | C12: PIDONI | D12: SEBASTIAN FELIPE | E12: 135526690 | F12: No Atendio
A13: Incompletos Tecnicatura | B13: Incompletos Tecnicatura | C13: DIAZ | D13: DIEGO MARTIN | E13: 21756483 | F13: Atendio
A14: Incompletos Tecnicatura | B14: Incompletos Tecnicatura | C14: FERRARIO | D14: HECTOR JULIO | E14: 16409093 | F14: Atendio
A15: Incompletos Tecnicatura | B15: Incompletos Tecnicatura | C15: ESTEVEZ PARRELLO | D15: PAULA | E15: 36126911 | F15: No Atendio
A16: Incompletos Tecnicatura | B16: Incompletos Tecnicatura | C16: WILLIAMS | D16: JOAQUIN | E16: 35889583 | F16: Atendio
A17: Incompletos Tecnicatura | B17: Incompletos Tecnicatura | C17: FINI | D17: RUBEN ESTEBAN | E17: 24578365 | F17: Atendio
A18: Incompletos Tecnicatura | B18: Incompletos Tecnicatura | C18: LOREFICE | D18: LUCAS | E18: 36983793 | F18: No Atendio
A19: Incompletos Tecnicatura | B19: Incompletos Tecnicatura | C19: COPPINI | D19: EVELYN | E19: 37488308 | F19: Atendio
A20: Incompletos Tecnicatura | B20: Incompletos Tecnicatura | C20: BORDA | D20: ANDREA | E20: 22013286 | F20: No Atendio
A21: Incompletos Tecnicatura | B21: Incompletos Tecnicatura | C21: BONETTO | D21: DIEGO | E21: 34247589 | F21: No Atendio
A22: Incompletos Tecnicatura | B22: Incompletos Tecnicatura | C22: POLIANKOF | D22: MELINA ANABEL | E22: 38503357 | F22: No Atendio
A23: Incompletos Tecnicatura | B23: Incompletos Tecnicatura | C23: AMAYA | D23: MARIANA | E23: 28269923 | F23: Atendio
A24: Incompletos Tecnicatura | B24: Incompletos Tecnicatura | C24: ARANIBAR OLIVARES | D24: LEONARDO MIGUEL | E24: 32204103 | F24: No Atendio
A25: Incompletos Tecnicatura | B25: Incompletos Tecnicatura | C25: AVELINO CARLE VIETTI | D25: JORGE CRISTIAN | E25: 23252436 | F25: No Atendio
A26: Incompletos Tecnicatura | B26: Incompletos Tecnicatura | C26: CAMPO ALTAMIRANO | D26: ALEJANDRO DANIEL | E26: 26480757 | F26: No Atendio
A27: Incompletos Tecnicatura | B27: Incompletos Tecnicatura | C27: MUNOZ | D27: VALENTIN | E27: 34277538 | F27: Atendio
A28: Incompletos Tecnicatura | B28: Incompletos Tecnicatura | C28: ROSSI | D28: DARIO ESTEBAN | E28: 27014705 | F28: Atendio
A29: Incompletos Tecnicatura | B29: Incompletos Tecnicatura | C29: PEDRAZA | D29: EVELYN DAIANA | E29: 38105848 | F29: Atendio
A30: Incompletos Tecnicatura | B30: Incompletos Tecnicatura | C30: HEIS | D30: STEFANIA | E30: 36120014 | F30: Atendio
A31: Incompletos Tecnicatura | B31: Incompletos Tecnicatura | C31: GIGENA | D31: VERONICA | E31: 33537735 | F31: No Atendio
A32: Incompletos Tecnicatura | B32: Incompletos Tecnicatura | C32: JIMENEZ CONTRERAS | D32: FRANCISCO ALEXIS | E32: 32317269 | F32: No Atendio
A33: Incompletos Tecnicatura | B33: Incompletos Tecnicatura | C33: MONDINO | D33: VERONICA SOLEDAD | E33: 29833331 | F33: No Atendio
A34: Incompletos Tecnicatura | B34: Incompletos Tecnicatura | C34: GOMEZ | D34: DANIELA LORENA | E34: 37851731 | F34: Atendio
A35: Incompletos Tecnicatura | B35: Incompletos Tecnicatura | C35: SALONIA | D35: DIEGO | E35: 29714394 | F35: Atendio
A36: Incompletos Tecnicatura | B36: Incompletos Tecnicatura | C36: JIMENEZ | D36: VANESA BELEN | E36: 38337148 | F36: No Atendio
A37: Incompletos Tecnicatura | B37: Incompletos Tecnicatura | C37: FLORES | D37: EVELIN VANESSA | E37: 37093537 | F37: No Atendio
A38: Incompletos Tecnicatura | B38: Incompletos Tecnicatura | C38: BAZAN | D38: MICAELA CELESTE | E38: 35580718 | F38: Atendio
A39: Incompletos Tecnicatura | B39: Incompletos Tecnicatura | C39: OTERO | D39: ARLETTE | E39: 33415378 | F39: No Atendio
A40: Incompletos Tecnicatura | B40: Incompletos Tecnicatura | C40: LEAL | D40: DANIELA | E40: 35054436 | F40: No Atendio
A41: Incompletos Tecnicatura | B41: Incompletos Tecnicatura | C41: PESCI | D41: GIULIANNA | E41: 26767717 | F41: No Atendio
A42: Incompletos Tecnicatura | B42: Incompletos Tecnicatura | C42: JARA | D42: MAXIMILIANO MATIAS | E42: 36983676 | F42: Atendio
A43: Incompletos Tecnicatura | B43: Incompletos Tecnicatura | C43: GALLEGUILLO | D43: JONATHAN EXEQUIEL | E43: 35090303 | F43: No Atendio
A44: Incompletos Tecnicatura | B44: Incompletos Tecnicatura | C44: AGUIRRE | D44: LEYLEN ANAHI | E44: 26993948 | F44: No Atendio
A45: Incompletos Tecnicatura | B45: Incompletos Tecnicatura | C45: CASTELLI | D45: ARIANA | E45: 32875751 | F45: No Atendio
A46: Incompletos Tecnicatura | B46: Incompletos Tecnicatura | C46: MARTIN | D46: MARIA PAULA | E46: 34083604 | F46: No Atendio
A47: Incompletos Tecnicatura | B47: Incompletos Tecnicatura | C47: MANASSERO | D47: RAMIRO | E47: 36341593 | F47: Atendio
A48: Incompletos Tecnicatura | B48: Incompletos Tecnicatura | C48: HEFTY OZAN | D48: MARIANO | E48: 36125364
A49: Incompletos Tecnicatura | B49: Incompletos Tecnicatura | C49: GARCIA | D49: MARIANELLA | E49: 38410682 | F49: No Atendio
A50: Incompletos Tecnicatura | B50: Incompletos Tecnicatura | C50: GHIGO | D50: ANA BERNABELLA | E50: 38164146 | F50: No Atendio
A51: Incompletos Tecnicatura | B51: Incompletos Tecnicatura | C51: ESCOBAR | D51: LUCAS | E51: 36232198 | F51: Atendio
A52: Incompletos Tecnicatura | B52: Incompletos Tecnicatura | C52: BACCHINA FIGUEROA | D52: CYNTHIA | E52: 37627189 | F52: Atendio
A53: Incompletos Tecnicatura | B53: Incompletos Tecnicatura | C53: CONSUELO | D53: MARIA VICTORIA | E53: 35212158 | F53: Atendio
A54: Incompletos Tecnicatura | B54: Incompletos Tecnicatura | C54: RODRIGUEZ | D54: ALCIRA SOFIA | E54: 24472705
A55: Incompletos Tecnicatura | B55: Incompletos Tecnicatura | C55: LEIBOVICH | D55: MARIA LAURA | E55: 36356307
A56: Incompletos Tecnicatura | B56: Incompletos Tecnicatura | C56: CONFORTI | D56: LAURA GISELLE | E56: 24549305
A57: Incompletos Tecnicatura | B57: Incompletos Tecnicatura | C57: BRIGANDI | D57: ROXANA CARMELITA DEL MILAGRO | E57: 26408850
A58: Incompletos Tecnicatura | B58: Incompletos Tecnicatura | C58: LURASCHI | D58: FRANCISCO MANUEL | E58: 36631688
A59: Incompletos Tecnicatura | B59: Incompletos Tecnicatura | C59: ROVETTO | D59: NATHALIE STEFANI | E59: 36743166
A60: Incompletos Tecnicatura | B60: Incompletos Tecnicatura | C60: GUEVARA | D60: SILVIA GRACIELA | E60: 18210292
A61: Incompletos Tecnicatura | B61: Incompletos Tecnicatura | C61: MARTINEZ | D61: FACUNDO | E61: 38329223
A62: Incompletos Tecnicatura | B62: Incompletos Tecnicatura | C62: VORGAS | D62: BETIANA YACI | E62: 34688772
A63: Incompleto Grado | B63: Incompleto Grado | C63: CARO | D63: LAURA | E63: 29203717
A64: Incompleto Grado | B64: Incompleto Grado | C64: BARRIONE | D64: KARINA BEATRIZ | E64: 22964690
A65: Incompleto Grado | B65: Incompleto Grado | C65: PIEDRABUENA | D65: FELIPE | E65: 11127866
A66: Incompleto Grado | B66: Incompleto Grado | C66: PERDIGUERO | D66: MARIELA ALEJANDRA | E66: 20369696
A67: Incompleto Grado | B67: Incompleto Grado | C67: SCARAFIA | D67: LUMILA | E67: 30167425
A68: Incompleto Grado | B68: Incompleto Grado | C68: ACOSTA | D68: GRISELDA ELIZABETH | E68: 30084767
A69: Incompleto Grado | B69: Incompleto Grado | C69: NORSICH | D69: MARCOS OCTAVIO | E69: 24991337
A70: Incompleto Grado | B70: Incompleto Grado | C70: MALUF | D70: SILVANA DANIELA | E70: 26903521
A71: Incompleto Grado | B71: Incompleto Grado | C71: LO RE | D71: MARIA VICTORIA | E71: 31637730
A72: Incompleto Grado | B72: Incompleto Grado | C72: SANCHEZ MARQUEZ | D72: ADRIAN RODRIGO | E72: 33816252
A73: Incompleto Grado | B73: Incompleto Grado | C73: RIZZOLI | D73: AGUSTINA | E73: 35044098
A74: Incompleto Grado | B74: Incompleto Grado | C74: SALINAS | D74: NORMA NOEMI | E74: 6402288
A75: Incompleto Grado | B75: Incompleto Grado | C75: HANSEN | D75: SOLANGE GRACIELA | E75: 17502553 | F75: No Atendio
A76: Incompleto Grado | B76: Incompleto Grado | C76: MIRANDA | D76: MARIA FLORENCIA | E76: 17759652 | F76: Atendio
A77: Incompleto Grado | B77: Incompleto Grado | C77: CALCAGNO | D77: ROXANA | E77: 18233965 | F77: No Atendio
A78: Incompleto Grado | B78: Incompleto Grado | C78: CORONEL | D78: FERNANDA GABRIELA | E78: 21704167
A79: Incompleto Grado | B79: Incompleto Grado | C79: DIAZ CORNEJO | D79: MARIA SOLEDAD | E79: 23495109 | F79: No Atendio
A80: Incompleto Grado | B80: Incompleto Grado | C80: VACA JAPAZE | D80: ALICIA DANIELA | E80: 26368048 | F80: No Atendio
A81: Incompleto Grado | B81: Incompleto Grado | C81: MEDINA | D81: CECILIA ELIZABETH | E81: 31118151 | F81: Atendio
A82: Incompleto Grado | B82: Incompleto Grado | C82: LOUBET | D82: ANGEL | E82: 31216394 | F82: No Atendio
A83: Incompleto Grado | B83: Incompleto Grado | C83: KAKUBUR | D83: DENISSE SOLANGE | E83: 31502188 | F83: Atendio
A84: Incompleto Grado | B84: Incompleto Grado | C84: MORALES IBARRA | D84: GIMENA MAGALI | E84: 31988487 | F84: Atendio
A85: Incompleto Grado | B85: Incompleto Grado | C85: MARTINELLI | D85: MARIA DEL ROCIO | E85: 32815291 | F85: Atendio
A86: Incompleto Grado | B86: Incompleto Grado | C86: OLIVA PANIZZA | D86: LUCRECIA | E86: 33303718 | F86: Atendio
A87: Incompleto Grado | B87: Incompleto Grado | C87: ZARANDON | D87: GISELA ALEJANDRA | E87: 33430722 | F87: No Atendio
A88: Incompleto Grado | B88: Incompleto Grado | C88: RIGOGLIO | D88: AILEN | E88: 34377588 | F88: Atendio
A89: Incompleto Grado | B89: Incompleto Grado | C89: GOMEZ | D89: JULIETA MARIEL | E89: 34975132 | F89: Atendio
A90: Incompleto Grado | B90: Incompleto Grado | C90: ERPEN | D90: CAROLINA VALERIA | E90: 35558995 | F90: Atendio
A91: Incompleto Grado | B91: Incompleto Grado | C91: PAGOTTO | D91: MARIA AGUSTINA | E91: 36539199 | F91: No Atendio
A92: Incompleto Grado | B92: Incompleto Grado | C92: HERNANDEZ | D92: JUAN CARLOS | E92: 7650630 | F92: No Atendio
A93: Incompleto Grado | B93: Incompleto Grado | C93: ALVARENGA | D93: LAURA OFELIA | E93: 30294802 | F93: Atendio
A94: Incompleto Grado | B94: Incompleto Grado | C94: LOVATTO | D94: RAUL VICTOR DAVID | E94: 30549869 | F94: Atendio
A95: Incompleto Grado | B95: Incompleto Grado | C95: MIGUEL GAITAN | D95: LORENA | E95: 30900176 | F95: Atendio
A96: Incompleto Grado | B96: Incompleto Grado | C96: PODETTI | D96: FRANCO ALEJANDRO | E96: 30597527 | F96: Atendio
A97: Incompleto Grado | B97: Incompleto Grado | C97: ARRIETA | D97: FRANCISCO JAVIER | E97: 33371727 | F97: Atendio
A98: Incompleto Grado | B98: Incompleto Grado | C98: MARSENGO TOLEDO | D98: SALOME | E98: 34992905 | F98: Atendio
A99: Incompleto Grado | B99: Incompleto Grado | C99: SEGURA | D99: TERESITA NANCY | E99: 16873062 | F99: Atendio
A100: Incompleto Grado | B100: Incompleto Grado | C100: VIETTO | D100: ARIEL MARCELO | E100: 23835149 | F100: Atendio
A101: Incompleto Grado | B101: Incompleto Grado | C101: ABDALA | D101: MARIA LIGIA | E101: 24360925 | F101: No Atendio
A102: Incompleto Grado | B102: Incompleto Grado | C102: RECIO | D102: CÉSAR DARÍO | E102: 24948662 | F102: No Atendio
A103: Incompleto Grado | B103: Incompleto Grado | C103: ENRIA | D103: ROSANA MARCELA | E103: 26923111 | F103: Atendio
A104: Incompleto Grado | B104: Incompleto Grado | C104: ALFARO MARTINEZ | D104: NOELIA EMILCE | E104: 33236482 | F104: No Atendio
A105: Incompleto Grado | B105: Incompleto Grado | C105: PINTO | D105: NICOLAS EMANUEL | E105: 35316075 | F105: Atendio
A106: Incompleto Grado | B106: Incompleto Grado | C106: SARJANOVICH | D106: MARIA JOSE | E106: 27139769 | F106: Atendio
A107: Incompleto Grado | B107: Incompleto Grado | C107: ORTEGA | D107: PATRICIA DANIELA | E107: 18528427 | F107: Atendio
A108: Incompleto Grado | B108: Incompleto Grado | C108: ESTRADA | D108: LEANDRO ALFONSO CIRILO | E108: 23999138 | F108: Atendio
A109: Incompleto Grado | B109: Incompleto Grado | C109: DEL CASTILLO JAIME | D109: MARIA PIA | E109: 31742074 | F109: Atendio
A110: Incompleto Grado | B110: Incompleto Grado | C110: TURLETTI | D110: STEFANIA | E110: 32777281 | F110: Atendio
A111: Incompleto Grado | B111: Incompleto Grado | C111: PEZZARINI | D111: JOSE ANTONIO | E111: 30079425 | F111: Atendio
A112: Incompleto Grado | B112: Incompleto Grado | C112: DECIMA | D112: ROMINA GISEL | E112: 33894951 | F112: Atendio
A113: Incompleto Grado | B113: Incompleto Grado | C113: PLEITAVINO | D113: MARISA MABEL | E113: 21404586 | F113: Atendio
A114: Incompleto Grado | B114: Incompleto Grado | C114: SOTO | D114: EMANUEL | E114: 30500894 | F114: No Atendio
A115: Incompleto Grado | B115: Incompleto Grado | C115: NAVEIRO VIERA | D115: ESTELA DEL VALLE | E115: 30849542 | F115: No Atendio
A116: Incompleto Grado | B116: Incompleto Grado | C116: RZESNIOWIECKI | D116: YANINA BELEN | E116: 30968321 | F116: No Atendio
A117: Incompleto Grado | B117: Incompleto Grado | C117: COLONO | D117: JAVIER | E117: 31374092 | F117: Atendio
A118: Incompleto Grado | B118: Incompleto Grado | C118: HELLIN | D118: ALAN DAMIAN | E118: 33047089 | F118: Atendio
A119: Incompleto Grado | B119: Incompleto Grado | C119: MASSAFRO | D119: LUCIANO | E119: 34311656 | F119: No Atendio
A120: Incompleto Grado | B120: Incompleto Grado | C120: TREUS MAC LEAN | D120: JULIETA | E120: 35590313 | F120: No Atendio
A121: Incompleto Grado | B121: Incompleto Grado | C121: VARTALITIS | D121: IVO | E121: 37288046 | F121: No Atendio
A122: Incompleto Grado | B122: Incompleto Grado | C122: MARTIN | D122: LUCIA ELIZABETH | E122: 33325032 | F122: Atendio
A123: Incompleto Grado | B123: Incompleto Grado | C123: RODRIGUEZ | D123: MAITE ROXANA | E123: 23497233 | F123: Atendio
A124: Incompleto Grado | B124: Incompleto Grado | C124: IGLESIAS | D124: CAROLINA | E124: 21363540 | F124: Atendio
A125: Incompleto Grado | B125: Incompleto Grado | C125: GUANZIROLI | D125: LEANDRO RAUL | E125: 27136195 | F125: Atendio
A126: Incompleto Grado | B126: Incompleto Grado | C126: IBANEZ | D126: GERALDINE INES | E126: 28926181 | F126: No Atendio
A127: Incompleto Grado | B127: Incompleto Grado | C127: FOS GROSSO | D127: MAXIMILIANO | E127: 36425716 | F127: No Atendio
A128: Incompleto Grado | B128: Incompleto Grado | C128: CHIESA | D128: ENRIQUE SEBASTIAN | E128: 30345533 | F128: No Atendio
A129: Incompleto Grado | B129: Incompleto Grado | C129: LEDEZMA DE VILLALBA | D129: GRACIELA BEATRIZ | E129: 14915026 | F129: Atendio
A130: Incompleto Grado | B130: Incompleto Grado | C130: CABRERA BRAVO | D130: ADELINA | E130: 35311930 | F130: No Atendio
A131: Incompleto Grado | B131: Incompleto Grado | C131: VIDABLE | D131: JESICA MARISEL | E131: 28032577 | F131: Atendio
A132: Incompleto Grado | B132: Incompleto Grado | C132: BARROS | D132: INES DEL VALLE | E132: 11190121 | F132: Atendio
A133: Incompleto Grado | B133: Incompleto Grado | C133: LUCIANI | D133: MARIELA | E133: 28499727 | F133: No Atendio
A134: Incompleto Grado | B134: Incompleto Grado | C134: OBDRZALEK GORSD | D134: FLAVIA SILVANA | E134: 34486712 | F134: Atendio
A135: Incompleto Grado | B135: Incompleto Grado | C135: SUASTE | D135: LUCAS EMMANUEL | E135: 27763757 | F135: Atendio
A136: Incompleto Grado | B136: Incompleto Grado | C136: SERRA | D136: MARTIN FABIÁN | E136: 22184656 | F136: Atendio
A137: Incompleto Grado | B137: Incompleto Grado | C137: ARIAS | D137: NATALIA | E137: 25449523 | F137: Atendio
A138: Incompleto Grado | B138: Incompleto Grado | C138: AGUIRRE | D138: MARIA FLORENCIA | E138: 34273948 | F138: No Atendio
A139: Incompleto Grado | B139: Incompleto Grado | C139: CURA | D139: GRACIELA | E139: 22119815 | F139: No Atendio
A140: Incompleto Grado | B140: Incompleto Grado | C140: STELLA MARYS | D140: ROSSI WENK | E140: 12331113 | F140: Atendio
A141: Incompleto Grado | B141: Incompleto Grado | C141: LUQUEZ | D141: LAURA CECILIA | E141: 22543070 | F141: No Atendio
A142: Incompleto Grado | B142: Incompleto Grado | C142: MARTIN | D142: CINTIA PAOLA | E142: 25354713 | F142: No Atendio
A143: Incompleto Grado | B143: Incompleto Grado | C143: PIRETRO | D143: FABIOLA CATALINA | E143: 28343256 | F143: No Atendio
A144: Incompleto Grado | B144: Incompleto Grado | C144: LUCHESSI | D144: MONICA PATRICIA | E144: 29259280 | F144: No Atendio
A145: Incompleto Grado | B145: Incompleto Grado | C145: MIGLIAZZO | D145: MARCOS ALBERTO MIGLIAZZO | E145: 31221214 | F145: Atendio
A146: Incompleto Grado | B146: Incompleto Grado | C146: PICCA | D146: MARIA CELESTE | E146: 32772278 | F146: Atendio
A147: Incompleto Grado | B147: Incompleto Grado | C147: GAMPEL | D147: JESICA | E147: 33814337 | F147: No Atendio
A148: Incompleto Grado | B148: Incompleto Grado | C148: PARRA | D148: ROCIO AYELEN | E148: 34701840 | F148: Atendio
A149: Incompleto Tecnicatura 2 | B149: Incompleto Tecnicatura 2 | C149: TORRES | D149: ELIANA NATALI | E149: 133825429 | F149: No Atendio
A150: Incompleto Tecnicatura 2 | B150: Incompleto Tecnicatura 2 | C150: ZUPEL | D150: ALEXIS HERNAN | E150: 127228834 | F150: Atendio
A151: Incompleto Tecnicatura 2 | B151: Incompleto Tecnicatura 2 | C151: TISSERA | D151: RODOLFO EDUARDO | E151: 126177459 | F151: Atendio
A152: Incompleto Tecnicatura 2 | B152: Incompleto Tecnicatura 2 | C152: OVIEDO | D152: NATALIA MARICEL | E152: 129477062 | F152: No Atendio
A153: Incompleto Tecnicatura 2 | B153: Incompleto Tecnicatura 2 | C153: PAIVA | D153: ANA DANIELA | E153: 133303534 | F153: No Atendio
A154: Incompleto Tecnicatura 2 | B154: Incompleto Tecnicatura 2 | C154: PAIVA | D154: TOMAS | E154: 139621427 | F154: Atendio
A155: Incompleto Tecnicatura 2 | B155: Incompleto Tecnicatura 2 | C155: NOTTARIS | D155: NICOLAS | E155: 135966990 | F155: Atendio
A156: Incompleto Tecnicatura 2 | B156: Incompleto Tecnicatura 2 | C156: ROMERO | D156: NAIR SOL | E156: 138725756 | F156: No Atendio
A157: Incompleto Tecnicatura 2 | B157: Incompleto Tecnicatura 2 | C157: TOVO | D157: JUAN FERNANDO | E157: 138885855 | F157: Atendio
A158: Incompleto Tecnicatura 2 | B158: Incompleto Tecnicatura 2 | C158: SCAMPERTI | D158: VIRGINIA | E158: 139080387 | F158: Atendio
A159: Incompleto Tecnicatura 2 | B159: Incompleto Tecnicatura 2 | C159: SARACCO | D159: PAULA | E159: 133054937 | F159: Atendio
A160: Incompleto Tecnicatura 2 | B160: Incompleto Tecnicatura 2 | C160: SEVILLANO | D160: ROMINA | E160: 137836191 | F160: No Atendio
A161: Incompleto Tecnicatura 2 | B161: Incompleto Tecnicatura 2 | C161: SILES | D161: MARIA MARCELINA DEL VALLE | E161: 120997580 | F161: No Atendio
A162: Incompleto Tecnicatura 2 | B162: Incompleto Tecnicatura 2 | C162: PUCHETA LASCANO | D162: EDUARDO HORACIO | E162: 113150809 | F162: Atendio
A163: Incompleto Tecnicatura 2 | B163: Incompleto Tecnicatura 2 | C163: RIVERO | D163: DIEGO DANIEL | E163: 128981411 | F163: No Atendio
A164: Incompleto Tecnicatura 2 | B164: Incompleto Tecnicatura 2 | C164: VILLA | D164: ARACELI | E164: 139305836 | F164: No Atendio
A165: Incompleto Tecnicatura 2 | B165: Incompleto Tecnicatura 2 | C165: CASTRO | D165: VANESA | E165: 129944418 | F165: No Atendio
A166: Incompleto Tecnicatura 2 | B166: Incompleto Tecnicatura 2 | C166: FARIAS | D166: IRENE GRACIELA | E166: 123300577 | F166: Atendio
A167: Incompleto Tecnicatura 2 | B167: Incompleto Tecnicatura 2 | C167: FRANCESCHI | D167: SOFIA LORENA | E167: 136621206 | F167: No Atendio
A168: Incompleto Tecnicatura 2 | B168: Incompleto Tecnicatura 2 | C168: DIAZ | D168: DAVID IGNACIO | E168: 124915719 | F168: No Atendio
A169: Incompleto Tecnicatura 2 | B169: Incompleto Tecnicatura 2 | C169: DUOBAITIL | D169: LORENA EZABETH | E169: 125759832 | F169: Atendio
A170: Incompleto Tecnicatura 2 | B170: Incompleto Tecnicatura 2 | C170: AREVALO | D170: MATIAS SEBASTIAN | E170: 127249759 | F170: No Atendio
A171: Incompleto Tecnicatura 2 | B171: Incompleto Tecnicatura 2 | C171: AZNAREZ | D171: AGUSTIN BERNARDO | E171: 123196181 | F171: No Atendio
A172: Incompleto Tecnicatura 2 | B172: Incompleto Tecnicatura 2 | C172: AGUERO GARCIA | D172: ROLANDO | E172: 127246356 | F172: Atendio
A173: Incompleto Tecnicatura 2 | B173: Incompleto Tecnicatura 2 | C173: BORELLI | D173: EDUARDO ANTONIO | E173: 114366947 | F173: No Atendio
A174: Incompleto Tecnicatura 2 | B174: Incompleto Tecnicatura 2 | C174: BRIGNOLI | D174: NATALIA ANDREA | E174: 129712460 | F174: No Atendio
A175: Incompleto Tecnicatura 2 | B175: Incompleto Tecnicatura 2 | C175: CAFFARO | D175: AGUSTIN | E175: 138816815 | F175: Atendio
A176: Incompleto Tecnicatura 2 | B176: Incompleto Tecnicatura 2 | C176: LOPEZ | D176: MARCELO CARLOS | E176: 117012189 | F176: No Atendio
A177: Incompleto Tecnicatura 2 | B177: Incompleto Tecnicatura 2 | C177: MANZANELLI | D177: GLORIA NATALIA | E177: 131057096 | F177: Atendio
A178: Incompleto Tecnicatura 2 | B178: Incompleto Tecnicatura 2 | C178: JULIA | D178: MARIANO JOSE | E178: 126672358 | F178: Atendio
A179: Incompleto Tecnicatura 2 | B179: Incompleto Tecnicatura 2 | C179: LAVES | D179: ADA LORENA | E179: 126849877 | F179: Atendio
A180: Incompleto Tecnicatura 2 | B180: Incompleto Tecnicatura 2 | C180: LEDESMA | D180: FACUNDO | E180: 136987283 | F180: Atendio
A181: Incompleto Tecnicatura 2 | B181: Incompleto Tecnicatura 2 | C181: MARTINEZ | D181: JORGE RAMON ARIEL | E181: 126026841 | F181: Atendio
A182: Incompleto Tecnicatura 2 | B182: Incompleto Tecnicatura 2 | C182: GAVIER | D182: FERNANDO NICOLAS | E182: 122773476 | F182: Atendio
A183: Incompleto Tecnicatura 2 | B183: Incompleto Tecnicatura 2 | C183: GOFFI | D183: ANA VALERIA | E183: 125794322 | F183: Atendio
A184: Incompleto Tecnicatura 2 | B184: Incompleto Tecnicatura 2 | C184: FUENTES | D184: CAMILA DANIELA | E184: 139071482 | F184: No Atendio
A185: Incompleto Tecnicatura 2 | B185: Incompleto Tecnicatura 2 | C185: GARCIA | D185: FERNANDA ISABEL | E185: 118147603 | F185: No Atendio
A186: Incompleto Tecnicatura 2 | B186: Incompleto Tecnicatura 2 | C186: GARCIA | D186: MABEL ESTELA | E186: 122560136 | F186: No Atendio
A187: Incompleto Tecnicatura 2 | B187: Incompleto Tecnicatura 2 | C187: GARELLO | D187: GASTON | E187: 137187738 | F187: No Atendio
A188: Incompleto Tecnicatura 2 | B188: Incompleto Tecnicatura 2 | C188: HIGA MARQUILLAS | D188: MARIA ALEJANDRA | E188: 128261511 | F188: Atendio
A189: Incompleto Tecnicatura 2 | B189: Incompleto Tecnicatura 2 | C189: HEREDIA | D189: AYELEN FLORENCIA | E189: 36357272 | F189: No Atendio
A190: Incompleto Tecnicatura 2 | B190: Incompleto Tecnicatura 2 | C190: LEAL | D190: MARIA NATALIA | E190: 25656041 | F190: Atendio
A191: Incompleto Tecnicatura 2 | B191: Incompleto Tecnicatura 2 | C191: LLANES | D191: MAIRA DAYANA | E191: 33809370 | F191: Atendio
A192: Incompleto Tecnicatura 2 | B192: Incompleto Tecnicatura 2 | C192: VILLAFANE | D192: PEDRO MARTIN | E192: 28025546
A193: Incompleto Tecnicatura 2 | B193: Incompleto Tecnicatura 2 | C193: CASTRO | D193: CYNTHIA NOEL | E193: 32373446
A194: Incompleto Tecnicatura 2 | B194: Incompleto Tecnicatura 2 | C194: ALBARRACIN | D194: MELISA ANDREA | E194: 36773777
A195: Incompleto Tecnicatura 2 | B195: Incompleto Tecnicatura 2 | C195: RODRIGUEZ | D195: PATRICIA EDITH | E195: 23196877
A196: Incompleto Tecnicatura 2 | B196: Incompleto Tecnicatura 2 | C196: GALAVERNA | D196: EDUARDO | E196: 23105941
A197: Incompleto Tecnicatura 2 | B197: Incompleto Tecnicatura 2 | C197: GUZMAN | D197: EMILSE | E197: 32785104
A198: Incompleto Tecnicatura 2 | B198: Incompleto Tecnicatura 2 | C198: ARENAS | D198: OSCAR LUIS | E198: 36297567
A199: Incompleto Tecnicatura 2 | B199: Incompleto Tecnicatura 2 | C199: DE PETRIS | D199: LAUTARO | E199: 37850566
A200: Incompleto Tecnicatura 2 | B200: Incompleto Tecnicatura 2 | C200: MOLINA | D200: MARISA FABIOLA | E200: 22563199
... 30 more rows

Sheet cruce1 (hidden)
A1: Marca temporal | B1: Selecciona Campaña | C1: Selecciona la Carrera de Egreso | D1: Nombre y Apellido del Egresado | E1: CorreoElectronicodelEgresado | F1: Dirección postal del Egresado - CALLE+Numeración | G1: Ciudad del Egresado | H1: Dirección postal del Egresado - BARRIO | I1: Provincia del Egresado | J1: Dirección postal del Egresado - Código Postal | K1: Asiste al Evento | L1: Fecha y Hora de re programacion de Contacto. | M1: En caso de Asisitir, Indicar cantidad de invitados | O1: Invitados | P1: DNI | Q1: TELEFONO 1 | R1: TELEFONO 2
A2: 42290.48428 | B2: Egresados GRADO - 25/11 Turno Mañana (10:30 Hs) | C2: Escribanía | D2: OVIEDO, FERNANDO LUCIANO | E2: fernando-oviedo-10@hotmail.com | F2: DIEGO DE VILLARROEL 987 | G2: Yerba Buena | H2: s/datos | I2: Tucumán | J2: 4107 | K2: No, No asistire | N2: No envía Documentación, No la tiene | O2: 0
A3: 42322.78029 | B3: Egresados TECNICATURA - 24/11 único turno (10:30 Hs) | C3: Tecnicatura Martillero y Corredor Público. | D3: SEBASTIAN, PASCUAL | E3: sebastianpascual_@hotmail.com | F3: PJE JOSE JIMENEZ 1907 | G3: Cordoba | I3: Córdoba | K3: SI, Asistira | M3: 2 Invitados | O3: 2 | P3: 123824167
A4: 42298.77934 | B4: Egresados GRADO - 25/11 Turno Mañana (10:30 Hs) | C4: Escribanía | D4: Ana Carolina, Rodríguez | E4: a_c_ro1979@hotmail.com | F4: Av. 24 de septiembre nro. 2365 | G4: Cordoba | H4: General Paz | I4: Córdoba | J4: 5000 | K4: SI, Asistira | M4: 4 Invitados | O4: 4
A5: 42322.71029 | B5: Egresados GRADO - 24/11 Turno Tarde (19:30 Hs) | C5: Abogacía | D5: ALFONSO, LOZITA | E5: alfo_lozita@hotmail.com | F5: Obispo Salguero 777 | G5: Córdoba | I5: Córdoba | K5: SI, Asistira | M5: 4 Invitados | O5: 4
A6: 42290.4231 | B6: Egresados GRADO - 25/11 Turno Mañana (10:30 Hs) | C6: Escribanía | D6: ORTIZ ARGUELLO, ANA MARIA | E6: anitaortizarguello@hotmail.com | F6: ROQUE SAENZ PEÑA 464 | G6: Resistencia | H6: CENTRO | I6: Chaco | J6: 3500 | K6: SI, Asistira | M6: 4 Invitados | N6: Envía Documentación | O6: 4
A7: 42321.55263 | B7: Egresados TECNICATURA - 24/11 único turno (10:30 Hs) | C7: Tecnicatura Martillero y Corredor Público. | D7: CAROLINA ANDREA, QUIROGA SACCHETTA | E7: carolinaandreaquiroga@hotmail.com | F7: córdoba | G7: Córdoba | I7: Córdoba | K7: SI, Asistira | M7: 2 Invitados | O7: 2 | P7: 129715293
A8: 42292.60339 | B8: Egresados GRADO - 25/11 Turno Mañana (10:30 Hs) | C8: Escribanía | D8: MARIA CAROLINA, BIGATTI | E8: CAROLINABIGATTI@hotmail.com | F8: Camino San Carlos Km 6.5 manzana 8 lote 7 | G8: Córdoba | H8: Fincas del Sur | I8: Córdoba | K8: SI, Asistira | M8: 4 Invitados | O8: 4 | P8: 23730558 | Q8: 5493516182673 | R8: 5493516182673
A9: 42304.71305 | B9: Egresados GRADO - 25/11 Turno Mañana (10:30 Hs) | C9: Licenciatura En Administración | D9: Emiliano Gustavo, Gramajo | E9: emilianoggramajo@gmail.com | F9: Intendente Céspedes Núm 62 | G9: Jesus Maria | H9: Centro | I9: Córdoba | J9: 5220 | K9: SI, Asistira | M9: 4 Invitados | O9: 4 | P9: 32426486 | Q9: 5493525420618 | R9: 543525618413
A10: 42318.62025 | B10: Egresados GRADO - 24/11 Turno Tarde (19:30 Hs) | C10: Licenciatura En Comercio Internacional | D10: FEDERICO, CARBALLO | E10: fede_carballo@hotmail.com | F10: GENERAL DEHEZA 268 | G10: Córdoba | I10: Córdoba | K10: SI, Asistira | M10: 4 Invitados | O10: 4 | P10: 33030434 | Q10: 5493571637624 | R10: 5493571637624
A11: 42320.82284 | B11: Egresados GRADO - 25/11 Turno Mañana (10:30 Hs) | C11: Licenciatura En Administración | D11: Muñoz Velazquez, franco joel | E11: FRAN_FRAN0706@HOTMAIL.COM | F11: guillermo diver 3892 | G11: Córdoba | H11: patricios | I11: Córdoba | J11: 5012 | K11: SI, Asistira | M11: 4 Invitados | O11: 4 | P11: 34689315 | Q11: 5493515424613 | R11: 5493515424613
A12: 42321.62707 | B12: Egresados GRADO - 25/11 Turno Tarde (19:30 Hs) | C12: Ingeniería En Software | D12: HORACIO RUBEN, TOVO | E12: horaciotovo@gmail.com | F12: Bv. Illia 790 | G12: Carlos Paz | H12: Villa Dominguez | I12: Córdoba | K12: SI, Asistira | M12: 4 Invitados | O12: 4
A13: 42299.70001 | B13: Egresados TECNICATURA - 24/11 único turno (10:30 Hs) | C13: Tecnicatura Martillero y Corredor Público. | D13: Julieta Andrea, Canessini | E13: julietacanessini@gmail.com | F13: Ramón de Clairac 1576 | G13: Cordoba | H13: Yofre Sur | I13: Córdoba | J13: 5012 | K13: SI, Asistira | M13: 2 Invitados | O13: 2
A14: 42304.42179 | B14: Egresados TECNICATURA - 24/11 único turno (10:30 Hs) | C14: Tecnicatura en Higiene y Seguridad Laboral | D14: Mariano Leandro, Mazzucco | E14: mariano_mazzucco@hotmail.com | F14: Llay Llay 543 | G14: Rio IV | I14: Córdoba | K14: SI, Asistira | M14: 2 Invitados | O14: 2 | P14: 132000635 | Q14: 5493584317766 | R14: 543584631881
A15: 42299.70508 | B15: Egresados GRADO - 24/11 Turno Tarde (19:30 Hs) | C15: Abogacía | D15: Ramiro Javier, Robaldo | E15: ramirorobaldo@gmail.com | F15: Ibazeta 380 | G15: Salta | H15: Centro | I15: Salta | J15: 4400 | K15: SI, Asistira | M15: 4 Invitados | O15: 4 | P15: 21633836 | Q15: 5493874844444 | R15: 543874840000
A16: 42298.66131 | B16: Egresados GRADO - 25/11 Turno Tarde (19:30 Hs) | C16: Licenciatura En Publicidad | D16: Ricardo Alfredo, Puig Zuccotti | E16: ricardopuig.z@gmail.com | F16: ): Tránsito Caceres de ): Tránsito Caceres de Allende 459 - PB C | G16: Cordoba | H16: Nueva Cordoba | I16: Córdoba | J16: 5000 | K16: SI, Asistira | M16: 4 Invitados | O16: 4 | P16: 33970929 | Q16: 5493513328099 | R16: 5493513328099
A17: 42286.51312 | B17: Egresados TECNICATURA - 24/11 único turno (10:30 Hs) | C17: Procurador. | D17: GONELLA, SERGIO NATALIO | E17: sergiogonella9@hotmail.com | F17: Av Libertador 1085 | G17: LA TORDILLA | H17: s/datos | I17: Córdoba | J17: 2435 | K17: SI, Asistira | M17: 2 Invitados | N17: No envía Documentación | O17: 2 | P17: PROC02703 | Q17: 5493576496236 | R17: 543576472993
A18: 42304.74022 | B18: Egresados GRADO - 25/11 Turno Tarde (19:30 Hs) | C18: Licenciatura En Relaciones Públicas E Institucionales | D18: Carla Estefanía, Acuña | E18: a.carlae@gmail.com | F18: Bahía Blanca 317 | G18: Córdoba | H18: General Paz | I18: Córdoba | J18: 5000 | K18: SI, Asistira | M18: 4 Invitados | O18: 4 | P18: 35311793 | Q18: 5493516089336 | R18: 5493516089336
A19: 42300.59084 | B19: Egresados TECNICATURA - 24/11 único turno (10:30 Hs) | C19: Tecnicatura Martillero y Corredor Público. | D19: ALDO JAVIER, GIRAUDO | E19: a.j.giraudo@hotmail.com | F19: Merndoza 362 3º B | G19: Rio IV | I19: Córdoba | K19: SI, Asistira | M19: 2 Invitados | O19: 2
A20: 42299.81649 | B20: Egresados GRADO - 25/11 Turno Mañana (10:30 Hs) | C20: Escribanía | D20: Ana Carolina, Rodríguez | E20: a_c_ro@hotmail.com | F20: 24 de septiembre nro.2365 | G20: cordoba | H20: Alto General Paz | I20: Córdoba | J20: 5000 | K20: SI, Asistira | M20: 3 Invitados | O20: 3 | P20: 27597242 | Q20: 5493514512402 | R20: 543514512402
A21: 42294.45126 | B21: Egresados GRADO - 25/11 Turno Mañana (10:30 Hs) | C21: Escribanía | D21: Valentin,hernandez | E21: ab.valentinhernandez@gmail.com | F21: san nose 352 | G21: cordoba | I21: Córdoba | J21: 5984 | K21: Re programar Llamado. Indicar Fecha y Hora en proximo punto | L21: 22/10 16:20 | O21: 0
A22: 42292.4515 | B22: Egresados GRADO - 25/11 Turno Mañana (10:30 Hs) | C22: Escribanía | D22: ana laura, trigo | E22: abg.anatrigo@gmail.com | F22: pasaje aguirre 121 | G22: capital | H22: centro | I22: Salta | J22: 8400 | K22: No, No asistire | O22: 0 | P22: 31173975 | Q22: 5493875369406 | R22: 5493875369406
A23: 42304.68409 | B23: Egresados GRADO - 25/11 Turno Mañana (10:30 Hs) | C23: Escribanía | D23: Valeria Yanina, Montoya | E23: abg.valeriamontoya@hotmail.com.ar | F23: 9 de Julio N°422 | G23: Capital | H23: centro | I23: Córdoba | J23: 5000 | K23: SI, Asistira | M23: 4 Invitados | O23: 4 | P23: 33488842
A24: 42300.48143 | B24: Egresados GRADO - 25/11 Turno Mañana (10:30 Hs) | C24: Escribanía | D24: ABIGAIL, SAUL | E24: abisaul@hotmail.com | F24: peron 1025 | G24: Villa Maria | H24: peron 1025 | I24: Córdoba | K24: No, No asistire | O24: 0 | P24: 32562944 | Q24: 5493535666719 | R24: 543534535210
A25: 42291.6617 | B25: Egresados GRADO - 24/11 Turno Tarde (19:30 Hs) | C25: Abogacía | D25: JONATAN JOSE GASTON, CHAÑI | E25: abogadogastonchani@gmail.com | F25: Las Tunas 1015 | G25: Villa Giardino | H25: La Granja | I25: Córdoba | J25: 5176 | K25: SI, Asistira | M25: 3 Invitados | O25: 3 | P25: 31036826 | Q25: 5493548595371 | R25: 5493548595371
A26: 42293.4542 | B26: Egresados GRADO - 25/11 Turno Mañana (10:30 Hs) | C26: Escribanía | D26: PEDRO, MORETTA | E26: abogadomoretta@hotmail.com | F26: Felipe Varella 324 | G26: Rio III | I26: Córdoba | J26: 5850 | K26: SI, Asistira | M26: 4 Invitados | O26: 4
A27: 42299.82648 | B27: Egresados GRADO - 25/11 Turno Mañana (10:30 Hs) | C27: Contador Público | D27: Felix Ramón, Karam | E27: abykaram@hotmail.com | F27: Ambrosio Olmos 642 1 B | G27: Córdoba | H27: Nueva Cordoba | I27: Córdoba | J27: 5000 | K27: SI, Asistira | M27: 4 Invitados | O27: 4 | P27: 29693556
A28: 42296.59576 | B28: Egresados GRADO - 25/11 Turno Tarde (19:30 Hs) | C28: Licenciatura En Diseño Gráfico | D28: MAURO AUGUSTO, ACCIARRI | E28: acciarri.m@gmail.com | F28: bulnes 5800 esq. machoni | G28: cordoba | H28: ampliacion palmar | I28: Córdoba | J28: 5012 | K28: SI, Asistira | M28: 4 Invitados | O28: 4 | P28: 36049491 | Q28: 5493513065419 | R28: 543513065419
A29: 42304.44902 | B29: Egresados GRADO - 25/11 Turno Mañana (10:30 Hs) | C29: Escribanía | D29: aejandra cecilia, clemente | E29: acclementejuridicos@gmail.com | F29: san martin 4531 | G29: capital | I29: Neuquén | J29: 8300 | K29: No, No asistire | O29: 0 | P29: 16165032 | Q29: 5492994201758 | R29: 542994005458
A30: 42300.86669 | B30: Egresados GRADO - 24/11 Turno Tarde (19:30 Hs) | C30: Abogacía | D30: Beatriz, margara | E30: acu_betty@hotmail.com | F30: la ramada 3336 | G30: Córdoba | H30: alto verde | I30: Córdoba | J30: 5000 | K30: SI, Asistira | M30: 4 Invitados | O30: 4 | P30: 30660250 | Q30: 5493515083753 | R30: 5493515083753
A31: 42290.71148 | B31: Egresados TECNICATURA - 24/11 único turno (10:30 Hs) | C31: Tecnicatura Martillero y Corredor Público. | D31: ADRIAN JOSE, NAZARALA | E31: adnazaa@hotmail.com | F31: Caseros 345 2A | G31: Córdoba | H31: Centro | I31: Córdoba | J31: 5000 | K31: Re programar Llamado. Indicar Fecha y Hora en proximo punto | L31: 16/10 17:00 | O31: 0 | P31: 125082237 | Q31: 5493513314787 | R31: 5493513314787
A32: 42304.69644 | B32: Egresados GRADO - 25/11 Turno Tarde (19:30 Hs) | C32: Licenciatura En Educación | D32: ADRIANA DEL CARMEN, TORRES | E32: adriana_1723@yahoo.com.ar | F32: : AVENIDA EL LIBERTADOR Nº 1723 | G32: san rafael | I32: Mendoza | J32: 5600 | K32: SI, Asistira | O32: 0 | P32: 24542860 | Q32: 5492604552203 | R32: 5492604552203
A33: 42293.51645 | B33: Egresados GRADO - 25/11 Turno Mañana (10:30 Hs) | C33: Escribanía | D33: ADRIANA EDITH, SIVOFF | E33: adrianasivof@hotmail.com | F33: Necochea 622 | G33: Villa Mercedes | I33: San Luis | K33: Re programar Llamado. Indicar Fecha y Hora en proximo punto | L33: 20/10 12:00 | O33: 0 | P33: 14248934 | Q33: 5492657585043 | R33: 5492657585043
